Workbook

Sheet AFR_Down (hidden)

Sheet COVER
A1: Due to ROE on October 15th | H1: ILLINOIS STATE BOARD OF EDUCATION
A2: Due to ISBE on November 16th | H2: School Business Services Department
A3: SD/JA19 | H3: 100 North First Street, Springfield, Illinois 62777-0001
H4: 217/785-8779
C5: School District | H5: Illinois School District/Joint Agreement
C6: Joint Agreement | H6: Annual Financial Report *
H7: 2019-06-30
H9: Accounting Basis: | S9: Certified Public Accountant Information
A10: School District/Joint Agreement Information
A11: (See instructions on inside of this page.) | O11: CASH
A12: School District/Joint Agreement Number: | O12: ACCRUAL | S12: Name of Auditing Firm:
A13: ='AFR19'!B2 -> 99-999-9999-99
A14: County Name: | S14: Name of Audit Supervisor:
A16: Name of School District/Joint Agreement: | S16: Address:
A17: ='AFR19'!B3 -> 2018-19 State Totals - SD Only
A18: Address: | H18: Filing Status: | S18: City: | W18: State: | Y18: Zip Code:
L19: Submit electronic AFR directly to ISBE
A20: City: | S20: Phone Number: | X20: Fax Number:
H21: Click on the Link to Submit:
A22: Email Address: | H22: www.isbe.net/sfms/afr/afr.htm | S22: IL Registration Number:
A24: Zip Code: | S24: Email Address:
C27: Annual Financial Report | H27: Single Audit Status:
C28: Type of Auditor's Report Issued: | V28: ISBE Use Only
C29: Qualified | J29: YES | L29: NO | M29: Are Federal expenditures greater than $750,000?
C30: Adverse | J30: YES | L30: NO | M30: Is all Single Audit Information completed and attached?
C31: Disclaimer | J31: YES | L31: NO | M31: Were any financial Statement or federal awards findings issued?
C34: Reviewed by District Superintendent/Administrator | L34: Reviewed by Township Treasurer (Cook County only) | T34: x | U34: Reviewed by Regional Superintendent
K35: Name of Township:
A37: District Superintendent/Administrator Name (Type or Print): | H37: Township Treasurer Name (type or print) | S37: Regional Superintendent Name (Type or Print):
A39: Email Address: | H39: Email Address: | S39: Email Address:
A41: Telephone: | D41: Fax Number: | H41: Telephone: | O41: Fax Number: | S41: Telephone: | W41: Fax Number:
A43: Signature & Date: | H43: Signature & Date: | S43: Signature & Date:
A45: * This form is based on 23 Illinois Administrative Code 100, Subtitle A, Chapter I, Subchapter C (Part 100).
A46: ISBE Form SD50-35/JA50-60 (5/19)
A47: Revised 07/13/20

Sheet Assets-Liab 5-6
C1: (10) | D1: (20) | E1: (30) | F1: (40) | G1: (50) | H1: (60) | I1: (70) | J1: (80) | K1: (90) | M1: Account Groups
A2: ASSETS | B2: Acct. # | C2: Educational | D2: Operations & Maintenance | E2: Debt Services | F2: Transportation | G2: Municipal Retirement/Social Security | H2: Capital Projects | I2: Working Cash | J2: Tort | K2: Fire Prevention & Safety | L2: Agency Fund | M2: General Fixed Assets | N2: General Long-Term Debt
A3: CURRENT ASSETS (100)
A4: Cash (Accounts 111 through 115) | C4: ='AFR19'!B3357 -> 6734270927 | D4: ='AFR19'!B3360 -> 1142668771 | E4: ='AFR19'!B3363 -> 1362854592 | F4: ='AFR19'!B3365 -> 715022560 | G4: ='AFR19'!B3368 -> 407516554 | H4: ='AFR19'!B3371 -> 2258155283 | I4: ='AFR19'!B3373 -> 1750161689 | J4: ='AFR19'!B6163 -> 198857946 | K4: ='AFR19'!B3492 -> 250766051 | L4: ='AFR19'!B3381 -> 208677212.3
A5: Investments | B5: 120 | C5: ='AFR19'!B19 -> 2144597017 | D5: ='AFR19'!B51 -> 353955928 | E5: ='AFR19'!B75 -> 189814038 | F5: ='AFR19'!B99 -> 210862565 | G5: ='AFR19'!B123 -> 114270042 | H5: ='AFR19'!B145 -> 412799483 | I5: ='AFR19'!B2831 -> 479799929 | J5: ='AFR19'!B6164 -> 55760562 | K5: ='AFR19'!B3496 -> 97027237 | L5: ='AFR19'!B2838 -> 33400916
A6: Taxes Receivable | B6: 130 | C6: ='AFR19'!B11 -> 4730386878 | D6: ='AFR19'!B43 -> 510303177 | E6: ='AFR19'!B72 -> 448723134 | F6: ='AFR19'!B91 -> 178845751 | G6: ='AFR19'!B119 -> 171511446 | H6: ='AFR19'!B3465 -> 12010485 | I6: ='AFR19'!B2826 -> 15267628 | J6: ='AFR19'!B6165 -> 93181011 | K6: ='AFR19'!B3494 -> 13250611
A7: Interfund Receivables | B7: 140 | C7: ='AFR19'!B6027 -> 89651518 | D7: ='AFR19'!B6028 -> 12382552 | E7: ='AFR19'!B6029 -> 1125459 | F7: ='AFR19'!B6030 -> 3112044 | G7: ='AFR19'!B6031 -> 451640 | H7: ='AFR19'!B6032 -> 289737 | I7: ='AFR19'!B6033 -> 69167592 | J7: ='AFR19'!B6034 -> 469761 | K7: ='AFR19'!B6035 -> 5086
A8: Intergovernmental Accounts Receivable | B8: 150 | C8: ='AFR19'!B6036 -> 556764876 | D8: ='AFR19'!B6037 -> 5898929 | E8: ='AFR19'!B6038 -> 68436969 | F8: ='AFR19'!B6039 -> 128628711 | G8: ='AFR19'!B6040 -> 634477 | H8: ='AFR19'!B6041 -> 19167752 | I8: ='AFR19'!B6042 -> 20732575 | J8: ='AFR19'!B6043 -> 1 | K8: ='AFR19'!B6044 -> 0
A9: Other Receivables | B9: 160 | C9: ='AFR19'!B6045 -> 39473714 | D9: ='AFR19'!B6046 -> 4076284 | E9: ='AFR19'!B6047 -> 1402834 | F9: ='AFR19'!B6048 -> 5544178 | G9: ='AFR19'!B6049 -> 649572 | H9: ='AFR19'!B6050 -> 5699479 | I9: ='AFR19'!B6051 -> 3601857 | J9: ='AFR19'!B6052 -> 150516 | K9: ='AFR19'!B6053 -> 131660 | L9: ='AFR19'!B6054 -> 575953
A10: Inventory | B10: 170 | C10: ='AFR19'!B18 -> 11601686 | D10: ='AFR19'!B50 -> 146411 | E10: ='AFR19'!B6055 -> 0 | F10: ='AFR19'!B98 -> 0 | G10: ='AFR19'!B6056 -> 223 | H10: ='AFR19'!B144 -> 0 | I10: ='AFR19'!B6057 -> 0 | J10: ='AFR19'!B6058 -> 0 | K10: ='AFR19'!B3495 -> 0 | L10: ='AFR19'!B2837 -> 0
A11: Prepaid Items | B11: 180 | C11: ='AFR19'!B6059 -> 22219773 | D11: ='AFR19'!B6060 -> 1550072 | E11: ='AFR19'!B6061 -> 8083810 | F11: ='AFR19'!B6062 -> 1247771 | G11: ='AFR19'!B6063 -> 10950 | H11: ='AFR19'!B6064 -> 54770 | I11: ='AFR19'!B6065 -> 0 | J11: ='AFR19'!B6066 -> 2574673 | K11: ='AFR19'!B6067 -> 0 | L11: ='AFR19'!B6068 -> 0
A12: Other Current Assets (Describe & Itemize) | B12: 190 | C12: ='AFR19'!B22 -> 7860108 | D12: ='AFR19'!B54 -> 286148 | E12: ='AFR19'!B76 -> 12381853 | F12: ='AFR19'!B102 -> 57200 | G12: ='AFR19'!B125 -> 48004 | H12: ='AFR19'!B148 -> 120438 | I12: ='AFR19'!B2833 -> 86859 | J12: ='AFR19'!B6069 -> 444 | K12: ='AFR19'!B3497 -> 36 | L12: ='AFR19'!B2840 -> 492841
A13: Total Current Assets | C13: =SUM(C4:C12) -> 14336826497 | D13: =SUM(D4:D12) -> 2031268272 | E13: 2092822689 | F13: 1243320780 | G13: 695092908 | H13: 2708297427 | I13: 2338818129 | J13: 350994914 | K13: 361180681 | L13: 243146922.3
A14: CAPITAL ASSETS (200)
A15: Works of Art & Historical Treasures | B15: 210 | M15: ='AFR19'!B6243 -> 265586
A16: Land | B16: 220 | M16: ='AFR19'!B219 -> 1352330415
A17: Building & Building Improvements | B17: 230 | M17: ='AFR19'!B220 -> 3.555643936e+10
A18: Site Improvements & Infrastructure | B18: 240 | M18: ='AFR19'!B221 -> 2021651770
A19: Capitalized Equipment | B19: 250 | M19: ='AFR19'!B222 -> 3674257107
A20: Construction in Progress | B20: 260 | M20: ='AFR19'!B2810 -> 1720705428
A21: Amount Available in Debt Service Funds | B21: 340 | N21: ='AFR19'!B228 -> 1578305756
A22: Amount to be Provided for Payment on Bonds | B22: 350 | N22: ='AFR19'!B229 -> 2.015912969e+10
A23: Total Capital Assets | M23: =SUM(M15:M20) -> 4.432564966e+10 | N23: =SUM(N21:N22) -> 2.173743545e+10
A24: CURRENT LIABILITIES (400)
A25: Interfund Payables | B25: 410 | C25: ='AFR19'!B6071 -> 40602505 | D25: ='AFR19'!B6072 -> 23889268 | E25: ='AFR19'!B6073 -> 6423924 | F25: ='AFR19'!B6074 -> 22292948 | G25: ='AFR19'!B6075 -> 6642032 | H25: ='AFR19'!B6076 -> 18657171 | J25: ='AFR19'!B6077 -> 56740877 | K25: ='AFR19'!B6078 -> 8808355
A26: Intergovernmental Accounts Payable | B26: 420 | C26: ='AFR19'!B6079 -> 3953970 | D26: ='AFR19'!B6080 -> 1259887 | E26: ='AFR19'!B6081 -> 370375 | F26: ='AFR19'!B6082 -> 181347 | G26: ='AFR19'!B6083 -> 136177 | H26: ='AFR19'!B6084 -> 14609150 | I26: ='AFR19'!B6085 -> 0 | J26: ='AFR19'!B6086 -> 1470732 | K26: ='AFR19'!B6087 -> 0
A27: Other Payables | B27: 430 | C27: ='AFR19'!B6088 -> 796661865 | D27: ='AFR19'!B6089 -> 64068737 | E27: ='AFR19'!B6090 -> 4885342 | F27: ='AFR19'!B6091 -> 32454417 | G27: ='AFR19'!B6092 -> 2663617 | H27: ='AFR19'!B6093 -> 198506332 | I27: ='AFR19'!B6094 -> 940364 | J27: ='AFR19'!B6095 -> 5913999 | K27: ='AFR19'!B6096 -> 12244005
A28: Contracts Payable | B28: 440 | C28: ='AFR19'!B6097 -> 13737070 | D28: ='AFR19'!B6098 -> 430458 | E28: ='AFR19'!B6099 -> 0 | F28: ='AFR19'!B6100 -> 577667 | G28: ='AFR19'!B6101 -> 192477 | H28: ='AFR19'!B6102 -> 10214577 | I28: ='AFR19'!B6103 -> 12202 | J28: ='AFR19'!B6104 -> 27162 | K28: ='AFR19'!B6105 -> 2356472
A29: Loans Payable | B29: 460 | C29: ='AFR19'!B6106 -> 4769873 | D29: ='AFR19'!B6107 -> 15340 | E29: ='AFR19'!B6108 -> 0 | F29: ='AFR19'!B6109 -> 187403 | G29: ='AFR19'!B6110 -> 0 | H29: ='AFR19'!B6111 -> 6104232 | I29: ='AFR19'!B6112 -> 0 | J29: ='AFR19'!B6113 -> 0 | K29: ='AFR19'!B6114 -> 0
A30: Salaries & Benefits Payable | B30: 470 | C30: ='AFR19'!B6115 -> 668620884 | D30: ='AFR19'!B6116 -> 3716857 | E30: ='AFR19'!B6117 -> 0 | F30: ='AFR19'!B6118 -> 1972232 | G30: ='AFR19'!B6119 -> 5161997 | H30: ='AFR19'!B6120 -> 15870 | I30: ='AFR19'!B6121 -> 0 | J30: ='AFR19'!B6122 -> 742492 | K30: ='AFR19'!B6123 -> 20603
A31: Payroll Deductions & Withholdings | B31: 480 | C31: ='AFR19'!B32 -> 125255861 | D31: ='AFR19'!B63 -> 1025851 | E31: ='AFR19'!B6124 -> 0 | F31: ='AFR19'!B110 -> 893674 | G31: ='AFR19'!B130 -> 5294526 | H31: ='AFR19'!B152 -> 9450 | I31: ='AFR19'!B6125 -> 42920 | J31: ='AFR19'!B6126 -> 60843 | K31: ='AFR19'!B3507 -> 200
A32: Deferred Revenues & Other Current Liabilities | B32: 490 | C32: ='AFR19'!B34 -> 4458840163 | D32: ='AFR19'!B65 -> 558592347 | E32: ='AFR19'!B80 -> 455747781 | F32: ='AFR19'!B112 -> 262659001 | G32: ='AFR19'!B131 -> 177333434 | H32: ='AFR19'!B154 -> 5696137 | I32: ='AFR19'!B2854 -> 18347941 | J32: ='AFR19'!B6127 -> 57235109 | K32: ='AFR19'!B3508 -> 13950236
A33: Due to Activity Fund Organizations | B33: 493 | C33: ='AFR19'!B6128 -> 52373270 | D33: ='AFR19'!B6129 -> 0 | E33: ='AFR19'!B6130 -> 0 | F33: ='AFR19'!B6131 -> 4659 | G33: ='AFR19'!B6132 -> 0 | H33: ='AFR19'!B6133 -> 27083860 | I33: ='AFR19'!B6134 -> 0 | J33: ='AFR19'!B6135 -> 0 | K33: ='AFR19'!B6136 -> 0 | L33: ='AFR19'!B2860 -> 198420370.3
A34: Total Current Liabilities | C34: =SUM(C25:C33) -> 6164815461 | D34: =SUM(D25:D33) -> 652998745 | E34: 467427422 | F34: 321223348 | G34: 197424260 | H34: 280896779 | I34: 19343427 | J34: 122191214 | K34: 37379871 | L34: =L33 -> 198420370.3
A35: LONG-TERM LIABILITIES (500)
A36: Long-Term Debt Payable (General Obligation, Revenue, Other) | B36: 511 | N36: ='AFR19'!B231 -> 2.173743411e+10
A37: Total Long-Term Liabilities | N37: =N36 -> 2.173743411e+10
A38: Reserved Fund Balance | B38: 714 | C38: ='AFR19'!B2381 -> 297895232 | D38: ='AFR19'!B2383 -> 214608822 | E38: ='AFR19'!B2450 -> 1038854749 | F38: ='AFR19'!B2421 -> 198543221 | G38: ='AFR19'!B2423 -> 165987992 | H38: ='AFR19'!B2481 -> 1076832399 | I38: ='AFR19'!B2857 -> 86738134 | J38: ='AFR19'!B6160 -> 82859569 | K38: ='AFR19'!B3512 -> 74187771 | L38: ='AFR19'!B3017 -> 43024405
A39: Unreserved Fund balance | B39: 730 | C39: ='AFR19'!B38 -> 7874115804 | D39: ='AFR19'!B69 -> 1163660705 | E39: ='AFR19'!B86 -> 586540518 | F39: ='AFR19'!B116 -> 723554211 | G39: ='AFR19'!B135 -> 331680656 | H39: ='AFR19'!B158 -> 1350568217 | I39: ='AFR19'!B2858 -> 2232736568 | J39: ='AFR19'!B6161 -> 145944131 | K39: ='AFR19'!B3513 -> 249613039 | L39: ='AFR19'!B3018 -> 1702147
A40: Investment in General Fixed Assets | M40: ='AFR19'!B226 -> 4.432564966e+10
A41: Total Liabilities and Fund Balance | C41: =SUM(C34,C38:C39) -> 1.43368265e+10 | D41: =SUM(D34,D38:D39) -> 2031268272 | E41: 2092822689 | F41: 1243320780 | G41: 695092908 | H41: 2708297395 | I41: 2338818129 | J41: 350994914 | K41: 361180681 | L41: 243146922.3 | M41: =M40 -> 4.432564966e+10 | N41: =N37 -> 2.173743411e+10

Sheet Acct Summary 7-8
C1: (10) | D1: (20) | E1: (30) | F1: (40) | G1: (50) | H1: (60) | I1: (70) | J1: (80) | K1: (90)
A2: Description | B2: Acct # | C2: Educational | D2: Operations & Maintenance | E2: Debt Services | F2: Transportation | G2: Municipal Retirement/ Social Security | H2: Capital Projects | I2: Working Cash | J2: Tort | K2: Fire Prevention & Safety
A3: RECEIPTS/REVENUES
A4: Local Sources | B4: 1000 | C4: ='Revenues 9-14'!C109 -> 1.475489983e+10 | D4: ='Revenues 9-14'!D109 -> 1789002745 | E4: ='Revenues 9-14'!E109 -> 1801161409 | F4: ='Revenues 9-14'!F109 -> 646739884 | G4: ='Revenues 9-14'!G109 -> 635332547.9 | H4: ='Revenues 9-14'!H109 -> 223665035.2 | I4: ='Revenues 9-14'!I109 -> 116633339.3 | J4: ='Revenues 9-14'!J109 -> 385320201.2 | K4: ='Revenues 9-14'!K109 -> 60520473.06
A5: Flow-Through Receipts/Revenues from One District to Another District | B5: 2000 | C5: ='Revenues 9-14'!C114 -> 10276423 | D5: ='Revenues 9-14'!D114 -> 510487 | F5: ='Revenues 9-14'!F114 -> 141160 | G5: ='Revenues 9-14'!G114 -> 0
A6: State Sources | B6: 3000 | C6: ='Revenues 9-14'!C170 -> 6481608321 | D6: ='Revenues 9-14'!D170 -> 622829102 | E6: ='Revenues 9-14'!E170 -> 314401382 | F6: ='Revenues 9-14'!F170 -> 674475072 | G6: ='Revenues 9-14'!G170 -> 11736720 | H6: ='Revenues 9-14'!H170 -> 57097412 | I6: ='Revenues 9-14'!I170 -> 0 | J6: ='Revenues 9-14'!J170 -> 5121652 | K6: ='Revenues 9-14'!K170 -> 678591
A7: Federal Sources | B7: 4000 | C7: ='Revenues 9-14'!C267 -> 2080721391 | D7: ='Revenues 9-14'!D267 -> 8884666.4 | E7: ='Revenues 9-14'!E267 -> 48301633 | F7: ='Revenues 9-14'!F267 -> 2028565 | G7: ='Revenues 9-14'!G267 -> 2500225 | H7: ='AFR19'!B2603 -> 1523211 | I7: ='Revenues 9-14'!I267 -> 0 | J7: ='Revenues 9-14'!J267 -> 0 | K7: ='Revenues 9-14'!K267 -> 0
A8: Total Direct Receipts/Revenues | C8: =SUM(C4:C7) -> 2.332750597e+10 | D8: =SUM(D4:D7) -> 2421227000 | E8: 2163864424 | F8: 1323384681 | G8: 649569492.9 | H8: 282285658.2 | I8: 116633339.3 | J8: 390441853.2 | K8: 61199064.06
A9: Receipts/Revenues for "On Behalf" Payments 2 | B9: 3998 | C9: ='AFR19'!B4059 -> 5909326257 | D9: ='AFR19'!B4060 -> 7090148 | E9: ='AFR19'!B4061 -> 0 | F9: ='AFR19'!B4062 -> 2379 | G9: ='AFR19'!B4063 -> 0 | H9: ='AFR19'!B4064 -> 688465 | J9: ='AFR19'!B6170 -> 9680603 | K9: ='AFR19'!B4067 -> 0
A10: Total Receipts/Revenues | C10: =SUM(C8:C9) -> 2.923683222e+10 | D10: =SUM(D8:D9) -> 2428317148 | E10: 2163864424 | F10: 1323387060 | G10: 649569492.9 | H10: 282974123.2 | I10: 116633339.3 | J10: 400122456.2 | K10: 61199064.06
A11: DISBURSEMENTS/EXPENDITURES
A12: Instruction | B12: 1000 | C12: ='Expenditures 15-22'!K33 -> 1.506024415e+10 | G12: ='Expenditures 15-22'!K229 -> 245504120.9
A13: Support Services | B13: 2000 | C13: ='Expenditures 15-22'!K74 -> 6456131781 | D13: ='Expenditures 15-22'!K129 -> 2326391224 | F13: ='Expenditures 15-22'!K184 -> 1220337601 | G13: ='Expenditures 15-22'!K279 -> 366331916.7 | H13: ='Expenditures 15-22'!K303 -> 2015522006 | J13: ='Expenditures 15-22'!K330 -> 379602503 | K13: ='Expenditures 15-22'!K352 -> 176986335.8
A14: Community Services | B14: 3000 | C14: ='Expenditures 15-22'!K75 -> 167249497.8 | D14: ='Expenditures 15-22'!K130 -> 366434 | F14: ='Expenditures 15-22'!K185 -> 206240 | G14: ='Expenditures 15-22'!K280 -> 6389057.6
A15: Payments to Other Districts & Govermental Units | B15: 4000 | C15: ='Expenditures 15-22'!K102 -> 752639020.8 | D15: ='Expenditures 15-22'!K139 -> 5128059 | E15: ='Expenditures 15-22'!K160 -> 105596 | F15: ='Expenditures 15-22'!K196 -> 14624269 | G15: ='Expenditures 15-22'!K285 -> 1833094 | H15: ='Expenditures 15-22'!K310 -> 633862 | J15: ='Expenditures 15-22'!K334 -> 806600 | K15: ='Expenditures 15-22'!K357 -> 13759
A16: Debt Service | B16: 5000 | C16: ='Expenditures 15-22'!K112 -> 9325339 | D16: ='Expenditures 15-22'!K149 -> 471810 | E16: ='Expenditures 15-22'!K172 -> 2675917125 | F16: ='Expenditures 15-22'!K208 -> 16870528 | G16: ='Expenditures 15-22'!K293 -> 7 | J16: ='Expenditures 15-22'!K340 -> 0 | K16: ='Expenditures 15-22'!K365 -> 313020
A17: Total Direct Disbursements/Expenditures | C17: =SUM(C12:C16) -> 2.244558979e+10 | D17: 2332357527 | E17: 2676022721 | F17: 1252038638 | G17: 620058196.2 | H17: 2016155868 | J17: =SUM(J12:J16) -> 380409103 | K17: =SUM(K12:K16) -> 177313114.8
A18: Disbursements/Expenditures for "On Behalf" Payments 2 | B18: 4180 | C18: ='AFR19'!B4077 -> 5909326257 | D18: ='AFR19'!B4078 -> 7090148 | E18: ='AFR19'!B4121 -> 0 | F18: ='AFR19'!B4079 -> 2379 | G18: ='AFR19'!B4122 -> 0 | H18: ='AFR19'!B4080 -> 688465 | J18: ='AFR19'!B6174 -> 9680603 | K18: ='AFR19'!B4081 -> 0
A19: Total Disbursements/Expenditures | C19: =SUM(C17:C18) -> 2.835491605e+10 | D19: 2339447675 | E19: 2676022721 | F19: 1252041017 | G19: 620058196.2 | H19: 2016844333 | J19: =SUM(J17:J18) -> 390089706 | K19: =SUM(K17:K18) -> 177313114.8
A20: Excess of Direct Receipts/Revenues Over (Under) Direct Disbursements/Expenditures 3 | C20: =C8-C17 -> 881916175.6 | D20: =D8-D17 -> 88869472.8 | E20: -512158296.3 | F20: 71346042.75 | G20: 29511296.65 | H20: -1733870210 | I20: 116633339.3 | J20: 10032750.19 | K20: -116114050.8
A21: OTHER SOURCES/USES OF FUNDS
A22: OTHER SOURCES OF FUNDS (7000)
A23: PERMANENT TRANSFER FROM VARIOUS FUNDS
A24: Abolishment of Working Cash Fund | B24: 7110 | C24: ='AFR19'!B266 -> 7501035
A25: Abatement of Working Cash Fund | C25: ='AFR19'!B7694 -> 48227005 | D25: ='AFR19'!B7695 -> 158953848 | E25: ='AFR19'!B7696 -> 4082213 | F25: ='AFR19'!B7697 -> 10639900 | G25: ='AFR19'!B7698 -> 155000 | H25: ='AFR19'!B7699 -> 128248065 | J25: ='AFR19'!B7700 -> 1515886 | K25: ='AFR19'!B7701 -> 1128845
A26: Transfer of Working Cash Fund Interest | B26: 7120 | C26: ='AFR19'!B267 -> 2293697 | D26: ='AFR19'!B378 -> 11364184 | E26: ='AFR19'!B3436 -> 1758976 | F26: ='AFR19'!B2708 -> 71759 | G26: ='AFR19'!B3438 -> 36000 | H26: ='AFR19'!B3439 -> 5098843 | J26: ='AFR19'!B6177 -> 0 | K26: ='AFR19'!B3523 -> 55484
A27: Transfer Among Funds | B27: 7130 | C27: ='AFR19'!B4958 -> 14192473 | D27: ='AFR19'!B4959 -> 148475419 | F27: ='AFR19'!B4960 -> 971571
A28: Transfer of Interest | B28: 7140 | C28: ='AFR19'!B2703 -> 1765232 | D28: ='AFR19'!B2704 -> 3126148 | E28: ='AFR19'!B2706 -> 4952699 | F28: ='AFR19'!B2709 -> 0 | G28: ='AFR19'!B2712 -> 19616 | H28: ='AFR19'!B2715 -> 16441361 | I28: ='AFR19'!B2718 -> 36743 | J28: ='AFR19'!B6178 -> 0 | K28: ='AFR19'!B3524 -> 433
A29: Transfer from Capital Project Fund to O&M Fund | B29: 7150 | D29: ='AFR19'!B3107 -> 1459218
A30: Transfer of Excess Fire Prevention & Safety Tax and Interest Proceeds to Debt Service Fund 4 | B30: 7160 | D30: ='AFR19'!B3644 -> 2867664
A31: Transfer to Excess Fire Prevention & Safety Bond and Interest Proceeds to Debt Service Fund 4 | B31: 7170 | E31: ='AFR19'!B3645 -> 207620
A32: SALE OF BONDS (7200)
A33: Principal on Bonds Sold | B33: 7210 | C33: ='AFR19'!B269 -> 11031585 | D33: ='AFR19'!B3024 -> 5395804 | E33: ='AFR19'!B3028 -> 1076642900 | F33: ='AFR19'!B3029 -> 5560187 | H33: ='AFR19'!B564 -> 1085640613 | I33: ='AFR19'!B597 -> 334555301 | J33: ='AFR19'!B6179 -> 664520 | K33: ='AFR19'!B3525 -> 118751902
A34: Premium on Bonds Sold | B34: 7220 | C34: ='AFR19'!B270 -> 32500 | D34: ='AFR19'!B3025 -> 0 | E34: ='AFR19'!B446 -> 58419339 | F34: ='AFR19'!B3030 -> 0 | H34: ='AFR19'!B565 -> 47200028 | I34: ='AFR19'!B598 -> 10007002 | J34: ='AFR19'!B6180 -> 82110 | K34: ='AFR19'!B3526 -> 5943882
A35: Accrued Interest on Bonds Sold | B35: 7230 | C35: ='AFR19'!B271 -> 0 | D35: ='AFR19'!B3026 -> 0 | E35: ='AFR19'!B447 -> 717426 | F35: ='AFR19'!B3031 -> 0 | H35: ='AFR19'!B566 -> 3800 | I35: ='AFR19'!B599 -> 0 | J35: ='AFR19'!B6181 -> 0 | K35: ='AFR19'!B3527 -> 0
A36: Sale or Compensation for Fixed Assets 5 | B36: 7300 | C36: ='AFR19'!B3476 -> 2001715 | D36: ='AFR19'!B3477 -> 1415948 | E36: ='AFR19'!B4163 -> 0 | F36: ='AFR19'!B3478 -> 2968883 | G36: ='AFR19'!B3479 -> 0 | H36: ='AFR19'!B3480 -> 5908737 | J36: ='AFR19'!B6182 -> 55121 | K36: ='AFR19'!B3528 -> 0
A37: Transfer to Debt Service to Pay Principal on Capital Leases | B37: 7400 | E37: =SUM(C54:D57,H54:H57) -> 50793945
A38: Transfer to Debt Service to Pay Interest on Capital Leases | B38: 7500 | E38: =SUM(C58:D61,H58:H61) -> 4418122
A39: Transfer to Debt Service to Pay Principal on Revenue Bonds | B39: 7600 | E39: =SUM(C62:D65) -> 44525880
A40: Transfer to Debt Service Fund to Pay Interest on Revenue Bonds | B40: 7700 | E40: =SUM(C66:D69) -> 15083785
A41: Transfer to Capital Projects Fund | B41: 7800 | H41: =SUM(C70:D73) -> 411872758
A42: ISBE Loan Proceeds | B42: 7900 | C42: ='AFR19'!B6236 -> 442300 | D42: ='AFR19'!B6237 -> 0 | E42: ='AFR19'!B6238 -> 1040855 | F42: ='AFR19'!B6239 -> 0 | G42: ='AFR19'!B6240 -> 0 | H42: ='AFR19'!B6241 -> 14000000 | K42: ='AFR19'!B6242 -> 0
A43: Other Sources Not Classified Elsewhere | B43: 7990 | C43: ='AFR19'!B3174 -> 45270963 | D43: ='AFR19'!B3180 -> 18141105 | E43: ='AFR19'!B3219 -> 63546461 | F43: ='AFR19'!B3197 -> 13179821 | G43: ='AFR19'!B3203 -> 0 | H43: ='AFR19'!B3241 -> 44582043 | I43: ='AFR19'!B3262 -> 841232 | J43: ='AFR19'!B6183 -> 27981 | K43: ='AFR19'!B3529 -> 68
A44: Total Other Sources of Funds | C44: =SUM(C24:C43) -> 132758505 | D44: 351199338 | E44: 1326190221 | F44: 33392121 | G44: 210616 | H44: 1758996248 | I44: 345440278 | J44: 2345618 | K44: 125880614
A45: OTHER USES OF FUNDS (8000)
A46: PERMANENT TRANSFER TO VARIOUS OTHER FUNDS (8100)
A47: Abolishment or Abatement of the Working Cash Fund | B47: 8110 | I47: =SUM(C24,C25:H25,J25:K25) -> 360451797
A48: Transfer of Working Cash Fund Interest | B48: 8120 | I48: =SUM(C26:H26,J26,K26) -> 20678943
A49: Transfer Among Funds | B49: 8130 | C49: ='AFR19'!B4968 -> 117798509 | D49: ='AFR19'!B4969 -> 5562446 | F49: ='AFR19'!B4970 -> 40378508
A50: Transfer of Interest | B50: 8140 | C50: ='AFR19'!B2740 -> 10776640 | D50: ='AFR19'!B2752 -> 11478151 | E50: ='AFR19'!B2763 -> 1911909 | F50: ='AFR19'!B2786 -> 171779 | G50: ='AFR19'!B3205 -> 11374 | H50: ='AFR19'!B2794 -> 1181515 | J50: ='AFR19'!B6185 -> 810864
A51: Transfer from Capital Project Fund to O&M Fund | B51: 8150 | H51: =D29 -> 1459218
A52: Transfer of Excess Fire Prevention & Safety Tax & Interest Proceeds to O&M Fund | B52: 8160 | K52: =D30 -> 2867664
A53: Transfer of Excess Fire Prevention & Safety Bond and Interest Proceeds to Debt Service Fund | B53: 8170 | K53: =E31 -> 207620
A54: Taxes Pledged to pay Prinicipal on Capital Leases | B54: 8410 | C54: ='AFR19'!B6186 -> 9921016 | D54: ='AFR19'!B6187 -> 2339864 | H54: ='AFR19'!B6188 -> 2179147
A55: Grants/Reimbursements Pledged to Pay Principal on Capital Leases | B55: 8420 | C55: ='AFR19'!B7597 -> 519015 | D55: ='AFR19'!B7598 -> 0 | H55: ='AFR19'!B7599 -> 0
A56: Other Revenues Pledged to Pay Principal on Capital Leases | B56: 8430 | C56: ='AFR19'!B7600 -> 8411284 | D56: ='AFR19'!B7601 -> 1933794 | H56: ='AFR19'!B7602 -> 111933
A57: Fund Balances Transfers Pledged to Pay Principal on Capital Leases | B57: 8440 | C57: ='AFR19'!B7603 -> 20275333 | D57: ='AFR19'!B7604 -> 4472277 | H57: ='AFR19'!B7605 -> 630282
A58: Taxes Pledged to Pay Interest on Capital Leases | B58: 8510 | C58: ='AFR19'!B6189 -> 949288 | D58: ='AFR19'!B6190 -> 335857 | H58: ='AFR19'!B6191 -> 560764
A59: Grants/Reimbursements Pledged to Pay Interest on Capital Leases | B59: 8520 | C59: ='AFR19'!B7606 -> 108546 | D59: ='AFR19'!B7607 -> 0 | H59: ='AFR19'!B7608 -> 0
A60: Other Revenues Pledged to Pay Interest on Capital Leases | B60: 8530 | C60: ='AFR19'!B7609 -> 425347 | D60: ='AFR19'!B7610 -> 464224 | H60: ='AFR19'!B7611 -> 18067
A61: Fund Balances Transfers Pledged to Pay Interest on Capital Leases | B61: 8540 | C61: ='AFR19'!B7612 -> 885616 | D61: ='AFR19'!B7613 -> 653295 | H61: ='AFR19'!B7614 -> 17118
A62: Taxes Pledged to Pay Prinicipal on Revenue Bonds | B62: 8610 | C62: ='AFR19'!B6192 -> 983347 | D62: ='AFR19'!B6193 -> 1437670
A63: Grants/Reimbursements Pledged to Pay Principal on Revenue Bonds | B63: 8620 | C63: ='AFR19'!B7615 -> 820000 | D63: ='AFR19'!B7616 -> 70000
A64: Other Revenues Pledged to Pay Principal on Revenue Bonds | B64: 8630 | C64: ='AFR19'!B7617 -> 2801120 | D64: ='AFR19'!B7618 -> 3770586
A65: Fund Balance Transfers Pledged to Pay Principal on Revenue Bonds | B65: 8640 | C65: ='AFR19'!B7619 -> 11789305 | D65: ='AFR19'!B7620 -> 22853852
A66: Taxes Pledged to Pay Interest on Revenue Bonds | B66: 8710 | C66: ='AFR19'!B6194 -> 4838 | D66: ='AFR19'!B6195 -> 494211
A67: Grants/Reimbursements Pledged to Pay Interest on Revenue Bonds | B67: 8720 | C67: ='AFR19'!B7621 -> 887375 | D67: ='AFR19'!B7622 -> 371800
A68: Other Revenues Pledged to Pay Interest on Revenue Bonds | B68: 8730 | C68: ='AFR19'!B7623 -> 463920 | D68: ='AFR19'!B7624 -> 2369829
A69: Fund Balance Transfers Pledged to Pay Interest on Revenue Bonds | B69: 8740 | C69: ='AFR19'!B7625 -> 3042976 | D69: ='AFR19'!B7626 -> 7448836
A70: Taxes Transferred to Pay for Capital Projects | B70: 8810 | C70: ='AFR19'!B6196 -> 280000 | D70: ='AFR19'!B6197 -> 20400000
A71: Grants/Reimbursements Pledged to Pay for Capital Projects | B71: 8820 | C71: ='AFR19'!B7627 -> 0 | D71: ='AFR19'!B7628 -> 0
A72: Other Revenues Pledged for Capital Projects | B72: 8830 | C72: ='AFR19'!B7629 -> 32407815 | D72: ='AFR19'!B7630 -> 3392915
A73: Fund Balance Transfers Pledged to Pay for Capital Projects | B73: 8840 | C73: ='AFR19'!B7631 -> 87653246 | D73: ='AFR19'!B7632 -> 267738782
A74: Transfer to Debt Service Fund to Pay Principal on ISBE Loans | B74: 8910 | C74: ='AFR19'!B6198 -> 1029916 | D74: ='AFR19'!B6199 -> 14411 | F74: ='AFR19'!B6200 -> 0 | G74: ='AFR19'!B6201 -> 0 | H74: ='AFR19'!B6202 -> 0 | K74: ='AFR19'!B6203 -> 0
A75: Other Uses Not Classified Elsewhere | B75: 8990 | C75: ='AFR19'!B3176 -> 53222162 | D75: ='AFR19'!B3182 -> 67726860 | E75: ='AFR19'!B3221 -> 841958238 | F75: ='AFR19'!B3199 -> 2548836 | G75: ='AFR19'!B6204 -> 8350 | H75: ='AFR19'!B3243 -> 45519466 | I75: ='AFR19'!B6205 -> 18478227 | J75: ='AFR19'!B6206 -> 4868422 | K75: ='AFR19'!B3531 -> 1403076
A76: Total Other Uses of Funds | C76: =SUM(C47:C75) -> 365456614 | D76: =SUM(D47:D75) -> 425329660 | E76: 843870147 | F76: 43099123 | G76: 19724 | H76: 51677510 | I76: 399608967 | J76: 5679286 | K76: 4478360
A77: Total Other Sources/Uses of Funds 6 | C77: =(C44-C76) -> -232698109 | D77: =(D44-D76) -> -74130322 | E77: 482320074 | F77: -9707002 | G77: 190892 | H77: 1707318738 | I77: -54168689 | J77: -3333668 | K77: 121402254
A78: Excess of Receipts/Revenues and Other Sources of Funds (Over/Under) Expenditures/Disbursements and Other Uses of Funds | C78: =SUM(C20+C77) -> 649218066.6 | D78: =SUM(D20+D77) -> 14739150.8 | E78: =SUM(E20+E77) -> -29838222.28 | F78: 61639040.75 | G78: 29702188.65 | H78: -26551471.62 | I78: 62464650.3 | J78: 6699082.19 | K78: 5288203.24
A79: Fund Balances - July 1, 2018 | C79: ='AFR19'!B1563 -> 7507102781 | D79: ='AFR19'!B1577 -> 1362190051 | E79: ='AFR19'!B1591 -> 1653172007 | F79: ='AFR19'!B1605 -> 859943832 | G79: ='AFR19'!B1619 -> 467499740 | H79: ='AFR19'!B1633 -> 2453580822 | I79: ='AFR19'!B3267 -> 2257079613 | J79: ='AFR19'!B6210 -> 222119291 | K79: ='AFR19'!B3535 -> 319204097
A80: Other Changes in Fund Balances - Increases (Decreases) (Describe & Itemize) | C80: ='AFR19'!B2509 -> 15690188 | D80: ='AFR19'!B2521 -> 1340324 | E80: ='AFR19'!B2583 -> 2061481 | F80: ='AFR19'!B2548 -> 514559 | G80: ='AFR19'!B2560 -> 466719 | H80: ='AFR19'!B2609 -> 371298 | I80: ='AFR19'!B3268 -> -69561 | J80: ='AFR19'!B6211 -> -14673 | K80: ='AFR19'!B3536 -> -691490
A81: Fund Balances - June 30, 2019 | C81: =SUM(C78:C80) -> 8172011036 | D81: =SUM(D78:D80) -> 1378269526 | E81: 1625395266 | F81: 922097431.8 | G81: 497668647.6 | H81: 2427400648 | I81: 2319474702 | J81: 228803700.2 | K81: 323800810.2

Sheet Revenues 9-14
C1: (10) | D1: (20) | E1: (30) | F1: (40) | G1: (50) | H1: (60) | I1: (70) | J1: (80) | K1: (90)
A2: Description | B2: Acct # | C2: Educational | D2: Operations & Maintenance | E2: Debt Services | F2: Transportation | G2: Municipal Retirement/ Social Security | H2: Capital Projects | I2: Working Cash | J2: Tort | K2: Fire Prevention & Safety
A3: RECEIPTS/REVENUES FROM LOCAL SOURCES (1000)
A4: AD VALOREM TAXES LEVIED BY LOCAL EDUCATION AGENCY
A5: Designated Purposes Levies 7 | C5: ='AFR19'!B5007 -> 1.253181935e+10 | D5: ='AFR19'!B5274 -> 1556317301 | E5: ='AFR19'!B5455 -> 1534413665 | F5: ='AFR19'!B5499 -> 576586163 | G5: ='AFR19'!B5667 -> 266985769.5 | H5: ='AFR19'!B5817 -> 11120377 | I5: ='AFR19'!B5862 -> 67098363.22 | J5: ='AFR19'!B6244 -> 375678196.6 | K5: ='AFR19'!B5931 -> 54460270.08
A6: Leasing Purposes Levy 8 | B6: 1130 | C6: ='AFR19'!B4972 -> 27652032 | D6: ='AFR19'!B5276 -> 6497152
A7: Special Education Purposes Levy | B7: 1140 | C7: ='AFR19'!B5009 -> 494294442.8 | D7: ='AFR19'!B5277 -> 98212 | F7: ='AFR19'!B5501 -> 0 | G7: ='AFR19'!B5668 -> 1199757 | H7: ='AFR19'!B6245 -> 0
A8: FICA/Medicare Only Purposes Levies | B8: 1150 | G8: ='AFR19'!B5669 -> 301792612.8
A9: Area Vocational Construction Purposes Levy | B9: 1160 | D9: ='AFR19'!B5278 -> 0 | E9: ='AFR19'!B5457 -> 0 | H9: ='AFR19'!B6989 -> 0
A10: Summer School Purposes Levy | B10: 1170 | C10: ='AFR19'!B5010 -> 0
A11: Other Tax Levies (Describe & Itemize) | B11: 1190 | C11: ='AFR19'!B5011 -> 172573 | D11: ='AFR19'!B5279 -> 2623666 | E11: ='AFR19'!B5458 -> 3444039 | F11: ='AFR19'!B5502 -> 2084860 | G11: ='AFR19'!B5670 -> 1465901 | H11: ='AFR19'!B5818 -> 7000 | I11: ='AFR19'!B5863 -> 206137 | J11: ='AFR19'!B6246 -> 290592 | K11: ='AFR19'!B5932 -> 451041
A12: Total Ad Valorem Taxes Levied By District | C12: =SUM(C5:C11) -> 1.30539384e+10 | D12: =SUM(D5:D11) -> 1565536331 | E12: 1537857704 | F12: 578671023 | G12: 571444040.4 | H12: 11127377 | I12: 67304500.22 | J12: 375968788.6 | K12: 54911311.08
A13: PAYMENTS IN LIEU OF TAXES
A14: Mobile Home Privilege Tax | B14: 1210 | C14: ='AFR19'!B5013 -> 1296094.98 | D14: ='AFR19'!B5281 -> 213309.45 | E14: ='AFR19'!B5460 -> 263171.84 | F14: ='AFR19'!B5504 -> 85945.96 | G14: ='AFR19'!B5672 -> 116243.11 | H14: ='AFR19'!B5820 -> 0 | I14: ='AFR19'!B5865 -> 15292.75 | J14: ='AFR19'!B6248 -> 117237.5 | K14: ='AFR19'!B5934 -> 17548.75
A15: Payments from Local Housing Authorities | B15: 1220 | C15: ='AFR19'!B5014 -> 547369 | D15: ='AFR19'!B5282 -> 44643 | E15: ='AFR19'!B5461 -> 70657 | F15: ='AFR19'!B5505 -> 16015 | G15: ='AFR19'!B5673 -> 28681 | H15: ='AFR19'!B5821 -> 0 | I15: ='AFR19'!B5866 -> 3308 | J15: ='AFR19'!B6249 -> 25095 | K15: ='AFR19'!B5935 -> 2620
A16: Corporate Personal Property Replacement Taxes 9 | B16: 1230 | C16: ='AFR19'!B5015 -> 493272836.5 | D16: ='AFR19'!B5283 -> 98454852 | E16: ='AFR19'!B5462 -> 36627716 | F16: ='AFR19'!B5506 -> 8510339 | G16: ='AFR19'!B5674 -> 52453106.85 | H16: ='AFR19'!B5822 -> 6187848 | I16: ='AFR19'!B5867 -> 2698561 | J16: ='AFR19'!B6250 -> 2019464 | K16: ='AFR19'!B5936 -> 27
A17: Other Payments in Lieu of Taxes (Describe & Itemize) | B17: 1290 | C17: ='AFR19'!B5016 -> 10258939 | D17: ='AFR19'!B5284 -> 1368360 | E17: ='AFR19'!B5463 -> 581544 | F17: ='AFR19'!B5507 -> 33632 | G17: ='AFR19'!B5675 -> 117348 | H17: ='AFR19'!B5823 -> 4890221 | I17: ='AFR19'!B5868 -> 5188 | J17: ='AFR19'!B6251 -> 22344 | K17: ='AFR19'!B5937 -> 39673
A18: Total Payments in Lieu of Taxes | C18: =SUM(C14:C17) -> 505375239.4 | D18: =SUM(D14:D17) -> 100081164.5 | E18: 37543088.84 | F18: 8645931.96 | G18: 52715378.96 | H18: 11078069 | I18: 2722349.75 | J18: 2184140.5 | K18: 59868.75
A19: Tuition
A20: Regular - Tuition from Pupils or Parents (In State) | B20: 1311 | C20: ='AFR19'!B5018 -> 17387807.25
A21: Regular - Tuition from Other Districts (In State) | B21: 1312 | C21: ='AFR19'!B5019 -> 4125458.77
A22: Regular - Tuition from Other Sources (In State) | B22: 1313 | C22: ='AFR19'!B5020 -> 3181105
A23: Regular - Tuition from Other Sources (Out of State) | B23: 1314 | C23: ='AFR19'!B6253 -> 498250
A24: Summer Sch - Tuition from Pupils or Parents (In State) | B24: 1321 | C24: ='AFR19'!B5021 -> 15675352
A25: Summer Sch - Tuition from Other Districts (In State) | B25: 1322 | C25: ='AFR19'!B5022 -> 406380
A26: Summer Sch - Tuition from Other Sources (In State) | B26: 1323 | C26: ='AFR19'!B5023 -> 641917
A27: Summer Sch - Tuition from Other Sources (Out of State) | B27: 1324 | C27: ='AFR19'!B6254 -> 0
A28: CTE - Tuition from Pupils or Parents (In State) | B28: 1331 | C28: ='AFR19'!B5024 -> 109331
A29: CTE - Tuition from Other Districts (In State) | B29: 1332 | C29: ='AFR19'!B5025 -> 184573
A30: CTE - Tuition from Other Sources (In State) | B30: 1333 | C30: ='AFR19'!B5026 -> 28310
A31: CTE - Tuition from Other Sources (Out of State) | B31: 1334 | C31: ='AFR19'!B6255 -> 0
A32: Special Ed - Tuition from Pupils or Parents (In State) | B32: 1341 | C32: ='AFR19'!B5027 -> 3814207
A33: Special Ed - Tuition from Other Districts (In State) | B33: 1342 | C33: ='AFR19'!B5028 -> 23435605
A34: Special Ed - Tuition from Other Sources (In State) | B34: 1343 | C34: ='AFR19'!B5029 -> 979455
A35: Special Ed - Tuition from Other Sources (Out of State) | B35: 1344 | C35: ='AFR19'!B6256 -> 101760
A36: Adult - Tuition from Pupils or Parents (In State) | B36: 1351 | C36: ='AFR19'!B5030 -> 3367476
A37: Adult - Tuition from Other Districts (In State) | B37: 1352 | C37: ='AFR19'!B5031 -> 0
A38: Adult - Tuition from Other Sources (In State) | B38: 1353 | C38: ='AFR19'!B5032 -> 525310
A39: Adult - Tuition from Other Sources (Out of State) | B39: 1354 | C39: ='AFR19'!B6257 -> 295564
A40: Total Tuition | C40: =SUM(C20:C39) -> 74757861.02
A41: TRANSPORTATION FEES
A42: Regular -Transp Fees from Pupils or Parents (In State) | B42: 1411 | F42: ='AFR19'!B5509 -> 7064759
A43: Regular - Transp Fees from Other Districts (In State) | B43: 1412 | F43: ='AFR19'!B5510 -> 15713989
A44: Regular - Transp Fees from Other Sources (In State) | B44: 1413 | F44: ='AFR19'!B5511 -> 1514448
A45: Regular - Transp Fees from Co-curricular Activities (In State) | B45: 1415 | F45: ='AFR19'!B5512 -> 5432092
A46: Regular Transp Fees from Other Sources (Out of State) | B46: 1416 | F46: ='AFR19'!B6258 -> 39257
A47: Summer Sch - Transp. Fees from Pupils or Parents (In State) | B47: 1421 | F47: ='AFR19'!B5513 -> 271078
A48: Summer Sch - Transp. Fees from Other Districts (In State) | B48: 1422 | F48: ='AFR19'!B5514 -> 0
A49: Summer Sch - Transp. Fees from Other Sources (In State) | B49: 1423 | F49: ='AFR19'!B5515 -> 0
A50: Summer Sch - Transp. Fees from Other Sources (Out of State) | B50: 1424 | F50: ='AFR19'!B6259 -> 0
A51: CTE - Transp Fees from Pupils or Parents (In State) | B51: 1431 | F51: ='AFR19'!B5516 -> 76413
A52: CTE - Transp Fees from Other Districts (In State) | B52: 1432 | F52: ='AFR19'!B5517 -> 17358
A53: CTE - Transp Fees from Other Sources (In State) | B53: 1433 | F53: ='AFR19'!B5518 -> 100
A54: CTE - Transp Fees from Other Sources (Out of State) | B54: 1434 | F54: ='AFR19'!B6260 -> 0
A55: Special Ed - Transp Fees from Pupils or Parents (In State) | B55: 1441 | F55: ='AFR19'!B5519 -> 27846
A56: Special Ed - Transp Fees from Other Districts (In State) | B56: 1442 | F56: ='AFR19'!B5520 -> 5026824
A57: Special Ed - Transp Fees from Other Sources (In State) | B57: 1443 | F57: ='AFR19'!B5521 -> 159020
A58: Special Ed - Transp Fees from Other Sources (Out of State) | B58: 1444 | F58: ='AFR19'!B7710 -> 0
A59: Adult - Transp Fees from Pupils or Parents (In State) | B59: 1451 | F59: ='AFR19'!B5522 -> 1851
A60: Adult - Transp Fees from Other Districts (In State) | B60: 1452 | F60: ='AFR19'!B5523 -> 0
A61: Adult - Transp Fees from Other Sources (In State) | B61: 1453 | F61: ='AFR19'!B5524 -> 26081
A62: Adult - Transp Fees from Other Sources (Out of State) | B62: 1454 | F62: ='AFR19'!B6261 -> 564
A63: Total Transportation Fees | F63: =SUM(F42:F62) -> 35371680
A64: EARNINGS ON INVESTMENTS | B64: 1500
A65: Interest on Investments | B65: 1510 | C65: ='AFR19'!B5034 -> 184201922.5 | D65: ='AFR19'!B5286 -> 25219471.14 | E65: ='AFR19'!B5465 -> 18293645.37 | F65: ='AFR19'!B5526 -> 14710130.07 | G65: ='AFR19'!B5677 -> 9283025.55 | H65: ='AFR19'!B5825 -> 29508700.18 | I65: ='AFR19'!B5870 -> 45135616.33 | J65: ='AFR19'!B6262 -> 3884726.11 | K65: ='AFR19'!B5939 -> 4742369.23
A66: Gain or Loss on Sale of Investments | B66: 1520 | C66: ='AFR19'!B5035 -> 3828546 | D66: ='AFR19'!B5287 -> 330146 | E66: ='AFR19'!B5466 -> 22723065 | F66: ='AFR19'!B5527 -> 265030 | G66: ='AFR19'!B5678 -> 206999 | H66: ='AFR19'!B5826 -> 15764954 | I66: ='AFR19'!B5871 -> 1302368 | J66: ='AFR19'!B6263 -> 121963 | K66: ='AFR19'!B5940 -> 186888
A67: Total Earnings on Investments | C67: =SUM(C65:C66) -> 188030468.5 | D67: =SUM(D65:D66) -> 25549617.14 | E67: 41016710.37 | F67: 14975160.07 | G67: 9490024.55 | H67: 45273654.18 | I67: 46437984.33 | J67: 4006689.11 | K67: 4929257.23
A68: FOOD SERVICE | B68: 1600
A69: Sales to Pupils - Lunch | B69: 1611 | C69: ='AFR19'!B5977 -> 136407055.8
A70: Sales to Pupils - Breakfast | B70: 1612 | C70: ='AFR19'!B5037 -> 3005808
A71: Sales to Pupils - A la Carte | B71: 1613 | C71: ='AFR19'!B5038 -> 35821123
A72: Sales to Pupils - Other (Describe & Itemize) | B72: 1614 | C72: ='AFR19'!B5039 -> 8009149
A73: Sales to Adults | B73: 1620 | C73: ='AFR19'!B5040 -> 4574024.45
A74: Other Food Service (Describe & Itemize) | B74: 1690 | C74: ='AFR19'!B5041 -> 16173369
A75: Total Food Service | C75: =SUM(C69:C74) -> 203990529.3
A76: DISTRICT/SCHOOL ACTIVITY INCOME | B76: 1700
A77: Admissions - Athletic | B77: 1711 | C77: ='AFR19'!B5043 -> 22158977.66 | D77: ='AFR19'!B5289 -> 2800
A78: Admissions - Other (Describe & Itemize) | B78: 1719 | C78: ='AFR19'!B5044 -> 3443734 | D78: ='AFR19'!B5290 -> 298995
A79: Fees | B79: 1720 | C79: ='AFR19'!B5045 -> 69869995 | D79: ='AFR19'!B5291 -> 2190810
A80: Book Store Sales | B80: 1730 | C80: ='AFR19'!B5046 -> 5274796 | D80: ='AFR19'!B5292 -> 6633
A81: Other District/School Activity Revenue (Describe & Itemize) | B81: 1790 | C81: ='AFR19'!B5047 -> 18703708.92 | D81: ='AFR19'!B5293 -> 451565
A82: Total District/School Activity Income | C82: =SUM(C77:C81) -> 119451211.6 | D82: =SUM(D77:D81) -> 2950803
A83: TEXTBOOK INCOME | B83: 1800
A84: Rentals - Regular Textbooks | B84: 1811 | C84: ='AFR19'!B5049 -> 101696669
A85: Rentals - Summer School Textbooks | B85: 1812 | C85: ='AFR19'!B5050 -> 828478
A86: Rentals - Adult/Continuing Education Textbooks | B86: 1813 | C86: ='AFR19'!B5051 -> 626895
A87: Rentals - Other (Describe & Itemize) | B87: 1819 | C87: ='AFR19'!B5052 -> 2327450
A88: Sales - Regular Textbooks | B88: 1821 | C88: ='AFR19'!B5053 -> 1924657
A89: Sales - Summer School Textbooks | B89: 1822 | C89: ='AFR19'!B5054 -> 109731
A90: Sales - Adult/Continuing Education Textbooks | B90: 1823 | C90: ='AFR19'!B5055 -> 30740
A91: Sales - Other (Describe & Itemize) | B91: 1829 | C91: ='AFR19'!B5056 -> 888402
A92: Other (Describe & Itemize) | B92: 1890 | C92: ='AFR19'!B5057 -> 2465653
A93: Total Textbook Income | C93: =SUM(C84:C92) -> 110898675
A94: OTHER REVENUE FROM LOCAL SOURCES | B94: 1900
A95: Rentals | B95: 1910 | C95: ='AFR19'!B5059 -> 12159872 | D95: ='AFR19'!B5295 -> 31196543
A96: Contributions and Donations from Private Sources | B96: 1920 | C96: ='AFR19'!B5060 -> 22907366.89 | D96: ='AFR19'!B5296 -> 5391511 | E96: ='AFR19'!B5468 -> 1820000 | F96: ='AFR19'!B5529 -> 183839 | G96: ='AFR19'!B5680 -> 16949 | H96: ='AFR19'!B5828 -> 9046649 | I96: ='AFR19'!B5873 -> 60000 | J96: ='AFR19'!B6265 -> 107771 | K96: ='AFR19'!B5942 -> 0
A97: Impact Fees from Municipal or County Governments | B97: 1930 | C97: ='AFR19'!B6266 -> 1934487 | D97: ='AFR19'!B6267 -> 2246231 | E97: ='AFR19'!B6268 -> 533360 | F97: ='AFR19'!B6269 -> 0 | G97: ='AFR19'!B6270 -> 3384 | H97: ='AFR19'!B6271 -> 7567494 | I97: ='AFR19'!B6272 -> 0 | J97: ='AFR19'!B6273 -> 0 | K97: ='AFR19'!B6274 -> 0
A98: Services Provided Other Districts | B98: 1940 | C98: ='AFR19'!B5061 -> 12048806 | D98: ='AFR19'!B5297 -> 1061878 | F98: ='AFR19'!B5530 -> 621998
A99: Refund of Prior Years' Expenditures | B99: 1950 | C99: ='AFR19'!B5062 -> 30773615 | D99: ='AFR19'!B5298 -> 4050055 | E99: ='AFR19'!B5469 -> 902331 | F99: ='AFR19'!B5531 -> 1660102 | G99: ='AFR19'!B5681 -> 172385 | H99: ='AFR19'!B5829 -> 1011556 | J99: ='AFR19'!B6275 -> 1424232 | K99: ='AFR19'!B5943 -> 5250
A100: Payments of Surplus Moneys from TIF Districts | B100: 1960 | C100: ='AFR19'!B6276 -> 138197191 | D100: ='AFR19'!B6277 -> 10230092 | E100: ='AFR19'!B6278 -> 6492504 | F100: ='AFR19'!B6279 -> 195681 | G100: ='AFR19'!B6280 -> 223746 | H100: ='AFR19'!B6281 -> 9338240 | I100: ='AFR19'!B6282 -> 105875 | J100: ='AFR19'!B6283 -> 193940 | K100: ='AFR19'!B6284 -> 45051
A101: Drivers' Education Fees | B101: 1970 | C101: ='AFR19'!B6285 -> 8587032
A102: Proceeds from Vendors' Contracts | B102: 1980 | C102: ='AFR19'!B6286 -> 2379127 | D102: ='AFR19'!B6287 -> 712732 | E102: ='AFR19'!B6288 -> 0 | F102: ='AFR19'!B6289 -> 0 | G102: ='AFR19'!B6290 -> 0 | H102: ='AFR19'!B6291 -> 230832 | I102: ='AFR19'!B6292 -> 0 | J102: ='AFR19'!B6293 -> 0 | K102: ='AFR19'!B6294 -> 0
A103: School Facility Occupation Tax Proceeds | B103: 1983 | E103: ='AFR19'!B7674 -> 42269835 | H103: ='AFR19'!B7677 -> 82634273
A104: Payment from Other Districts | B104: 1991 | C104: ='AFR19'!B4707 -> 4917066 | D104: ='AFR19'!B5299 -> 902150 | E104: ='AFR19'!B5470 -> 872981 | F104: ='AFR19'!B4973 -> 1636186 | G104: ='AFR19'!B6295 -> 276887 | H104: ='AFR19'!B5830 -> 748624
A105: Sale of Vocational Projects | B105: 1992 | C105: ='AFR19'!B5063 -> 1971788
A106: Other Local Fees | B106: 1993 | C106: ='AFR19'!B5064 -> 65193454 | D106: ='AFR19'!B6990 -> 9375241 | E106: ='AFR19'!B6991 -> 6534822 | F106: ='AFR19'!B6992 -> 132003 | G106: ='AFR19'!B7582 -> 30852 | H106: ='AFR19'!B7583 -> 1640763 | J106: ='AFR19'!B7584 -> 0 | K106: ='AFR19'!B7585 -> 0
A107: Other Local Revenues (Describe & Itemize) | B107: 1999 | C107: ='AFR19'!B5065 -> 197387643.2 | D107: ='AFR19'!B5300 -> 29718396 | E107: ='AFR19'!B5471 -> 125318073 | F107: ='AFR19'!B5532 -> 4646280 | G107: ='AFR19'!B5682 -> 958901 | H107: ='AFR19'!B5831 -> 43967504 | I107: ='AFR19'!B5875 -> 2630 | J107: ='AFR19'!B6296 -> 1434640 | K107: ='AFR19'!B5944 -> 569735
A108: Total Other Revenue from Local Sources | C108: =SUM(C95:C107) -> 498457448.1 | D108: =SUM(D95:D107) -> 94884829 | E108: =SUM(E95:E107) -> 184743906 | F108: 9076089 | G108: 1683104 | H108: 156185935 | I108: 168505 | J108: 3160583 | K108: 620036
A109: Total Receipts/Revenues from Local Sources | B109: 1000 | C109: =SUM(C12,C18,C40,C63,C67,C75,C82,C93,C108) -> 1.475489983e+10 | D109: 1789002745 | E109: 1801161409 | F109: 646739884 | G109: 635332547.9 | H109: 223665035.2 | I109: 116633339.3 | J109: 385320201.2 | K109: 60520473.06
A110: FLOW-THROUGH RECEIPTS/REVENUES FROM ONE DISTRICT TO ANOTHER DISTRICT (2000)
A111: Flow-through Revenue from State Sources | B111: 2100 | C111: ='AFR19'!B5068 -> 8365945 | D111: ='AFR19'!B5303 -> 121265 | F111: ='AFR19'!B5535 -> 61292 | G111: ='AFR19'!B5684 -> 0
A112: Flow-through Revenue from Federal Sources | B112: 2200 | C112: ='AFR19'!B5069 -> 1883563 | D112: ='AFR19'!B5304 -> 0 | F112: ='AFR19'!B5536 -> 79868 | G112: ='AFR19'!B5685 -> 0
A113: Other Flow-Through (Describe & Itemize) | B113: 2300 | C113: ='AFR19'!B5070 -> 26915 | D113: ='AFR19'!B5305 -> 389222 | F113: ='AFR19'!B5537 -> 0 | G113: ='AFR19'!B5686 -> 0
A114: Total Flow-Through Receipts/Revenues from One District to Another District | B114: 2000 | C114: =SUM(C111:C113) -> 10276423 | D114: =SUM(D111:D113) -> 510487 | F114: =SUM(F111:F113) -> 141160 | G114: =SUM(G111:G113) -> 0
A115: RECEIPTS/REVENUES FROM STATE SOURCES (3000)
A116: UNRESTRICTED GRANTS-IN-AID
A117: Evidence-Based Funding Formula (Section 18-8.15) | B117: 3001 | C117: ='AFR19'!B5072 -> 5650443893 | D117: ='AFR19'!B5307 -> 619402609 | E117: ='AFR19'!B5474 -> 307841182 | F117: ='AFR19'!B5539 -> 42663969 | G117: ='AFR19'!B5688 -> 10326713 | H117: ='AFR19'!B5833 -> 39073428 | J117: ='AFR19'!B6299 -> 5074945 | K117: ='AFR19'!B5946 -> 678591
A118: General State Aid - Hold Harmless/Supplemental | B118: 3002 | C118: ='AFR19'!B4820 -> 5023846 | D118: ='AFR19'!B4821 -> 647000 | E118: ='AFR19'!B4822 -> 0 | F118: ='AFR19'!B4823 -> 0 | G118: ='AFR19'!B4824 -> 33000 | H118: ='AFR19'!B4825 -> 0 | J118: ='AFR19'!B6300 -> 0 | K118: ='AFR19'!B4827 -> 0
A119: Reorganization Incentives (Accounts 3005-3021) | B119: 3005 | C119: ='AFR19'!B5073 -> 1598566 | D119: ='AFR19'!B5308 -> 0 | E119: ='AFR19'!B5475 -> 0 | F119: ='AFR19'!B5540 -> 0 | G119: ='AFR19'!B5689 -> 0 | H119: ='AFR19'!B5834 -> 0 | J119: ='AFR19'!B6301 -> 0 | K119: ='AFR19'!B5947 -> 0
A120: General State Aid - Fast Growth District Grant | B120: 3030 | C120: ='AFR19'!B7747 -> 0 | D120: ='AFR19'!B7748 -> 0 | E120: ='AFR19'!B7749 -> 0 | F120: ='AFR19'!B7750 -> 0 | G120: ='AFR19'!B7751 -> 0 | H120: ='AFR19'!B7752 -> 0 | J120: ='AFR19'!B7753 -> 0 | K120: ='AFR19'!B7754 -> 0
A121: Other Unrestricted Grants-In-Aid from State Sources (Describe & Itemize) | B121: 3099 | C121: ='AFR19'!B4828 -> 1847135 | D121: ='AFR19'!B4829 -> 194695 | E121: ='AFR19'!B4830 -> 0 | F121: ='AFR19'!B4831 -> 0 | G121: ='AFR19'!B4832 -> 0 | H121: ='AFR19'!B4833 -> 124505 | J121: ='AFR19'!B6302 -> 17500 | K121: ='AFR19'!B4835 -> 0
A122: Total Unrestricted Grants-In-Aid | C122: =SUM(C117:C121) -> 5658913440 | D122: 620244304 | E122: 307841182 | F122: 42663969 | G122: 10359713 | H122: 39197933 | J122: =SUM(J117:J121) -> 5092445 | K122: =SUM(K117:K121) -> 678591
A123: RESTRICTED GRANTS-IN-AID
A124: SPECIAL EDUCATION
A125: Special Education - Private Facility Tuition | B125: 3100 | C125: ='AFR19'!B5079 -> 149431399 | F125: ='AFR19'!B5546 -> 14331
A126: Special Education - Extraordinary | B126: 3105 | C126: ='AFR19'!B5080 -> 384315 | F126: ='AFR19'!B5547 -> 0
A127: Special Education - Personnel | B127: 3110 | C127: ='AFR19'!B5081 -> 843142 | D127: ='AFR19'!B5314 -> 0 | F127: ='AFR19'!B5548 -> 61611
A128: Special Education - Orphanage - Individual | B128: 3120 | C128: ='AFR19'!B5083 -> 69171748 | F128: ='AFR19'!B5550 -> 221476
A129: Special Education - Orphanage - Summer | B129: 3130 | C129: ='AFR19'!B5085 -> 3646982 | F129: ='AFR19'!B5552 -> 4953
A130: Special Education - Summer School | B130: 3145 | C130: ='AFR19'!B5088 -> 18346 | F130: ='AFR19'!B5555 -> 0
A131: Special Education - Other (Describe & Itemize) | B131: 3199 | C131: ='AFR19'!B4255 -> 64749 | D131: ='AFR19'!B4256 -> 0 | F131: ='AFR19'!B4257 -> 0
A132: Total Special Education | C132: =SUM(C125:C131) -> 223560681 | D132: =SUM(D125:D131) -> 0 | F132: =SUM(F125:F131) -> 302371
A133: CAREER AND TECHNICAL EDUCATION (CTE)
A134: CTE - Technical Education - Tech Prep | B134: 3200 | C134: ='AFR19'!B5094 -> 766900 | D134: ='AFR19'!B5316 -> 0 | G134: ='AFR19'!B5695 -> 0
A135: CTE - Secondary Program Improvement (CTEI) | B135: 3220 | C135: ='AFR19'!B5098 -> 15668230 | D135: ='AFR19'!B5320 -> 0 | G135: ='AFR19'!B6304 -> 3660
A136: CTE - WECEP | B136: 3225 | C136: ='AFR19'!B5099 -> 69354 | D136: ='AFR19'!B5321 -> 0 | G136: ='AFR19'!B4717 -> 0
A137: CTE - Agriculture Education | B137: 3235 | C137: ='AFR19'!B6305 -> 4758389 | D137: ='AFR19'!B6306 -> 0 | G137: ='AFR19'!B6307 -> 182
A138: CTE - Instructor Practicum | B138: 3240 | C138: ='AFR19'!B6308 -> 9319 | D138: ='AFR19'!B6309 -> 0 | G138: ='AFR19'!B6310 -> 0
A139: CTE - Student Organizations | B139: 3270 | C139: ='AFR19'!B6311 -> 5606 | D139: ='AFR19'!B6312 -> 0 | G139: ='AFR19'!B6313 -> 0
A140: CTE - Other (Describe & Itemize) | B140: 3299 | C140: ='AFR19'!B4173 -> 1226411 | D140: ='AFR19'!B4174 -> 0 | G140: ='AFR19'!B4176 -> 0
A141: Total Career and Technical Education | C141: =SUM(C134:C140) -> 22504209 | D141: =SUM(D134:D140) -> 0 | G141: =SUM(G134:G140) -> 3842
A142: BILINGUAL EDUCATION
A143: Bilingual Ed - Downstate - TPI and TBE | B143: 3305 | C143: ='AFR19'!B5109 -> 361289 | G143: ='AFR19'!B5700 -> 0
A144: Bilingual Education - Transitional Bilingual Education | B144: 3310 | C144: ='AFR19'!B5110 -> 0 | G144: ='AFR19'!B5701 -> 0
A145: Total Bilingual Ed | C145: =SUM(C143:C144) -> 361289 | G145: =SUM(G143:G144) -> 0
A146: State Free Lunch & Breakfast | B146: 3360 | C146: ='AFR19'!B5113 -> 10388192.76
A147: School Breakfast Initiative | B147: 3365 | C147: ='AFR19'!B4297 -> 72316 | D147: ='AFR19'!B4298 -> 0 | G147: ='AFR19'!B4299 -> 0
A148: Driver Education | B148: 3370 | C148: ='AFR19'!B5114 -> 16895540 | D148: ='AFR19'!B5330 -> 0
A149: Adult Ed (from ICCB) | B149: 3410 | C149: ='AFR19'!B5117 -> 2825385 | D149: ='AFR19'!B5333 -> 0 | E149: ='AFR19'!B6314 -> 0 | F149: ='AFR19'!B6315 -> 0 | G149: ='AFR19'!B6316 -> 0 | H149: ='AFR19'!B6317 -> 0 | I149: ='AFR19'!B6318 -> 0 | J149: ='AFR19'!B6319 -> 0 | K149: ='AFR19'!B6320 -> 0
A150: Adult Ed - Other (Describe & Itemize) | B150: 3499 | C150: ='AFR19'!B4258 -> 150750 | D150: ='AFR19'!B4259 -> 0 | E150: ='AFR19'!B6321 -> 0 | F150: ='AFR19'!B4300 -> 0 | G150: ='AFR19'!B4301 -> 0 | H150: ='AFR19'!B6322 -> 0 | I150: ='AFR19'!B6323 -> 0 | J150: ='AFR19'!B6324 -> 0 | K150: ='AFR19'!B6325 -> 0
A151: TRANSPORTATION
A152: Transportation - Regular/Vocational | B152: 3500 | C152: ='AFR19'!B5121 -> 402586 | D152: ='AFR19'!B5337 -> 65000 | F152: ='AFR19'!B5561 -> 279684858.9 | G152: ='AFR19'!B6326 -> 523000
A153: Transportation - Special Education | B153: 3510 | C153: ='AFR19'!B5123 -> 78349724 | D153: ='AFR19'!B5339 -> 10000 | F153: ='AFR19'!B5563 -> 345491362.1 | G153: ='AFR19'!B6327 -> 0
A154: Transportation - Other (Describe & Itemize) | B154: 3599 | C154: ='AFR19'!B4260 -> 0 | D154: ='AFR19'!B4261 -> 0 | F154: ='AFR19'!B4262 -> 4685 | G154: ='AFR19'!B4302 -> 0
A155: Total Transportation | C155: =SUM(C152:C154) -> 78752310 | D155: =SUM(D152:D154) -> 75000 | F155: =SUM(F152:F154) -> 625180906 | G155: =SUM(G152:G154) -> 523000
A156: Learning Improvement - Change Grants | B156: 3610 | C156: ='AFR19'!B5127 -> 37313
A157: Scientific Literacy | B157: 3660 | C157: ='AFR19'!B5133 -> 6661 | D157: ='AFR19'!B5341 -> 0 | F157: ='AFR19'!B5565 -> 0 | G157: ='AFR19'!B5703 -> 0
A158: Truant Alternative/Optional Education | B158: 3695 | C158: ='AFR19'!B5140 -> 8195240 | F158: ='AFR19'!B5571 -> 320 | G158: ='AFR19'!B5709 -> 2974
A159: Early Childhood - Block Grant | B159: 3705 | C159: ='AFR19'!B5142 -> 425590996 | D159: ='AFR19'!B5347 -> 588285 | F159: ='AFR19'!B5573 -> 6082742 | G159: ='AFR19'!B5711 -> 838798
A160: Chicago General Education Block Grant | B160: 3766 | C160: ='AFR19'!B5002 -> 0 | D160: ='AFR19'!B5003 -> 0 | F160: ='AFR19'!B5004 -> 0 | G160: ='AFR19'!B5005 -> 0
A161: Chicago Educational Services Block Grant | B161: 3767 | C161: ='AFR19'!B5006 -> 0 | D161: ='AFR19'!B4125 -> 0 | F161: ='AFR19'!B4126 -> 0 | G161: ='AFR19'!B4127 -> 0
A162: School Safety & Educational Improvement Block Grant | B162: 3775 | C162: ='AFR19'!B4861 -> 1500 | D162: ='AFR19'!B4862 -> 13002 | E162: ='AFR19'!B4863 -> 0 | F162: ='AFR19'!B4864 -> 0 | G162: ='AFR19'!B4865 -> 0 | H162: ='AFR19'!B4866 -> 0 | K162: ='AFR19'!B4868 -> 0
A163: Technology - Learning Technology Centers | B163: 3780 | C163: ='AFR19'!B6334 -> 18504 | D163: ='AFR19'!B6335 -> 0 | E163: ='AFR19'!B6336 -> 0 | F163: ='AFR19'!B6337 -> 0 | G163: ='AFR19'!B6338 -> 0 | H163: ='AFR19'!B6339 -> 0 | K163: ='AFR19'!B6340 -> 0
A164: State Charter Schools | B164: 3815 | C164: ='AFR19'!B4263 -> 5055 | F164: ='AFR19'!B4264 -> 0
A165: Extended Learning Opportunities - Summer Bridges | B165: 3825 | C165: ='AFR19'!B4267 -> 750 | F165: ='AFR19'!B4268 -> 0
A166: Infrastructure Improvements - Construction | B166: 3920 | D166: ='AFR19'!B4273 -> 370611 | H166: ='AFR19'!B4274 -> 3036676
A167: School Infrastructure - Maintenance | B167: 3925 | D167: ='AFR19'!B4275 -> 5000 | H167: ='AFR19'!B7652 -> 892508 | K167: ='AFR19'!B4276 -> 0
A168: Other Restricted Revenue from State Sources (Describe & Itemize) | B168: 3999 | C168: ='AFR19'!B4738 -> 33328189 | D168: ='AFR19'!B4739 -> 1532900 | E168: ='AFR19'!B4740 -> 6560200 | F168: ='AFR19'!B4741 -> 244764 | G168: ='AFR19'!B4742 -> 8393 | H168: ='AFR19'!B4743 -> 13970295 | I168: ='AFR19'!B4161 -> 0 | J168: ='AFR19'!B6341 -> 29207 | K168: ='AFR19'!B4745 -> 0
A169: Total Restricted Grants-In-Aid | C169: =SUM(C132,C141,C145,C146:C150,C155,C156:C168) -> 822694880.8 | D169: 2584798 | E169: 6560200 | F169: 631811103 | G169: 1377007 | H169: 17899479 | I169: 0 | J169: 29207 | K169: 0
A170: Total Receipts from State Sources | B170: 3000 | C170: =SUM(C122,C169) -> 6481608321 | D170: 622829102 | E170: 314401382 | F170: 674475072 | G170: 11736720 | H170: 57097412 | I170: 0 | J170: 5121652 | K170: 678591
A171: RECEIPTS/REVENUES FROM FEDERAL SOURCES (4000)
A172: UNRESTRICTED GRANTS-IN-AID RECEIVED DIRECTLY FROM FEDERAL GOVT
A173: Federal Impact Aid | B173: 4001 | C173: ='AFR19'!B5170 -> 23838448 | D173: ='AFR19'!B5368 -> 5989226 | E173: ='AFR19'!B4310 -> 0 | F173: ='AFR19'!B5600 -> 500000 | G173: ='AFR19'!B5725 -> 0 | H173: ='AFR19'!B4311 -> 0 | I173: ='AFR19'!B4312 -> 0 | J173: ='AFR19'!B6344 -> 0 | K173: ='AFR19'!B4314 -> 0
A174: Other Unrestricted Grants-In-Aid Received Directly from the Fed Govt (Describe & Itemize) | B174: 4009 | C174: ='AFR19'!B4890 -> 535085.82 | D174: ='AFR19'!B4891 -> 0 | E174: ='AFR19'!B4315 -> 182652 | F174: ='AFR19'!B4892 -> 0 | G174: ='AFR19'!B4893 -> 0 | H174: ='AFR19'!B4894 -> 0 | I174: ='AFR19'!B4316 -> 0 | J174: ='AFR19'!B6345 -> 0 | K174: ='AFR19'!B4895 -> 0
A175: Total Unrestricted Grants-In-Aid Received Directly from the Federal Govt | C175: =SUM(C173:C174) -> 24373533.82 | D175: =SUM(D173:D174) -> 5989226 | E175: 182652 | F175: 500000 | G175: 0 | H175: 0 | I175: 0 | J175: 0 | K175: 0
A176: RESTRICTED GRANTS-IN-AID RECEIVED DIRECTLY FROM FEDERAL GOVT
A177: Head Start | B177: 4045 | C177: ='AFR19'!B5176 -> 47094105
A178: Construction (Impact Aid) | B178: 4050 | C178: ='AFR19'!B5177 -> 0 | D178: ='AFR19'!B5370 -> 0 | H178: ='AFR19'!B5853 -> 0
A179: MAGNET | B179: 4060 | C179: ='AFR19'!B4747 -> 2197110 | D179: ='AFR19'!B4748 -> 0 | F179: ='AFR19'!B4750 -> 0 | G179: ='AFR19'!B4756 -> 0 | H179: ='AFR19'!B4757 -> 0
A180: Other Restricted Grants-In-Aid Received Directly from the Federal Govt (Describe & Itemize) | B180: 4090 | C180: ='AFR19'!B4751 -> 16480832 | D180: ='AFR19'!B4752 -> 5583.4 | F180: ='AFR19'!B4754 -> 0 | G180: ='AFR19'!B4759 -> 270992 | H180: ='AFR19'!B4760 -> 0 | K180: ='AFR19'!B4762 -> 0
A181: Total Restricted Grants-In-Aid Received Directly from Federal Govt | C181: =SUM(C177:C180) -> 65772047 | D181: =SUM(D177:D180) -> 5583.4 | F181: =SUM(F177:F180) -> 0 | G181: =SUM(G177:G180) -> 270992 | H181: =SUM(H177:H180) -> 0 | K181: =SUM(K177:K180) -> 0
A182: RESTRICTED GRANTS-IN-AID RECEIVED FROM FEDERAL GOVT THRU THE STATE
A183: TITLE VI
A184: Title VI - Innovation and Flexibility Formula | B184: 4100 | C184: ='AFR19'!B5179 -> 71154 | D184: ='AFR19'!B5372 -> 0 | F184: ='AFR19'!B5605 -> 41000 | G184: ='AFR19'!B5731 -> 0
A185: Title VI - District Projects | B185: 4105 | C185: ='AFR19'!B4321 -> 0 | D185: ='AFR19'!B4322 -> 0 | F185: ='AFR19'!B4323 -> 0 | G185: ='AFR19'!B4324 -> 0
A186: Title VI - Rural & Low Income Schools | B186: 4107 | C186: ='AFR19'!B4325 -> 2853539 | D186: ='AFR19'!B4326 -> 0 | F186: ='AFR19'!B4327 -> 0 | G186: ='AFR19'!B4328 -> 0
A187: Title VI - Other (Describe & Itemize) | B187: 4199 | C187: ='AFR19'!B4337 -> 178447 | D187: ='AFR19'!B4338 -> 0 | F187: ='AFR19'!B4339 -> 0 | G187: ='AFR19'!B4340 -> 0
A188: Total Title VI | C188: =SUM(C184:C187) -> 3103140 | D188: =SUM(D184:D187) -> 0 | F188: =SUM(F184:F187) -> 41000 | G188: =SUM(G184:G187) -> 0
A189: FOOD SERVICE
A190: Breakfast Start-Up | B190: 4200 | C190: ='AFR19'!B6347 -> 498064 | G190: ='AFR19'!B6348 -> 0
A191: National School Lunch Program | B191: 4210 | C191: ='AFR19'!B5185 -> 425249861.8 | G191: ='AFR19'!B6349 -> 37385
A192: Special Milk Program | B192: 4215 | C192: ='AFR19'!B5186 -> 49050770 | G192: ='AFR19'!B6350 -> 0
A193: School Breakfast Program | B193: 4220 | C193: ='AFR19'!B5187 -> 87823162 | G193: ='AFR19'!B6351 -> 0
A194: Summer Food Service Admin/Program | B194: 4225 | C194: ='AFR19'!B5188 -> 4528479 | G194: ='AFR19'!B6352 -> 0
A195: Child Care Commodity/SFS 13-Adult Day Care | B195: 4226 | C195: ='AFR19'!B5189 -> 10251545 | G195: ='AFR19'!B6353 -> 0
A196: Fresh Fruits & Vegetables | B196: 4240 | C196: ='AFR19'!B7633 -> 4448512
A197: Food Service - Other (Describe & Itemize) | B197: 4299 | C197: ='AFR19'!B4277 -> 19011864 | G197: ='AFR19'!B6354 -> 0
A198: Total Food Service | C198: =SUM(C190:C197) -> 600862257.8 | G198: =SUM(G190:G197) -> 37385
A199: TITLE I
A200: Title I - Low Income | B200: 4300 | C200: ='AFR19'!B5193 -> 609244956 | D200: ='AFR19'!B5377 -> 0 | F200: ='AFR19'!B5610 -> 831877 | G200: ='AFR19'!B5736 -> 935775
... 68 more rows

Sheet Expenditures 15-22
C1: (100) | D1: (200) | E1: (300) | F1: (400) | G1: (500) | H1: (600) | I1: (700) | J1: (800) | K1: (900)
A2: Description | B2: Funct # | C2: Salaries | D2: Employee Benefits | E2: Purchased Services | F2: Supplies & Materials | G2: Capital Outlay | H2: Other Objects | I2: Non-Capitalized Equipment | J2: Termination Benefits | K2: Total | L2: Budget
A3: 10 - EDUCATIONAL FUND (ED)
A4: INSTRUCTION (ED)
A5: Regular Programs | B5: 1100 | C5: ='AFR19'!B651 -> 6904643475 | D5: ='AFR19'!B709 -> 1836642410 | E5: ='AFR19'!B767 -> 126237636.6 | F5: ='AFR19'!B825 -> 323813501.1 | G5: ='AFR19'!B883 -> 36765747.91 | H5: ='AFR19'!B941 -> 10299315.95 | I5: ='AFR19'!B6790 -> 48325153 | J5: ='AFR19'!B6791 -> 15859832 | K5: =SUM(C5:J5) -> 9302587072
A6: Tuition Payment to Charter School | B6: 1115 | E6: ='AFR19'!B7708 -> 748312161 | K6: =SUM(C6:J6) -> 748312161
A7: Pre-K Programs | B7: 1125 | C7: ='AFR19'!B6673 -> 196488239.1 | D7: ='AFR19'!B7192 -> 56956014 | E7: ='AFR19'!B7193 -> 2497592.23 | F7: ='AFR19'!B7194 -> 13887991.67 | G7: ='AFR19'!B7195 -> 1434362.65 | H7: ='AFR19'!B7196 -> 119391 | I7: ='AFR19'!B6792 -> 5128265 | J7: ='AFR19'!B6793 -> 151350 | K7: 276663205.7
A8: Special Education Programs (Functions 1200-1220) | B8: 1200 | C8: ='AFR19'!B3312 -> 1993522732 | D8: ='AFR19'!B3314 -> 466035301 | E8: ='AFR19'!B3316 -> 87214094.64 | F8: ='AFR19'!B3318 -> 21082583.86 | G8: ='AFR19'!B3320 -> 2833676.99 | H8: ='AFR19'!B3322 -> 61121760.55 | I8: ='AFR19'!B6795 -> 2556083 | J8: ='AFR19'!B6796 -> 4828989 | K8: 2639195221
A9: Special Education Programs Pre-K | B9: 1225 | C9: ='AFR19'!B7197 -> 87000878 | D9: ='AFR19'!B7198 -> 21061745 | E9: ='AFR19'!B7199 -> 606121 | F9: ='AFR19'!B7200 -> 1286035 | G9: ='AFR19'!B7201 -> 71110 | H9: ='AFR19'!B7202 -> 69000 | I9: ='AFR19'!B6797 -> 98175 | J9: ='AFR19'!B6798 -> 112570 | K9: 110305634
A10: Remedial and Supplemental Programs K-12 | B10: 1250 | C10: ='AFR19'!B3001 -> 170157360.9 | D10: ='AFR19'!B3002 -> 38893693.49 | E10: ='AFR19'!B3003 -> 24806270.78 | F10: ='AFR19'!B3004 -> 48353647.26 | G10: ='AFR19'!B3005 -> 5037989 | H10: ='AFR19'!B3006 -> 384409.04 | I10: ='AFR19'!B6800 -> 3363609 | J10: ='AFR19'!B6801 -> 23604 | K10: 291020583.4
A11: Remedial and Support Programs Pre-K | B11: 1275 | C11: ='AFR19'!B7203 -> 10547376 | D11: ='AFR19'!B7204 -> 2512772 | E11: ='AFR19'!B7205 -> 530196 | F11: ='AFR19'!B7206 -> 810292 | G11: ='AFR19'!B7207 -> 107128 | H11: ='AFR19'!B7208 -> 1747 | I11: ='AFR19'!B6802 -> 9975 | J11: ='AFR19'!B6803 -> 2446 | K11: 14521932
A12: Adult/Continuing Education Programs | B12: 1300 | C12: ='AFR19'!B662 -> 9969762 | D12: ='AFR19'!B720 -> 1000698 | E12: ='AFR19'!B778 -> 1715126 | F12: ='AFR19'!B836 -> 443439 | G12: ='AFR19'!B894 -> 13350 | H12: ='AFR19'!B952 -> 41617 | I12: ='AFR19'!B6805 -> 11361 | J12: ='AFR19'!B6806 -> 4733 | K12: 13200086
A13: CTE Programs | B13: 1400 | C13: ='AFR19'!B663 -> 177641448 | D13: ='AFR19'!B721 -> 35271981 | E13: ='AFR19'!B779 -> 7596291 | F13: ='AFR19'!B837 -> 16136475 | G13: ='AFR19'!B895 -> 5452465 | H13: ='AFR19'!B953 -> 1728240 | I13: ='AFR19'!B6807 -> 5068779 | J13: ='AFR19'!B6808 -> 161671 | K13: 249057350
A14: Interscholastic Programs | B14: 1500 | C14: ='AFR19'!B664 -> 302948507 | D14: ='AFR19'!B722 -> 20147943.1 | E14: ='AFR19'!B780 -> 48487354 | F14: ='AFR19'!B838 -> 32720619.53 | G14: ='AFR19'!B896 -> 4593332 | H14: ='AFR19'!B954 -> 9706880.33 | I14: ='AFR19'!B6809 -> 2051426 | J14: ='AFR19'!B6810 -> 22748 | K14: 420678810
A15: Summer School Programs | B15: 1600 | C15: ='AFR19'!B665 -> 50807804 | D15: ='AFR19'!B723 -> 1860828 | E15: ='AFR19'!B781 -> 2361938 | F15: ='AFR19'!B839 -> 2385932 | G15: ='AFR19'!B897 -> 83032 | H15: ='AFR19'!B955 -> 572292 | I15: ='AFR19'!B6811 -> 31327 | J15: ='AFR19'!B6812 -> 16140 | K15: 58119293
A16: Gifted Programs | B16: 1650 | C16: ='AFR19'!B652 -> 53820331 | D16: ='AFR19'!B710 -> 9739224 | E16: ='AFR19'!B768 -> 563433 | F16: ='AFR19'!B826 -> 394562 | G16: ='AFR19'!B884 -> 3997 | H16: ='AFR19'!B942 -> 57511 | I16: ='AFR19'!B6813 -> 8603 | J16: ='AFR19'!B6814 -> 23720 | K16: 64611381
A17: Driver's Education Programs | B17: 1700 | C17: ='AFR19'!B7209 -> 38514998 | D17: ='AFR19'!B7210 -> 6002789 | E17: ='AFR19'!B7211 -> 2114204 | F17: ='AFR19'!B7212 -> 1363573 | G17: ='AFR19'!B7213 -> 947678 | H17: ='AFR19'!B7214 -> 84583 | I17: ='AFR19'!B6815 -> 18597 | J17: ='AFR19'!B6816 -> 8025 | K17: 49054447
A18: Bilingual Programs | B18: 1800 | C18: ='AFR19'!B658 -> 379622922.1 | D18: ='AFR19'!B716 -> 79937707.25 | E18: ='AFR19'!B774 -> 2593720.41 | F18: ='AFR19'!B832 -> 7884786.79 | G18: ='AFR19'!B890 -> 29973.5 | H18: ='AFR19'!B948 -> 52570.29 | I18: ='AFR19'!B6818 -> 72001 | J18: ='AFR19'!B6819 -> 369844 | K18: 470563525.3
A19: Truant Alternative & Optional Programs | B19: 1900 | C19: ='AFR19'!B3313 -> 19282411 | D19: ='AFR19'!B3315 -> 4144518 | E19: ='AFR19'!B3317 -> 1963688 | F19: ='AFR19'!B3319 -> 439938 | G19: ='AFR19'!B3321 -> 9618 | H19: ='AFR19'!B3323 -> 2487215 | I19: ='AFR19'!B6820 -> 34163 | J19: ='AFR19'!B6821 -> 43736 | K19: 28405287
A20: Rentals | B20: 1910 | H20: ='AFR19'!B6822 -> 690857 | K20: 690857
A21: Regular K-12 Programs - Private Tuition | B21: 1911 | H21: ='AFR19'!B6824 -> 3431058 | K21: 3431058
A22: Special Education Programs K-12 - Private Tuition | B22: 1912 | H22: ='AFR19'!B6826 -> 314685654 | K22: 314685654
A23: Special Education Programs Pre-K - Tuition | B23: 1913 | H23: ='AFR19'!B6828 -> 264566 | K23: 264566
A24: Remedial/Supplemental Programs K-12 - Private Tuition | B24: 1914 | H24: ='AFR19'!B6830 -> 894541 | K24: 894541
A25: Remedial/Supplemental Programs Pre-K - Private Tuition | B25: 1915 | H25: ='AFR19'!B6832 -> 0 | K25: 0
A26: Adult/Continuing Education Programs - Private Tuition | B26: 1916 | H26: ='AFR19'!B6834 -> 0 | K26: 0
A27: CTE Programs - Private Tuition | B27: 1917 | H27: ='AFR19'!B6836 -> 1533615 | K27: 1533615
A28: Interscholastic Programs - Private Tuition | B28: 1918 | H28: ='AFR19'!B6838 -> 0 | K28: 0
A29: Summer School Programs - Private Tuition | B29: 1919 | H29: ='AFR19'!B6840 -> 1127695 | K29: 1127695
A30: Gifted Programs - Private Tuition | B30: 1920 | H30: ='AFR19'!B6842 -> 62952 | K30: 62952
A31: Bilingual Programs - Private Tuition | B31: 1921 | H31: ='AFR19'!B6844 -> 15991 | K31: 15991
A32: Truants Alternative/Optional Ed Programs - Private Tuition | B32: 1922 | H32: ='AFR19'!B6846 -> 1241233 | K32: 1241233
A33: Total Instruction | B33: 1000 | C33: =SUM(C5:C32) -> 1.039496824e+10 | D33: =SUM(D5:D32) -> 2580207624 | E33: 1057599827 | F33: 471003376.3 | G33: 57383460.05 | H33: 410674694.2 | I33: 66777517 | J33: 21629408 | K33: =SUM(K5:K32) -> 1.506024415e+10
A34: SUPPORT SERVICES (ED)
A35: SUPPORT SERVICES - PUPILS
A36: Attendance & Social Work Services | B36: 2110 | C36: ='AFR19'!B667 -> 287792083 | D36: ='AFR19'!B725 -> 58332954 | E36: ='AFR19'!B783 -> 12054133.63 | F36: ='AFR19'!B841 -> 5417245.13 | G36: ='AFR19'!B899 -> 78248 | H36: ='AFR19'!B957 -> 80602 | I36: ='AFR19'!B6850 -> 316986 | J36: ='AFR19'!B6851 -> 372097 | K36: =SUM(C36:J36) -> 364444348.8
A37: Guidance Services | B37: 2120 | C37: ='AFR19'!B668 -> 325634559 | D37: ='AFR19'!B726 -> 66445208 | E37: ='AFR19'!B784 -> 14352968 | F37: ='AFR19'!B842 -> 3767611 | G37: ='AFR19'!B900 -> 106774 | H37: ='AFR19'!B958 -> 657151 | I37: ='AFR19'!B6852 -> 179187 | J37: ='AFR19'!B6853 -> 765836 | K37: 411909294
A38: Health Services | B38: 2130 | C38: ='AFR19'!B669 -> 160219085 | D38: ='AFR19'!B727 -> 31788529 | E38: ='AFR19'!B785 -> 34533340 | F38: ='AFR19'!B843 -> 3711846.07 | G38: ='AFR19'!B901 -> 675815 | H38: ='AFR19'!B959 -> 338909 | I38: ='AFR19'!B6854 -> 429691 | J38: ='AFR19'!B6855 -> 234610 | K38: 231931825.1
A39: Psychological Services | B39: 2140 | C39: ='AFR19'!B670 -> 131492657 | D39: ='AFR19'!B728 -> 24134157 | E39: ='AFR19'!B786 -> 7801056 | F39: ='AFR19'!B844 -> 1298095 | G39: ='AFR19'!B902 -> 38663 | H39: ='AFR19'!B960 -> 45413 | I39: ='AFR19'!B6856 -> 2660 | J39: ='AFR19'!B6857 -> 165676 | K39: 164978377
A40: Speech Pathology & Audiology Services | B40: 2150 | C40: ='AFR19'!B671 -> 208237973 | D40: ='AFR19'!B729 -> 38987728 | E40: ='AFR19'!B787 -> 26016873 | F40: ='AFR19'!B845 -> 1019770 | G40: ='AFR19'!B903 -> 99655 | H40: ='AFR19'!B961 -> 25626 | I40: ='AFR19'!B6858 -> 116880 | J40: ='AFR19'!B6859 -> 223126 | K40: 274727631
A41: Other Support Services - Pupils (Describe & Itemize) | B41: 2190 | C41: ='AFR19'!B672 -> 77067140 | D41: ='AFR19'!B730 -> 13324352 | E41: ='AFR19'!B788 -> 13572293.65 | F41: ='AFR19'!B846 -> 5347549.51 | G41: ='AFR19'!B904 -> 751772 | H41: ='AFR19'!B962 -> 350124 | I41: ='AFR19'!B6860 -> 119353 | J41: ='AFR19'!B6861 -> 108709 | K41: 110641293.2
A42: Total Support Services - Pupils | B42: 2100 | C42: =SUM(C36:C41) -> 1190443497 | D42: =SUM(D36:D41) -> 233012928 | E42: 108330664.3 | F42: 20562116.71 | G42: 1750927 | H42: 1497825 | I42: 1164757 | J42: 1870054 | K42: 1558632769
A43: SUPPORT SERVICES - INSTRUCTIONAL STAFF
A44: Improvement of Instruction Services | B44: 2210 | C44: ='AFR19'!B674 -> 308340430 | D44: ='AFR19'!B732 -> 63420357.05 | E44: ='AFR19'!B790 -> 121572776.4 | F44: ='AFR19'!B848 -> 57477969.31 | G44: ='AFR19'!B906 -> 10467444 | H44: ='AFR19'!B964 -> 2416283.25 | I44: ='AFR19'!B6864 -> 7815207 | J44: ='AFR19'!B6865 -> 677554 | K44: =SUM(C44:J44) -> 572188021
A45: Educational Media Services | B45: 2220 | C45: ='AFR19'!B675 -> 223684046.1 | D45: ='AFR19'!B733 -> 44343837 | E45: ='AFR19'!B791 -> 39248415.92 | F45: ='AFR19'!B849 -> 42685177.12 | G45: ='AFR19'!B907 -> 29192751.2 | H45: ='AFR19'!B965 -> 804954 | I45: ='AFR19'!B6866 -> 21069866 | J45: ='AFR19'!B6867 -> 213767 | K45: =SUM(C45:J45) -> 401242814.4
A46: Assessment & Testing | B46: 2230 | C46: ='AFR19'!B676 -> 16120166 | D46: ='AFR19'!B734 -> 2409186 | E46: ='AFR19'!B792 -> 25306618.39 | F46: ='AFR19'!B850 -> 6080524.63 | G46: ='AFR19'!B908 -> 71480 | H46: ='AFR19'!B966 -> 136390 | I46: ='AFR19'!B6868 -> 73640 | J46: ='AFR19'!B6869 -> 13924 | K46: =SUM(C46:J46) -> 50211929.02
A47: Total Support Services - Instructional Staff | B47: 2200 | C47: =SUM(C44:C46) -> 548144642.1 | D47: =SUM(D44:D46) -> 110173380.1 | E47: 186127810.7 | F47: 106243671.1 | G47: 39731675.2 | H47: 3357627.25 | I47: 28958713 | J47: 905245 | K47: 1023642764
A48: SUPPORT SERVICES - GENERAL ADMINISTRATION
A49: Board of Education Services | B49: 2310 | C49: ='AFR19'!B678 -> 31224406 | D49: ='AFR19'!B736 -> 30962015 | E49: ='AFR19'!B794 -> 117281082.6 | F49: ='AFR19'!B852 -> 6603856.39 | G49: ='AFR19'!B910 -> 442797 | H49: ='AFR19'!B968 -> 25915030 | I49: ='AFR19'!B6872 -> 217227 | J49: ='AFR19'!B6873 -> 668831 | K49: =SUM(C49:J49) -> 213315245
A50: Executive Administration Services | B50: 2320 | C50: ='AFR19'!B679 -> 182329887.6 | D50: ='AFR19'!B737 -> 36469854.05 | E50: ='AFR19'!B795 -> 12964824.23 | F50: ='AFR19'!B853 -> 4253199.96 | G50: ='AFR19'!B911 -> 549035 | H50: ='AFR19'!B969 -> 3337464.14 | I50: ='AFR19'!B6874 -> 247959 | J50: ='AFR19'!B6875 -> 253049 | K50: =SUM(C50:J50) -> 240405273
A51: Special Area Administration Services | B51: 2330 | C51: ='AFR19'!B2664 -> 76287489 | D51: ='AFR19'!B2665 -> 16744178 | E51: ='AFR19'!B2666 -> 4536099 | F51: ='AFR19'!B2667 -> 1246095 | G51: ='AFR19'!B2668 -> 92699 | H51: ='AFR19'!B2669 -> 2636066 | I51: ='AFR19'!B6876 -> 360480 | J51: ='AFR19'!B6877 -> 88196 | K51: =SUM(C51:J51) -> 101991302
A52: Tort Immunity Services | B52: 2360 - 2370 | C52: ='AFR19'!B6878 -> 1832316 | D52: ='AFR19'!B6879 -> 2377795 | E52: ='AFR19'!B6880 -> 17969864.1 | F52: ='AFR19'!B6881 -> 206393 | G52: ='AFR19'!B6882 -> 21811 | H52: ='AFR19'!B6883 -> 973737 | I52: ='AFR19'!B6884 -> 0 | J52: ='AFR19'!B6885 -> 0 | K52: =SUM(C52:J52) -> 23381916.1
A53: Total Support Services - General Administration | B53: 2300 | C53: =SUM(C49:C52) -> 291674098.6 | D53: =SUM(D49:D52) -> 86553842.05 | E53: 152751870 | F53: 12309544.35 | G53: 1106342 | H53: 32862297.14 | I53: 825666 | J53: 1010076 | K53: 579093736.1
A54: SUPPORT SERVICES - SCHOOL ADMINISTRATION
A55: Office of the Principal Services | B55: 2410 | C55: ='AFR19'!B681 -> 900084890.9 | D55: ='AFR19'!B739 -> 213190613.6 | E55: ='AFR19'!B797 -> 21453533.33 | F55: ='AFR19'!B855 -> 19532787.81 | G55: ='AFR19'!B913 -> 1014151 | H55: ='AFR19'!B971 -> 2389219 | I55: ='AFR19'!B6890 -> 3105520 | J55: ='AFR19'!B6891 -> 2183744 | K55: =SUM(C55:J55) -> 1162954460
A56: Other Support Services - School Admin (Describe & Itemize) | B56: 2490 | C56: ='AFR19'!B682 -> 49609445 | D56: ='AFR19'!B740 -> 10887278 | E56: ='AFR19'!B798 -> 386397 | F56: ='AFR19'!B856 -> 173868 | G56: ='AFR19'!B914 -> 96824 | H56: ='AFR19'!B972 -> 29626 | I56: ='AFR19'!B6892 -> 1458 | J56: ='AFR19'!B6893 -> 6624 | K56: =SUM(C56:J56) -> 61191520
A57: Total Support Services - School Administration | B57: 2400 | C57: =SUM(C55:C56) -> 949694335.9 | D57: =SUM(D55:D56) -> 224077891.6 | E57: 21839930.33 | F57: 19706655.81 | G57: 1110975 | H57: 2418845 | I57: 3106978 | J57: 2190368 | K57: 1224145980
A58: SUPPORT SERVICES - BUSINESS
A59: Direction of Business Support Services | B59: 2510 | C59: ='AFR19'!B684 -> 51486713 | D59: ='AFR19'!B742 -> 12498623 | E59: ='AFR19'!B800 -> 5630668.97 | F59: ='AFR19'!B858 -> 1485088 | G59: ='AFR19'!B916 -> 639981 | H59: ='AFR19'!B974 -> 927377.96 | I59: ='AFR19'!B6896 -> 56358 | J59: ='AFR19'!B6897 -> 76148 | K59: =SUM(C59:J59) -> 72800957.93
A60: Fiscal Services | B60: 2520 | C60: ='AFR19'!B685 -> 114752211 | D60: ='AFR19'!B743 -> 22508486 | E60: ='AFR19'!B801 -> 33043584.17 | F60: ='AFR19'!B859 -> 4883239.21 | G60: ='AFR19'!B917 -> 2604912 | H60: ='AFR19'!B975 -> 4072120.01 | I60: ='AFR19'!B6898 -> 173892 | J60: ='AFR19'!B6899 -> 400837 | K60: 182439281.4
A61: Operation & Maintenance of Plant Services | B61: 2540 | C61: ='AFR19'!B686 -> 89771235.9 | D61: ='AFR19'!B744 -> 18348069 | E61: ='AFR19'!B802 -> 80660320.96 | F61: ='AFR19'!B860 -> 32915954.9 | G61: ='AFR19'!B918 -> 8789901.02 | H61: ='AFR19'!B976 -> 421604 | I61: ='AFR19'!B6900 -> 2292535 | J61: ='AFR19'!B6901 -> 206509 | K61: 233406129.8
A62: Pupil Transportation Services | B62: 2550 | C62: ='AFR19'!B687 -> 19443764 | D62: ='AFR19'!B745 -> 6326498 | E62: ='AFR19'!B803 -> 110112662 | F62: ='AFR19'!B861 -> 389071 | G62: ='AFR19'!B919 -> 269660.3 | H62: ='AFR19'!B977 -> 387 | I62: ='AFR19'!B6902 -> 200521 | J62: ='AFR19'!B6903 -> 265189 | K62: 137007752.3
A63: Food Services | B63: 2560 | C63: ='AFR19'!B688 -> 221766058.1 | D63: ='AFR19'!B746 -> 54318184.26 | E63: ='AFR19'!B804 -> 204482374.5 | F63: ='AFR19'!B862 -> 287176412.2 | G63: ='AFR19'!B920 -> 6052964.04 | H63: ='AFR19'!B978 -> 1471177.59 | I63: ='AFR19'!B6904 -> 5687756 | J63: ='AFR19'!B6905 -> 982249 | K63: 781937175.7
A64: Internal Services | B64: 2570 | C64: ='AFR19'!B689 -> 11000508 | D64: ='AFR19'!B747 -> 2140311 | E64: ='AFR19'!B805 -> 10049511 | F64: ='AFR19'!B863 -> 5101917 | G64: ='AFR19'!B921 -> 1994164 | H64: ='AFR19'!B979 -> 132088 | I64: ='AFR19'!B7653 -> 174794 | J64: ='AFR19'!B6906 -> 65136 | K64: 30658429
A65: Total Support Services - Business | B65: 2500 | C65: =SUM(C59:C64) -> 508220490 | D65: =SUM(D59:D64) -> 116140171.3 | E65: 443979121.6 | F65: 331951682.3 | G65: 20351582.36 | H65: 7024754.56 | I65: 8585856 | J65: 1996068 | K65: 1438249726
A66: SUPPORT SERVICES - CENTRAL
A67: Direction of Central Support Services | B67: 2610 | C67: ='AFR19'!B692 -> 10817918 | D67: ='AFR19'!B750 -> 2196625 | E67: ='AFR19'!B808 -> 2926974 | F67: ='AFR19'!B866 -> 198803 | G67: ='AFR19'!B924 -> 92012 | H67: ='AFR19'!B982 -> 185077 | I67: ='AFR19'!B6909 -> 61258 | J67: ='AFR19'!B6910 -> 72819 | K67: =SUM(C67:J67) -> 16551486
A68: Planning, Research, Development, & Evaluation Services | B68: 2620 | C68: ='AFR19'!B693 -> 17528878 | D68: ='AFR19'!B751 -> 3150533 | E68: ='AFR19'!B809 -> 7157480 | F68: ='AFR19'!B867 -> 905454 | G68: ='AFR19'!B925 -> 635804 | H68: ='AFR19'!B983 -> 27010 | I68: ='AFR19'!B6911 -> 30981 | J68: ='AFR19'!B6912 -> 56551 | K68: =SUM(C68:J68) -> 29492691
A69: Information Services | B69: 2630 | C69: ='AFR19'!B694 -> 25159711 | D69: ='AFR19'!B752 -> 4699419 | E69: ='AFR19'!B810 -> 17557269 | F69: ='AFR19'!B868 -> 6726805.9 | G69: ='AFR19'!B926 -> 5264102 | H69: ='AFR19'!B984 -> 348902 | I69: ='AFR19'!B6913 -> 2490299 | J69: ='AFR19'!B6914 -> 22533 | K69: =SUM(C69:J69) -> 62269040.9
A70: Staff Services | B70: 2640 | C70: ='AFR19'!B695 -> 66707893 | D70: ='AFR19'!B753 -> 27052773 | E70: ='AFR19'!B811 -> 17272241 | F70: ='AFR19'!B869 -> 2258125 | G70: ='AFR19'!B927 -> 148379 | H70: ='AFR19'!B985 -> 520569 | I70: ='AFR19'!B6915 -> 56067 | J70: ='AFR19'!B6916 -> 2344401 | K70: =SUM(C70:J70) -> 116360448
A71: Data Processing Services | B71: 2660 | C71: ='AFR19'!B697 -> 109394952 | D71: ='AFR19'!B755 -> 18519078 | E71: ='AFR19'!B813 -> 93847432 | F71: ='AFR19'!B871 -> 55756413 | G71: ='AFR19'!B929 -> 47941679 | H71: ='AFR19'!B987 -> 1201356 | I71: ='AFR19'!B6917 -> 35133947 | J71: ='AFR19'!B6918 -> 128196 | K71: =SUM(C71:J71) -> 361923053
A72: Total Support Services - Central | B72: 2600 | C72: =SUM(C67:C71) -> 229609352 | D72: =SUM(D67:D71) -> 55618428 | E72: 138761396 | F72: 65845600.9 | G72: 54081976 | H72: 2282914 | I72: 37772552 | J72: 2624500 | K72: 586596718.9
A73: Other Support Services (Describe & Itemize) | B73: 2900 | C73: ='AFR19'!B700 -> 12762947 | D73: ='AFR19'!B758 -> 7634056 | E73: ='AFR19'!B816 -> 14344209 | F73: ='AFR19'!B874 -> 6603408.39 | G73: ='AFR19'!B932 -> 1408827 | H73: ='AFR19'!B990 -> 698934 | I73: ='AFR19'!B6921 -> 1902422 | J73: ='AFR19'!B6922 -> 415284 | K73: =SUM(C73:J73) -> 45770087.39
A74: Total Support Services | B74: 2000 | C74: =SUM(C42,C47,C53,C57,C65,C72,C73) -> 3730549363 | D74: 833210696.9 | E74: 1066135002 | F74: 563222679.6 | G74: 119542304.6 | H74: 50143196.95 | I74: 82316944 | J74: 11011595 | K74: 6456131781
A75: COMMUNITY SERVICES (ED) | B75: 3000 | C75: ='AFR19'!B702 -> 82067312.53 | D75: ='AFR19'!B760 -> 14472707.21 | E75: ='AFR19'!B818 -> 52365468.93 | F75: ='AFR19'!B876 -> 14094092.73 | G75: ='AFR19'!B934 -> 1335802.37 | H75: ='AFR19'!B992 -> 1568138 | I75: ='AFR19'!B6925 -> 1261607 | J75: ='AFR19'!B6926 -> 84369 | K75: =SUM(C75:J75) -> 167249497.8
A76: PAYMENTS TO OTHER DISTRICTS & GOVT UNITS (ED)
A77: PAYMENTS TO OTHER GOVT UNITS (IN-STATE)
A78: Payments for Regular Programs | B78: 4110 | E78: ='AFR19'!B2895 -> 83691035 | H78: ='AFR19'!B2901 -> 9890773 | K78: =SUM(E78,H78) -> 93581808
A79: Payments for Special Education Programs | B79: 4120 | E79: ='AFR19'!B2896 -> 125068360.2 | H79: ='AFR19'!B2902 -> 202324719 | K79: 327393079.2
A80: Payments for Adult/Continuing Education Programs | B80: 4130 | E80: ='AFR19'!B2897 -> 498498 | H80: ='AFR19'!B2903 -> 339083 | K80: 837581
A81: Payments for CTE Programs | B81: 4140 | E81: ='AFR19'!B2898 -> 1662872 | H81: ='AFR19'!B2904 -> 11066685 | K81: 12729557
A82: Payments for Community College Programs | B82: 4170 | E82: ='AFR19'!B2899 -> 1061910 | H82: ='AFR19'!B2905 -> 1083431 | K82: 2145341
A83: Other Payments to In-State Govt. Units (Describe & Itemize) | B83: 4190 | E83: ='AFR19'!B2900 -> 10454901 | H83: ='AFR19'!B2906 -> 4529469 | K83: 14984370
A84: Total Payments to Dist & Other Govt Units (In-State) | B84: 4100 | E84: =SUM(E78:E83) -> 222437576.2 | H84: =SUM(H78:H83) -> 229234160 | K84: ='AFR19'!B2034 -> 451671736.2
A85: Payments for Regular Programs - Tuition | B85: 4210 | H85: ='AFR19'!B6927 -> 8165325 | K85: =SUM(E85,H85) -> 8165325
A86: Payments for Special Education Programs - Tuition | B86: 4220 | H86: ='AFR19'!B6929 -> 266839447.4 | K86: =SUM(E86,H86) -> 266839447.4
A87: Payments for Adult/Continuing Education Programs - Tuition | B87: 4230 | H87: ='AFR19'!B6931 -> 589193 | K87: 589193
A88: Payments for CTE Programs - Tuition | B88: 4240 | H88: ='AFR19'!B6933 -> 14532728 | K88: 14532728
A89: Payments for Community College Programs - Tuition | B89: 4270 | H89: ='AFR19'!B6935 -> 900934 | K89: 900934
A90: Payments for Other Programs - Tuition | B90: 4280 | H90: ='AFR19'!B6937 -> 1452569 | K90: 1452569
A91: Other Payments to In-State Govt Units | B91: 4290 | H91: ='AFR19'!B6939 -> 2061645 | K91: 2061645
A92: Total Payments to Other District & Govt Units -Tuition (In State) | B92: 4200 | H92: =SUM(H85:H91) -> 294541841.4 | K92: =SUM(K85:K91) -> 294541841.4
A93: Payments for Regular Programs - Transfers | B93: 4310 | H93: ='AFR19'!B6942 -> 754344 | K93: =SUM(E93,H93) -> 754344
A94: Payments for Special Education Programs - Transfers | B94: 4320 | H94: ='AFR19'!B6944 -> 1984366.11 | K94: 1984366.11
A95: Payments for Adult/Continuing Ed Programs - Transfers | B95: 4330 | H95: ='AFR19'!B6946 -> 0 | K95: 0
A96: Payments for CTE Programs - Transfers | B96: 4340 | H96: ='AFR19'!B6948 -> 523796 | K96: 523796
A97: Payments for Community College Program - Transfers | B97: 4370 | H97: ='AFR19'!B6950 -> 39781 | K97: 39781
A98: Payments for Other Programs - Transfers | B98: 4380 | H98: ='AFR19'!B6952 -> 58330 | K98: 58330
A99: Other Payments to In-State Govt Units - Transfers | B99: 4390 | E99: ='AFR19'!B6954 -> 613967 | H99: ='AFR19'!B6955 -> 1397209 | K99: 2011176
A100: Total Payments to Other District & Govt Units - Transfers (In-State) | B100: 4300 | E100: =SUM(E99) -> 613967 | H100: =SUM(H93:H99) -> 4757826.11 | K100: =SUM(K93:K99) -> 5371793.11
A101: Payments to Other Dist & Govt Units (Out-of-State) | B101: 4400 | E101: ='AFR19'!B2893 -> 784667 | H101: ='AFR19'!B6960 -> 268983 | K101: =SUM(E101,H101) -> 1053650
A102: Total Payments to Other District & Govt Units | B102: 4000 | E102: =SUM(E84,E100:E101) -> 223836210.2 | H102: =SUM(H84,H92,H100:H101) -> 528802810.6 | K102: =SUM(K84,K92,K100:K101) -> 752639020.8
A103: DEBT SERVICES (ED)
A104: DEBT SERVICES - INTEREST ON SHORT-TERM DEBT
A105: Tax Anticipation Warrants | B105: 5110 | H105: ='AFR19'!B994 -> 504030 | K105: =SUM(H105) -> 504030
A106: Tax Anticipation Notes | B106: 5120 | H106: ='AFR19'!B995 -> 93979 | K106: =SUM(H106) -> 93979
A107: Corporate Personal Prop. Repl. Tax Anticipation Notes | B107: 5130 | H107: ='AFR19'!B2737 -> 0 | K107: =SUM(H107) -> 0
A108: State Aid Anticipation Certificates | B108: 5140 | H108: ='AFR19'!B2738 -> 6659083 | K108: =SUM(H108) -> 6659083
A109: Other Interest on Short-Term Debt | B109: 5150 | H109: ='AFR19'!B997 -> 288364 | K109: =SUM(H109) -> 288364
A110: Total Interest on Short-Term Debt | B110: 5100 | H110: =SUM(H105:H109) -> 7545456 | K110: =SUM(K105:K109) -> 7545456
A111: Debt Services - Interest on Long-Term Debt | B111: 5200 | H111: ='AFR19'!B6962 -> 1779883 | K111: =SUM(H111) -> 1779883
A112: Total Debt Services | B112: 5000 | H112: =SUM(H110:H111) -> 9325339 | K112: =SUM(K110:K111) -> 9325339
A113: PROVISIONS FOR CONTINGENCIES (ED) | B113: 6000
A114: Total Direct Disbursements/Expenditures | C114: =SUM(C33,C74,C75,C102,C112,C113) -> 1.420758492e+10 | D114: =SUM(D33,D74,D75,D102,D112,D113) -> 3427891028 | E114: =SUM(E33,E74,E75,E102,E112,E113) -> 2399936508 | F114: 1048320149 | G114: 178261567 | H114: 1000514179 | I114: 150356068 | J114: 32725372 | K114: =SUM(K33,K74,K75,K102,K112,K113) -> 2.244558979e+10
A115: Excess (Deficiency) of Receipts/Revenues Over Disbursements/Expenditures | K115: =SUM('Revenues 9-14'!C268-'Expenditures 15-22'!K114) -> 881916175.6
A117: 20 - OPERATIONS & MAINTENANCE FUND (O&M)
A118: SUPPORT SERVICES (O&M)
A119: SUPPORT SERVICES - PUPILS
A120: Other Support Services - Pupils (Describe & Itemize) | B120: 2190 | C120: ='AFR19'!B4020 -> 136155 | D120: ='AFR19'!B4021 -> 20267 | E120: ='AFR19'!B4022 -> 67281 | F120: ='AFR19'!B4023 -> 6909 | G120: ='AFR19'!B4024 -> 15000 | H120: ='AFR19'!B4025 -> 0 | I120: ='AFR19'!B6968 -> 0 | J120: ='AFR19'!B6969 -> 0 | K120: =SUM(C120:J120) -> 245612
A121: SUPPORT SERVICES - BUSINESS
A122: Direction of Business Support Services | B122: 2510 | C122: ='AFR19'!B1165 -> 2753479 | D122: ='AFR19'!B1173 -> 412604 | E122: ='AFR19'!B1181 -> 1690219 | F122: ='AFR19'!B1189 -> 49789 | G122: ='AFR19'!B1197 -> 379223 | H122: ='AFR19'!B1206 -> 41961 | I122: ='AFR19'!B6970 -> 2377 | J122: ='AFR19'!B6971 -> 11751 | K122: =SUM(C122:J122) -> 5341403
A123: Facilities Acquisition & Construction Services | B123: 2530 | C123: ='AFR19'!B1166 -> 1174921 | D123: ='AFR19'!B1174 -> 132274 | E123: ='AFR19'!B1182 -> 18050173 | F123: ='AFR19'!B1190 -> 603073 | G123: ='AFR19'!B1198 -> 141117626 | H123: ='AFR19'!B1207 -> 410984 | I123: ='AFR19'!B6972 -> 2144389 | J123: ='AFR19'!B6973 -> 4553 | K123: =SUM(C123:J123) -> 163637993
A124: Operation & Maintenance of Plant Services | B124: 2540 | C124: ='AFR19'!B1167 -> 607070485.4 | D124: ='AFR19'!B1175 -> 121271938.3 | E124: ='AFR19'!B1183 -> 719134356.6 | F124: ='AFR19'!B1191 -> 492765168.1 | G124: ='AFR19'!B1199 -> 194590677 | H124: ='AFR19'!B1208 -> 5626340.06 | I124: ='AFR19'!B6974 -> 10100173 | J124: ='AFR19'!B6975 -> 806581 | K124: =SUM(C124:J124) -> 2151365719
A125: Pupil Transportation Services | B125: 2550 | C125: ='AFR19'!B3428 -> 117374 | D125: ='AFR19'!B3429 -> 35318 | E125: ='AFR19'!B3430 -> 49273 | F125: ='AFR19'!B3431 -> 104788 | G125: ='AFR19'!B3432 -> 1248 | H125: ='AFR19'!B3433 -> 212 | I125: ='AFR19'!B6976 -> 0 | J125: ='AFR19'!B6977 -> 0 | K125: =SUM(C125:J125) -> 308213
A126: Food Services | B126: 2560 | G126: ='AFR19'!B1200 -> 461742 | I126: ='AFR19'!B6978 -> 88983 | K126: =SUM(C126:J126) -> 550725
A127: Total Support Services - Business | B127: 2500 | C127: =SUM(C122:C126) -> 611116259.4 | D127: =SUM(D122:D126) -> 121852134.3 | E127: 738924021.6 | F127: 493522818.1 | G127: 336550516 | H127: 6079497.06 | I127: 12335922 | J127: 822885 | K127: 2321204053
A128: Other Support Services (Describe & Itemize) | B128: 2900 | C128: ='AFR19'!B1170 -> 998442 | D128: ='AFR19'!B1178 -> 277959 | E128: ='AFR19'!B1186 -> 3517824 | F128: ='AFR19'!B1194 -> 52501 | G128: ='AFR19'!B1203 -> 32331 | H128: ='AFR19'!B1211 -> 8881 | I128: ='AFR19'!B6981 -> 53621 | J128: ='AFR19'!B6982 -> 0 | K128: =SUM(C128:J128) -> 4941559
A129: Total Support Services | B129: 2000 | C129: =SUM(C120,C127:C128) -> 612250856.4 | D129: =SUM(D120,D127:D128) -> 122150360.3 | E129: 742509126.6 | F129: 493582228.1 | G129: 336597847 | H129: 6088378.06 | I129: 12389543 | J129: 822885 | K129: 2326391224
A130: COMMUNITY SERVICES (O&M) | B130: 3000 | C130: ='AFR19'!B2743 -> 273530 | D130: ='AFR19'!B2744 -> 2 | E130: ='AFR19'!B2745 -> 22484 | F130: ='AFR19'!B2746 -> 19301 | G130: ='AFR19'!B2747 -> 51117 | H130: ='AFR19'!B2748 -> 0 | I130: ='AFR19'!B6985 -> 0 | J130: ='AFR19'!B6986 -> 0 | K130: =SUM(C130:J130) -> 366434
A131: PAYMENTS TO OTHER DIST & GOVT UNITS (O&M)
A132: PAYMENTS TO OTHER GOVT UNITS (IN-STATE)
A133: Payments for Regular Programs | B133: 4110 | E133: ='AFR19'!B7720 -> 510000 | H133: ='AFR19'!B7721 -> 17645 | K133: =SUM(E133,H133) -> 527645
A134: Payments for Special Education Programs | B134: 4120 | E134: ='AFR19'!B4145 -> 1457659 | H134: ='AFR19'!B2925 -> 785086 | K134: =SUM(E134,H134) -> 2242745
A135: Payments for CTE Programs | B135: 4140 | E135: ='AFR19'!B4146 -> 349840 | H135: ='AFR19'!B2926 -> 561085 | K135: =SUM(E135,H135) -> 910925
A136: Other Payments to In-State Govt. Units (Describe & Itemize) | B136: 4190 | E136: ='AFR19'!B4147 -> 275333 | H136: ='AFR19'!B2927 -> 1171411 | K136: =SUM(E136,H136) -> 1446744
A137: Total Payments to Other Govt. Units (In-State) | B137: 4100 | E137: =SUM(E133:E136) -> 2592832 | H137: =SUM(H133:H136) -> 2535227 | K137: =SUM(K133:K136) -> 5128059
A138: Payments to Other Govt. Units (Out of State) | B138: 4400 | H138: ='AFR19'!B2038 -> 0 | K138: =SUM(E138,H138) -> 0
A139: Total Payments to Other Dist & Govt Units | B139: 4000 | E139: =E137 -> 2592832 | H139: =SUM(H137:H138) -> 2535227 | K139: =SUM(K137:K138) -> 5128059
A140: DEBT SERVICES (O&M) | B140: 5000
A141: DEBT SERVICES - INTEREST ON SHORT-TERM DEBT
A142: Tax Anticipation Warrants | B142: 5110 | H142: ='AFR19'!B1214 -> 0 | K142: =H142 -> 0
A143: Tax Anticipation Notes | B143: 5120 | H143: ='AFR19'!B1215 -> 0 | K143: =H143 -> 0
A144: Corporate Personal Prop. Repl. Tax Anticipation Notes | B144: 5130 | H144: ='AFR19'!B2753 -> 0 | K144: =H144 -> 0
A145: State Aid Anticipation Certificates | B145: 5140 | H145: ='AFR19'!B2754 -> 0 | K145: =H145 -> 0
A146: Other Interest on Short-Term Debt (Describe & Itemize) | B146: 5150 | H146: ='AFR19'!B1216 -> 6602 | K146: =H146 -> 6602
A147: Total Debt Service - Interest on Short-Term Debt | B147: 5100 | H147: =SUM(H142:H146) -> 6602 | K147: =SUM(K142:K146) -> 6602
A148: DEBT SERVICE - INTERST ON LONG-TERM DEBT | B148: 5200 | H148: ='AFR19'!B6995 -> 465208 | K148: ='AFR19'!B6996 -> 465208
A149: Total Debt Services | B149: 5000 | H149: =SUM(H147:H148) -> 471810 | K149: =SUM(K147:K148) -> 471810
A150: PROVISIONS FOR CONTINGENCIES (O&M) | B150: 6000
A151: Total Direct Disbursements/Expenditures | C151: =SUM(C129,C130,C139,C149,C150) -> 612524386.4 | D151: 122150362.3 | E151: 745124442.6 | F151: 493601529.1 | G151: 336648964 | H151: 9095415.06 | I151: 12389543 | J151: 822885 | K151: 2332357527
A152: Excess (Deficiency) of Receipts/Revenues\Over Disbursements/ Expenditures | K152: =SUM('Revenues 9-14'!D268-'Expenditures 15-22'!K151) -> 88869472.8
A154: 30 - DEBT SERVICES (DS)
A155: PAYMENTS TO OTHER DIST & GOVT UNITS (DS) | B155: 4000
A156: Payments to Other Dist & Govt Units (In State)
A157: Payments for Regular Programs | B157: 4110 | H157: ='AFR19'!B7723 -> 99410 | K157: =H157 -> 99410
A158: Payments for Special Education Programs | B158: 4120 | H158: ='AFR19'!B7725 -> 0 | K158: =H158 -> 0
A159: Other Payments to In-State Gov't. Units (Describe & Itemize) | B159: 4190 | H159: ='AFR19'!B7727 -> 6186 | K159: =H159 -> 6186
A160: Total Payments to Other Dist & Govt Units (In-State) | B160: 4000 | H160: =SUM(H157:H159) -> 105596 | K160: =SUM(K157:K159) -> 105596
A161: DEBT SERVICES (DS) | B161: 5000
A162: DEBT SERVICES - INTEREST ON SHORT-TERM DEBT
A163: Tax Anticipation Warrants | B163: 5110 | H163: ='AFR19'!B1256 -> 14405 | K163: =SUM(H163) -> 14405
A164: Tax Anticipation Notes | B164: 5120 | H164: ='AFR19'!B1257 -> 0 | K164: =SUM(H164) -> 0
A165: Corporate Personal Prop. Repl. Tax Anticipation Notes | B165: 5130 | H165: ='AFR19'!B2758 -> 0 | K165: =SUM(H165) -> 0
A166: State Aid Anticipation Certificates | B166: 5140 | H166: ='AFR19'!B2759 -> 1906569 | K166: =SUM(H166) -> 1906569
A167: Other Interest on Short-Term Debt (Describe & Itemize) | B167: 5150 | H167: ='AFR19'!B1259 -> 541258 | K167: =SUM(H167) -> 541258
A168: Total Debt Services - Interest On Short-Term Debt | B168: 5100 | H168: =SUM(H163:H167) -> 2462232 | K168: =SUM(K163:K167) -> 2462232
A169: DEBT SERVICES - INTEREST ON LONG-TERM DEBT | B169: 5200 | H169: ='AFR19'!B1258 -> 1043044471 | K169: =H169 -> 1043044471
A170: DEBT SERVICES - PAYMENTS OF PRINCIPAL ON LONG-TERM DEBT (Lease/Purchase Principal Retired) 11 | B170: 5300 | H170: ='AFR19'!B1261 -> 1592162767 | K170: =H170 -> 1592162767
A171: DEBT SERVICES - OTHER (Describe & Itemize) | B171: 5400 | E171: ='AFR19'!B1253 -> 5486523 | H171: ='AFR19'!B1262 -> 32761132 | K171: =SUM(E171,H171) -> 38247655
A172: Total Debt Services | B172: 5000 | E172: =E171 -> 5486523 | H172: =SUM(H168:H171) -> 2670430602 | K172: =SUM(K168:K171) -> 2675917125
A173: PROVISION FOR CONTINGENCIES (DS) | B173: 6000
A174: Total Disbursements/ Expenditures | E174: =SUM(E172) -> 5486523 | H174: =SUM(H155,H160,H172:H173) -> 2670536198 | K174: =SUM(K155,K160,K172:K173) -> 2676022721
A175: Excess (Deficiency) of Receipts/Revenues Over Disbursements/Expenditures | K175: ='AFR19'!B1279 -> -512158296.3
A177: 40 - TRANSPORTATION FUND (TR)
A178: SUPPORT SERVICES (TR)
A179: SUPPORT SERVICES - PUPILS
A180: Other Support Services - Pupils (Describe & Itemize) | B180: 2100 | C180: ='AFR19'!B4027 -> 2299594 | D180: ='AFR19'!B4028 -> 232570 | E180: ='AFR19'!B4029 -> 2280875 | F180: ='AFR19'!B4030 -> 525411 | G180: ='AFR19'!B4031 -> 371449 | H180: ='AFR19'!B4032 -> 6382 | I180: ='AFR19'!B7003 -> 33702 | J180: ='AFR19'!B7004 -> 0 | K180: =SUM(C180:J180) -> 5749983
A181: SUPPORT SERVICES - BUSINESS
A182: Pupil Transportation Services | B182: 2550 | C182: ='AFR19'!B1281 -> 257607265.8 | D182: ='AFR19'!B1287 -> 42825501.96 | E182: ='AFR19'!B1293 -> 771207248.6 | F182: ='AFR19'!B1300 -> 68570493.87 | G182: ='AFR19'!B1306 -> 67351636 | H182: ='AFR19'!B1312 -> 3149657.04 | I182: ='AFR19'!B7005 -> 1390095 | J182: ='AFR19'!B7006 -> 90028 | K182: =SUM(C182:J182) -> 1212191926
A183: Other Support Services (Describe & Itemize) | B183: 2900 | C183: ='AFR19'!B1284 -> 1258187 | D183: ='AFR19'!B1290 -> 318260 | E183: ='AFR19'!B1296 -> 732609 | F183: ='AFR19'!B1303 -> 80866 | G183: ='AFR19'!B1309 -> 0 | H183: ='AFR19'!B1315 -> 5770 | I183: ='AFR19'!B7007 -> 0 | J183: ='AFR19'!B7008 -> 0 | K183: =SUM(C183:J183) -> 2395692
A184: Total Support Services | B184: 2000 | C184: =SUM(C180,C182:C183) -> 261165046.8 | D184: =SUM(D180,D182:D183) -> 43376331.96 | E184: 774220732.6 | F184: 69176770.87 | G184: 67723085 | H184: 3161809.04 | I184: 1423797 | J184: 90028 | K184: =SUM(K180,K182:K183) -> 1220337601
A185: COMMUNITY SERVICES (TR) | B185: 3000 | C185: ='AFR19'!B2766 -> 41749 | D185: ='AFR19'!B2767 -> 740 | E185: ='AFR19'!B2768 -> 160623 | F185: ='AFR19'!B2771 -> 3128 | G185: ='AFR19'!B2772 -> 0 | H185: ='AFR19'!B2773 -> 0 | I185: ='AFR19'!B7011 -> 0 | J185: ='AFR19'!B7012 -> 0 | K185: =SUM(C185:J185) -> 206240
A186: PAYMENTS TO OTHER DIST & GOVT UNITS (TR)
A187: PAYMENTS TO OTHER DIST & GOVT UNITS (IN-STATE)
A188: Payments for Regular Programs | B188: 4110 | E188: ='AFR19'!B2935 -> 4775024 | H188: ='AFR19'!B2941 -> 116116 | K188: =SUM(E188,H188) -> 4891140
A189: Payments for Special Education Programs | B189: 4120 | E189: ='AFR19'!B2936 -> 7929650 | H189: ='AFR19'!B2942 -> 855652 | K189: 8785302
A190: Payments for Adult/Continuing Education Programs | B190: 4130 | E190: ='AFR19'!B2937 -> 0 | H190: ='AFR19'!B2943 -> 0 | K190: 0
A191: Payments for CTE Programs | B191: 4140 | E191: ='AFR19'!B2938 -> 28394 | H191: ='AFR19'!B2944 -> 28269 | K191: 56663
A192: Payments for Community College Programs | B192: 4170 | E192: ='AFR19'!B2939 -> 0 | H192: ='AFR19'!B2945 -> 0 | K192: 0
A193: Other Payments to In-State Govt. Units (Describe & Itemize) | B193: 4190 | E193: ='AFR19'!B2940 -> 187626 | H193: ='AFR19'!B2946 -> 703255 | K193: 890881
A194: Total Payments to Other Govt. Units (In-State) | B194: 4100 | E194: =SUM(E188:E193) -> 12920694 | H194: =SUM(H188:H193) -> 1703292 | K194: =SUM(K188:K193) -> 14623986
A195: PAYMENTS TO OTHER GOVT UNITS (OUT-OF-STATE) | B195: 4400 | E195: ='AFR19'!B2770 -> 0 | H195: ='AFR19'!B2775 -> 283 | K195: =SUM(E195,H195) -> 283
A196: Total Payments to Other Dist & Govt Units | B196: 4000 | E196: =SUM(E194:E195) -> 12920694 | H196: =SUM(H194:H195) -> 1703575 | K196: =SUM(K194:K195) -> 14624269
A197: DEBT SERVICES (TR)
A198: DEBT SERVICE - INTEREST ON SHORT-TERM DEBT
A199: Tax Anticipation Warrants | B199: 5110 | H199: ='AFR19'!B1317 -> 1876 | K199: =SUM(H199) -> 1876
A200: Tax Anticipation Notes | B200: 5120 | H200: ='AFR19'!B1318 -> 0 | K200: =SUM(H200) -> 0
A201: Corporate Personal Prop. Repl. Tax Anticipation Notes | B201: 5130 | H201: ='AFR19'!B2777 -> 0 | K201: =SUM(H201) -> 0
A202: State Aid Anticipation Certificates | B202: 5140 | H202: ='AFR19'!B2778 -> 0 | K202: =SUM(H202) -> 0
A203: Other (Describe & Itemize) | B203: 5150 | H203: ='AFR19'!B1319 -> 176985 | K203: =SUM(H203) -> 176985
... 160 more rows

Sheet ARRA Sched 23 (hidden)
C1: ----RECEIPTS---- | D1: -------------------------------------------------------------------------------------------DISBURSEMENTS------------------------------------------------------------------------------------ | M1: -----------STAFFING------------
D2: (100) | E2: (200) | F2: (300) | G2: (400) | H2: (500) | I2: (600) | J2: (700) | K2: (800) | L2: (900)
A3: ARRA Revenue Source Code | B3: Acct # | C3: ARRA Receipts | D3: Salaries | E3: Employee Benefits | F3: Purchased Services | G3: Supplies & Materials | H3: Capital Outlay | I3: Other | J3: Non-Capitalized Equipment | K3: Termination Benefits | L3: Total Expenditures | M3: # of Staff Impacted by Salary & Benefits | N3: FTE Staff Impacted by Salary & Benefits
A4: Beginning Balance July 1, 2015 | C4: ='AFR19'!B7215 -> 0
A5: ARRA -General State Aid 13 | B5: 4850 | C5: ='AFR19'!B7216 -> 0 | D5: ='AFR19'!B7246 -> 0 | E5: ='AFR19'!B7275 -> 0 | F5: ='AFR19'!B7304 -> 0 | G5: ='AFR19'!B7333 -> 0 | H5: ='AFR19'!B7362 -> 0 | I5: ='AFR19'!B7391 -> 0 | J5: ='AFR19'!B7420 -> 0 | L5: ='AFR19'!B7449 -> 0 | M5: 7471 | N5: 7500
A6: ARRA - Title I Low Income | B6: 4851 | C6: ='AFR19'!B7217 -> 0 | D6: ='AFR19'!B7247 -> 0 | E6: ='AFR19'!B7276 -> 0 | F6: ='AFR19'!B7305 -> 0 | G6: ='AFR19'!B7334 -> 0 | H6: ='AFR19'!B7363 -> 0 | I6: ='AFR19'!B7392 -> 0 | J6: ='AFR19'!B7421 -> 0 | L6: ='AFR19'!B7450 -> 0 | M6: 7472 | N6: 7501
A7: ARRA - Title I Neglected - Private | B7: 4852 | C7: ='AFR19'!B7218 -> 0 | D7: ='AFR19'!B7248 -> 0 | E7: ='AFR19'!B7277 -> 0 | F7: ='AFR19'!B7306 -> 0 | G7: ='AFR19'!B7335 -> 0 | H7: 42916 | I7: ='AFR19'!B7393 -> 0 | J7: ='AFR19'!B7422 -> 0 | L7: ='AFR19'!B7451 -> 0 | M7: 7473 | N7: 7502
A8: ARRA - Title I Delinquent - Private | B8: 4853 | C8: ='AFR19'!B7219 -> 0 | D8: ='AFR19'!B7249 -> 0 | E8: ='AFR19'!B7278 -> 0 | F8: ='AFR19'!B7307 -> 0 | G8: ='AFR19'!B7336 -> 0 | H8: ='AFR19'!B7365 -> 0 | I8: ='AFR19'!B7394 -> 0 | J8: ='AFR19'!B7423 -> 0 | L8: ='AFR19'!B7452 -> 0 | M8: 7474 | N8: 7503
A9: ARRA - Title I School Improvement (Part A) | B9: 4854 | C9: ='AFR19'!B7220 -> 0 | D9: ='AFR19'!B7250 -> 0 | E9: ='AFR19'!B7279 -> 0 | F9: ='AFR19'!B7308 -> 0 | G9: ='AFR19'!B7337 -> 0 | H9: ='AFR19'!B7366 -> 0 | I9: ='AFR19'!B7395 -> 0 | J9: ='AFR19'!B7424 -> 0 | L9: ='AFR19'!B7453 -> 0 | M9: 7475 | N9: 7504
A10: ARRA - Title I School Improvement (Part G) | B10: 4855 | C10: ='AFR19'!B7221 -> 0 | D10: ='AFR19'!B7251 -> 0 | E10: ='AFR19'!B7280 -> 0 | F10: ='AFR19'!B7309 -> 0 | G10: ='AFR19'!B7338 -> 0 | H10: ='AFR19'!B7367 -> 0 | I10: ='AFR19'!B7396 -> 0 | J10: ='AFR19'!B7425 -> 0 | L10: ='AFR19'!B7454 -> 0 | M10: 7476 | N10: 7505
A11: ARRA - IDEA Part B Preschool | B11: 4856 | C11: ='AFR19'!B7222 -> 0 | D11: ='AFR19'!B7252 -> 0 | E11: ='AFR19'!B7281 -> 0 | F11: ='AFR19'!B7310 -> 0 | G11: ='AFR19'!B7339 -> 0 | H11: ='AFR19'!B7368 -> 0 | I11: ='AFR19'!B7397 -> 0 | J11: ='AFR19'!B7426 -> 0 | L11: ='AFR19'!B7455 -> 0 | M11: 7477 | N11: 7506
A12: ARRA - IDEA Part B Flow Through | B12: 4857 | C12: ='AFR19'!B7223 -> 0 | D12: ='AFR19'!B7253 -> 0 | E12: ='AFR19'!B7282 -> 0 | F12: ='AFR19'!B7311 -> 0 | G12: ='AFR19'!B7340 -> 0 | H12: ='AFR19'!B7369 -> 0 | I12: ='AFR19'!B7398 -> 0 | J12: ='AFR19'!B7427 -> 0 | L12: ='AFR19'!B7456 -> 0 | M12: 7478 | N12: 7507
A13: ARRA - Title II D Technology Formula | B13: 4860 | C13: ='AFR19'!B7224 -> 0 | D13: ='AFR19'!B7254 -> 0 | E13: ='AFR19'!B7283 -> 0 | F13: ='AFR19'!B7312 -> 0 | G13: ='AFR19'!B7341 -> 0 | H13: ='AFR19'!B7370 -> 0 | I13: ='AFR19'!B7399 -> 0 | J13: ='AFR19'!B7428 -> 0 | L13: ='AFR19'!B7457 -> 0 | M13: 7479 | N13: 7508
A14: ARRA - Title II D Technology Competitive | B14: 4861 | C14: ='AFR19'!B7225 -> 0 | D14: ='AFR19'!B7255 -> 0 | E14: ='AFR19'!B7284 -> 0 | F14: ='AFR19'!B7313 -> 0 | G14: ='AFR19'!B7342 -> 0 | H14: ='AFR19'!B7371 -> 0 | I14: ='AFR19'!B7400 -> 0 | J14: ='AFR19'!B7429 -> 0 | L14: ='AFR19'!B7458 -> 0 | M14: 7480 | N14: 7509
A15: ARRA - McKenney - Vento Homeless Education | B15: 4862 | C15: ='AFR19'!B7226 -> 0 | D15: ='AFR19'!B7256 -> 0 | E15: ='AFR19'!B7285 -> 0 | F15: ='AFR19'!B7314 -> 0 | G15: ='AFR19'!B7343 -> 0 | H15: ='AFR19'!B7372 -> 0 | I15: ='AFR19'!B7401 -> 0 | J15: ='AFR19'!B7430 -> 0 | L15: ='AFR19'!B7459 -> 0 | M15: 7481 | N15: 7510
A16: ARRA - Child Nutrition Equipment Assistance | B16: 4863 | C16: ='AFR19'!B7227 -> 0 | D16: ='AFR19'!B7257 -> 0 | E16: ='AFR19'!B7286 -> 0 | F16: ='AFR19'!B7315 -> 0 | G16: ='AFR19'!B7344 -> 0 | H16: ='AFR19'!B7373 -> 0 | I16: ='AFR19'!B7402 -> 0 | J16: ='AFR19'!B7431 -> 0 | L16: ='AFR19'!B7460 -> 0 | M16: 7482 | N16: 7511
A17: Impact Aid Construction Formula | B17: 4864 | C17: ='AFR19'!B7228 -> 0 | D17: ='AFR19'!B7258 -> 0 | E17: ='AFR19'!B7287 -> 0 | F17: ='AFR19'!B7316 -> 0 | G17: ='AFR19'!B7345 -> 0 | H17: ='AFR19'!B7374 -> 0 | I17: ='AFR19'!B7403 -> 0 | J17: ='AFR19'!B7432 -> 0 | L17: ='AFR19'!B7461 -> 0 | M17: 7483 | N17: 7512
A18: Impact Aid Construction Competitive | B18: 4865 | C18: ='AFR19'!B7229 -> 0 | D18: ='AFR19'!B7259 -> 0 | E18: ='AFR19'!B7288 -> 0 | F18: ='AFR19'!B7317 -> 0 | G18: ='AFR19'!B7346 -> 0 | H18: ='AFR19'!B7375 -> 0 | I18: ='AFR19'!B7404 -> 0 | J18: ='AFR19'!B7433 -> 0 | L18: ='AFR19'!B7462 -> 0 | M18: 7484 | N18: 7513
A19: No Address | B19: 4866 | C19: ='AFR19'!B7230 -> 0 | D19: ='AFR19'!B7260 -> 0 | E19: ='AFR19'!B7289 -> 0 | F19: ='AFR19'!B7318 -> 0 | G19: ='AFR19'!B7347 -> 0 | H19: ='AFR19'!B7376 -> 0 | I19: ='AFR19'!B7405 -> 0 | J19: ='AFR19'!B7434 -> 0 | L19: ='AFR19'!B7463 -> 0 | M19: 7485 | N19: 7514
A20: QSCB Tax Credits | B20: 4867 | C20: ='AFR19'!B7231 -> 0 | D20: ='AFR19'!B7261 -> 0 | E20: ='AFR19'!B7290 -> 0 | F20: ='AFR19'!B7319 -> 0 | G20: ='AFR19'!B7348 -> 0 | H20: ='AFR19'!B7377 -> 0 | I20: ='AFR19'!B7406 -> 0 | J20: ='AFR19'!B7435 -> 0 | L20: ='AFR19'!B7464 -> 0 | M20: 7486 | N20: 7515
A21: Build America Bonds Tax Credits | B21: 4868 | C21: ='AFR19'!B7232 -> 0 | D21: ='AFR19'!B7262 -> 0 | E21: ='AFR19'!B7291 -> 0 | F21: ='AFR19'!B7320 -> 0 | G21: ='AFR19'!B7349 -> 0 | H21: ='AFR19'!B7378 -> 0 | I21: ='AFR19'!B7407 -> 0 | J21: ='AFR19'!B7436 -> 0 | L21: ='AFR19'!B7465 -> 0 | M21: 7487 | N21: 7516
A22: Build America Bonds Interest Reimbursement | B22: 4869 | C22: ='AFR19'!B7233 -> 0 | D22: ='AFR19'!B7263 -> 0 | E22: ='AFR19'!B7292 -> 0 | F22: ='AFR19'!B7321 -> 0 | G22: ='AFR19'!B7350 -> 0 | H22: ='AFR19'!B7379 -> 0 | I22: ='AFR19'!B7408 -> 0 | J22: ='AFR19'!B7437 -> 0 | L22: ='AFR19'!B7466 -> 0 | M22: 7488 | N22: 7517
A23: ARRA - General State Aid-Other Govt Services Stabilization | B23: 4870 | C23: ='AFR19'!B7234 -> 0 | D23: ='AFR19'!B7264 -> 0 | E23: ='AFR19'!B7293 -> 0 | F23: ='AFR19'!B7322 -> 0 | G23: ='AFR19'!B7351 -> 0 | H23: ='AFR19'!B7380 -> 0 | I23: ='AFR19'!B7409 -> 0 | J23: ='AFR19'!B7438 -> 0 | L23: ='AFR19'!B7467 -> 0 | M23: 7489 | N23: 7518
A24: ARRA Other II | B24: 4871 | C24: ='AFR19'!B7235 -> 0 | D24: ='AFR19'!B7265 -> 0 | E24: ='AFR19'!B7294 -> 0 | F24: ='AFR19'!B7323 -> 0 | G24: ='AFR19'!B7352 -> 0 | H24: ='AFR19'!B7381 -> 0 | I24: ='AFR19'!B7410 -> 0 | J24: ='AFR19'!B7439 -> 0 | L24: ='AFR19'!B7468 -> 0 | M24: 7490 | N24: 7519
A25: ARRA Other III | B25: 4872 | C25: ='AFR19'!B7236 -> 0 | D25: ='AFR19'!B7266 -> 0 | E25: ='AFR19'!B7295 -> 0 | F25: ='AFR19'!B7324 -> 0 | G25: ='AFR19'!B7353 -> 0 | H25: ='AFR19'!B7382 -> 0 | I25: ='AFR19'!B7411 -> 0 | J25: ='AFR19'!B7440 -> 0 | L25: ='AFR19'!B7469 -> 0 | M25: 7491 | N25: 7520
A26: ARRA Other IV | B26: 4873 | C26: ='AFR19'!B7237 -> 0 | D26: ='AFR19'!B7267 -> 0 | E26: ='AFR19'!B7296 -> 0 | F26: ='AFR19'!B7325 -> 0 | G26: ='AFR19'!B7354 -> 0 | H26: ='AFR19'!B7383 -> 0 | I26: ='AFR19'!B7412 -> 0 | J26: ='AFR19'!B7441 -> 0 | L26: ='AFR19'!B7470 -> 0 | M26: 7492 | N26: 7521
A27: ARRA Other V | B27: 4874 | C27: ='AFR19'!B7238 -> 0 | D27: ='AFR19'!B7268 -> 0 | E27: ='AFR19'!B7297 -> 0 | F27: ='AFR19'!B7326 -> 0 | G27: ='AFR19'!B7355 -> 0 | H27: ='AFR19'!B7384 -> 0 | I27: ='AFR19'!B7413 -> 0 | J27: ='AFR19'!B7442 -> 0 | L27: ='AFR19'!B7471 -> 0 | M27: 7493 | N27: 7522
A28: ARRA - Early Childhood | B28: 4875 | C28: ='AFR19'!B7239 -> 0 | D28: ='AFR19'!B7269 -> 0 | E28: ='AFR19'!B7298 -> 0 | F28: ='AFR19'!B7327 -> 0 | G28: ='AFR19'!B7356 -> 0 | H28: ='AFR19'!B7385 -> 0 | I28: ='AFR19'!B7414 -> 0 | J28: ='AFR19'!B7443 -> 0 | L28: ='AFR19'!B7472 -> 0 | M28: 7494 | N28: 7523
A29: ARRA Other VII | B29: 4876 | C29: ='AFR19'!B7240 -> 0 | D29: ='AFR19'!B7270 -> 0 | E29: ='AFR19'!B7299 -> 0 | F29: ='AFR19'!B7328 -> 0 | G29: ='AFR19'!B7357 -> 0 | H29: ='AFR19'!B7386 -> 0 | I29: ='AFR19'!B7415 -> 0 | J29: ='AFR19'!B7444 -> 0 | L29: ='AFR19'!B7473 -> 0 | M29: 7495 | N29: 7524
A30: ARRA Other VIII | B30: 4877 | C30: ='AFR19'!B7241 -> 0 | D30: ='AFR19'!B7271 -> 0 | E30: ='AFR19'!B7300 -> 0 | F30: ='AFR19'!B7329 -> 0 | G30: ='AFR19'!B7358 -> 0 | H30: ='AFR19'!B7387 -> 0 | I30: ='AFR19'!B7416 -> 0 | J30: ='AFR19'!B7445 -> 0 | L30: ='AFR19'!B7474 -> 0 | M30: 7496 | N30: 7525
A31: ARRA Other IX | B31: 4878 | C31: ='AFR19'!B7242 -> 0 | D31: ='AFR19'!B7272 -> 0 | E31: ='AFR19'!B7301 -> 0 | F31: ='AFR19'!B7330 -> 0 | G31: ='AFR19'!B7359 -> 0 | H31: ='AFR19'!B7388 -> 0 | I31: ='AFR19'!B7417 -> 0 | J31: ='AFR19'!B7446 -> 0 | L31: ='AFR19'!B7475 -> 0 | M31: 7497 | N31: 7526
A32: ARRA Other X | B32: 4879 | C32: ='AFR19'!B7243 -> 0 | D32: ='AFR19'!B7273 -> 0 | E32: ='AFR19'!B7302 -> 0 | F32: ='AFR19'!B7331 -> 0 | G32: ='AFR19'!B7360 -> 0 | H32: ='AFR19'!B7389 -> 0 | I32: ='AFR19'!B7418 -> 0 | J32: ='AFR19'!B7447 -> 0 | L32: ='AFR19'!B7476 -> 0 | M32: 7498 | N32: 7527
A33: ARRA Other XI | B33: 4880 | C33: ='AFR19'!B7586 -> 0 | D33: ='AFR19'!B7587 -> 0 | E33: ='AFR19'!B7588 -> 0 | F33: ='AFR19'!B7589 -> 0 | G33: ='AFR19'!B7590 -> 0 | H33: ='AFR19'!B7591 -> 0 | I33: ='AFR19'!B7592 -> 0 | J33: ='AFR19'!B7593 -> 0 | L33: ='AFR19'!B7594 -> 0 | M33: 7588 | N33: 7589
A34: Total ARRA Programs | C34: =SUM(C5:C33) -> 0 | D34: =SUM(D5:D33) -> 0 | E34: 0 | F34: 0 | G34: 0 | H34: 42916 | I34: 0 | J34: 0 | L34: =SUM(L5:L33) -> 0 | M34: 7499 | N34: 7528
A35: Ending Balance June 30, 2016 | C35: =C4+C34-L34 -> 0
A37: 1 | B37: Were any funds from the State Fiscal Stabilization Fund Program (SFSF) General State-Aid (Account 4850, line 5)
B38: used for the following non-allowable purposes:
C39: Payments of maintenance costs;
C40: Stadiums or other facilities used for athletic contests, exhibitions or other events for which admission is charged to the general public;
C41: Purchase or upgrade of vehicles;
C42: Improvements of stand-alone facilities whose purpose is not the education of children such as central office administrative buildings;
C43: Financial assistance to students to attend private elementary or secondary schools unless the funds are used to provide special
C44: education and related services to children with disabilities as authorized by the IDEA Act;
C45: School modernization, renovation, or repair that is inconsistent with State Law.
A47: 2 | B47: If any above boxes are checked provide the total amount
B48: of questioned costs and provide an explanation below: | G48: 7574

Sheet Tax Sched 23
A1: SCHEDULE OF AD VALOREM TAX RECEIPTS
A2: Description | B2: Taxes Received 7-1-18 Thru 6-30-19 (from 2017 Levy & Prior Levies) * | C2: Taxes Received (from the 2018 Levy) | D2: Taxes Received (from 2017 & Prior Levies) (Column B - C) | E2: Total Estimated Taxes (from the 2018 Levy) | F2: Estimated Taxes Due (from the 2018 Levy) (Column E - C)
A4: Educational | B4: ='AFR19'!B1690 -> 1.207552254e+10 | C4: ='AFR19'!B1722 -> 6546681970 | D4: =B4-C4 -> 5528840567 | E4: ='AFR19'!B1754 -> 1.244391635e+10 | F4: =E4-C4 -> 5897234380
A5: Operations & Maintenance | B5: ='AFR19'!B1691 -> 1556929392 | C5: ='AFR19'!B1723 -> 671036369 | D5: =B5-C5 -> 885893023.2 | E5: ='AFR19'!B1755 -> 1629443908 | F5: =E5-C5 -> 958407538.5
A6: Debt Services ** | B6: ='AFR19'!B1692 -> 1517031910 | C6: ='AFR19'!B1724 -> 649937066.2 | D6: 867094844.1 | E6: ='AFR19'!B1756 -> 1565789108 | F6: 915852042.2
A7: Transportation | B7: ='AFR19'!B1693 -> 576639617 | C7: ='AFR19'!B1725 -> 235571677.5 | D7: 341067939.4 | E7: ='AFR19'!B1757 -> 603058632.3 | F7: 367486954.7
A8: Municipal Retirement/Social Security | B8: ='AFR19'!B1694 -> 271565231.5 | C8: ='AFR19'!B1726 -> 100926104.3 | D8: 170639127.2 | E8: ='AFR19'!B1758 -> 268557489.5 | F8: 167631385.2
A9: Capital Improvements | B9: ='AFR19'!B1697 -> 11120377 | C9: ='AFR19'!B1729 -> 9398147.52 | D9: 1722229.48 | E9: ='AFR19'!B1761 -> 10323055 | F9: 924907.48
A10: Working Cash | B10: ='AFR19'!B1695 -> 67082029.22 | C10: ='AFR19'!B1727 -> 21921888.87 | D10: 45160140.35 | E10: ='AFR19'!B1759 -> 69681582.73 | F10: 47759693.86
A11: Tort Immunity | B11: ='AFR19'!B1698 -> 375494790.6 | C11: ='AFR19'!B1730 -> 144155256 | D11: 231339534.6 | E11: ='AFR19'!B1762 -> 382846099.7 | F11: 238690843.7
A12: Fire Prevention & Safety | B12: ='AFR19'!B1699 -> 54360956.08 | C12: ='AFR19'!B1731 -> 16526398.81 | D12: 37834557.27 | E12: ='AFR19'!B1763 -> 56480907.73 | F12: 39954508.92
A13: Leasing Levy | B13: ='AFR19'!B3671 -> 34116254 | C13: ='AFR19'!B3673 -> 6645034.61 | D13: 27471219.39 | E13: ='AFR19'!B3675 -> 34641935.42 | F13: 27996900.81
A14: Special Education | B14: ='AFR19'!B1700 -> 493657578.8 | C14: ='AFR19'!B1732 -> 231834517 | D14: 261823061.7 | E14: ='AFR19'!B1764 -> 514177114.3 | F14: 282342597.3 | G14: Field number 1741 did not pull in correctly, but formula worked and this is correct
A15: Area Vocational Construction | B15: ='AFR19'!B1702 -> 0 | C15: ='AFR19'!B1734 -> 0 | D15: 0 | E15: ='AFR19'!B1766 -> 10063 | F15: 10063
A16: Social Security/Medicare Only | B16: ='AFR19'!B3392 -> 294927920.8 | C16: ='AFR19'!B3394 -> 118643554.9 | D16: 176284365.9 | E16: ='AFR19'!B3396 -> 314046524.4 | F16: 195402969.5
A17: Summer School | B17: ='AFR19'!B4048 -> 0 | C17: ='AFR19'!B4052 -> 0 | D17: 0 | E17: ='AFR19'!B4056 -> 0 | F17: 0
A18: Other (Describe & Itemize) | B18: ='AFR19'!B4049 -> 444998936 | C18: ='AFR19'!B4053 -> 404754333 | D18: 40244603 | E18: ='AFR19'!B4057 -> 427450349.4 | F18: 22696016.41
A19: No Address | B19: ='AFR19'!B1705 -> 1.777344753e+10 | C19: ='AFR19'!B1737 -> 9158032318 | D19: 8615415213 | E19: ='AFR19'!B1769 -> 1.832042312e+10 | F19: 9162390802 | G19: Field number 1746 did not pull in correctly, but formula worked and this is correct
A21: * The formulas in column B are unprotected to be overidden when reporting on a ACCRUAL basis.
A22: ** All tax receipts for debt service payments on bonds must be recorded on line 6 (Debt Services).

Sheet Short-Term Long-Term Debt 24
A1: SCHEDULE OF SHORT-TERM DEBT
A2: Description | C2: Outstanding Beginning 7/01/18 | D2: Issued 7/01/18 Through 6/30/19 | E2: Retired 7/01/18 Through 6/30/19 | F2: Outstanding Ending 6/30/19
A3: CORPORATE PERSONAL PROPERTY REPLACEMENT TAX ANTICIPATION NOTES (CPPRT)
A4: Total CPPRT Notes | C4: ='AFR19'!B2673 -> 0 | D4: ='AFR19'!B2675 -> 0 | E4: ='AFR19'!B2677 -> 0 | F4: ='AFR19'!B2679 -> 0
A5: TAX ANTICIPATION WARRANTS (TAW)
A6: Educational Fund | C6: ='AFR19'!B1771 -> 10200350 | D6: ='AFR19'!B1785 -> 53325000 | E6: ='AFR19'!B1799 -> 61700350 | F6: =C6+D6-E6 -> 1825000
A7: Operations & Maintenance Fund | C7: ='AFR19'!B1772 -> 0 | D7: ='AFR19'!B1786 -> 0 | E7: ='AFR19'!B1800 -> 0 | F7: =C7+D7-E7 -> 0
A8: Debt Services - Construction | C8: ='AFR19'!B1775 -> 0 | D8: ='AFR19'!B1789 -> 0 | E8: ='AFR19'!B1803 -> 0 | F8: =C8+D8-E8 -> 0
A9: Debt Services - Working Cash | C9: ='AFR19'!B1776 -> 0 | D9: ='AFR19'!B1790 -> 0 | E9: ='AFR19'!B1804 -> 0 | F9: 0
A10: Debt Services - Refunding Bonds | C10: ='AFR19'!B1777 -> 0 | D10: ='AFR19'!B1791 -> 0 | E10: ='AFR19'!B1805 -> 0 | F10: 0
A11: Transportation Fund | C11: ='AFR19'!B1774 -> 1000000 | D11: ='AFR19'!B1788 -> 0 | E11: ='AFR19'!B1802 -> 1000000 | F11: 0
A12: Municipal Retirement/Social Security Fund | C12: ='AFR19'!B1773 -> 0 | D12: ='AFR19'!B1787 -> 0 | E12: ='AFR19'!B1801 -> 0 | F12: 0
A13: Fire Prevention & Safety Fund | C13: ='AFR19'!B3628 -> 0 | D13: ='AFR19'!B3630 -> 0 | E13: ='AFR19'!B3632 -> 0 | F13: 0
A14: Other - (Describe & Itemize) | C14: ='AFR19'!B1778 -> 0 | D14: ='AFR19'!B1792 -> 0 | E14: ='AFR19'!B1806 -> 0 | F14: 0
A15: Total TAWs | C15: =SUM(C6:C14) -> 11200350 | D15: =SUM(D6:D14) -> 53325000 | E15: =SUM(E6:E14) -> 62700350 | F15: =C15+D15-E15 -> 1825000
A16: TAX ANTICIPATION NOTES (TAN)
A17: Educational Fund | C17: ='AFR19'!B1780 -> 606350050 | D17: ='AFR19'!B1794 -> 1398855060 | E17: ='AFR19'!B1808 -> 1550905050 | F17: =C17+D17-E17 -> 454300060
A18: Operations & Maintenance Fund | C18: ='AFR19'!B1781 -> 80000 | D18: ='AFR19'!B1795 -> 100000 | E18: ='AFR19'!B1809 -> 80000 | F18: 100000
A19: Fire Prevention & Safety Fund | C19: ='AFR19'!B3629 -> 0 | D19: ='AFR19'!B3631 -> 0 | E19: ='AFR19'!B3633 -> 0 | F19: 0
A20: Other - (Describe & Itemize) | C20: ='AFR19'!B1782 -> 0 | D20: ='AFR19'!B1796 -> 0 | E20: ='AFR19'!B1810 -> 0 | F20: 0
A21: Total TANs | C21: =SUM(C17:C20) -> 606430050 | D21: =SUM(D17:D20) -> 1398955060 | E21: =SUM(E17:E20) -> 1550985050 | F21: 454400060
A22: TEACHERS'/EMPLOYEES' ORDERS (T/EO)
A23: Total T/EOs (Educational, Operations & Maintenance, & Transportation Funds) | C23: ='AFR19'!B1784 -> 0 | D23: ='AFR19'!B1798 -> 0 | E23: ='AFR19'!B1812 -> 0 | F23: 0
A24: GENERAL STATE-AID ANTICIPATION CERTIFICATES (GSAAC)
A25: Total GSAACs (All Funds) | C25: ='AFR19'!B2674 -> 0 | D25: ='AFR19'!B2676 -> 0 | E25: ='AFR19'!B2678 -> 0 | F25: 0
A26: OTHER SHORT-TERM BORROWING
A27: Total Other Short-Term Borrowing (Describe & Itemize) | C27: ='AFR19'!B6022 -> 8342254 | D27: ='AFR19'!B6023 -> 4590643 | E27: ='AFR19'!B6024 -> 7267344 | F27: 5665553
A29: SCHEDULE OF LONG-TERM DEBT
A30: Identification or Name of Issue | B30: Date of Issue (mm/dd/yy) | C30: Amount of Original Issue | D30: Type of Issue * | E30: Bonds Outstanding 7/1/18 | F30: Bonds Issued 7/01/18 thru 6/30/19 | G30: All Differences With page 8, line 25 | H30: Bonds Retired 7/1/18 thru 6/30/19 | I30: Bonds Outstanding 6/30/19 | J30: Amount to be Provided for Retirement of Bonds
I31: =SUM(E31:G31)-H31 -> 0
I32: =SUM(E32:G32)-H32 -> 0
I33: 0
I34: 0
I35: 0
I36: 0
I37: 0
I38: 0
I39: 0
I40: 0
I41: 0
I42: 0
I43: 0
I44: 0
I45: 0
I46: 0
I47: 0
I48: 0
C49: ='AFR19'!B7763 -> 19510827151 | E49: ='AFR19'!B1885 -> 2.157235716e+10 | F49: ='AFR19'!B1886 -> 2692013966 | G49: ='AFR19'!B4123 -> -379577762 | H49: ='AFR19'!B4119 -> 2147359252 | I49: 2.173743411e+10 | J49: ='AFR19'!B4118 -> 2.015912969e+10
A51: * Each type of bond issue must be identified separately with the amount:
A52: 1. Working Cash Fund Bonds | B52: 4. Fire Prevent, Safety, Environmental and Energy Bonds | E52: 7. Other
A53: 2. Funding Bonds | B53: 5. Tort Judgment Bonds | E53: 8. Other
A54: 3. Refunding Bonds | B54: 6. Building Bonds | E54: 9. Other
A56: ** This total must agree with Page 24, Line 8, 6/30/17 Annual Financial Report for all Local Education Agencies according to 23 Illinois Administrative Code - Part 100
A57: If more than one type of an individual bond issue, indicate percent of original issue that relates to each type.
A58: *** This total must equal the amount on Page 6, Line 22.

Sheet Rest Tax Levies-Tort Im 25
A1: SCHEDULE OF RESTRICTED LOCAL TAX LEVIES AND SELECTED REVENUE SOURCES
A2: Description | F2: Account No | G2: Tort Immunity a | H2: Special Education | I2: Area Vocational Construction | J2: School Facility Occupation Taxes b | K2: Driver Education
A3: Cash Basis Fund Balance as of July 1, 2018 | G3: ='AFR19'!B1894 -> 792378 | H3: ='AFR19'!B1917 -> 1663776 | I3: ='AFR19'!B1930 -> 0 | J3: ='AFR19'!B7654 -> 61220525 | K3: ='AFR19'!B7655 -> 4953186
A4: RECEIPTS:
A5: Ad Valorem Taxes Received by District | F5: 10, 20, 40 or 50-1100 | H5: ='AFR19'!B1918 -> 453613933 | I5: ='AFR19'!B1931 -> 0
A6: Earnings on Investments | F6: 10, 20, 40, 50 or 60-1500 | G6: ='AFR19'!B1896 -> 6420 | H6: ='AFR19'!B1919 -> 6573442 | I6: ='AFR19'!B1932 -> 0 | J6: ='AFR19'!B7656 -> 607024.47 | K6: ='AFR19'!B7657 -> 140271
A7: Drivers' Education Fees | F7: 10-1970 | K7: ='AFR19'!B7658 -> 7647179
A8: School Facility Occupation Tax Proceeds | F8: 30 or 60-1983 | J8: ='AFR19'!B7659 -> 111588421.7
A9: Driver Education | F9: 10 or 20-3370 | K9: ='AFR19'!B7660 -> 14389894
A10: Other Receipts (Describe & Itemize on tab "Itemization 32") | F10: -- | H10: ='AFR19'!B1920 -> 2422177 | I10: ='AFR19'!B1934 -> 0 | J10: ='AFR19'!B7661 -> 3373025 | K10: ='AFR19'!B7662 -> 370087
A11: Sale of Bonds | F11: 10, 20, 40 or 60-7200 | H11: ='AFR19'!B2053 -> 0 | I11: ='AFR19'!B1933 -> 0 | J11: ='AFR19'!B7663 -> 20143387
A12: Total Receipts | G12: =SUM(G5:G11) -> 6420 | H12: =SUM(H5:H11) -> 462609552 | I12: =SUM(I5:I11) -> 0 | J12: =SUM(J5:J11) -> 135711858.2 | K12: =SUM(K5:K11) -> 22547431
A13: DISBURSEMENTS:
A14: Instruction | F14: 10 or 50-1000 | H14: ='AFR19'!B7666 -> 448686861 | K14: ='AFR19'!B7667 -> 21467961
A15: Facilities Acquisition & Construction Services | F15: 20 or 60-2530 | H15: ='AFR19'!B1925 -> 542236 | I15: ='AFR19'!B1938 -> 0 | J15: ='AFR19'!B7668 -> 62063969.88 | K15: ='AFR19'!B7669 -> 205626
A16: Tort Immunity Services | F16: 10, 20, 40-2360-2370 | G16: ='AFR19'!B1901 -> 166181
A17: DEBT SERVICE
A18: Debt Services - Interest on Long-Term Debt | F18: 30-5200 | J18: ='AFR19'!B7670 -> 25157069
A19: Debt Services - Payments of Principal on Long-Term Debt (Lease/Purchase Principal Retired) | F19: 30-5300 | J19: ='AFR19'!B7671 -> 51169199
A20: Debt Services Other (Describe & Itemize on tab "Itemization 32") | F20: 30-5400 | J20: ='AFR19'!B7672 -> 139281
A21: Total Debt Services | J21: =SUM(J18:J20) -> 76465549
A22: Other Disbursements (Describe & Itemize on tab "Itemization 32") | F22: -- | H22: ='AFR19'!B1926 -> 14722058 | I22: ='AFR19'!B1939 -> 0 | J22: ='AFR19'!B7719 -> 1083459 | K22: ='AFR19'!B7675 -> 447498
A23: Total Disbursements | G23: =SUM(G14:G22) -> 166181 | H23: =SUM(H14:H22) -> 463951155 | I23: =SUM(I14:I22) -> 0 | J23: =SUM(J15,J21,J22) -> 139612977.9 | K23: =SUM(K14:K22) -> 22121085
A24: Ending Cash Basis Fund Balance as of June 30, 2019 | G24: =SUM(G3+G12)-G23 -> 632617 | H24: =(H3+H12)-H23 -> 322173 | I24: =(I3+I12)-I23 -> 0 | J24: =(J3+J12)-J23 -> 57319405.29 | K24: =(K3+K12)-K23 -> 5379532
A25: Reserved Fund Balance | F25: 714 | G25: ='AFR19'!B7680 -> 177686 | H25: ='AFR19'!B7681 -> 54806 | I25: ='AFR19'!B7682 -> 0 | J25: ='AFR19'!B7683 -> 37699212 | K25: ='AFR19'!B7684 -> 231810
A26: Unreserved Fund Balance | F26: 730 | G26: =G24-G25 -> 454931 | H26: =H24-H25 -> 267367 | I26: =I24-I25 -> 0 | J26: =J24-J25 -> 19620193.29 | K26: =K24-K25 -> 5147722
A28: SCHEDULE OF TORT IMMUNITY EXPENDITURES a
A30: Yes | C30: No | E30: Has the entity established an insurance reserve pursuant to 745 ILCS 10/9-103?
E31: If yes, list in the aggregate the following: | F31: Total Claims Payments: | G31: ='AFR19'!B4244 -> 447453
F32: Total Reserve Remaining: | G32: ='AFR19'!B4245 -> 0
A33: Using the following categories, list all other Tort Immunity expenditures not
A34: included in line 30 above. Include the total dollar amount for each category.
A35: Expenditures:
A36: Workers' Compensation Act and/or Workers' Occupational Disease Act | G36: ='AFR19'!B4246 -> 1685682
A37: Unemployment Insurance Act | G37: ='AFR19'!B4247 -> 107634
A38: Insurance (Regular or Self-Insurance) | G38: ='AFR19'!B4248 -> 1453213
A39: Risk Management and Claims Service | G39: ='AFR19'!B4249 -> 529760
A40: Judgments/Settlements | G40: ='AFR19'!B4250 -> 0
A41: Educational, Inspectional, Supervisory Services Related to Loss Prevention and/or Reduction | G41: ='AFR19'!B4251 -> 20510
A42: Reciprocal Insurance Payments (Insurance Code 72, 76, and 81) | G42: ='AFR19'!B4252 -> 0
A43: Legal Services | G43: ='AFR19'!B4253 -> 165223
A44: Principal and Interest on Tort Bonds | G44: ='AFR19'!B4254 -> 0
A46: a | B46: Schedules for Tort Immunity are to be completed only if expenditures have been reported in any fund other than the Tort Immunity Fund (80) during FY10 as a result of existing (restricted) fund balances
B47: in those other funds that are being spent down. Cell G6 above should include interest earnings only from these restricted tort immunity monies and only if reported in a fund other than Tort Immunity Fund (80).
A48: b | B48: 55 ILCS 5/5-1006.7

Sheet Cap Outlay Deprec 26
A1: Schedule of Capital Outlay and Depreciation | D1: * Statistical Information (This schedule must be completed)
A2: Description of Assets | B2: Acct # | C2: Beginning Cost 7/01/18 | D2: Additions: July 1, 2018 through June 30, 2019 | E2: Deletions 7/01/18 through 6/30/2019 | F2: Ending Cost 6/30/19 | G2: Life In Years | H2: Beginning Accumulated Depreciation 7/01/18 | I2: Additions: Depreciation Allowable 7/01/2018 through 06/30/2019 | J2: Deletions: Depreciation Deletions 7/01/2018 through 6/30/2019 | K2: Accumulated Depreciation 6-30-19 | L2: Ending Balance Undepreciated 6-30-19
A3: Works of Art & Historical Treasures | B3: 210 | C3: ='AFR19'!B6360 -> 83258 | D3: ='AFR19'!B6361 -> 0 | E3: ='AFR19'!B7536 -> 0 | F3: =C3+D3-E3 -> 83258 | H3: ='AFR19'!B7538 -> 3570 | I3: ='AFR19'!B7539 -> 1190 | J3: ='AFR19'!B7540 -> 0 | K3: =H3+I3-J3 -> 4760 | L3: =F3-K3 -> 78498
A4: Land | B4: 220
A5: Non-Depreciable Land | B5: 221 | C5: ='AFR19'!B1954 -> 1282099670 | D5: ='AFR19'!B1960 -> 32971017 | E5: ='AFR19'!B1966 -> 11535483 | F5: =C5+D5-E5 -> 1303535204 | L5: =F5-K5 -> 1303535204
A6: Depreciable Land | B6: 222 | C6: ='AFR19'!B7543 -> 32273917 | D6: ='AFR19'!B7544 -> 1513001 | E6: ='AFR19'!B7545 -> 34355 | F6: =C6+D6-E6 -> 33752563 | G6: 50 | H6: ='AFR19'!B7547 -> 9359926 | I6: ='AFR19'!B7548 -> 357193 | J6: ='AFR19'!B7549 -> 2634 | K6: =H6+I6-J6 -> 9714485 | L6: =F6-K6 -> 24038078
A7: Buildings | B7: 230
A8: Permanent Buildings | B8: 231 | C8: ='AFR19'!B1955 -> 4.178179088e+10 | D8: ='AFR19'!B1961 -> 1417249960 | E8: ='AFR19'!B1967 -> 82388548 | F8: =C8+D8-E8 -> 4.311665229e+10 | G8: 50 | H8: ='AFR19'!B1979 -> 1.650775623e+10 | I8: ='AFR19'!B1985 -> 985564920.5 | J8: ='AFR19'!B1991 -> 64096496 | K8: =H8+I8-J8 -> 1.742922466e+10 | L8: =F8-K8 -> 2.568742764e+10
A9: Temporary Buildings | B9: 232 | C9: ='AFR19'!B7552 -> 153958605 | D9: ='AFR19'!B7553 -> 8940241 | E9: ='AFR19'!B7554 -> 0 | F9: =C9+D9-E9 -> 162898846 | G9: 25 | H9: ='AFR19'!B7556 -> 57615290 | I9: ='AFR19'!B7557 -> 4523936.9 | J9: ='AFR19'!B7558 -> 0 | K9: =H9+I9-J9 -> 62139226.9 | L9: =F9-K9 -> 100759619.1
A10: Improvements Other than Buildings (Infrastructure) | B10: 240 | C10: ='AFR19'!B1956 -> 2312165135 | D10: ='AFR19'!B1962 -> 168587565 | E10: ='AFR19'!B1968 -> 23381969 | F10: =C10+D10-E10 -> 2457370731 | G10: 20 | H10: ='AFR19'!B1980 -> 1102719488 | I10: ='AFR19'!B1986 -> 104570087.8 | J10: ='AFR19'!B1992 -> 20977459 | K10: =H10+I10-J10 -> 1186312117 | L10: =F10-K10 -> 1271058614
A11: Capitalized Equipment | B11: 250
A12: 10 Yr Schedule | B12: 251 | C12: ='AFR19'!B1957 -> 3332685477 | D12: ='AFR19'!B1963 -> 211725169.6 | E12: ='AFR19'!B1969 -> 103939376.4 | F12: =C12+D12-E12 -> 3440471270 | G12: 10 | H12: ='AFR19'!B1981 -> 2596575179 | I12: ='AFR19'!B1987 -> 196579976 | J12: ='AFR19'!B1993 -> 101315694.4 | K12: =H12+I12-J12 -> 2691839461 | L12: =F12-K12 -> 748631809.4
A13: 5 Yr Schedule | B13: 252 | C13: ='AFR19'!B1958 -> 967358920 | D13: ='AFR19'!B1964 -> 79837210.89 | E13: ='AFR19'!B1970 -> 54407123 | F13: =C13+D13-E13 -> 992789007.9 | G13: 5 ** | H13: ='AFR19'!B1982 -> 743088153 | I13: ='AFR19'!B1988 -> 71613714.83 | J13: ='AFR19'!B1994 -> 54619557 | K13: =H13+I13-J13 -> 760082310.8 | L13: =F13-K13 -> 232706697.1
A14: 3 Yr Schedule | B14: 253 | C14: ='AFR19'!B7561 -> 50041411 | D14: ='AFR19'!B7562 -> 4375276 | E14: ='AFR19'!B7563 -> 8824692 | F14: =C14+D14-E14 -> 45591995 | G14: 3 | H14: ='AFR19'!B7565 -> 42219066 | I14: ='AFR19'!B7566 -> 4376433 | J14: ='AFR19'!B7567 -> 8492276 | K14: =H14+I14-J14 -> 38103223 | L14: =F14-K14 -> 7488772
A15: Construction in Progress | B15: 260 | C15: ='AFR19'!B3397 -> 1069368995 | D15: ='AFR19'!B3398 -> 1474828457 | E15: ='AFR19'!B3399 -> 827209918 | F15: =C15+D15-E15 -> 1716987534 | G15: -- | L15: =F15-K15 -> 1716987534
A16: Total Capital Assets | B16: 200 | C16: =SUM(C3:C15) -> 5.098182627e+10 | D16: =SUM(D3:D15) -> 3400027898 | E16: =SUM(E3:E15) -> 1111721464 | F16: =SUM(F3:F15) -> 5.32701327e+10 | H16: =SUM(H3:H15) -> 2.10593369e+10 | I16: =SUM(I3:I15) -> 1367587452 | J16: =SUM(J3:J15) -> 249504116.4 | K16: =H16+I16-J16 -> 2.217742024e+10 | L16: =F16-K16 -> 3.109271246e+10
A17: Non-Capitalized Equipment | B17: 700 | F17: ='AFR19'!B7570 -> 173544694 | G17: 10 | I17: ='AFR19'!B7571 -> 17354469.4
A18: Total Capital & Non-Capital Assets | C18: =SUM(C16:C17) -> 5.098182627e+10 | D18: =SUM(D16:D17) -> 3400027898 | E18: =SUM(E16:E17) -> 1111721464 | F18: =SUM(F16:F17) -> 5.34436774e+10 | H18: =SUM(H16:H17) -> 2.10593369e+10 | I18: =SUM(I16:I17) -> 1384941921 | J18: =SUM(J16:J17) -> 249504116.4 | K18: =SUM(K16:K17) -> 2.217742024e+10 | L18: =SUM(L16:L17) -> 3.109271246e+10
A20: * | B20: Valuation of Transpsortation Equipment must be shown at historical cost. Valuation of other equipment, buildings, and land improvement
B21: should be shown on a Historical Cost Basis or an acceptable approximation of cost. Columns C & H must agree with Columns F & K,
B22: 2016-2017 Annual Financial Report.
A23: ** | B23: Some items costing $500 or more may be depreciated over a life of approximately three years. For additional information
B24: regarding those items, refer to current instructions for completing pupil transportation reimbursements forms.

Sheet PCTC-OEPP 27-28
A1: ESTIMATED OPERATING EXPENSE PER PUPIL (OEPP)/PER CAPITA TUITION CHARGE (PCTC) COMPUTATIONS (2016-17)
A2: This schedule is completed for school districts only.
A4: Fund | B4: Sheet, Row | D4: ACCOUNT NO - TITLE | F4: Amount
A6: OPERATING EXPENSE PER PUPIL
A7: EXPENDITURES:
A8: ED | B8: Expenditures 15-22, L114 | D8: Total Expenditures | E8: $ | F8: ='Expenditures 15-22'!K114 -> 2.244558979e+10
A9: O&M | B9: Expenditures 15-22, L151 | D9: Total Expenditures | F9: ='Expenditures 15-22'!K151 -> 2332357527
A10: DS | B10: Expenditures 15-22, L174 | D10: Total Expenditures | F10: ='Expenditures 15-22'!K174 -> 2676022721
A11: TR | B11: Expenditures 15-22, L210 | D11: Total Expenditures | F11: ='Expenditures 15-22'!K210 -> 1252038638
A12: MR/SS | B12: Expenditures 15-22, L295 | D12: Total Expenditures | F12: ='Expenditures 15-22'!K295 -> 620058196.2
A13: TORT | B13: Expenditures 15-22, L342 | D13: Total Expenditures | F13: ='Expenditures 15-22'!K342 -> 380409103
D14: Total Expenditures | E14: $ | F14: =SUM(F8:F13) -> 2.970647598e+10
A16: LESS RECEIPTS/REVENUES OR DISBURSEMENTS/EXPENDITURES NOT APPLICABLE TO THE REGULAR K-12 PROGRAM:
A18: TR | B18: Revenues 9-14, L43, Col F | C18: ='Revenues 9-14'!B43 -> 1412 | D18: ='Revenues 9-14'!A43 -> Regular - Transp Fees from Other Districts (In State) | E18: $ | F18: ='Revenues 9-14'!F43 -> 15713989
A19: TR | B19: Revenues 9-14, L47, Col F | C19: ='Revenues 9-14'!B47 -> 1421 | D19: ='Revenues 9-14'!A47 -> Summer Sch - Transp. Fees from Pupils or Parents (In State) | F19: ='Revenues 9-14'!F47 -> 271078
A20: TR | B20: Revenues 9-14, L48, Col F | C20: ='Revenues 9-14'!B48 -> 1422 | D20: ='Revenues 9-14'!A48 -> Summer Sch - Transp. Fees from Other Districts (In State) | F20: ='Revenues 9-14'!F48 -> 0
A21: TR | B21: Revenues 9-14, L49, Col F | C21: ='Revenues 9-14'!B49 -> 1423 | D21: ='Revenues 9-14'!A49 -> Summer Sch - Transp. Fees from Other Sources (In State) | F21: ='Revenues 9-14'!F49 -> 0
A22: TR | B22: Revenues 9-14, L50 Col F | C22: ='Revenues 9-14'!B50 -> 1424 | D22: ='Revenues 9-14'!A50 -> Summer Sch - Transp. Fees from Other Sources (Out of State) | F22: ='Revenues 9-14'!F50 -> 0
A23: TR | B23: Revenues 9-14, L52, Col F | C23: ='Revenues 9-14'!B52 -> 1432 | D23: ='Revenues 9-14'!A52 -> CTE - Transp Fees from Other Districts (In State) | F23: ='Revenues 9-14'!F52 -> 17358
A24: TR | B24: Revenues 9-14, L56, Col F | C24: ='Revenues 9-14'!B56 -> 1442 | D24: ='Revenues 9-14'!A56 -> Special Ed - Transp Fees from Other Districts (In State) | F24: ='Revenues 9-14'!F56 -> 5026824
A25: TR | B25: Revenues 9-14, L59, Col F | C25: ='Revenues 9-14'!B59 -> 1451 | D25: ='Revenues 9-14'!A59 -> Adult - Transp Fees from Pupils or Parents (In State) | F25: ='Revenues 9-14'!F59 -> 1851
A26: TR | B26: Revenues 9-14, L60, Col F | C26: ='Revenues 9-14'!B60 -> 1452 | D26: ='Revenues 9-14'!A60 -> Adult - Transp Fees from Other Districts (In State) | F26: ='Revenues 9-14'!F60 -> 0
A27: TR | B27: Revenues 9-14, L61, Col F | C27: ='Revenues 9-14'!B61 -> 1453 | D27: ='Revenues 9-14'!A61 -> Adult - Transp Fees from Other Sources (In State) | F27: ='Revenues 9-14'!F61 -> 26081
A28: TR | B28: Revenues 9-14, L62, Col F | C28: ='Revenues 9-14'!B62 -> 1454 | D28: ='Revenues 9-14'!A62 -> Adult - Transp Fees from Other Sources (Out of State) | F28: ='Revenues 9-14'!F62 -> 564
A29: O&M | B29: Revenues 9-14, L149, Col D & F | C29: ='Revenues 9-14'!B149 -> 3410 | D29: ='Revenues 9-14'!A149 -> Adult Ed (from ICCB) | F29: =SUM('Revenues 9-14'!D149,'Revenues 9-14'!F149) -> 0
A30: O&M-TR | B30: Revenues 9-14, L150, Col D & F | C30: ='Revenues 9-14'!B150 -> 3499 | D30: ='Revenues 9-14'!A150 -> Adult Ed - Other (Describe & Itemize) | F30: =SUM('Revenues 9-14'!D150,'Revenues 9-14'!F150) -> 0
A31: O&M-TR | B31: Revenues 9-14, L211, Col D,F | C31: ='Revenues 9-14'!B211 -> 4600 | D31: ='Revenues 9-14'!A211 -> Fed - Spec Education - Preschool Flow-Through | F31: =SUM('Revenues 9-14'!D211,'Revenues 9-14'!F211) -> 1394
A32: O&M-TR | B32: Revenues 9-14, L212, Col D,F | C32: ='Revenues 9-14'!B212 -> 4605 | D32: ='Revenues 9-14'!A212 -> Fed - Spec Education - Preschool Discretionary | F32: =SUM('Revenues 9-14'!D212,'Revenues 9-14'!F212) -> 0
A33: O&M | B33: Revenues 9-14, L222, Col D | C33: ='Revenues 9-14'!B222 -> 4810 | D33: ='Revenues 9-14'!A222 -> Federal - Adult Education | F33: ='Revenues 9-14'!D222 -> 0
A34: ED | B34: Expenditures 15-22, L7, Col K - (G+I) | C34: ='Expenditures 15-22'!B7 -> 1125 | D34: ='Expenditures 15-22'!A7 -> Pre-K Programs | F34: ='Expenditures 15-22'!K7-SUM('Expenditures 15-22'!G7,'Expenditures 15-22'!I7) -> 270100578
A35: ED | B35: Expenditures 15-22, L9, Col K - (G+I) | C35: ='Expenditures 15-22'!B9 -> 1225 | D35: ='Expenditures 15-22'!A9 -> Special Education Programs Pre-K | F35: ='Expenditures 15-22'!K9-SUM('Expenditures 15-22'!G9,'Expenditures 15-22'!I9) -> 110136349
A36: ED | B36: Expenditures 15-22, L11, Col K - (G+I) | C36: ='Expenditures 15-22'!B11 -> 1275 | D36: ='Expenditures 15-22'!A11 -> Remedial and Support Programs Pre-K | F36: ='Expenditures 15-22'!K11-SUM('Expenditures 15-22'!G11,'Expenditures 15-22'!I11) -> 14404829
A37: ED | B37: Expenditures 15-22, L12, Col K - (G+I) | C37: ='Expenditures 15-22'!B12 -> 1300 | D37: ='Expenditures 15-22'!A12 -> Adult/Continuing Education Programs | F37: ='Expenditures 15-22'!K12-SUM('Expenditures 15-22'!G12,'Expenditures 15-22'!I12) -> 13175375
A38: ED | B38: Expenditures 15-22, L15, Col K - (G+I) | C38: ='Expenditures 15-22'!B15 -> 1600 | D38: ='Expenditures 15-22'!A15 -> Summer School Programs | F38: ='Expenditures 15-22'!K15-SUM('Expenditures 15-22'!G15,'Expenditures 15-22'!I15) -> 58004934
A39: ED | B39: Expenditures 15-22, L20, Col K | C39: ='Expenditures 15-22'!B20 -> 1910 | D39: ='Expenditures 15-22'!A20 -> Rentals | F39: ='Expenditures 15-22'!K20 -> 690857
A40: ED | B40: Expenditures 15-22, L21, Col K | C40: ='Expenditures 15-22'!B21 -> 1911 | D40: ='Expenditures 15-22'!A21 -> Regular K-12 Programs - Private Tuition | F40: ='Expenditures 15-22'!K21 -> 3431058
A41: ED | B41: Expenditures 15-22, L22, Col K | C41: ='Expenditures 15-22'!B22 -> 1912 | D41: ='Expenditures 15-22'!A22 -> Special Education Programs K-12 - Private Tuition | F41: ='Expenditures 15-22'!K22 -> 314685654
A42: ED | B42: Expenditures 15-22, L23, Col K | C42: ='Expenditures 15-22'!B23 -> 1913 | D42: ='Expenditures 15-22'!A23 -> Special Education Programs Pre-K - Tuition | F42: ='Expenditures 15-22'!K23 -> 264566
A43: ED | B43: Expenditures 15-22, L24, Col K | C43: ='Expenditures 15-22'!B24 -> 1914 | D43: ='Expenditures 15-22'!A24 -> Remedial/Supplemental Programs K-12 - Private Tuition | F43: ='Expenditures 15-22'!K24 -> 894541
A44: ED | B44: Expenditures 15-22, L25, Col K | C44: ='Expenditures 15-22'!B25 -> 1915 | D44: ='Expenditures 15-22'!A25 -> Remedial/Supplemental Programs Pre-K - Private Tuition | F44: ='Expenditures 15-22'!K25 -> 0
A45: ED | B45: Expenditures 15-22, L26, Col K | C45: ='Expenditures 15-22'!B26 -> 1916 | D45: ='Expenditures 15-22'!A26 -> Adult/Continuing Education Programs - Private Tuition | F45: ='Expenditures 15-22'!K26 -> 0
A46: ED | B46: Expenditures 15-22, L27, Col K | C46: ='Expenditures 15-22'!B27 -> 1917 | D46: ='Expenditures 15-22'!A27 -> CTE Programs - Private Tuition | F46: ='Expenditures 15-22'!K27 -> 1533615
A47: ED | B47: Expenditures 15-22, L28, Col K | C47: ='Expenditures 15-22'!B28 -> 1918 | D47: ='Expenditures 15-22'!A28 -> Interscholastic Programs - Private Tuition | F47: ='Expenditures 15-22'!K28 -> 0
A48: ED | B48: Expenditures 15-22, L29, Col K | C48: ='Expenditures 15-22'!B29 -> 1919 | D48: ='Expenditures 15-22'!A29 -> Summer School Programs - Private Tuition | F48: ='Expenditures 15-22'!K29 -> 1127695
A49: ED | B49: Expenditures 15-22, L30, Col K | C49: ='Expenditures 15-22'!B30 -> 1920 | D49: ='Expenditures 15-22'!A30 -> Gifted Programs - Private Tuition | F49: ='Expenditures 15-22'!K30 -> 62952
A50: ED | B50: Expenditures 15-22, L31, Col K | C50: ='Expenditures 15-22'!B31 -> 1921 | D50: ='Expenditures 15-22'!A31 -> Bilingual Programs - Private Tuition | F50: ='Expenditures 15-22'!K31 -> 15991
A51: ED | B51: Expenditures 15-22, L32, Col K | C51: ='Expenditures 15-22'!B32 -> 1922 | D51: ='Expenditures 15-22'!A32 -> Truants Alternative/Optional Ed Programs - Private Tuition | F51: ='Expenditures 15-22'!K32 -> 1241233
A52: ED | B52: Expenditures 15-22, L75, Col K - (G+I) | C52: ='Expenditures 15-22'!B75 -> 3000 | D52: Community Services | F52: ='Expenditures 15-22'!K75-('Expenditures 15-22'!G75+'Expenditures 15-22'!I75) -> 164652088.4
A53: ED | B53: Expenditures 15-22, L102, Col K | C53: ='Expenditures 15-22'!B102 -> 4000 | D53: ='Expenditures 15-22'!A102 -> Total Payments to Other District & Govt Units | F53: ='Expenditures 15-22'!K102 -> 752639020.8
A54: ED | B54: Expenditures 15-22, L114, Col G | C54: - | D54: Capital Outlay | F54: ='Expenditures 15-22'!G114 -> 178261567
A55: ED | B55: Expenditures 15-22, L114, Col I | C55: - | D55: Non-Capitalized Equipment | F55: ='Expenditures 15-22'!I114 -> 150356068
A56: O&M | B56: Expenditures 15-22, L130, Col K - (G+I) | C56: ='Expenditures 15-22'!B130 -> 3000 | D56: Community Services | F56: ='Expenditures 15-22'!K130-('Expenditures 15-22'!G130+'Expenditures 15-22'!I130) -> 315317
A57: O&M | B57: Expenditures 15-22, L139, Col K | C57: ='Expenditures 15-22'!B139 -> 4000 | D57: Payments to Other Govt Units (In State) | F57: ='Expenditures 15-22'!K139 -> 5128059
A58: O&M | B58: Expenditures 15-22, L151, Col G | C58: - | D58: Capital Outlay | F58: ='Expenditures 15-22'!G151 -> 336648964
A59: O&M | B59: Expenditures 15-22, L151, Col I | C59: - | D59: Non-Capitalized Equipment | F59: ='Expenditures 15-22'!I151 -> 12389543
A60: DS | B60: Expenditures 15-22, L160, Col K | C60: ='Expenditures 15-22'!B155 -> 4000 | D60: Payments to Other Govt Units (In State) | F60: ='Expenditures 15-22'!K155 -> 0
A61: DS | B61: Expenditures 15-22, L170, Col K | C61: ='Expenditures 15-22'!B170 -> 5300 | D61: Debt Service - Payments of Principal on Long-Term Debt | F61: ='Expenditures 15-22'!K170 -> 1592162767
A62: TR | B62: Expenditures 15-22, L185, Col K - (G+I) | C62: ='Expenditures 15-22'!B185 -> 3000 | D62: Community Services | F62: ='Expenditures 15-22'!K185-('Expenditures 15-22'!G185+'Expenditures 15-22'!I185) -> 206240
A63: TR | B63: Expenditures 15-22, L196, Col K | C63: ='Expenditures 15-22'!B196 -> 4000 | D63: Payments to Other Govt Units (In State) | F63: ='Expenditures 15-22'!K196 -> 14624269
A64: TR | B64: Expenditures 15-22, L206, Col K | C64: ='Expenditures 15-22'!B206 -> 5300 | D64: Debt Service - Payments of Principal on Long-Term Debt | F64: ='Expenditures 15-22'!K206 -> 14777034
A65: TR | B65: Expenditures 15-22, L210, Col G | C65: - | D65: Capital Outlay | F65: ='Expenditures 15-22'!G210 -> 67723085
A66: TR | B66: Expenditures 15-22, L210, Col I | C66: - | D66: Non-Capitalized Equipment | F66: ='Expenditures 15-22'!I210 -> 1423797
A67: MR/SS | B67: Expenditures 15-22, L216, Col K | C67: ='Expenditures 15-22'!B216 -> 1125 | D67: ='Expenditures 15-22'!A216 -> Pre-K Programs | F67: ='Expenditures 15-22'!K216 -> 5490910.03
A68: MR/SS | B68: Expenditures 15-22, L218, Col K | C68: ='Expenditures 15-22'!B218 -> 1225 | D68: ='Expenditures 15-22'!A218 -> Special Education Programs - Pre-K | F68: ='Expenditures 15-22'!K218 -> 3676885
A69: MR/SS | B69: Expenditures 15-22, L220, Col K | C69: ='Expenditures 15-22'!B220 -> 1275 | D69: ='Expenditures 15-22'!A220 -> Remedial and Supplemental Programs - Pre-K | F69: ='Expenditures 15-22'!K220 -> 481136
A70: MR/SS | B70: Expenditures 15-22, L221, Col K | C70: ='Expenditures 15-22'!B221 -> 1300 | D70: ='Expenditures 15-22'!A221 -> Adult/Continuing Education Programs | F70: ='Expenditures 15-22'!K221 -> 709696
A71: MR/SS | B71: Expenditures 15-22, L224, Col K | C71: ='Expenditures 15-22'!B224 -> 1600 | D71: ='Expenditures 15-22'!A224 -> Summer School Programs | F71: ='Expenditures 15-22'!K224 -> 1878772
A72: MR/SS | B72: Expenditures 15-22, L280, Col K | C72: ='Expenditures 15-22'!B280 -> 3000 | D72: Community Services | F72: ='Expenditures 15-22'!K280 -> 6389057.6
A73: MR/SS | B73: Expenditures 15-22, L285, Col K | C73: ='Expenditures 15-22'!B285 -> 4000 | D73: Total Payments to Other Govt Units | F73: ='Expenditures 15-22'!K285 -> 1833094
A74: Tort | B74: Expenditures 15-22, L344, Col K | C74: 4000 | D74: Total Payments to Other Govt Units | F74: ='Expenditures 15-22'!K334 -> 806600
D76: Total Deductions for OEPP Computation (Sum of Lines 18 - 74) | E76: $ | F76: =SUM(F18:F74) -> 4123403336
D77: Total Operating Expenses Regular K-12 (Line 14 minus Line 76) | F77: =(F14-F76) -> 2.558307264e+10
D78: 9 Month ADA from District Average Daily Attendance -Student Information System (SIS) in IWAS -preliminary ADA 2019-2020 | F78: ='AFR19'!B6020 -> 1771116.1
D79: Estimated OEPP (Line 77 divided by Line 78) | E79: $ | F79: =IF(F78>0,F77/F78,"Complete Line 78") -> 14444.60509
A81: PER CAPITA TUITION CHARGE
A83: LESS OFFSETTING RECEIPTS/REVENUES:
A84: TR | B84: Revenues 9-14, L42, Col F | C84: ='Revenues 9-14'!B42 -> 1411 | D84: ='Revenues 9-14'!A42 -> Regular -Transp Fees from Pupils or Parents (In State) | E84: $ | F84: ='Revenues 9-14'!F42 -> 7064759
A85: TR | B85: Revenues 9-14, L44, Col F | C85: ='Revenues 9-14'!B44 -> 1413 | D85: ='Revenues 9-14'!A44 -> Regular - Transp Fees from Other Sources (In State) | F85: ='Revenues 9-14'!F44 -> 1514448
A86: TR | B86: Revenues 9-14, L45, Col F | C86: ='Revenues 9-14'!B45 -> 1415 | D86: ='Revenues 9-14'!A45 -> Regular - Transp Fees from Co-curricular Activities (In State) | F86: ='Revenues 9-14'!F45 -> 5432092
A87: TR | B87: Revenues 9-14, L46, Col F | C87: 1416 | D87: ='Revenues 9-14'!A46 -> Regular Transp Fees from Other Sources (Out of State) | F87: ='Revenues 9-14'!F46 -> 39257
A88: TR | B88: Revenues 9-14, L51, Col F | C88: ='Revenues 9-14'!B51 -> 1431 | D88: ='Revenues 9-14'!A51 -> CTE - Transp Fees from Pupils or Parents (In State) | F88: ='Revenues 9-14'!F51 -> 76413
A89: TR | B89: Revenues 9-14, L53, Col F | C89: ='Revenues 9-14'!B53 -> 1433 | D89: ='Revenues 9-14'!A53 -> CTE - Transp Fees from Other Sources (In State) | F89: ='Revenues 9-14'!F53 -> 100
A90: TR | B90: Revenues 9-14, L54, Col F | C90: ='Revenues 9-14'!B54 -> 1434 | D90: ='Revenues 9-14'!A54 -> CTE - Transp Fees from Other Sources (Out of State) | F90: ='Revenues 9-14'!F54 -> 0
A91: TR | B91: Revenues 9-14, L55, Col F | C91: ='Revenues 9-14'!B55 -> 1441 | D91: ='Revenues 9-14'!A55 -> Special Ed - Transp Fees from Pupils or Parents (In State) | F91: ='Revenues 9-14'!F55 -> 27846
A92: TR | B92: Revenues 9-14, L57, Col F | C92: ='Revenues 9-14'!B57 -> 1443 | D92: ='Revenues 9-14'!A57 -> Special Ed - Transp Fees from Other Sources (In State) | F92: ='Revenues 9-14'!F57 -> 159020
A93: TR | B93: Revenues 9-14, L58, Col F | C93: ='Revenues 9-14'!B58 -> 1444 | D93: ='Revenues 9-14'!A58 -> Special Ed - Transp Fees from Other Sources (Out of State) | F93: ='Revenues 9-14'!F58 -> 0
A94: ED | B94: Revenues 9-14, L75, Col C | C94: 1600 | D94: ='Revenues 9-14'!A75 -> Total Food Service | F94: ='Revenues 9-14'!C75 -> 203990529.3
A95: ED-O&M | B95: Revenues 9-14, L82, Col C,D | C95: 1700 | D95: ='Revenues 9-14'!A82 -> Total District/School Activity Income | F95: =SUM('Revenues 9-14'!C82:D82) -> 122402014.6
A96: ED | B96: Revenues 9-14, L84, Col C | C96: ='Revenues 9-14'!B84 -> 1811 | D96: ='Revenues 9-14'!A84 -> Rentals - Regular Textbooks | F96: ='Revenues 9-14'!C84 -> 101696669
A97: ED | B97: Revenues 9-14, L87, Col C | C97: ='Revenues 9-14'!B87 -> 1819 | D97: ='Revenues 9-14'!A87 -> Rentals - Other (Describe & Itemize) | F97: ='Revenues 9-14'!C87 -> 2327450
A98: ED | B98: Revenues 9-14, L88, Col C | C98: ='Revenues 9-14'!B88 -> 1821 | D98: ='Revenues 9-14'!A88 -> Sales - Regular Textbooks | F98: ='Revenues 9-14'!C88 -> 1924657
A99: ED | B99: Revenues 9-14, L91, Col C | C99: ='Revenues 9-14'!B91 -> 1829 | D99: ='Revenues 9-14'!A91 -> Sales - Other (Describe & Itemize) | F99: ='Revenues 9-14'!C91 -> 888402
A100: ED | B100: Revenues 9-14, L92, Col C | C100: ='Revenues 9-14'!B92 -> 1890 | D100: ='Revenues 9-14'!A92 -> Other (Describe & Itemize) | F100: ='Revenues 9-14'!C92 -> 2465653
A101: ED-O&M | B101: Revenues 9-14, L95, Col C,D | C101: ='Revenues 9-14'!B95 -> 1910 | D101: ='Revenues 9-14'!A95 -> Rentals | F101: =SUM('Revenues 9-14'!C95:D95) -> 43356415
A102: ED-O&M-TR | B102: Revenues 9-14, L98, Col C,D,F | C102: ='Revenues 9-14'!B98 -> 1940 | D102: ='Revenues 9-14'!A98 -> Services Provided Other Districts | F102: =SUM('Revenues 9-14'!C98:D98,'Revenues 9-14'!F98) -> 13732682
A103: ED-O&M-DS-TR-MR/SS | B103: Revenues 9-14, L104, Col C,D,E,F,G | C103: ='Revenues 9-14'!B104 -> 1991 | D103: ='Revenues 9-14'!A104 -> Payment from Other Districts | F103: =SUM('Revenues 9-14'!C104:G104) -> 8605270
A104: ED | B104: Revenues 9-14, L106, Col C | C104: ='Revenues 9-14'!B106 -> 1993 | D104: ='Revenues 9-14'!A106 -> Other Local Fees | F104: =('Revenues 9-14'!C106) -> 65193454
A105: ED-O&M-TR | B105: Revenues 9-14, L132, Col C,D,F | C105: 3100 | D105: ='Revenues 9-14'!A132 -> Total Special Education | F105: =SUM('Revenues 9-14'!C132:D132,'Revenues 9-14'!F132) -> 223863052
A106: ED-O&M-MR/SS | B106: Revenues 9-14, L141, Col C,D,G | C106: 3200 | D106: ='Revenues 9-14'!A141 -> Total Career and Technical Education | F106: =SUM('Revenues 9-14'!C141:D141,'Revenues 9-14'!G141) -> 22508051
A107: ED-MR/SS | B107: Revenues 9-14, L145, Col C,G | C107: 3300 | D107: ='Revenues 9-14'!A145 -> Total Bilingual Ed | F107: =SUM('Revenues 9-14'!C145,'Revenues 9-14'!G145) -> 361289
A108: ED | B108: Revenues 9-14, L146, Col C | C108: ='Revenues 9-14'!B146 -> 3360 | D108: ='Revenues 9-14'!A146 -> State Free Lunch & Breakfast | F108: ='Revenues 9-14'!C146 -> 10388192.76
A109: ED-O&M-MR/SS | B109: Revenues 9-14, L147, Col C,D,G | C109: ='Revenues 9-14'!B147 -> 3365 | D109: ='Revenues 9-14'!A147 -> School Breakfast Initiative | F109: =SUM('Revenues 9-14'!C147:D147,'Revenues 9-14'!G147) -> 72316
A110: ED-O&M | B110: Revenues 9-14, L148,Col C,D | C110: ='Revenues 9-14'!B148 -> 3370 | D110: ='Revenues 9-14'!A148 -> Driver Education | F110: =SUM('Revenues 9-14'!C148:D148) -> 16895540
A111: ED-O&M-TR-MR/SS | B111: Revenues 9-14, L155, Col C,D,F,G | C111: 3500 | D111: ='Revenues 9-14'!A155 -> Total Transportation | F111: =SUM('Revenues 9-14'!C155:D155,'Revenues 9-14'!F155:G155) -> 704531216
A112: ED | B112: Revenues 9-14, L156, Col C | C112: ='Revenues 9-14'!B156 -> 3610 | D112: ='Revenues 9-14'!A156 -> Learning Improvement - Change Grants | F112: ='Revenues 9-14'!C156 -> 37313
A113: ED-O&M-TR-MR/SS | B113: Revenues 9-14, L157, Col C,D,F,G | C113: ='Revenues 9-14'!B157 -> 3660 | D113: ='Revenues 9-14'!A157 -> Scientific Literacy | F113: =SUM('Revenues 9-14'!C157:D157,'Revenues 9-14'!F157:G157) -> 6661
A114: ED-TR-MR/SS | B114: Revenues 9-14, L158, Col C,F,G | C114: ='Revenues 9-14'!B158 -> 3695 | D114: ='Revenues 9-14'!A158 -> Truant Alternative/Optional Education | F114: =SUM('Revenues 9-14'!C158,'Revenues 9-14'!F158:G158) -> 8198534
A115: ED-TR-MR/SS | B115: Revenues 9-14, L160, Col C,F,G | C115: ='Revenues 9-14'!B160 -> 3766 | D115: ='Revenues 9-14'!A160 -> Chicago General Education Block Grant | F115: =SUM('Revenues 9-14'!C160,'Revenues 9-14'!F160:G160) -> 0
A116: ED-TR-MR/SS | B116: Revenues 9-14, L161, Col C,F,G | C116: ='Revenues 9-14'!B161 -> 3767 | D116: ='Revenues 9-14'!A161 -> Chicago Educational Services Block Grant | F116: =SUM('Revenues 9-14'!C161,'Revenues 9-14'!F161:G161) -> 0
A117: ED-O&M-TR-MR/SS | B117: Revenues 9-14, L162, Col C,D,E,F,G | C117: ='Revenues 9-14'!B162 -> 3775 | D117: ='Revenues 9-14'!A162 -> School Safety & Educational Improvement Block Grant | F117: =SUM('Revenues 9-14'!C162:G162) -> 14502
A118: ED-O&M-TR-MR/SS | B118: Revenues 9-14, L163, Col C,D,E,F,G | C118: ='Revenues 9-14'!B163 -> 3780 | D118: ='Revenues 9-14'!A163 -> Technology - Learning Technology Centers | F118: =SUM('Revenues 9-14'!C163:G163) -> 18504
A119: ED-TR | B119: Revenues 9-14, L164, Col C,F | C119: ='Revenues 9-14'!B164 -> 3815 | D119: ='Revenues 9-14'!A164 -> State Charter Schools | F119: =SUM('Revenues 9-14'!C164,'Revenues 9-14'!F164) -> 5055
A120: O&M | B120: Revenues 9-14, L167, Col D | C120: ='Revenues 9-14'!B167 -> 3925 | D120: ='Revenues 9-14'!A167 -> School Infrastructure - Maintenance | F120: ='Revenues 9-14'!D167 -> 5000
A121: ED-O&M-DS-TR-MR/SS-Tort | B121: Revenues 9-14, L168, Col C-G,J | C121: ='Revenues 9-14'!B168 -> 3999 | D121: Other Restricted Revenue from State Sources | F121: =SUM('Revenues 9-14'!C168:G168,'Revenues 9-14'!J168) -> 41703653
A122: ED | B122: Revenues 9-14, L177, Col C | C122: ='Revenues 9-14'!B177 -> 4045 | D122: ='Revenues 9-14'!A177 & " (Subtract)" -> Head Start (Subtract) | F122: =SUM(-'Revenues 9-14'!C177) -> -47094105
A123: ED-O&M-TR-MR/SS | B123: Revenues 9-14, L181, Col C,D,F,G | C123: - | D123: =('Revenues 9-14'!A181) -> Total Restricted Grants-In-Aid Received Directly from Federal Govt | F123: =SUM('Revenues 9-14'!C181:D181,'Revenues 9-14'!F181:G181) -> 66048622.4
A124: ED-O&M-TR-MR/SS | B124: Revenues 9-14, L188, Col C,D,F,G | C124: - | D124: ='Revenues 9-14'!A188 -> Total Title VI | F124: =SUM('Revenues 9-14'!C188:D188,'Revenues 9-14'!F188:G188) -> 3144140
A125: ED-MR/SS | B125: Revenues 9-14, L198, Col C,G | C125: - | D125: ='Revenues 9-14'!A198 -> Total Food Service | F125: =SUM('Revenues 9-14'!C198,'Revenues 9-14'!G198) -> 600899642.8
A126: ED-O&M-TR-MR/SS | B126: Revenues 9-14, L204, Col C,D,F,G | C126: - | D126: ='Revenues 9-14'!A204 -> Total Title I | F126: =SUM('Revenues 9-14'!C204:D204,'Revenues 9-14'!F204:G204) -> 637207731
A127: ED-O&M-TR-MR/SS | B127: Revenues 9-14, L209, Col C,D,F,G | C127: - | D127: ='Revenues 9-14'!A209 -> Total Title IV | F127: =SUM('Revenues 9-14'!C209:D209,'Revenues 9-14'!F209:G209) -> 33917222
A128: ED-O&M-TR-MR/SS | B128: Revenues 9-14, L213, Col C,D,F,G | C128: ='Revenues 9-14'!B213 -> 4620 | D128: ='Revenues 9-14'!A213 -> Fed - Spec Education - IDEA - Flow Through | F128: =SUM('Revenues 9-14'!C213:D213,'Revenues 9-14'!F213:G213) -> 354692067.2
A129: ED-O&M-TR-MR/SS | B129: Revenues 9-14, L214, Col C,D,F,G | C129: ='Revenues 9-14'!B214 -> 4625 | D129: ='Revenues 9-14'!A214 -> Fed - Spec Education - IDEA - Room & Board | F129: =SUM('Revenues 9-14'!C214:D214,'Revenues 9-14'!F214:G214) -> 47306903.33
A130: ED-O&M-TR-MR/SS | B130: Revenues 9-14, L215, Col C,D,F,G | C130: ='Revenues 9-14'!B215 -> 4630 | D130: ='Revenues 9-14'!A215 -> Fed - Spec Education - IDEA - Discretionary | F130: =SUM('Revenues 9-14'!C215:D215,'Revenues 9-14'!F215:G215) -> 78881 | G130: 6297
A131: ED-O&M-TR-MR/SS | B131: Revenues 9-14, L216, Col C,D,F,G | C131: ='Revenues 9-14'!B216 -> 4699 | D131: ='Revenues 9-14'!A216 -> Fed - Spec Education - IDEA - Other (Describe & Itemize) | F131: =SUM('Revenues 9-14'!C216:D216,'Revenues 9-14'!F216:G216) -> 180732
A132: ED-O&M-MR/SS | B132: Revenues 9-14, L221, Col C,D,G | C132: 4700 | D132: ='Revenues 9-14'!A221 -> Total CTE - Perkins | F132: =SUM('Revenues 9-14'!C221:D221,'Revenues 9-14'!G221) -> 14621497 | G132: 6303
A133: ED-O&M-TR-MR/SS-Tort | B133: Revenue-L231, Col C,D,F,G | C133: 4851 | D133: ='Revenues 9-14'!A224 -> ARRA - Title I - Low Income | F133: =SUM('Revenues 9-14'!C224:D224,'Revenues 9-14'!F224:G224) -> 0
A134: ED-O&M-TR-MR/SS-Tort | B134: Revenue-L232, Col C,D,E,F,G,J | C134: 4852 | D134: ='Revenues 9-14'!A225 -> ARRA - Title I - Neglected, Private | F134: =SUM('Revenues 9-14'!C225:G225,'Revenues 9-14'!J225) -> 0
A135: ED-O&M-TR-MR/SS-Tort | B135: Revenue L233, Col C,D,E,F,G,J | C135: 4853 | D135: ='Revenues 9-14'!A226 -> ARRA - Title I - Delinquent, Private | F135: =SUM('Revenues 9-14'!C226:G226,'Revenues 9-14'!J226) -> 0
A136: ED-O&M-TR-MR/SS-Tort | B136: Revenue L234, Col C,D,E,F,G,J | C136: 4854 | D136: ='Revenues 9-14'!A227 -> ARRA A- Title I - School Improvement (Part A) | F136: =SUM('Revenues 9-14'!C227:G227,'Revenues 9-14'!J227) -> 177737
A137: ED-O&M-TR-MR/SS-Tort | B137: Revenue L235, Col C,D,E,F,G,J | C137: 4855 | D137: ='Revenues 9-14'!A228 -> ARRA - Title I - School Improvement (Part G) | F137: =SUM('Revenues 9-14'!C228:G228,'Revenues 9-14'!J228) -> 0
A139: ED-O&M-TR-MR/SS-Tort | B139: Revenue L237, Col C,D,E,F,G,J | C139: 4857 | D139: ='Revenues 9-14'!A230 -> ARRA - IDEA - Part B - Flow-Through | F139: =SUM('Revenues 9-14'!C230:G230,'Revenues 9-14'!J230) -> 24992
A140: ED-O&M-TR-MR/SS-Tort | B140: Revenue L238, Col C,D,E,F,G,J | C140: 4860 | D140: ='Revenues 9-14'!A231 -> ARRA - Title IID - Technology-Formula | F140: =SUM('Revenues 9-14'!C231:G231,'Revenues 9-14'!J231) -> 0
A141: ED-O&M-TR-MR/SS-Tort | B141: Revenue L239, Col C,D,E,F,G,J | C141: 4861 | D141: ='Revenues 9-14'!A232 -> ARRA - Title IID - Technology-Competitive | F141: =SUM('Revenues 9-14'!C232:G232,'Revenues 9-14'!J232) -> 0
A142: ED-O&M-TR-MR/SS | B142: Revenue L240, Col C, D,F,G | C142: 4862 | D142: ='Revenues 9-14'!A233 -> ARRA - McKinney - Vento Homeless Education | F142: =SUM('Revenues 9-14'!C233:D233,'Revenues 9-14'!F233:G233) -> 1102
A143: ED-O&M-TR-MR/SS-Tort | B143: Revenue L244, Col C,D,E,F,G,J | C143: 4866 | D143: ='Revenues 9-14'!A237 -> Qualified Zone Academy Bond Tax Credits | F143: =SUM('Revenues 9-14'!C237:G237,'Revenues 9-14'!J237) -> 1525196
A144: ED-O&M-TR-MR/SS-Tort | B144: Revenue L245, Col C,D,E,F,G,J | C144: 4867 | D144: ='Revenues 9-14'!A238 -> Qualified School Construction Bond Credits | F144: =SUM('Revenues 9-14'!C238:G238,'Revenues 9-14'!J238) -> 13557871
A145: ED-O&M-TR-MR/SS-Tort | B145: Revenue L246, Col C,D,E,F,G,J | C145: 4868 | D145: ='Revenues 9-14'!A239 -> Build America Bond Tax Credits | F145: =SUM('Revenues 9-14'!C239:G239,'Revenues 9-14'!J239) -> 1983309
A146: ED-O&M-TR-MR/SS-Tort | B146: Revenue L247, Col C,D,E,F,G,J | C146: 4869 | D146: ='Revenues 9-14'!A240 -> Build America Bond Interest Reimbursement | F146: =SUM('Revenues 9-14'!C240:G240,'Revenues 9-14'!J240) -> 33626284
A147: ED-O&M-TR-MR/SS-Tort | B147: Revenue L249, Col C,D,E,F,G,J | C147: 4871 | D147: ='Revenues 9-14'!A242 -> Other ARRA Funds - II | F147: =SUM('Revenues 9-14'!C242:G242,'Revenues 9-14'!J242) -> 0
A148: ED-O&M-TR-MR/SS-Tort | B148: Revenue L250, Col C,D,E,F,G,J | C148: 4872 | D148: ='Revenues 9-14'!A243 -> Other ARRA Funds - III | F148: =SUM('Revenues 9-14'!C243:G243,'Revenues 9-14'!J243) -> 0
A149: ED-O&M-TR-MR/SS-Tort | B149: Revenue L251, Col C,D,E,F,G,J | C149: 4873 | D149: ='Revenues 9-14'!A244 -> Other ARRA Funds - IV | F149: =SUM('Revenues 9-14'!C244:G244,'Revenues 9-14'!J244) -> 0
A150: ED-O&M-TR-MR/SS-Tort | B150: Revenue L252, Col C,D,E,F,G,J | C150: 4874 | D150: ='Revenues 9-14'!A245 -> Other ARRA Funds - V | F150: =SUM('Revenues 9-14'!C245:G245,'Revenues 9-14'!J245) -> 0
A151: ED-O&M-TR-MR/SS-Tort | B151: Revenue L253, Col C,D,E,F,G,J | C151: 4875 | D151: ='Revenues 9-14'!A246 -> ARRA - Early Childhood
A152: ED-O&M-TR-MR/SS-Tort | B152: Revenue L254, Col C,D,E,F,G,J | C152: 4876 | D152: ='Revenues 9-14'!A247 -> Other ARRA Funds VII | F152: =SUM('Revenues 9-14'!C247:G247,'Revenues 9-14'!J247) -> 0
A153: ED-O&M-TR-MR/SS-Tort | B153: Revenue L255, Col C,D,E,F,G,J | C153: 4877 | D153: ='Revenues 9-14'!A248 -> Other ARRA Funds VIII | F153: =SUM('Revenues 9-14'!C248:G248,'Revenues 9-14'!J248) -> 0
A154: ED-O&M-TR-MR/SS-Tort | B154: Revenue L256, Col C,D,E,F,G,J | C154: 4878 | D154: ='Revenues 9-14'!A249 -> Other ARRA Funds IX | F154: =SUM('Revenues 9-14'!C249:G249,'Revenues 9-14'!J249) -> 0
A155: ED-O&M-TR-MR/SS-Tort | B155: Revenue L257, Col C,D,E,F,G,J | C155: 4879 | D155: ='Revenues 9-14'!A250 -> Other ARRA Funds X | F155: =SUM('Revenues 9-14'!C250:G250,'Revenues 9-14'!J250) -> 0
A156: ED-O&M-TR-MR/SS-Tort | B156: Revenue L258, Col C,D,E,F,G,J | C156: 4880 | D156: ='Revenues 9-14'!A251 -> Other ARRA Funds XI | F156: =SUM('Revenues 9-14'!C251:G251,'Revenues 9-14'!J251) -> 13
A157: ED-O&M-TR-MR/SS-Tort | B157: Revenue Adjustments (C224-J251) | C157: 4800 | D157: Total ARRA Program Adjustments | F157: =SUM(F133:F156) -> 50896504
A158: ED | B158: Revenues 9-14, L253, Col C | C158: 4901 | D158: Race to the Top | F158: ='Revenues 9-14'!C253 -> 0
A159: ED-O&M-TR-MR/SS | B159: Revenues 9-14, L254, Col C,D,F,G | C159: 4902 | D159: Race to the Top-Preschool Expansion Grant | F159: =SUM('Revenues 9-14'!C254:D254,'Revenues 9-14'!F254:G254) -> 12870426
A160: ED-O&M-TR-MR/SS-Tort | B160: Revenues 9-14, L255, Col C,F,G | C160: 4905 | D160: ='Revenues 9-14'!A255 -> Title III - Immigrant Education Program (IEP) | F160: =SUM('Revenues 9-14'!C255,'Revenues 9-14'!F255,'Revenues 9-14'!G255) -> 1557473
A161: ED-TR-MR/SS | B161: Revenues 9-14, L256, Col C,F,G | C161: ='Revenues 9-14'!B256 -> 4909 | D161: ='Revenues 9-14'!A256 -> Title III - English Language Acquisition | F161: =SUM('Revenues 9-14'!C256,'Revenues 9-14'!F256:G256) -> 24639184
A162: ED-O&M-TR-MR/SS | B162: Revenues 9-14, L257, Col C,D,F,G | C162: ='Revenues 9-14'!B257 -> 4920 | D162: ='Revenues 9-14'!A257 -> McKinney Education for Homeless Children | F162: =SUM('Revenues 9-14'!C257:D257,'Revenues 9-14'!F257:G257) -> 1001760
A163: ED-O&M-TR-MR/SS | B163: Revenues 9-14, L258, Col C,D,F,G | C163: ='Revenues 9-14'!B258 -> 4930 | D163: ='Revenues 9-14'!A258 -> Title II - Eisenhower Professional Development Formula | F163: =SUM('Revenues 9-14'!C258:D258,'Revenues 9-14'!F258:G258) -> 465614
A164: ED-O&M-TR-MR/SS | B164: Revenues 9-14, L259, Col C,D,F,G | C164: ='Revenues 9-14'!B259 -> 4932 | D164: ='Revenues 9-14'!A259 -> Title II - Teacher Quality | F164: =SUM('Revenues 9-14'!C259:D259,'Revenues 9-14'!F259:G259) -> 70396835
A165: ED-O&M-TR-MR/SS | B165: Revenues 9-14, L260, Col C,D,F,G | C165: ='Revenues 9-14'!B260 -> 4960 | D165: ='Revenues 9-14'!A260 -> Federal Charter Schools | F165: =SUM('Revenues 9-14'!C260:D260,'Revenues 9-14'!F260:G260) -> 237596
A166: ED-O&M-TR-MR/SS | B166: Revenues 9-14, L261, Col C,D,F,G | C166: ='[1]Revenues 9-14'!B261 -> 4981 | D166: ='[1]Revenues 9-14'!A261 -> State Assessment Grants | F166: ='Revenues 9-14'!C261:G261 -> 0
A167: ED-O&M-TR-MR/SS | B167: Revenues 9-14, L262, Col C,D,F,G | C167: ='[1]Revenues 9-14'!B262 -> 4982 | D167: ='[1]Revenues 9-14'!A262 -> Grant for State Assessments and Related Activities | F167: ='Revenues 9-14'!C262:G262 -> 0
A168: ED-O&M-TR-MR/SS | B168: Revenues 9-14, L263, Col C,D,F,G | C168: ='Revenues 9-14'!B263 -> 4991 | D168: ='Revenues 9-14'!A263 -> Medicaid Matching Funds - Administrative Outreach | F168: =SUM('Revenues 9-14'!C263:D263,'Revenues 9-14'!F263:G263) -> 38061129.5 | G168: 6320
A169: ED-O&M-TR-MR/SS | B169: Revenues 9-14, L264, Col C,D,F,G | C169: ='Revenues 9-14'!B264 -> 4992 | D169: ='Revenues 9-14'!A264 -> Medicaid Matching Funds - Fee-for-Service Program | F169: =SUM('Revenues 9-14'!C264:D264,'Revenues 9-14'!F264:G264) -> 110571398.1
A170: ED-O&M-TR-MR/SS | B170: Revenues 9-14, L265, Col C,D,F,G | C170: ='Revenues 9-14'!B265 -> 4998 | D170: ='Revenues 9-14'!A265 -> Other Restricted Revenue from Federal Sources (Describe & Itemize) | F170: =SUM('Revenues 9-14'!C265:D265,'Revenues 9-14'!F265:G265) -> 29446282
A171: ED-TR-MR/SS | B171: Revenues (Part of EBF Payment) | C171: 3100 | D171: Special Education Contributions from EBF Funds ** | F171: ='AFR19'!B7764 -> 814021083
A172: ED-MR/SS | B172: Revenues (Part of EBF Payment) | C172: 3300 | D172: English Learning (Bilingual) Contributions from EBF Funds *** | F172: ='AFR19'!B7765 -> 104699609
D174: Total Deductions for PCTC Computation (Line 84 through Line 172) | F174: =SUM(F84:F172) -> 4630270741
D175: Net Operating Expense for Tuition Computation (Line 77 minus Line 174) | F175: =SUM(F77-F174) -> 2.09528019e+10
D176: Total Depreciation Allowance (frm page 26, Line 18, Col I) | F176: ='Cap Outlay Deprec 26'!I18 -> 1384941921
D177: Total Allowance for PCTC Computation (Line 175 plus 176) | F177: =F175+F176 -> 2.233774382e+10
D178: =D78 -> 9 Month ADA from District Average Daily Attendance -Student Information System (SIS) in IWAS -preliminary ADA 2019-2020 | F178: ='PCTC-OEPP 27-28'!F78 -> 1771116.1
D179: Total Estimated PCTC (Line 177 divided by Line 178) | F179: =F177/F178 -> 12612.24141
G180: 6326

Sheet AFR19 (hidden)
C1: ORIGINAL ADDRESS | D1: DIFFERENCE | E1: WARNING
A2: i | B2: 99-999-9999-99 | C2: =COVER!A13 -> 99-999-9999-99
A3: i | B3: 2018-19 State Totals - SD Only | C3: =COVER!A17 -> 2018-19 State Totals - SD Only
A4: i
A5: i | B5: X
A6: i
A7: i | B7: X | M7: txtFieldNum | N7: 2019
A8: 1 | B8: 0 | D8: =B8-C8 -> 0 | E8: =IF((D8 = 0),"OK",IF((D8<-5),"CHECK ME!",IF((D8>5),"Check Me!","OK"))) -> OK | M8: 103 | N8: 893674
A9: 2 | B9: 0 | D9: 0 | E9: OK | M9: 1032 | N9: 9302587072
A10: 3 | B10: 0 | D10: 0 | E10: OK | M10: 1033 | N10: 64611381
A11: 4 | B11: 4730386878 | C11: ='Assets-Liab 5-6'!C6 -> 4730386878 | D11: 0 | E11: OK | M11: 1039 | N11: 470563525.3
A12: 5 | B12: 0 | D12: 0 | E12: OK | M12: 1043 | N12: 13200086
A13: 6 | B13: 0 | D13: 0 | E13: OK | M13: 1044 | N13: 249057350
A14: 7 | B14: 0 | D14: 0 | E14: OK | M14: 1045 | N14: 420678810
A15: 8 | B15: 0 | D15: 0 | E15: OK | M15: 1046 | N15: 58119293
A16: 9 | B16: 0 | D16: 0 | E16: OK | M16: 1047 | N16: 1.506024415e+10
A17: 10 | B17: 0 | D17: 0 | E17: OK | M17: 1048 | N17: 364444348.8
A18: 11 | B18: 11601686 | C18: ='Assets-Liab 5-6'!C10 -> 11601686 | D18: 0 | E18: OK | M18: 1049 | N18: 411909294
A19: 12 | B19: 2144597017 | C19: ='Assets-Liab 5-6'!C5 -> 2144597017 | D19: 0 | E19: OK | M19: 105 | N19: 262659001
A20: 13 | B20: 0 | D20: 0 | E20: OK | M20: 1050 | N20: 231931825.1
A21: 14 | B21: 0 | D21: 0 | E21: OK | M21: 1051 | N21: 164978377
A22: 15 | B22: 7860108 | C22: ='Assets-Liab 5-6'!C12 -> 7860108 | D22: 0 | E22: OK | M22: 1052 | N22: 274727631
A23: 16 | B23: 14336826497 | C23: ='Assets-Liab 5-6'!C13 -> 14336826497 | D23: 0 | E23: OK | M23: 1053 | N23: 110641293.2
A24: 17 | B24: 0 | D24: 0 | E24: OK | M24: 1054 | N24: 1558632769
A25: 18 | B25: 0 | D25: 0 | E25: OK | M25: 1055 | N25: 572188021
A26: 19 | B26: 0 | D26: 0 | E26: OK | M26: 1056 | N26: 401242814.4
A27: 20 | B27: 0 | D27: 0 | E27: OK | M27: 1057 | N27: 50211929.02
A28: 21 | B28: 0 | D28: 0 | E28: OK | M28: 1058 | N28: 1023642764
A29: 22 | B29: 0 | D29: 0 | E29: OK | M29: 1059 | N29: 213315245
A30: 23 | B30: 0 | D30: 0 | E30: OK | M30: 1060 | N30: 240405273
A31: 24 | B31: 0 | D31: 0 | E31: OK | M31: 1061 | N31: 579093736.1
A32: 25 | B32: 125255861 | C32: ='Assets-Liab 5-6'!C31 -> 125255861 | D32: 0 | E32: OK | M32: 1062 | N32: 1162954460
A33: 26 | B33: 0 | D33: 0 | E33: OK | M33: 1063 | N33: 61191520
A34: 27 | B34: 4458840163 | C34: ='Assets-Liab 5-6'!C32 -> 4458840163 | D34: 0 | E34: OK | M34: 1064 | N34: 1224145980
A35: 28 | B35: 0 | D35: 0 | E35: OK | M35: 1065 | N35: 72800957.93
A36: 29 | B36: 0 | D36: 0 | E36: OK | M36: 1066 | N36: 182439281.4
A37: 30 | B37: 6164815461 | C37: ='Assets-Liab 5-6'!C34 -> 6164815461 | D37: 0 | E37: OK | M37: 1067 | N37: 233406129.8
A38: 31 | B38: 7874115804 | C38: ='Assets-Liab 5-6'!C39 -> 7874115804 | D38: 0 | E38: OK | M38: 1068 | N38: 137007752.3
A39: 32 | B39: 1.43368265e+10 | C39: ='Assets-Liab 5-6'!C41 -> 1.43368265e+10 | D39: 0 | E39: OK | M39: 1069 | N39: 781937175.7
A40: 33 | B40: 0 | D40: 0 | E40: OK | M40: 1070 | N40: 30658429
A41: 34 | B41: 0 | D41: 0 | E41: OK | M41: 1072 | N41: 1438249726
A42: 35 | B42: 0 | D42: 0 | E42: OK | M42: 1073 | N42: 16551486
A43: 36 | B43: 510303177 | C43: ='Assets-Liab 5-6'!D6 -> 510303177 | D43: 0 | E43: OK | M43: 1074 | N43: 29492691
A44: 37 | B44: 0 | D44: 0 | E44: OK | M44: 1075 | N44: 62269040.9
A45: 38 | B45: 0 | D45: 0 | E45: OK | M45: 1076 | N45: 116360448
A46: 39 | B46: 0 | D46: 0 | E46: OK | M46: 1078 | N46: 361923053
A47: 40 | B47: 0 | D47: 0 | E47: OK | M47: 108 | N47: 321223348
A48: 41 | B48: 0 | D48: 0 | E48: OK | M48: 1080 | N48: 586596718.9
A49: 42 | B49: 0 | D49: 0 | E49: OK | M49: 1081 | N49: 45770087.39
A50: 43 | B50: 146411 | C50: ='Assets-Liab 5-6'!D10 -> 146411 | D50: 0 | E50: OK | M50: 1082 | N50: 6456131781
A51: 44 | B51: 353955928 | C51: ='Assets-Liab 5-6'!D5 -> 353955928 | D51: 0 | E51: OK | M51: 1083 | N51: 167249497.8
A52: 45 | B52: 0 | D52: 0 | E52: OK | M52: 1084 | N52: 752639020.8
A53: 46 | B53: 0 | D53: 0 | E53: OK | M53: 1085 | N53: 504030
A54: 47 | B54: 286148 | C54: ='Assets-Liab 5-6'!D12 -> 286148 | D54: 0 | E54: OK | M54: 1086 | N54: 93979
A55: 48 | B55: 2031268272 | C55: ='Assets-Liab 5-6'!D13 -> 2031268272 | D55: 0 | E55: OK | M55: 1088 | N55: 288364
A56: 49 | B56: 0 | D56: 0 | E56: OK | M56: 109 | N56: 723554211
A57: 50 | B57: 0 | D57: 0 | E57: OK | M57: 1090 | N57: 7545456
A58: 51 | B58: 0 | D58: 0 | E58: OK | M58: 1091 | N58: 2.244558979e+10
A59: 52 | B59: 0 | D59: 0 | E59: OK | M59: 1092 | N59: 881916175.6
A60: 53 | B60: 0 | D60: 0 | E60: OK | M60: 11 | N60: 11601686
A61: 54 | B61: 0 | D61: 0 | E61: OK | M61: 110 | N61: 1243320780
A62: 55 | B62: 0 | D62: 0 | E62: OK | M62: 112 | N62: 171511446
A63: 56 | B63: 1025851 | C63: ='Assets-Liab 5-6'!D31 -> 1025851 | D63: 0 | E63: OK | M63: 1158 | N63: 2753479
A64: 57 | B64: 0 | D64: 0 | E64: OK | M64: 1159 | N64: 1174921
A65: 58 | B65: 558592347 | C65: ='Assets-Liab 5-6'!D32 -> 558592347 | D65: 0 | E65: OK | M65: 116 | N65: 114270042
A66: 59 | B66: 0 | D66: 0 | E66: OK | M66: 1160 | N66: 607070485.4
A67: 60 | B67: 0 | D67: 0 | E67: OK | M67: 1162 | N67: 611116259.4
A68: 61 | B68: 652998745 | C68: ='Assets-Liab 5-6'!D34 -> 652998745 | D68: 0 | E68: OK | M68: 1163 | N68: 998442
A69: 62 | B69: 1163660705 | C69: ='Assets-Liab 5-6'!D39 -> 1163660705 | D69: 0 | E69: OK | M69: 1164 | N69: 612250856.4
A70: 63 | B70: 2031268272 | C70: ='Assets-Liab 5-6'!D41 -> 2031268272 | D70: 0 | E70: OK | M70: 1165 | N70: 612524386.4
A71: 64 | B71: 0 | D71: 0 | E71: OK | M71: 1166 | N71: 412604
A72: 65 | B72: 448723134 | C72: ='Assets-Liab 5-6'!E6 -> 448723134 | D72: =B72-C72 -> 0 | E72: =IF((D72 = 0),"OK",IF((D72<-5),"CHECK ME!",IF((D72>5),"Check Me!","OK"))) -> OK | M72: 1167 | N72: 132274
A73: 66 | B73: 0 | D73: 0 | E73: OK | M73: 1168 | N73: 121271938.3
A74: 67 | B74: 0 | D74: 0 | E74: OK | M74: 1170 | N74: 121852134.3
A75: 68 | B75: 189814038 | C75: ='Assets-Liab 5-6'!E5 -> 189814038 | D75: 0 | E75: OK | M75: 1171 | N75: 277959
A76: 69 | B76: 12381853 | C76: ='Assets-Liab 5-6'!E12 -> 12381853 | D76: 0 | E76: OK | M76: 1172 | N76: 122150360.3
A77: 70 | B77: 2092822689 | C77: ='Assets-Liab 5-6'!E13 -> 2092822689 | D77: 0 | E77: OK | M77: 1173 | N77: 122150362.3
A78: 71 | B78: 0 | D78: 0 | E78: OK | M78: 1174 | N78: 1690219
A79: 72 | B79: 0 | D79: 0 | E79: OK | M79: 1175 | N79: 18050173
A80: 73 | B80: 455747781 | C80: ='Assets-Liab 5-6'!E32 -> 455747781 | D80: 0 | E80: OK | M80: 1176 | N80: 719134356.6
A81: 74 | B81: 0 | D81: 0 | E81: OK | M81: 1178 | N81: 738924021.6
A82: 75 | B82: 0 | D82: 0 | E82: OK | M82: 1179 | N82: 3517824
A83: 76 | B83: 0 | D83: 0 | E83: OK | M83: 118 | N83: 48004
A84: 77 | B84: 0 | D84: 0 | E84: OK | M84: 1180 | N84: 742509126.6
A85: 78 | B85: 467427422 | C85: ='Assets-Liab 5-6'!E34 -> 467427422 | D85: 0 | E85: OK | M85: 1181 | N85: 745124442.6
A86: 79 | B86: 586540518 | C86: ='Assets-Liab 5-6'!E39 -> 586540518 | D86: 0 | E86: OK | M86: 1182 | N86: 49789
A87: 80 | B87: 2092822689 | C87: ='Assets-Liab 5-6'!E41 -> 2092822689 | D87: 0 | E87: OK | M87: 1183 | N87: 603073
A88: 81 | B88: 0 | D88: 0 | E88: OK | M88: 1184 | N88: 492765168.1
A89: 82 | B89: 0 | D89: 0 | E89: OK | M89: 1186 | N89: 493522818.1
A90: 83 | B90: 0 | D90: 0 | E90: OK | M90: 1187 | N90: 52501
A91: 84 | B91: 178845751 | C91: ='Assets-Liab 5-6'!F6 -> 178845751 | D91: 0 | E91: OK | M91: 1188 | N91: 493582228.1
A92: 85 | B92: 0 | D92: 0 | E92: OK | M92: 1189 | N92: 493601529.1
A93: 86 | B93: 0 | D93: 0 | E93: OK | M93: 119 | N93: 695092908
A94: 87 | B94: 0 | D94: 0 | E94: OK | M94: 1190 | N94: 379223
A95: 88 | B95: 0 | D95: 0 | E95: OK | M95: 1191 | N95: 141117626
A96: 89 | B96: 0 | D96: 0 | E96: OK | M96: 1192 | N96: 194590677
A97: 90 | B97: 0 | D97: 0 | E97: OK | M97: 1193 | N97: 461742
A98: 91 | B98: 0 | C98: ='Assets-Liab 5-6'!F10 -> 0 | D98: 0 | E98: OK | M98: 1195 | N98: 336550516
A99: 92 | B99: 210862565 | C99: ='Assets-Liab 5-6'!F5 -> 210862565 | D99: 0 | E99: OK | M99: 1196 | N99: 32331
A100: 93 | B100: 0 | D100: 0 | E100: OK | M100: 1197 | N100: 336597847
A101: 94 | B101: 0 | D101: 0 | E101: OK | M101: 1198 | N101: 336648964
A102: 95 | B102: 57200 | C102: ='Assets-Liab 5-6'!F12 -> 57200 | D102: 0 | E102: OK | M102: 1199 | N102: 41961
A103: 96 | B103: 1243320780 | C103: ='Assets-Liab 5-6'!F13 -> 1243320780 | D103: 0 | E103: OK | M103: 12 | N103: 2144597017
A104: 97 | B104: 0 | D104: 0 | E104: OK | M104: 1200 | N104: 410984
A105: 98 | B105: 0 | D105: 0 | E105: OK | M105: 1201 | N105: 5626340.06
A106: 99 | B106: 0 | D106: 0 | E106: OK | M106: 1203 | N106: 6079497.06
A107: 100 | B107: 0 | D107: 0 | E107: OK | M107: 1204 | N107: 8881
A108: 101 | B108: 0 | D108: 0 | E108: OK | M108: 1205 | N108: 6088378.06
A109: 102 | B109: 0 | D109: 0 | E109: OK | M109: 1206 | N109: 2535227
A110: 103 | B110: 893674 | C110: ='Assets-Liab 5-6'!F31 -> 893674 | D110: 0 | E110: OK | M110: 1209 | N110: 6602
A111: 104 | B111: 0 | D111: 0 | E111: OK | M111: 1211 | N111: 471810
A112: 105 | B112: 262659001 | C112: ='Assets-Liab 5-6'!F32 -> 262659001 | D112: 0 | E112: OK | M112: 1212 | N112: 9095415.06
A113: 106 | B113: 0 | D113: 0 | E113: OK | M113: 1213 | N113: 5341403
A114: 107 | B114: 0 | D114: 0 | E114: OK | M114: 1214 | N114: 163637993
A115: 108 | B115: 321223348 | C115: ='Assets-Liab 5-6'!F34 -> 321223348 | D115: 0 | E115: OK | M115: 1215 | N115: 2151365719
A116: 109 | B116: 723554211 | C116: ='Assets-Liab 5-6'!F39 -> 723554211 | D116: 0 | E116: OK | M116: 1216 | N116: 550725
A117: 110 | B117: 1243320780 | C117: ='Assets-Liab 5-6'!F41 -> 1243320780 | D117: 0 | E117: OK | M117: 1218 | N117: 2321204053
A118: 111 | B118: 0 | C118: 0 | D118: 0 | E118: OK | M118: 1219 | N118: 4941559
A119: 112 | B119: 171511446 | C119: ='Assets-Liab 5-6'!G6 -> 171511446 | D119: 0 | E119: OK | M119: 1220 | N119: 2326391224
A120: 113 | B120: 0 | D120: 0 | E120: OK | M120: 1221 | N120: 5128059
A121: 114 | B121: 0 | C121: 0 | D121: 0 | E121: OK | M121: 1224 | N121: 6602
A122: 115 | B122: 0 | C122: 0 | D122: 0 | E122: OK | M122: 1226 | N122: 471810
A123: 116 | B123: 114270042 | C123: ='Assets-Liab 5-6'!G5 -> 114270042 | D123: 0 | E123: OK | M123: 1227 | N123: 2332357527
A124: 117 | B124: 0 | C124: 0 | D124: 0 | E124: OK | M124: 1228 | N124: 88869472.8
A125: 118 | B125: 48004 | C125: ='Assets-Liab 5-6'!G12 -> 48004 | D125: 0 | E125: OK | M125: 123 | N125: 5294526
A126: 119 | B126: 695092908 | C126: ='Assets-Liab 5-6'!G13 -> 695092908 | D126: 0 | E126: OK | M126: 124 | N126: 177333434
A127: 120 | B127: 0 | D127: 0 | E127: OK | M127: 1246 | N127: 5486523
A128: 121 | B128: 0 | D128: 0 | E128: OK | M128: 1247 | N128: 5486523
A129: 122 | B129: 0 | D129: 0 | E129: OK | M129: 1248 | N129: 5486523
A130: 123 | B130: 5294526 | C130: ='Assets-Liab 5-6'!G31 -> 5294526 | D130: 0 | E130: OK | M130: 1249 | N130: 14405
A131: 124 | B131: 177333434 | C131: ='Assets-Liab 5-6'!G32 -> 177333434 | D131: 0 | E131: OK | M131: 1251 | N131: 1043044471
A132: 125 | B132: 0 | D132: 0 | E132: OK | M132: 1252 | N132: 541258
A133: 126 | B133: 0 | D133: 0 | E133: OK | M133: 1253 | N133: 2462232
A134: 127 | B134: 197424260 | C134: ='Assets-Liab 5-6'!G34 -> 197424260 | D134: 0 | E134: OK | M134: 1254 | N134: 1592162767
A135: 128 | B135: 331680656 | C135: ='Assets-Liab 5-6'!G39 -> 331680656 | D135: 0 | E135: OK | M135: 1255 | N135: 32761132
A136: 129 | B136: 695092908 | C136: ='Assets-Liab 5-6'!G41 -> 695092908 | D136: =B136-C136 -> 0 | E136: =IF((D136 = 0),"OK",IF((D136<-5),"CHECK ME!",IF((D136>5),"Check Me!","OK"))) -> OK | M136: 1256 | N136: 2670430602
A137: 130 | B137: 0 | D137: 0 | E137: OK | M137: 1257 | N137: 2670536198
A138: 131 | B138: 0 | D138: 0 | E138: OK | M138: 1262 | N138: 105596
A139: 132 | B139: 0 | D139: 0 | E139: OK | M139: 1263 | N139: 14405
A140: 133 | B140: 0 | D140: 0 | E140: OK | M140: 1265 | N140: 1043044471
A141: 134 | B141: 0 | D141: 0 | E141: OK | M141: 1266 | N141: 541258
A142: 135 | B142: 0 | D142: 0 | E142: OK | M142: 1267 | N142: 2462232
A143: 136 | B143: 0 | D143: 0 | E143: OK | M143: 1268 | N143: 1592162767
A144: 137 | B144: 0 | C144: ='Assets-Liab 5-6'!H10 -> 0 | D144: 0 | E144: OK | M144: 1269 | N144: 38247655
A145: 138 | B145: 412799483 | C145: ='Assets-Liab 5-6'!H5 -> 412799483 | D145: 0 | E145: OK | M145: 127 | N145: 197424260
A146: 139 | B146: 0 | D146: 0 | E146: OK | M146: 1270 | N146: 2675917125
A147: 140 | B147: 0 | D147: 0 | E147: OK | M147: 1271 | N147: 2676022721
A148: 141 | B148: 120438 | C148: ='Assets-Liab 5-6'!H12 -> 120438 | D148: 0 | E148: OK | M148: 1272 | N148: -512158296.3
A149: 142 | B149: 2708297427 | C149: ='Assets-Liab 5-6'!H13 -> 2708297427 | D149: 0 | E149: OK | M149: 1274 | N149: 257607265.8
A150: 143 | B150: 0 | D150: 0 | E150: OK | M150: 1277 | N150: 1258187
A151: 144 | B151: 0 | D151: 0 | E151: OK | M151: 1278 | N151: 261165046.8
A152: 145 | B152: 9450 | C152: ='Assets-Liab 5-6'!H31 -> 9450 | D152: 0 | E152: OK | M152: 1279 | N152: 261206795.8
A153: 146 | B153: 0 | D153: 0 | E153: OK | M153: 128 | N153: 331680656
A154: 147 | B154: 5696137 | C154: ='Assets-Liab 5-6'!H32 -> 5696137 | D154: 0 | E154: OK | M154: 1280 | N154: 42825501.96
A155: 148 | B155: 0 | D155: 0 | E155: OK | M155: 1283 | N155: 318260
A156: 149 | B156: 0 | D156: 0 | E156: OK | M156: 1284 | N156: 43376331.96
A157: 150 | B157: 280896779 | C157: ='Assets-Liab 5-6'!H34 -> 280896779 | D157: 0 | E157: OK | M157: 1285 | N157: 43377071.96
A158: 151 | B158: 1350568217 | C158: ='Assets-Liab 5-6'!H39 -> 1350568217 | D158: 0 | E158: OK | M158: 1286 | N158: 771207248.6
A159: 152 | B159: 2708297395 | C159: ='Assets-Liab 5-6'!H41 -> 2708297395 | D159: 0 | E159: OK | M159: 1289 | N159: 732609
A160: 153 | B160: 0 | D160: 0 | E160: OK | M160: 129 | N160: 695092908
A161: 154 | B161: 0 | D161: 0 | E161: OK | M161: 1290 | N161: 774220732.6
A162: 155 | B162: 0 | D162: 0 | E162: OK | M162: 1291 | N162: 12920694
A163: 156 | B163: 0 | D163: 0 | E163: OK | M163: 1292 | N163: 787302049.6
A164: 157 | B164: 0 | D164: 0 | E164: OK | M164: 1293 | N164: 68570493.87
A165: 158 | B165: 0 | D165: 0 | E165: OK | M165: 1296 | N165: 80866
A166: 159 | B166: 0 | D166: 0 | E166: OK | M166: 1297 | N166: 69176770.87
A167: 160 | B167: 0 | D167: 0 | E167: OK | M167: 1298 | N167: 69179898.87
A168: 161 | B168: 0 | D168: 0 | E168: OK | M168: 1299 | N168: 67351636
A169: 162 | B169: 0 | D169: 0 | E169: OK | M169: 1303 | N169: 67723085
A170: 163 | B170: 0 | D170: 0 | E170: OK | M170: 1304 | N170: 67723085
A171: 164 | B171: 0 | D171: 0 | E171: OK | M171: 1305 | N171: 3149657.04
A172: 165 | B172: 0 | D172: 0 | E172: OK | M172: 1308 | N172: 5770
A173: 166 | B173: 0 | D173: 0 | E173: OK | M173: 1309 | N173: 3161809.04
A174: 167 | B174: 0 | D174: 0 | E174: OK | M174: 1310 | N174: 1876
A175: 168 | B175: 0 | D175: 0 | E175: OK | M175: 1312 | N175: 176985
A176: 169 | B176: 0 | D176: 0 | E176: OK | M176: 1314 | N176: 16870528
A177: 170 | B177: 0 | D177: 0 | E177: OK | M177: 1315 | N177: 21735912.04
A178: 171 | B178: 0 | D178: 0 | E178: OK | M178: 1316 | N178: 1212191926
A179: 172 | B179: 0 | D179: 0 | E179: OK | M179: 1319 | N179: 2395692
A180: 173 | B180: 0 | D180: 0 | E180: OK | M180: 1320 | N180: 1220337601
A181: 174 | B181: 0 | D181: 0 | E181: OK | M181: 1321 | N181: 14624269
A182: 175 | B182: 0 | D182: 0 | E182: OK | M182: 1322 | N182: 1876
A183: 176 | B183: 0 | D183: 0 | E183: OK | M183: 1324 | N183: 176985
A184: 177 | B184: 0 | D184: 0 | E184: OK | M184: 1326 | N184: 16870528
A185: 178 | B185: 0 | D185: 0 | E185: OK | M185: 1327 | N185: 1252038638
A186: 179 | B186: 0 | D186: 0 | E186: OK | M186: 1328 | N186: 71346042.75
A187: 180 | B187: 0 | D187: 0 | E187: OK | M187: 1335 | N187: 724191
A188: 181 | B188: 0 | D188: 0 | E188: OK | M188: 1341 | N188: 8228119.24
A189: 182 | B189: 0 | D189: 0 | E189: OK | M189: 1345 | N189: 709696
A190: 183 | B190: 0 | D190: 0 | E190: OK | M190: 1346 | N190: 3072399
A191: 184 | B191: 0 | D191: 0 | E191: OK | M191: 1347 | N191: 12256809.3
A192: 185 | B192: 0 | D192: 0 | E192: OK | M192: 1348 | N192: 1878772
A193: 186 | B193: 0 | D193: 0 | E193: OK | M193: 1349 | N193: 245504120.9
A194: 187 | B194: 0 | D194: 0 | E194: OK | M194: 1350 | N194: 8400268
A195: 188 | B195: 0 | D195: 0 | E195: OK | M195: 1351 | N195: 6879574
A196: 189 | B196: 0 | D196: 0 | E196: OK | M196: 1352 | N196: 17467211
A197: 190 | B197: 0 | D197: 0 | E197: OK | M197: 1353 | N197: 1955428
A198: 191 | B198: 0 | D198: 0 | E198: OK | M198: 1354 | N198: 2869223
A199: 192 | B199: 0 | D199: 0 | E199: OK | M199: 1355 | N199: 6796918
A200: 193 | B200: 0 | D200: =B200-C200 -> 0 | E200: =IF((D200 = 0),"OK",IF((D200<-5),"CHECK ME!",IF((D200>5),"Check Me!","OK"))) -> OK | M200: 1356 | N200: 44368622
... 7565 more rows

Sheet Crete Monee Totals 5-8 (hidden)
A1: txtFieldNum | B1: 56099201U26
A2: 4 | B2: 14334347
A3: 16 | B3: 30629001
A4: 25 | B4: 1730566
A5: 27 | B5: 14116446
A6: 30 | B6: 19605234
A7: 31 | B7: 10953856
A8: 32 | B8: 30629001
A9: 36 | B9: 2132081
A10: 47 | B10: 7695
A11: 48 | B11: 6490423
A12: 58 | B12: 2116742
A13: 61 | B13: 2412088
A14: 62 | B14: 4078335
A15: 63 | B15: 6490423
A16: 65 | B16: 5919005
A17: 70 | B17: 10344951
A18: 73 | B18: 5876423
A19: 78 | B19: 5876423
A20: 79 | B20: 4468528
A21: 80 | B21: 10344951
A22: 84 | B22: 1952358
A23: 96 | B23: 10904127
A24: 103 | B24: 287
A25: 105 | B25: 1938312
A26: 108 | B26: 2072761
A27: 109 | B27: 8831366
A28: 110 | B28: 10904127
A29: 112 | B29: 949264
A30: 119 | B30: 2459258
A31: 123 | B31: 164204
A32: 124 | B32: 942434
A33: 127 | B33: 1106685
A34: 128 | B34: 1352573
A35: 129 | B35: 2459258
A36: 142 | B36: 3513685
A37: 150 | B37: 1090022
A38: 151 | B38: 2423663
A39: 152 | B39: 3513685
A40: 212 | B40: 2491235
A41: 213 | B41: 116080449
A42: 215 | B42: 3274556
A43: 218 | B43: 121846240
A44: 219 | B44: 121846240
A45: 220 | B45: 121846240
A46: 221 | B46: 4468528
A47: 222 | B47: 88543477
A48: 223 | B48: 93012005
A49: 224 | B49: 93012005
A50: 226 | B50: 93012005
A51: 227 | B51: 93012005
A52: 644 | B52: 15639539
A53: 656 | B53: 14262
A54: 657 | B54: 1217562
A55: 658 | B55: 72722
A56: 659 | B56: 24516748
A57: 660 | B57: 716700
A58: 661 | B58: 545674
A59: 662 | B59: 407918
A60: 663 | B60: 552677
A61: 664 | B61: 925333
A62: 665 | B62: 122631
A63: 666 | B63: 3270933
A64: 667 | B64: 536529
A65: 668 | B65: 166571
A66: 670 | B66: 703100
A67: 672 | B67: 422769
A68: 673 | B68: 422769
A69: 674 | B69: 2283482
A70: 675 | B70: 975580
A71: 676 | B71: 3259062
A72: 677 | B72: 210941
A73: 678 | B73: 356891
A74: 679 | B74: 454017
A75: 681 | B75: 783586
A76: 684 | B76: 1805435
A77: 686 | B77: 125637
A78: 687 | B78: 279819
A79: 688 | B79: 450916
A80: 690 | B80: 645901
A81: 692 | B81: 1502273
A82: 693 | B82: 18334
A83: 694 | B83: 10981906
A84: 695 | B84: 34607
A85: 696 | B85: 35533261
A86: 702 | B86: 1836213
A87: 715 | B87: 15165
A88: 716 | B88: 1383
A89: 717 | B89: 4137422
A90: 718 | B90: 99797
A91: 719 | B91: 85298
A92: 720 | B92: 76979
A93: 721 | B93: 33060
A94: 722 | B94: 95944
A95: 723 | B95: 8178
A96: 724 | B96: 399256
A97: 725 | B97: 72814
A98: 726 | B98: 36656
A99: 728 | B99: 109470
A100: 729 | B100: 10087
A101: 730 | B101: 59684
A102: 731 | B102: 211742
A103: 732 | B103: 596206
A104: 733 | B104: 271224
A105: 734 | B105: 867430
A106: 735 | B106: 46656
A107: 736 | B107: 39231
A108: 737 | B108: 120654
A109: 739 | B109: 161667
A110: 742 | B110: 368208
A111: 744 | B111: 20875
A112: 745 | B112: 41714
A113: 746 | B113: 71989
A114: 748 | B114: 103882
A115: 750 | B115: 238460
A116: 752 | B116: 2194566
A117: 753 | B117: 628
A118: 754 | B118: 6332616
A119: 760 | B119: 53466
A120: 767 | B120: 1260
A121: 773 | B121: 139303
A122: 775 | B122: 971343
A123: 777 | B123: 2926
A124: 778 | B124: 2538
A125: 779 | B125: 1113
A126: 780 | B126: 178
A127: 782 | B127: 6755
A128: 783 | B128: 291050
A129: 784 | B129: 14090
A130: 785 | B130: 116748
A131: 786 | B131: 421888
A132: 787 | B132: 412094
A133: 788 | B133: 4873
A134: 789 | B134: 1105122
A135: 790 | B135: 4180
A136: 791 | B136: 300
A137: 792 | B137: 4480
A138: 793 | B138: 56480
A139: 794 | B139: 12739
A140: 795 | B140: 129880
A141: 797 | B141: 6817
A142: 800 | B142: 205916
A143: 803 | B143: 42327
A144: 804 | B144: 117631
A145: 806 | B145: 1477224
A146: 808 | B146: 1637182
A147: 810 | B147: 3381343
A148: 811 | B148: 263488
A149: 812 | B149: 4616174
A150: 818 | B150: 734213
A151: 825 | B151: 2557
A152: 831 | B152: 107889
A153: 832 | B153: 215
A154: 833 | B154: 1599137
A155: 834 | B155: 26645
A156: 835 | B156: 11465
A157: 836 | B157: 4043
A158: 837 | B158: 20500
A159: 840 | B159: 62653
A160: 841 | B160: 21204
A161: 842 | B161: 8711
A162: 843 | B162: 44930
A163: 844 | B163: 74845
A164: 845 | B164: 23077
A165: 846 | B165: 4025
A166: 847 | B166: 27102
A167: 848 | B167: 32975
A168: 849 | B168: 4855
A169: 850 | B169: 37830
A170: 851 | B170: 43726
A171: 852 | B171: 11098
A172: 853 | B172: 114
A173: 855 | B173: 1003597
A174: 858 | B174: 1058535
A175: 861 | B175: 23291
A176: 862 | B176: 92459
A177: 864 | B177: 476423
A178: 866 | B178: 592173
A179: 867 | B179: 331
A180: 868 | B180: 1853469
A181: 869 | B181: 51681
A182: 870 | B182: 3504287
A183: 876 | B183: 43455
A184: 889 | B184: 20260
A185: 891 | B185: 79768
A186: 912 | B186: 62053
A187: 916 | B187: 62053
A188: 922 | B188: 10747
A189: 924 | B189: 10747
A190: 926 | B190: 72800
A191: 928 | B191: 152568
A192: 934 | B192: 4414
A193: 947 | B193: 37763
A194: 949 | B194: 2535379
A195: 957 | B195: 2741
A196: 960 | B196: 2741
A197: 961 | B197: 19941
A198: 962 | B198: -4506
A199: 963 | B199: 15435
A200: 964 | B200: 4206
... 668 more rows

Sheet Data Pull totals 5-8 (hidden)
A1: txtFieldNum | B1: 2018 | C1: Crete Monee | D1: 5-7 data w/o Crete | E1: 5/7 data | F1: variance
A2: 4 | B2: 4463715231 | C2: =VLOOKUP(A2,'Crete Monee Totals 5-8'!A:B,2,0) -> 14334347 | D2: =SUM(B2-C2) -> 4449380884 | E2: =VLOOKUP(A2,'AFR19'!A:K,12,0) ->  | F2: =SUM(D2-E2) -> 
A3: 11 | B3: 10965222 | C3: 0 | D3: =SUM(B3-C3) -> 10965222 | E3: =VLOOKUP(A3,'AFR19'!A:K,12,0) ->  | F3: =SUM(D3-E3) -> 
A4: 12 | B4: 2085627941 | C4: 0 | D4: 2085627941 | E4: =VLOOKUP(A4,'AFR19'!A:K,12,0) -> 
A5: 15 | B5: 8487467 | C5: 0 | D5: 8487467 | E5: =VLOOKUP(A5,'AFR19'!A:K,12,0) -> 
A6: 16 | B6: 1.363495227e+10 | C6: =VLOOKUP(A6,'Crete Monee Totals 5-8'!A:B,2,0) -> 30629001 | D6: 1.360432326e+10 | E6: =VLOOKUP(A6,'AFR19'!A:K,12,0) -> 
A7: 25 | B7: 114934456 | C7: =VLOOKUP(A7,'Crete Monee Totals 5-8'!A:B,2,0) -> 1730566 | D7: 113203890 | E7: =VLOOKUP(A7,'AFR19'!A:K,12,0) -> 
A8: 27 | B8: 4530643413 | C8: =VLOOKUP(A8,'Crete Monee Totals 5-8'!A:B,2,0) -> 14116446 | D8: 4516526967 | E8: =VLOOKUP(A8,'AFR19'!A:K,12,0) -> 
A9: 30 | B9: 6123509399 | C9: =VLOOKUP(A9,'Crete Monee Totals 5-8'!A:B,2,0) -> 19605234 | D9: 6103904165 | E9: =VLOOKUP(A9,'AFR19'!A:K,12,0) -> 
A10: 31 | B10: 7266244448 | C10: =VLOOKUP(A10,'Crete Monee Totals 5-8'!A:B,2,0) -> 10953856 | D10: 7255290592 | E10: =VLOOKUP(A10,'AFR19'!A:K,12,0) -> 
A11: 32 | B11: 1.363495227e+10 | C11: =VLOOKUP(A11,'Crete Monee Totals 5-8'!A:B,2,0) -> 30629001 | D11: 1.360432326e+10 | E11: =VLOOKUP(A11,'AFR19'!A:K,12,0) -> 
A12: 36 | B12: 451223371 | C12: =VLOOKUP(A12,'Crete Monee Totals 5-8'!A:B,2,0) -> 2132081 | D12: 449091290 | E12: =VLOOKUP(A12,'AFR19'!A:K,12,0) -> 
A13: 43 | B13: 98822 | C13: 0 | D13: 98822 | E13: =VLOOKUP(A13,'AFR19'!A:K,12,0) -> 
A14: 44 | B14: 352727831 | C14: 0 | D14: 352727831 | E14: =VLOOKUP(A14,'AFR19'!A:K,12,0) -> 
A15: 47 | B15: 817216 | C15: =VLOOKUP(A15,'Crete Monee Totals 5-8'!A:B,2,0) -> 7695 | D15: 809521 | E15: =VLOOKUP(A15,'AFR19'!A:K,12,0) -> 
A16: 48 | B16: 2010879848 | C16: =VLOOKUP(A16,'Crete Monee Totals 5-8'!A:B,2,0) -> 6490423 | D16: 2004389425 | E16: =VLOOKUP(A16,'AFR19'!A:K,12,0) -> 
A17: 56 | B17: 109272 | C17: 0 | D17: 109272 | E17: =VLOOKUP(A17,'AFR19'!A:K,12,0) -> 
A18: 58 | B18: 535113520 | C18: =VLOOKUP(A18,'Crete Monee Totals 5-8'!A:B,2,0) -> 2116742 | D18: 532996778 | E18: =VLOOKUP(A18,'AFR19'!A:K,12,0) -> 
A19: 61 | B19: 647818486 | C19: =VLOOKUP(A19,'Crete Monee Totals 5-8'!A:B,2,0) -> 2412088 | D19: 645406398 | E19: =VLOOKUP(A19,'AFR19'!A:K,12,0) -> 
A20: 62 | B20: 1157229643 | C20: =VLOOKUP(A20,'Crete Monee Totals 5-8'!A:B,2,0) -> 4078335 | D20: 1153151308 | E20: =VLOOKUP(A20,'AFR19'!A:K,12,0) -> 
A21: 63 | B21: 2010879848 | C21: =VLOOKUP(A21,'Crete Monee Totals 5-8'!A:B,2,0) -> 6490423 | D21: 2004389425 | E21: =VLOOKUP(A21,'AFR19'!A:K,12,0) -> 
A22: 65 | B22: 458957980 | C22: =VLOOKUP(A22,'Crete Monee Totals 5-8'!A:B,2,0) -> 5919005 | D22: 453038975 | E22: =VLOOKUP(A22,'AFR19'!A:K,12,0) -> 
A23: 68 | B23: 192660768 | C23: 0 | D23: 192660768 | E23: =VLOOKUP(A23,'AFR19'!A:K,12,0) -> 
A24: 69 | B24: 13754738 | C24: 0 | D24: 13754738 | E24: =VLOOKUP(A24,'AFR19'!A:K,12,0) -> 
A25: 70 | B25: 2129344853 | C25: =VLOOKUP(A25,'Crete Monee Totals 5-8'!A:B,2,0) -> 10344951 | D25: 2118999902 | E25: =VLOOKUP(A25,'AFR19'!A:K,12,0) -> 
A26: 73 | B26: 466225040 | C26: =VLOOKUP(A26,'Crete Monee Totals 5-8'!A:B,2,0) -> 5876423 | D26: 460348617 | E26: =VLOOKUP(A26,'AFR19'!A:K,12,0) -> 
A27: 78 | B27: 475182762 | C27: =VLOOKUP(A27,'Crete Monee Totals 5-8'!A:B,2,0) -> 5876423 | D27: 469306339 | E27: =VLOOKUP(A27,'AFR19'!A:K,12,0) -> 
A28: 79 | B28: 617255521.9 | C28: =VLOOKUP(A28,'Crete Monee Totals 5-8'!A:B,2,0) -> 4468528 | D28: 612786993.9 | E28: =VLOOKUP(A28,'AFR19'!A:K,12,0) -> 
A29: 80 | B29: 2129344853 | C29: =VLOOKUP(A29,'Crete Monee Totals 5-8'!A:B,2,0) -> 10344951 | D29: 2118999902 | E29: =VLOOKUP(A29,'AFR19'!A:K,12,0) -> 
A30: 84 | B30: 161275392 | C30: =VLOOKUP(A30,'Crete Monee Totals 5-8'!A:B,2,0) -> 1952358 | D30: 159323034 | E30: =VLOOKUP(A30,'AFR19'!A:K,12,0) -> 
A31: 92 | B31: 210291838 | C31: 0 | D31: 210291838 | E31: =VLOOKUP(A31,'AFR19'!A:K,12,0) -> 
A32: 95 | B32: 188063 | C32: 0 | D32: 188063 | E32: =VLOOKUP(A32,'AFR19'!A:K,12,0) -> 
A33: 96 | B33: 1219805434 | C33: =VLOOKUP(A33,'Crete Monee Totals 5-8'!A:B,2,0) -> 10904127 | D33: 1208901307 | E33: =VLOOKUP(A33,'AFR19'!A:K,12,0) -> 
A34: 103 | B34: 661028 | C34: =VLOOKUP(A34,'Crete Monee Totals 5-8'!A:B,2,0) -> 287 | D34: 660741 | E34: =VLOOKUP(A34,'AFR19'!A:K,12,0) -> 
A35: 105 | B35: 300149230 | C35: =VLOOKUP(A35,'Crete Monee Totals 5-8'!A:B,2,0) -> 1938312 | D35: 298210918 | E35: =VLOOKUP(A35,'AFR19'!A:K,12,0) -> 
A36: 108 | B36: 359145224 | C36: =VLOOKUP(A36,'Crete Monee Totals 5-8'!A:B,2,0) -> 2072761 | D36: 357072463 | E36: =VLOOKUP(A36,'AFR19'!A:K,12,0) -> 
A37: 109 | B37: 693404368.9 | C37: =VLOOKUP(A37,'Crete Monee Totals 5-8'!A:B,2,0) -> 8831366 | D37: 684573002.9 | E37: =VLOOKUP(A37,'AFR19'!A:K,12,0) -> 
A38: 110 | B38: 1219805434 | C38: =VLOOKUP(A38,'Crete Monee Totals 5-8'!A:B,2,0) -> 10904127 | D38: 1208901307 | E38: =VLOOKUP(A38,'AFR19'!A:K,12,0) -> 
A39: 112 | B39: 159360043 | C39: =VLOOKUP(A39,'Crete Monee Totals 5-8'!A:B,2,0) -> 949264 | D39: 158410779 | E39: =VLOOKUP(A39,'AFR19'!A:K,12,0) -> 
A40: 116 | B40: 109853870 | C40: 0 | D40: 109853870 | E40: =VLOOKUP(A40,'AFR19'!A:K,12,0) -> 
A41: 118 | B41: 22713 | C41: 0 | D41: 22713 | E41: =VLOOKUP(A41,'AFR19'!A:K,12,0) -> 
A42: 119 | B42: 664059480.5 | C42: =VLOOKUP(A42,'Crete Monee Totals 5-8'!A:B,2,0) -> 2459258 | D42: 661600222.5 | E42: =VLOOKUP(A42,'AFR19'!A:K,12,0) -> 
A43: 123 | B43: 5603839 | C43: =VLOOKUP(A43,'Crete Monee Totals 5-8'!A:B,2,0) -> 164204 | D43: 5439635 | E43: =VLOOKUP(A43,'AFR19'!A:K,12,0) -> 
A44: 124 | B44: 175968464 | C44: =VLOOKUP(A44,'Crete Monee Totals 5-8'!A:B,2,0) -> 942434 | D44: 175026030 | E44: =VLOOKUP(A44,'AFR19'!A:K,12,0) -> 
A45: 127 | B45: 195905778 | C45: =VLOOKUP(A45,'Crete Monee Totals 5-8'!A:B,2,0) -> 1106685 | D45: 194799093 | E45: =VLOOKUP(A45,'AFR19'!A:K,12,0) -> 
A46: 128 | B46: 322261703.6 | C46: =VLOOKUP(A46,'Crete Monee Totals 5-8'!A:B,2,0) -> 1352573 | D46: 320909130.6 | E46: =VLOOKUP(A46,'AFR19'!A:K,12,0) -> 
A47: 129 | B47: 664059480.6 | C47: =VLOOKUP(A47,'Crete Monee Totals 5-8'!A:B,2,0) -> 2459258 | D47: 661600222.6 | E47: =VLOOKUP(A47,'AFR19'!A:K,12,0) -> 
A48: 138 | B48: 459294954 | C48: 0 | D48: 459294954 | E48: =VLOOKUP(A48,'AFR19'!A:K,12,0) -> 
A49: 141 | B49: 34045 | C49: 0 | D49: 34045 | E49: =VLOOKUP(A49,'AFR19'!A:K,12,0) -> 
A50: 142 | B50: 2640275571 | C50: =VLOOKUP(A50,'Crete Monee Totals 5-8'!A:B,2,0) -> 3513685 | D50: 2636761886 | E50: =VLOOKUP(A50,'AFR19'!A:K,12,0) -> 
A51: 145 | B51: 9113 | C51: 0 | D51: 9113 | E51: =VLOOKUP(A51,'AFR19'!A:K,12,0) -> 
A52: 147 | B52: 17494828 | C52: 0 | D52: 17494828 | E52: =VLOOKUP(A52,'AFR19'!A:K,12,0) -> 
A53: 150 | B53: 188343915 | C53: =VLOOKUP(A53,'Crete Monee Totals 5-8'!A:B,2,0) -> 1090022 | D53: 187253893 | E53: =VLOOKUP(A53,'AFR19'!A:K,12,0) -> 
A54: 151 | B54: 1212270301 | C54: =VLOOKUP(A54,'Crete Monee Totals 5-8'!A:B,2,0) -> 2423663 | D54: 1209846638 | E54: =VLOOKUP(A54,'AFR19'!A:K,12,0) -> 
A55: 152 | B55: 2640275571 | C55: =VLOOKUP(A55,'Crete Monee Totals 5-8'!A:B,2,0) -> 3513685 | D55: 2636761886 | E55: =VLOOKUP(A55,'AFR19'!A:K,12,0) -> 
A56: 212 | B56: 1324789248 | C56: =VLOOKUP(A56,'Crete Monee Totals 5-8'!A:B,2,0) -> 2491235 | D56: 1322298013 | E56: =VLOOKUP(A56,'AFR19'!A:K,12,0) -> 
A57: 213 | B57: 3.504172748e+10 | C57: =VLOOKUP(A57,'Crete Monee Totals 5-8'!A:B,2,0) -> 116080449 | D57: 3.492564703e+10 | E57: =VLOOKUP(A57,'AFR19'!A:K,12,0) -> 
A58: 214 | B58: 1971193146 | C58: 0 | D58: 1971193146 | E58: =VLOOKUP(A58,'AFR19'!A:K,12,0) -> 
A59: 215 | B59: 3714249063 | C59: =VLOOKUP(A59,'Crete Monee Totals 5-8'!A:B,2,0) -> 3274556 | D59: 3710974507 | E59: =VLOOKUP(A59,'AFR19'!A:K,12,0) -> 
A60: 218 | B60: 4.311389868e+10 | C60: =VLOOKUP(A60,'Crete Monee Totals 5-8'!A:B,2,0) -> 121846240 | D60: 4.299205244e+10 | E60: =VLOOKUP(A60,'AFR19'!A:K,12,0) -> 
A61: 219 | B61: 4.311389868e+10 | C61: =VLOOKUP(A61,'Crete Monee Totals 5-8'!A:B,2,0) -> 121846240 | D61: 4.299205244e+10 | E61: =VLOOKUP(A61,'AFR19'!A:K,12,0) -> 
A62: 220 | B62: 4.311389868e+10 | C62: =VLOOKUP(A62,'Crete Monee Totals 5-8'!A:B,2,0) -> 121846240 | D62: 4.299205244e+10 | E62: =VLOOKUP(A62,'AFR19'!A:K,12,0) -> 
A63: 221 | B63: 1649628613 | C63: =VLOOKUP(A63,'Crete Monee Totals 5-8'!A:B,2,0) -> 4468528 | D63: 1645160085 | E63: =VLOOKUP(A63,'AFR19'!A:K,12,0) -> 
A64: 222 | B64: 20000728898 | C64: =VLOOKUP(A64,'Crete Monee Totals 5-8'!A:B,2,0) -> 88543477 | D64: 19912185421 | E64: =VLOOKUP(A64,'AFR19'!A:K,12,0) -> 
A65: 223 | B65: 21650357511 | C65: =VLOOKUP(A65,'Crete Monee Totals 5-8'!A:B,2,0) -> 93012005 | D65: 21557345506 | E65: =VLOOKUP(A65,'AFR19'!A:K,12,0) -> 
A66: 224 | B66: 21650268294 | C66: =VLOOKUP(A66,'Crete Monee Totals 5-8'!A:B,2,0) -> 93012005 | D66: 21557256289 | E66: =VLOOKUP(A66,'AFR19'!A:K,12,0) -> 
A67: 226 | B67: 21650268294 | C67: =VLOOKUP(A67,'Crete Monee Totals 5-8'!A:B,2,0) -> 93012005 | D67: =SUM(B67-C67) -> 21557256289 | E67: =VLOOKUP(A67,'AFR19'!A:K,12,0) ->  | F67: =SUM(D67-E67) -> 
A68: 227 | B68: 21650268294 | C68: =VLOOKUP(A68,'Crete Monee Totals 5-8'!A:B,2,0) -> 93012005 | D68: 21557256289 | E68: =VLOOKUP(A68,'AFR19'!A:K,12,0) -> 
A69: 259 | B69: 19734469 | C69: 0 | D69: 19734469 | E69: =VLOOKUP(A69,'AFR19'!A:K,12,0) -> 
A70: 260 | B70: 5656749 | C70: 0 | D70: 5656749 | E70: =VLOOKUP(A70,'AFR19'!A:K,12,0) -> 
A71: 262 | B71: 13385462 | C71: 0 | D71: 13385462 | E71: =VLOOKUP(A71,'AFR19'!A:K,12,0) -> 
A72: 263 | B72: 24190 | C72: 0 | D72: 24190 | E72: =VLOOKUP(A72,'AFR19'!A:K,12,0) -> 
A73: 371 | B73: 4568411 | C73: 0 | D73: 4568411 | E73: =VLOOKUP(A73,'AFR19'!A:K,12,0) -> 
A74: 439 | B74: 116325619 | C74: 0 | D74: 116325619 | E74: =VLOOKUP(A74,'AFR19'!A:K,12,0) -> 
A75: 440 | B75: 220808 | C75: 0 | D75: 220808 | E75: =VLOOKUP(A75,'AFR19'!A:K,12,0) -> 
A76: 557 | B76: 956982138 | C76: 0 | D76: 956982138 | E76: =VLOOKUP(A76,'AFR19'!A:K,12,0) -> 
A77: 558 | B77: 41601698 | C77: 0 | D77: 41601698 | E77: =VLOOKUP(A77,'AFR19'!A:K,12,0) -> 
A78: 559 | B78: 575570 | C78: 0 | D78: 575570 | E78: =VLOOKUP(A78,'AFR19'!A:K,12,0) -> 
A79: 590 | B79: 311901711 | C79: 0 | D79: 311901711 | E79: =VLOOKUP(A79,'AFR19'!A:K,12,0) -> 
A80: 591 | B80: 7162087 | C80: 0 | D80: 7162087 | E80: =VLOOKUP(A80,'AFR19'!A:K,12,0) -> 
A81: 644 | B81: 6756811394 | C81: =VLOOKUP(A81,'Crete Monee Totals 5-8'!A:B,2,0) -> 15639539 | D81: 6741171855 | E81: =VLOOKUP(A81,'AFR19'!A:K,12,0) -> 
A82: 645 | B82: 53496043 | C82: 0 | D82: 53496043 | E82: =VLOOKUP(A82,'AFR19'!A:K,12,0) -> 
A83: 651 | B83: 357544899 | C83: 0 | D83: 357544899 | E83: =VLOOKUP(A83,'AFR19'!A:K,12,0) -> 
A84: 655 | B84: 8234532 | C84: 0 | D84: 8234532 | E84: =VLOOKUP(A84,'AFR19'!A:K,12,0) -> 
A85: 656 | B85: 169314023.8 | C85: =VLOOKUP(A85,'Crete Monee Totals 5-8'!A:B,2,0) -> 14262 | D85: 169299761.8 | E85: =VLOOKUP(A85,'AFR19'!A:K,12,0) -> 
A86: 657 | B86: 287818934.9 | C86: =VLOOKUP(A86,'Crete Monee Totals 5-8'!A:B,2,0) -> 1217562 | D86: 286601372.9 | E86: =VLOOKUP(A86,'AFR19'!A:K,12,0) -> 
A87: 658 | B87: 47699758 | C87: =VLOOKUP(A87,'Crete Monee Totals 5-8'!A:B,2,0) -> 72722 | D87: 47627036 | E87: =VLOOKUP(A87,'AFR19'!A:K,12,0) -> 
A88: 659 | B88: 1.007679775e+10 | C88: =VLOOKUP(A88,'Crete Monee Totals 5-8'!A:B,2,0) -> 24516748 | D88: 1.005228101e+10 | E88: =VLOOKUP(A88,'AFR19'!A:K,12,0) -> 
A89: 660 | B89: 268594515 | C89: =VLOOKUP(A89,'Crete Monee Totals 5-8'!A:B,2,0) -> 716700 | D89: 267877815 | E89: =VLOOKUP(A89,'AFR19'!A:K,12,0) -> 
A90: 661 | B90: 306056886.8 | C90: =VLOOKUP(A90,'Crete Monee Totals 5-8'!A:B,2,0) -> 545674 | D90: 305511212.8 | E90: =VLOOKUP(A90,'AFR19'!A:K,12,0) -> 
A91: 662 | B91: 154266626.2 | C91: =VLOOKUP(A91,'Crete Monee Totals 5-8'!A:B,2,0) -> 407918 | D91: 153858708.2 | E91: =VLOOKUP(A91,'AFR19'!A:K,12,0) -> 
A92: 663 | B92: 124928753 | C92: =VLOOKUP(A92,'Crete Monee Totals 5-8'!A:B,2,0) -> 552677 | D92: 124376076 | E92: =VLOOKUP(A92,'AFR19'!A:K,12,0) -> 
A93: 664 | B93: 198791209.9 | C93: =VLOOKUP(A93,'Crete Monee Totals 5-8'!A:B,2,0) -> 925333 | D93: 197865876.9 | E93: =VLOOKUP(A93,'AFR19'!A:K,12,0) -> 
A94: 665 | B94: 70374127 | C94: =VLOOKUP(A94,'Crete Monee Totals 5-8'!A:B,2,0) -> 122631 | D94: 70251496 | E94: =VLOOKUP(A94,'AFR19'!A:K,12,0) -> 
A95: 666 | B95: 1123012118 | C95: =VLOOKUP(A95,'Crete Monee Totals 5-8'!A:B,2,0) -> 3270933 | D95: 1119741185 | E95: =VLOOKUP(A95,'AFR19'!A:K,12,0) -> 
A96: 667 | B96: 280447313 | C96: =VLOOKUP(A96,'Crete Monee Totals 5-8'!A:B,2,0) -> 536529 | D96: 279910784 | E96: =VLOOKUP(A96,'AFR19'!A:K,12,0) -> 
A97: 668 | B97: 220799197.1 | C97: =VLOOKUP(A97,'Crete Monee Totals 5-8'!A:B,2,0) -> 166571 | D97: 220632626.1 | E97: =VLOOKUP(A97,'AFR19'!A:K,12,0) -> 
A98: 669 | B98: 13958619 | C98: 0 | D98: 13958619 | E98: =VLOOKUP(A98,'AFR19'!A:K,12,0) -> 
A99: 670 | B99: 515205129.1 | C99: =VLOOKUP(A99,'Crete Monee Totals 5-8'!A:B,2,0) -> 703100 | D99: 514502029.1 | E99: =VLOOKUP(A99,'AFR19'!A:K,12,0) -> 
A100: 671 | B100: 31051748 | C100: 0 | D100: 31051748 | E100: =VLOOKUP(A100,'AFR19'!A:K,12,0) -> 
A101: 672 | B101: 178360664.7 | C101: =VLOOKUP(A101,'Crete Monee Totals 5-8'!A:B,2,0) -> 422769 | D101: 177937895.7 | E101: =VLOOKUP(A101,'AFR19'!A:K,12,0) -> 
A102: 673 | B102: 283414011.7 | C102: =VLOOKUP(A102,'Crete Monee Totals 5-8'!A:B,2,0) -> 422769 | D102: 282991242.7 | E102: =VLOOKUP(A102,'AFR19'!A:K,12,0) -> 
A103: 674 | B103: 876687573.6 | C103: =VLOOKUP(A103,'Crete Monee Totals 5-8'!A:B,2,0) -> 2283482 | D103: 874404091.6 | E103: =VLOOKUP(A103,'AFR19'!A:K,12,0) -> 
A104: 675 | B104: 43318310 | C104: =VLOOKUP(A104,'Crete Monee Totals 5-8'!A:B,2,0) -> 975580 | D104: 42342730 | E104: =VLOOKUP(A104,'AFR19'!A:K,12,0) -> 
A105: 676 | B105: 920005883.6 | C105: =VLOOKUP(A105,'Crete Monee Totals 5-8'!A:B,2,0) -> 3259062 | D105: 916746821.6 | E105: =VLOOKUP(A105,'AFR19'!A:K,12,0) -> 
A106: 677 | B106: 50308998 | C106: =VLOOKUP(A106,'Crete Monee Totals 5-8'!A:B,2,0) -> 210941 | D106: 50098057 | E106: =VLOOKUP(A106,'AFR19'!A:K,12,0) -> 
A107: 678 | B107: 109376132.7 | C107: =VLOOKUP(A107,'Crete Monee Totals 5-8'!A:B,2,0) -> 356891 | D107: 109019241.7 | E107: =VLOOKUP(A107,'AFR19'!A:K,12,0) -> 
A108: 679 | B108: 90233291.16 | C108: =VLOOKUP(A108,'Crete Monee Totals 5-8'!A:B,2,0) -> 454017 | D108: 89779274.16 | E108: =VLOOKUP(A108,'AFR19'!A:K,12,0) -> 
A109: 680 | B109: 19237105 | C109: 0 | D109: 19237105 | E109: =VLOOKUP(A109,'AFR19'!A:K,12,0) -> 
A110: 681 | B110: 216404843.1 | C110: =VLOOKUP(A110,'Crete Monee Totals 5-8'!A:B,2,0) -> 783586 | D110: 215621257.1 | E110: =VLOOKUP(A110,'AFR19'!A:K,12,0) -> 
A111: 682 | B111: 10997332 | C111: 0 | D111: 10997332 | E111: =VLOOKUP(A111,'AFR19'!A:K,12,0) -> 
A112: 684 | B112: 496557702 | C112: =VLOOKUP(A112,'Crete Monee Totals 5-8'!A:B,2,0) -> 1805435 | D112: 494752267 | E112: =VLOOKUP(A112,'AFR19'!A:K,12,0) -> 
A113: 685 | B113: 7546862 | C113: 0 | D113: 7546862 | E113: =VLOOKUP(A113,'AFR19'!A:K,12,0) -> 
A114: 686 | B114: 16081191 | C114: =VLOOKUP(A114,'Crete Monee Totals 5-8'!A:B,2,0) -> 125637 | D114: 15955554 | E114: =VLOOKUP(A114,'AFR19'!A:K,12,0) -> 
A115: 687 | B115: 24489881 | C115: =VLOOKUP(A115,'Crete Monee Totals 5-8'!A:B,2,0) -> 279819 | D115: 24210062 | E115: =VLOOKUP(A115,'AFR19'!A:K,12,0) -> 
A116: 688 | B116: 61265263 | C116: =VLOOKUP(A116,'Crete Monee Totals 5-8'!A:B,2,0) -> 450916 | D116: 60814347 | E116: =VLOOKUP(A116,'AFR19'!A:K,12,0) -> 
A117: 690 | B117: 100263695.7 | C117: =VLOOKUP(A117,'Crete Monee Totals 5-8'!A:B,2,0) -> 645901 | D117: 99617794.68 | E117: =VLOOKUP(A117,'AFR19'!A:K,12,0) -> 
A118: 692 | B118: 209646892.7 | C118: =VLOOKUP(A118,'Crete Monee Totals 5-8'!A:B,2,0) -> 1502273 | D118: 208144619.7 | E118: =VLOOKUP(A118,'AFR19'!A:K,12,0) -> 
A119: 693 | B119: 13160841 | C119: =VLOOKUP(A119,'Crete Monee Totals 5-8'!A:B,2,0) -> 18334 | D119: 13142507 | E119: =VLOOKUP(A119,'AFR19'!A:K,12,0) -> 
A120: 694 | B120: 3561002578 | C120: =VLOOKUP(A120,'Crete Monee Totals 5-8'!A:B,2,0) -> 10981906 | D120: 3550020672 | E120: =VLOOKUP(A120,'AFR19'!A:K,12,0) -> 
A121: 695 | B121: 71949497 | C121: =VLOOKUP(A121,'Crete Monee Totals 5-8'!A:B,2,0) -> 34607 | D121: 71914890 | E121: =VLOOKUP(A121,'AFR19'!A:K,12,0) -> 
A122: 696 | B122: 1.370974983e+10 | C122: =VLOOKUP(A122,'Crete Monee Totals 5-8'!A:B,2,0) -> 35533261 | D122: 1.367421657e+10 | E122: =VLOOKUP(A122,'AFR19'!A:K,12,0) -> 
A123: 702 | B123: 1822034677 | C123: =VLOOKUP(A123,'Crete Monee Totals 5-8'!A:B,2,0) -> 1836213 | D123: 1820198464 | E123: =VLOOKUP(A123,'AFR19'!A:K,12,0) -> 
A124: 703 | B124: 9978449 | C124: 0 | D124: 9978449 | E124: =VLOOKUP(A124,'AFR19'!A:K,12,0) -> 
A125: 709 | B125: 77589893 | C125: 0 | D125: 77589893 | E125: =VLOOKUP(A125,'AFR19'!A:K,12,0) -> 
A126: 713 | B126: 757212 | C126: 0 | D126: 757212 | E126: =VLOOKUP(A126,'AFR19'!A:K,12,0) -> 
A127: 714 | B127: 34246764.59 | C127: 0 | D127: 34246764.59 | E127: =VLOOKUP(A127,'AFR19'!A:K,12,0) -> 
A128: 715 | B128: 20992610.62 | C128: =VLOOKUP(A128,'Crete Monee Totals 5-8'!A:B,2,0) -> 15165 | D128: 20977445.62 | E128: =VLOOKUP(A128,'AFR19'!A:K,12,0) -> 
A129: 716 | B129: 2035049.77 | C129: =VLOOKUP(A129,'Crete Monee Totals 5-8'!A:B,2,0) -> 1383 | D129: 2033666.77 | E129: =VLOOKUP(A129,'AFR19'!A:K,12,0) -> 
A130: 717 | B130: 2543322831 | C130: =VLOOKUP(A130,'Crete Monee Totals 5-8'!A:B,2,0) -> 4137422 | D130: 2539185409 | E130: =VLOOKUP(A130,'AFR19'!A:K,12,0) -> 
A131: 718 | B131: 55238225 | C131: =VLOOKUP(A131,'Crete Monee Totals 5-8'!A:B,2,0) -> 99797 | D131: =SUM(B131-C131) -> 55138428 | E131: =VLOOKUP(A131,'AFR19'!A:K,12,0) ->  | F131: =SUM(D131-E131) -> 
A132: 719 | B132: 63411190.75 | C132: =VLOOKUP(A132,'Crete Monee Totals 5-8'!A:B,2,0) -> 85298 | D132: 63325892.75 | E132: =VLOOKUP(A132,'AFR19'!A:K,12,0) -> 
A133: 720 | B133: 31869492.22 | C133: =VLOOKUP(A133,'Crete Monee Totals 5-8'!A:B,2,0) -> 76979 | D133: 31792513.22 | E133: =VLOOKUP(A133,'AFR19'!A:K,12,0) -> 
A134: 721 | B134: 23346906 | C134: =VLOOKUP(A134,'Crete Monee Totals 5-8'!A:B,2,0) -> 33060 | D134: 23313846 | E134: =VLOOKUP(A134,'AFR19'!A:K,12,0) -> 
A135: 722 | B135: 37521044.02 | C135: =VLOOKUP(A135,'Crete Monee Totals 5-8'!A:B,2,0) -> 95944 | D135: 37425100.02 | E135: =VLOOKUP(A135,'AFR19'!A:K,12,0) -> 
A136: 723 | B136: 12308047 | C136: =VLOOKUP(A136,'Crete Monee Totals 5-8'!A:B,2,0) -> 8178 | D136: 12299869 | E136: =VLOOKUP(A136,'AFR19'!A:K,12,0) -> 
A137: 724 | B137: 223694905 | C137: =VLOOKUP(A137,'Crete Monee Totals 5-8'!A:B,2,0) -> 399256 | D137: 223295649 | E137: =VLOOKUP(A137,'AFR19'!A:K,12,0) -> 
A138: 725 | B138: 60734288.57 | C138: =VLOOKUP(A138,'Crete Monee Totals 5-8'!A:B,2,0) -> 72814 | D138: 60661474.57 | E138: =VLOOKUP(A138,'AFR19'!A:K,12,0) -> 
A139: 726 | B139: 44852028 | C139: =VLOOKUP(A139,'Crete Monee Totals 5-8'!A:B,2,0) -> 36656 | D139: 44815372 | E139: =VLOOKUP(A139,'AFR19'!A:K,12,0) -> 
A140: 727 | B140: 1940491 | C140: 0 | D140: 1940491 | E140: =VLOOKUP(A140,'AFR19'!A:K,12,0) -> 
A141: 728 | B141: 107526807.6 | C141: =VLOOKUP(A141,'Crete Monee Totals 5-8'!A:B,2,0) -> 109470 | D141: 107417337.6 | E141: =VLOOKUP(A141,'AFR19'!A:K,12,0) -> 
A142: 729 | B142: 24918387 | C142: =VLOOKUP(A142,'Crete Monee Totals 5-8'!A:B,2,0) -> 10087 | D142: 24908300 | E142: =VLOOKUP(A142,'AFR19'!A:K,12,0) -> 
A143: 730 | B143: 34872831 | C143: =VLOOKUP(A143,'Crete Monee Totals 5-8'!A:B,2,0) -> 59684 | D143: 34813147 | E143: =VLOOKUP(A143,'AFR19'!A:K,12,0) -> 
A144: 731 | B144: 78587099 | C144: =VLOOKUP(A144,'Crete Monee Totals 5-8'!A:B,2,0) -> 211742 | D144: 78375357 | E144: =VLOOKUP(A144,'AFR19'!A:K,12,0) -> 
A145: 732 | B145: 207302324.6 | C145: =VLOOKUP(A145,'Crete Monee Totals 5-8'!A:B,2,0) -> 596206 | D145: 206706118.6 | E145: =VLOOKUP(A145,'AFR19'!A:K,12,0) -> 
A146: 733 | B146: 10293320 | C146: =VLOOKUP(A146,'Crete Monee Totals 5-8'!A:B,2,0) -> 271224 | D146: 10022096 | E146: =VLOOKUP(A146,'AFR19'!A:K,12,0) -> 
A147: 734 | B147: 217595644.6 | C147: =VLOOKUP(A147,'Crete Monee Totals 5-8'!A:B,2,0) -> 867430 | D147: 216728214.6 | E147: =VLOOKUP(A147,'AFR19'!A:K,12,0) -> 
A148: 735 | B148: 10062588 | C148: =VLOOKUP(A148,'Crete Monee Totals 5-8'!A:B,2,0) -> 46656 | D148: 10015932 | E148: =VLOOKUP(A148,'AFR19'!A:K,12,0) -> 
A149: 736 | B149: 20705644 | C149: =VLOOKUP(A149,'Crete Monee Totals 5-8'!A:B,2,0) -> 39231 | D149: 20666413 | E149: =VLOOKUP(A149,'AFR19'!A:K,12,0) -> 
A150: 737 | B150: 18275345 | C150: =VLOOKUP(A150,'Crete Monee Totals 5-8'!A:B,2,0) -> 120654 | D150: 18154691 | E150: =VLOOKUP(A150,'AFR19'!A:K,12,0) -> 
A151: 738 | B151: 6861872 | C151: 0 | D151: 6861872 | E151: =VLOOKUP(A151,'AFR19'!A:K,12,0) -> 
A152: 739 | B152: 55493635 | C152: =VLOOKUP(A152,'Crete Monee Totals 5-8'!A:B,2,0) -> 161667 | D152: 55331968 | E152: =VLOOKUP(A152,'AFR19'!A:K,12,0) -> 
A153: 740 | B153: 2285625 | C153: 0 | D153: 2285625 | E153: =VLOOKUP(A153,'AFR19'!A:K,12,0) -> 
A154: 742 | B154: 113684709 | C154: =VLOOKUP(A154,'Crete Monee Totals 5-8'!A:B,2,0) -> 368208 | D154: 113316501 | E154: =VLOOKUP(A154,'AFR19'!A:K,12,0) -> 
A155: 743 | B155: 1527345 | C155: 0 | D155: 1527345 | E155: =VLOOKUP(A155,'AFR19'!A:K,12,0) -> 
A156: 744 | B156: 2905211 | C156: =VLOOKUP(A156,'Crete Monee Totals 5-8'!A:B,2,0) -> 20875 | D156: 2884336 | E156: =VLOOKUP(A156,'AFR19'!A:K,12,0) -> 
A157: 745 | B157: 5828418 | C157: =VLOOKUP(A157,'Crete Monee Totals 5-8'!A:B,2,0) -> 41714 | D157: 5786704 | E157: =VLOOKUP(A157,'AFR19'!A:K,12,0) -> 
A158: 746 | B158: 29363741 | C158: =VLOOKUP(A158,'Crete Monee Totals 5-8'!A:B,2,0) -> 71989 | D158: 29291752 | E158: =VLOOKUP(A158,'AFR19'!A:K,12,0) -> 
A159: 748 | B159: 17265193 | C159: =VLOOKUP(A159,'Crete Monee Totals 5-8'!A:B,2,0) -> 103882 | D159: 17161311 | E159: =VLOOKUP(A159,'AFR19'!A:K,12,0) -> 
A160: 750 | B160: 56889908 | C160: =VLOOKUP(A160,'Crete Monee Totals 5-8'!A:B,2,0) -> 238460 | D160: 56651448 | E160: =VLOOKUP(A160,'AFR19'!A:K,12,0) -> 
A161: 751 | B161: 7489563 | C161: 0 | D161: 7489563 | E161: =VLOOKUP(A161,'AFR19'!A:K,12,0) -> 
A162: 752 | B162: 805468636.2 | C162: =VLOOKUP(A162,'Crete Monee Totals 5-8'!A:B,2,0) -> 2194566 | D162: 803274070.2 | E162: =VLOOKUP(A162,'AFR19'!A:K,12,0) -> 
A163: 753 | B163: 12853444 | C163: =VLOOKUP(A163,'Crete Monee Totals 5-8'!A:B,2,0) -> 628 | D163: 12852816 | E163: =VLOOKUP(A163,'AFR19'!A:K,12,0) -> 
A164: 754 | B164: 3361644911 | C164: =VLOOKUP(A164,'Crete Monee Totals 5-8'!A:B,2,0) -> 6332616 | D164: 3355312295 | E164: =VLOOKUP(A164,'AFR19'!A:K,12,0) -> 
A165: 760 | B165: 118216857.6 | C165: =VLOOKUP(A165,'Crete Monee Totals 5-8'!A:B,2,0) -> 53466 | D165: 118163391.6 | E165: =VLOOKUP(A165,'AFR19'!A:K,12,0) -> 
A166: 761 | B166: 532417 | C166: 0 | D166: 532417 | E166: =VLOOKUP(A166,'AFR19'!A:K,12,0) -> 
A167: 767 | B167: 3006103 | C167: =VLOOKUP(A167,'Crete Monee Totals 5-8'!A:B,2,0) -> 1260 | D167: 3004843 | E167: =VLOOKUP(A167,'AFR19'!A:K,12,0) -> 
A168: 771 | B168: 1571457 | C168: 0 | D168: 1571457 | E168: =VLOOKUP(A168,'AFR19'!A:K,12,0) -> 
A169: 772 | B169: 7573657 | C169: 0 | D169: 7573657 | E169: =VLOOKUP(A169,'AFR19'!A:K,12,0) -> 
A170: 773 | B170: 45814149.88 | C170: =VLOOKUP(A170,'Crete Monee Totals 5-8'!A:B,2,0) -> 139303 | D170: 45674846.88 | E170: =VLOOKUP(A170,'AFR19'!A:K,12,0) -> 
A171: 774 | B171: 1843734 | C171: 0 | D171: 1843734 | E171: =VLOOKUP(A171,'AFR19'!A:K,12,0) -> 
A172: 775 | B172: 1001894755 | C172: =VLOOKUP(A172,'Crete Monee Totals 5-8'!A:B,2,0) -> 971343 | D172: 1000923412 | E172: =VLOOKUP(A172,'AFR19'!A:K,12,0) -> 
A173: 776 | B173: 12748405 | C173: 0 | D173: 12748405 | E173: =VLOOKUP(A173,'AFR19'!A:K,12,0) -> 
A174: 777 | B174: 12952764 | C174: =VLOOKUP(A174,'Crete Monee Totals 5-8'!A:B,2,0) -> 2926 | D174: 12949838 | E174: =VLOOKUP(A174,'AFR19'!A:K,12,0) -> 
A175: 778 | B175: 34798615 | C175: =VLOOKUP(A175,'Crete Monee Totals 5-8'!A:B,2,0) -> 2538 | D175: 34796077 | E175: =VLOOKUP(A175,'AFR19'!A:K,12,0) -> 
A176: 779 | B176: 7533541 | C176: =VLOOKUP(A176,'Crete Monee Totals 5-8'!A:B,2,0) -> 1113 | D176: 7532428 | E176: =VLOOKUP(A176,'AFR19'!A:K,12,0) -> 
A177: 780 | B177: 24515647 | C177: =VLOOKUP(A177,'Crete Monee Totals 5-8'!A:B,2,0) -> 178 | D177: 24515469 | E177: =VLOOKUP(A177,'AFR19'!A:K,12,0) -> 
A178: 781 | B178: 12962938 | C178: 0 | D178: 12962938 | E178: =VLOOKUP(A178,'AFR19'!A:K,12,0) -> 
A179: 782 | B179: 105511910 | C179: =VLOOKUP(A179,'Crete Monee Totals 5-8'!A:B,2,0) -> 6755 | D179: 105505155 | E179: =VLOOKUP(A179,'AFR19'!A:K,12,0) -> 
A180: 783 | B180: 101939249.5 | C180: =VLOOKUP(A180,'Crete Monee Totals 5-8'!A:B,2,0) -> 291050 | D180: 101648199.5 | E180: =VLOOKUP(A180,'AFR19'!A:K,12,0) -> 
A181: 784 | B181: 39760327.62 | C181: =VLOOKUP(A181,'Crete Monee Totals 5-8'!A:B,2,0) -> 14090 | D181: 39746237.62 | E181: =VLOOKUP(A181,'AFR19'!A:K,12,0) -> 
A182: 785 | B182: 22975295 | C182: =VLOOKUP(A182,'Crete Monee Totals 5-8'!A:B,2,0) -> 116748 | D182: 22858547 | E182: =VLOOKUP(A182,'AFR19'!A:K,12,0) -> 
A183: 786 | B183: 164674872.1 | C183: =VLOOKUP(A183,'Crete Monee Totals 5-8'!A:B,2,0) -> 421888 | D183: 164252984.1 | E183: =VLOOKUP(A183,'AFR19'!A:K,12,0) -> 
A184: 787 | B184: 111483481.8 | C184: =VLOOKUP(A184,'Crete Monee Totals 5-8'!A:B,2,0) -> 412094 | D184: 111071387.8 | E184: =VLOOKUP(A184,'AFR19'!A:K,12,0) -> 
A185: 788 | B185: 12258202.88 | C185: =VLOOKUP(A185,'Crete Monee Totals 5-8'!A:B,2,0) -> 4873 | D185: 12253329.88 | E185: =VLOOKUP(A185,'AFR19'!A:K,12,0) -> 
A186: 789 | B186: 145194612.6 | C186: =VLOOKUP(A186,'Crete Monee Totals 5-8'!A:B,2,0) -> 1105122 | D186: 144089490.6 | E186: =VLOOKUP(A186,'AFR19'!A:K,12,0) -> 
A187: 790 | B187: 21808064.33 | C187: =VLOOKUP(A187,'Crete Monee Totals 5-8'!A:B,2,0) -> 4180 | D187: 21803884.33 | E187: =VLOOKUP(A187,'AFR19'!A:K,12,0) -> 
A188: 791 | B188: 382388 | C188: =VLOOKUP(A188,'Crete Monee Totals 5-8'!A:B,2,0) -> 300 | D188: 382088 | E188: =VLOOKUP(A188,'AFR19'!A:K,12,0) -> 
A189: 792 | B189: 22190452.33 | C189: =VLOOKUP(A189,'Crete Monee Totals 5-8'!A:B,2,0) -> 4480 | D189: 22185972.33 | E189: =VLOOKUP(A189,'AFR19'!A:K,12,0) -> 
A190: 793 | B190: 5915267 | C190: =VLOOKUP(A190,'Crete Monee Totals 5-8'!A:B,2,0) -> 56480 | D190: 5858787 | E190: =VLOOKUP(A190,'AFR19'!A:K,12,0) -> 
A191: 794 | B191: 31438751.79 | C191: =VLOOKUP(A191,'Crete Monee Totals 5-8'!A:B,2,0) -> 12739 | D191: 31426012.79 | E191: =VLOOKUP(A191,'AFR19'!A:K,12,0) -> 
A192: 795 | B192: 72429514 | C192: =VLOOKUP(A192,'Crete Monee Totals 5-8'!A:B,2,0) -> 129880 | D192: 72299634 | E192: =VLOOKUP(A192,'AFR19'!A:K,12,0) -> 
A193: 796 | B193: 109471562 | C193: 0 | D193: 109471562 | E193: =VLOOKUP(A193,'AFR19'!A:K,12,0) -> 
A194: 797 | B194: 202617370.8 | C194: =VLOOKUP(A194,'Crete Monee Totals 5-8'!A:B,2,0) -> 6817 | D194: 202610553.8 | E194: =VLOOKUP(A194,'AFR19'!A:K,12,0) -> 
A195: 798 | B195: 9997150.63 | C195: 0 | D195: =SUM(B195-C195) -> 9997150.63 | E195: =VLOOKUP(A195,'AFR19'!A:K,12,0) ->  | F195: =SUM(D195-E195) -> 
A196: 800 | B196: 431869616.2 | C196: =VLOOKUP(A196,'Crete Monee Totals 5-8'!A:B,2,0) -> 205916 | D196: 431663700.2 | E196: =VLOOKUP(A196,'AFR19'!A:K,12,0) -> 
A197: 801 | B197: 2264478 | C197: 0 | D197: 2264478 | E197: =VLOOKUP(A197,'AFR19'!A:K,12,0) -> 
A198: 802 | B198: 5319354 | C198: 0 | D198: 5319354 | E198: =VLOOKUP(A198,'AFR19'!A:K,12,0) -> 
A199: 803 | B199: 16403015 | C199: =VLOOKUP(A199,'Crete Monee Totals 5-8'!A:B,2,0) -> 42327 | D199: 16360688 | E199: =VLOOKUP(A199,'AFR19'!A:K,12,0) -> 
A200: 804 | B200: 15391306 | C200: =VLOOKUP(A200,'Crete Monee Totals 5-8'!A:B,2,0) -> 117631 | D200: 15273675 | E200: =VLOOKUP(A200,'AFR19'!A:K,12,0) -> 
... 2207 more rows

Sheet Sheet4 (hidden)
A1: ChrAgreNum | B1: cds_dst_name | C1: 3612 | D1: 3613 | F1: ChrAgreNum | G1: cds_dst_name | H1: 3612
A2: 01001001026 | B2: Payson CUSD 1 | F2: 01001001026 | G2: Payson CUSD 1
A3: 01001002026 | B3: Liberty CUSD 2 | F3: 01001002026 | G3: Liberty CUSD 2
A4: 01001003026 | B4: Central CUSD 3 | F4: 01001003026 | G4: Central CUSD 3
A5: 01001004026 | B5: CUSD 4 | F5: 01001004026 | G5: CUSD 4
A6: 01001172022 | B6: Quincy SD 172 | F6: 01001172022 | G6: Quincy SD 172
A7: 01005001026 | B7: Brown County CUSD 1 | F7: 01005001026 | G7: Brown County CUSD 1
A8: 01009015026 | B8: Beardstown CUSD 15 | F8: 01009015026 | G8: Beardstown CUSD 15
A9: 01009064026 | B9: Virginia CUSD 64 | F9: 01009064026 | G9: Virginia CUSD 64
A10: 01009262026 | B10: A-C Central CUSD 262 | F10: 01009262026 | G10: A-C Central CUSD 262
A11: 01069001026 | B11: Franklin CUSD 1 | F11: 01069001026 | G11: Franklin CUSD 1
A12: 01069006026 | B12: Waverly CUSD 6 | F12: 01069006026 | G12: Waverly CUSD 6
A13: 01069011026 | B13: Meredosia-Chambersburg CUSD 11 | F13: 01069011026 | G13: Meredosia-Chambersburg CUSD 11
A14: 01069027026 | B14: Triopia CUSD 27 | F14: 01069027026 | G14: Triopia CUSD 27
A15: 01069117022 | B15: Jacksonville SD 117 | F15: 01069117022 | G15: Jacksonville SD 117
A16: 01075003026 | B16: Pleasant Hill CUSD 3 | F16: 01075003026 | G16: Pleasant Hill CUSD 3
A17: 01075004026 | B17: Griggsville-Perry CUSD 4 | F17: 01075004026 | G17: Griggsville-Perry CUSD 4
A18: 01075010026 | B18: Pikeland CUSD 10 | F18: 01075010026 | G18: Pikeland CUSD 10
A19: 01075012026 | B19: Western CUSD 12 | F19: 01075012026 | G19: Western CUSD 12
A20: 01086001026 | B20: Winchester CUSD 1 | F20: 01086001026 | G20: Winchester CUSD 1
A21: 01086002026 | B21: Scott-Morgan CUSD 2 | F21: 01086002026 | G21: Scott-Morgan CUSD 2
A22: 03003001026 | B22: Mulberry Grove CUSD 1 | F22: 03003001026 | G22: Mulberry Grove CUSD 1
A23: 03003002026 | B23: Bond County CUSD 2 | F23: 03003002026 | G23: Bond County CUSD 2
A24: 03011001026 | B24: Morrisonville CUSD 1 | F24: 03011001026 | G24: Morrisonville CUSD 1
A25: 03011003026 | B25: Taylorville CUSD 3 | F25: 03011003026 | G25: Taylorville CUSD 3
A26: 03011004026 | B26: Edinburg CUSD 4 | F26: 03011004026 | G26: Edinburg CUSD 4
A27: 03011008026 | B27: Pana CUSD 8 | F27: 03011008026 | G27: Pana CUSD 8
A28: 03011014024 | B28: South Fork SD 14 | F28: 03011014024 | G28: South Fork SD 14
A29: 03025010026 | B29: Altamont CUSD 10 | F29: 03025010026 | G29: Altamont CUSD 10
A30: 03025020026 | B30: Beecher City CUSD 20 | F30: 03025020026 | G30: Beecher City CUSD 20
A31: 03025030026 | B31: Dieterich CUSD 30 | F31: 03025030026 | G31: Dieterich CUSD 30
A32: 03025040026 | B32: Effingham CUSD 40 | F32: 03025040026 | G32: Effingham CUSD 40
A33: 03025050026 | B33: Teutopolis CUSD 50 | F33: 03025050026 | G33: Teutopolis CUSD 50
A34: 03026201026 | B34: Brownstown CUSD 201 | F34: 03026201026 | G34: Brownstown CUSD 201
A35: 03026202026 | B35: St Elmo CUSD 202 | F35: 03026202026 | G35: St Elmo CUSD 202
A36: 03026203026 | B36: Vandalia CUSD 203 | F36: 03026203026 | G36: Vandalia CUSD 203
A37: 03026204026 | B37: Ramsey CUSD 204 | F37: 03026204026 | G37: Ramsey CUSD 204
A38: 03068002026 | B38: Panhandle CUSD 2 | F38: 03068002026 | G38: Panhandle CUSD 2
A39: 03068003026 | B39: Hillsboro CUSD 3 | F39: 03068003026 | G39: Hillsboro CUSD 3
A40: 03068012026 | B40: Litchfield CUSD 12 | F40: 03068012026 | G40: Litchfield CUSD 12
A41: 03068022026 | B41: Nokomis CUSD 22 | F41: 03068022026 | G41: Nokomis CUSD 22
A42: 04004100026 | B42: Belvidere CUSD 100 | F42: 04004100026 | G42: Belvidere CUSD 100
A43: 04004200026 | B43: North Boone CUSD 200 | F43: 04004200026 | G43: North Boone CUSD 200
A44: 04101122022 | B44: Harlem UD 122 | F44: 04101122022 | G44: Harlem UD 122
A45: 04101131004 | B45: Kinnikinnick CCSD 131 | F45: 04101131004 | G45: Kinnikinnick CCSD 131
A46: 04101133004 | B46: Prairie Hill CCSD 133 | F46: 04101133004 | G46: Prairie Hill CCSD 133
A47: 04101134004 | B47: Shirland CCSD 134 | F47: 04101134004 | G47: Shirland CCSD 134
A48: 04101140004 | B48: Rockton SD 140 | F48: 04101140004 | G48: Rockton SD 140
A49: 04101205025 | B49: Rockford SD 205 | F49: 04101205025 | G49: Rockford SD 205
A50: 04101207016 | B50: Hononegah CHD 207 | F50: 04101207016 | G50: Hononegah CHD 207
A51: 04101320026 | B51: County of Winnebago SD 320 | F51: 04101320026 | G51: County of Winnebago SD 320
A52: 04101321026 | B52: Pecatonica CUSD 321 | F52: 04101321026 | G52: Pecatonica CUSD 321
A53: 04101322026 | B53: Durand CUSD 322 | F53: 04101322026 | G53: Durand CUSD 322
A54: 04101323026 | B54: Winnebago CUSD 323 | F54: 04101323026 | G54: Winnebago CUSD 323
A55: 05016015004 | B55: Palatine CCSD 15 | F55: 05016015004 | G55: Palatine CCSD 15
A56: 05016021004 | B56: Wheeling CCSD 21 | F56: 05016021004 | G56: Wheeling CCSD 21
A57: 05016023002 | B57: Prospect Heights SD 23 | F57: 05016023002 | G57: Prospect Heights SD 23
A58: 05016025002 | B58: Arlington Heights SD 25 | F58: 05016025002 | G58: Arlington Heights SD 25
A59: 05016026002 | B59: River Trails SD 26 | F59: 05016026002 | G59: River Trails SD 26
A60: 05016027002 | B60: Northbrook ESD 27 | F60: 05016027002 | G60: Northbrook ESD 27
A61: 05016028002 | B61: Northbrook SD 28 | F61: 05016028002 | G61: Northbrook SD 28
A62: 05016029002 | B62: Sunset Ridge SD 29 | F62: 05016029002 | G62: Sunset Ridge SD 29
A63: 05016030002 | B63: Northbrook/Glenview SD 30 | F63: 05016030002 | G63: Northbrook/Glenview SD 30
A64: 05016031002 | B64: West Northfield SD 31 | F64: 05016031002 | G64: West Northfield SD 31
A65: 05016034004 | B65: Glenview CCSD 34 | F65: 05016034004 | G65: Glenview CCSD 34
A66: 05016035002 | B66: Glencoe SD 35 | F66: 05016035002 | G66: Glencoe SD 35
A67: 05016036002 | B67: Winnetka SD 36 | F67: 05016036002 | G67: Winnetka SD 36
A68: 05016037002 | B68: Avoca SD 37 | F68: 05016037002 | G68: Avoca SD 37
A69: 05016038002 | B69: Kenilworth SD 38 | F69: 05016038002 | G69: Kenilworth SD 38
A70: 05016039002 | B70: Wilmette SD 39 | F70: 05016039002 | G70: Wilmette SD 39
A71: 05016054004 | B71: Schaumburg CCSD 54 | F71: 05016054004 | G71: Schaumburg CCSD 54
A72: 05016057002 | B72: Mount Prospect SD 57 | F72: 05016057002 | G72: Mount Prospect SD 57
A73: 05016059004 | B73: Comm Cons SD 59 | F73: 05016059004 | G73: Comm Cons SD 59
A74: 05016062004 | B74: CCSD 62 | F74: 05016062004 | G74: CCSD 62
A75: 05016063002 | B75: East Maine SD 63 | F75: 05016063002 | G75: East Maine SD 63
A76: 05016064004 | B76: Park Ridge CCSD 64 | F76: 05016064004 | G76: Park Ridge CCSD 64
A77: 05016065004 | B77: Evanston CCSD 65 | F77: 05016065004 | G77: Evanston CCSD 65
A78: 05016067002 | B78: Golf ESD 67 | F78: 05016067002 | G78: Golf ESD 67
A79: 05016068002 | B79: Skokie SD 68 | F79: 05016068002 | G79: Skokie SD 68
A80: 05016069002 | B80: Skokie SD 69 | F80: 05016069002 | G80: Skokie SD 69
A81: 05016070002 | B81: Morton Grove SD 70 | F81: 05016070002 | G81: Morton Grove SD 70
A82: 05016071002 | B82: Niles ESD 71 | F82: 05016071002 | G82: Niles ESD 71
A83: 05016072002 | B83: Fairview SD 72 | F83: 05016072002 | G83: Fairview SD 72
A84: 05016073002 | B84: East Prairie SD 73 | F84: 05016073002 | G84: East Prairie SD 73
A85: 05016073502 | B85: Skokie SD 73-5 | F85: 05016073502 | G85: Skokie SD 73-5
A86: 05016074002 | B86: Lincolnwood SD 74 | F86: 05016074002 | G86: Lincolnwood SD 74
A87: 05016202017 | B87: Evanston Twp HSD 202 | F87: 05016202017 | G87: Evanston Twp HSD 202
A88: 05016203017 | B88: New Trier Twp HSD 203 | F88: 05016203017 | G88: New Trier Twp HSD 203
A89: 05016207017 | B89: Maine Township HSD 207 | F89: 05016207017 | G89: Maine Township HSD 207
A90: 05016211017 | B90: Township HSD 211 | F90: 05016211017 | G90: Township HSD 211
A91: 05016214017 | B91: Township HSD 214 | F91: 05016214017 | G91: Township HSD 214
A92: 05016219017 | B92: Niles Twp HSD 219 | F92: 05016219017 | G92: Niles Twp HSD 219
A93: 05016225017 | B93: Northfield Twp HSD 225 | F93: 05016225017 | G93: Northfield Twp HSD 225
A94: 06016078002 | B94: Rosemont ESD 78 | F94: 06016078002 | G94: Rosemont ESD 78
A95: 06016079002 | B95: Pennoyer SD 79 | F95: 06016079002 | G95: Pennoyer SD 79
A96: 06016080002 | B96: Norridge SD 80 | F96: 06016080002 | G96: Norridge SD 80 | H96: 5985
A97: 06016081002 | B97: Schiller Park SD 81 | F97: 06016081002 | G97: Schiller Park SD 81
A98: 06016083002 | B98: Mannheim SD 83 | F98: 06016083002 | G98: Mannheim SD 83
A99: 06016084002 | B99: Franklin Park SD 84 | F99: 06016084002 | G99: Franklin Park SD 84
A100: 06016084502 | B100: Rhodes SD 84-5 | F100: 06016084502 | G100: Rhodes SD 84-5
A101: 06016085502 | B101: River Grove SD 85-5 | F101: 06016085502 | G101: River Grove SD 85-5
A102: 06016086002 | B102: Union Ridge SD 86 | F102: 06016086002 | G102: Union Ridge SD 86
A103: 06016087002 | B103: Berkeley SD 87 | F103: 06016087002 | G103: Berkeley SD 87
A104: 06016088002 | B104: Bellwood SD 88 | F104: 06016088002 | G104: Bellwood SD 88
A105: 06016089002 | B105: Maywood-Melrose Park-Broadview 89 | F105: 06016089002 | G105: Maywood-Melrose Park-Broadview 89
A106: 06016090002 | B106: River Forest SD 90 | F106: 06016090002 | G106: River Forest SD 90
A107: 06016091002 | B107: Forest Park SD 91 | F107: 06016091002 | G107: Forest Park SD 91
A108: 06016092002 | B108: Lindop SD 92 | F108: 06016092002 | G108: Lindop SD 92
A109: 06016092502 | B109: Westchester SD 92-5 | F109: 06016092502 | G109: Westchester SD 92-5
A110: 06016093002 | B110: Hillside SD 93 | F110: 06016093002 | G110: Hillside SD 93
A111: 06016094002 | B111: Komarek SD 94 | F111: 06016094002 | G111: Komarek SD 94
A112: 06016095002 | B112: Brookfield Lagrange Park SD 95 | F112: 06016095002 | G112: Brookfield Lagrange Park SD 95
A113: 06016096002 | B113: Riverside SD 96 | F113: 06016096002 | G113: Riverside SD 96
A114: 06016097002 | B114: Oak Park ESD 97 | F114: 06016097002 | G114: Oak Park ESD 97
A115: 06016098002 | B115: Berwyn North SD 98 | F115: 06016098002 | G115: Berwyn North SD 98
A116: 06016099002 | B116: Cicero SD 99 | F116: 06016099002 | G116: Cicero SD 99
A117: 06016100002 | B117: Berwyn South SD 100 | F117: 06016100002 | G117: Berwyn South SD 100
A118: 06016101002 | B118: Western Springs SD 101 | F118: 06016101002 | G118: Western Springs SD 101
A119: 06016102002 | B119: La Grange SD 102 | F119: 06016102002 | G119: La Grange SD 102
A120: 06016103002 | B120: Lyons SD 103 | F120: 06016103002 | G120: Lyons SD 103
A121: 06016105002 | B121: La Grange SD 105 South | F121: 06016105002 | G121: La Grange SD 105 South
A122: 06016106002 | B122: LaGrange Highlands SD 106 | F122: 06016106002 | G122: LaGrange Highlands SD 106
A123: 06016107002 | B123: Pleasantdale SD 107 | F123: 06016107002 | G123: Pleasantdale SD 107
A124: 06016200013 | B124: Oak Park - River Forest SD 200 | F124: 06016200013 | G124: Oak Park - River Forest SD 200
A125: 06016201017 | B125: J S Morton HSD 201 | F125: 06016201017 | G125: J S Morton HSD 201
A126: 06016204017 | B126: Lyons Twp HSD 204 | F126: 06016204017 | G126: Lyons Twp HSD 204
A127: 06016208017 | B127: Riverside-Brookfield Twp SD 208 | F127: 06016208017 | G127: Riverside-Brookfield Twp SD 208
A128: 06016209017 | B128: Proviso Twp HSD 209 | F128: 06016209017 | G128: Proviso Twp HSD 209
A129: 06016212016 | B129: Leyden CHSD 212 | F129: 06016212016 | G129: Leyden CHSD 212
A130: 06016234016 | B130: Ridgewood CHSD 234 | F130: 06016234016 | G130: Ridgewood CHSD 234
A131: 06016401026 | B131: Elmwood Park CUSD 401 | F131: 06016401026 | G131: Elmwood Park CUSD 401
A132: 07016104002 | B132: Summit SD 104 | F132: 07016104002 | G132: Summit SD 104
A133: 07016108002 | B133: Willow Springs SD 108 | F133: 07016108002 | G133: Willow Springs SD 108
A134: 07016109002 | B134: Indian Springs SD 109 | F134: 07016109002 | G134: Indian Springs SD 109
A135: 07016110002 | B135: Central Stickney SD 110 | F135: 07016110002 | G135: Central Stickney SD 110
A136: 07016111002 | B136: Burbank SD 111 | F136: 07016111002 | G136: Burbank SD 111
A137: 07016113A02 | B137: Lemont-Bromberek CSD 113A | F137: 07016113A02 | G137: Lemont-Bromberek CSD 113A
A138: 07016117002 | B138: North Palos SD 117 | F138: 07016117002 | G138: North Palos SD 117
A139: 07016118004 | B139: Palos CCSD 118 | F139: 07016118004 | G139: Palos CCSD 118
A140: 07016122002 | B140: Ridgeland SD 122 | F140: 07016122002 | G140: Ridgeland SD 122
A141: 07016123002 | B141: Oak Lawn-Hometown SD 123 | F141: 07016123002 | G141: Oak Lawn-Hometown SD 123
A142: 07016124002 | B142: Evergreen Park ESD 124 | F142: 07016124002 | G142: Evergreen Park ESD 124
A143: 07016125002 | B143: Atwood Heights SD 125 | F143: 07016125002 | G143: Atwood Heights SD 125
A144: 07016126002 | B144: Alsip-Hazlgrn-Oaklwn SD 126 | F144: 07016126002 | G144: Alsip-Hazlgrn-Oaklwn SD 126
A145: 07016127002 | B145: Worth SD 127 | F145: 07016127002 | G145: Worth SD 127
A146: 07016127502 | B146: Chicago Ridge SD 127-5 | F146: 07016127502 | G146: Chicago Ridge SD 127-5
A147: 07016128002 | B147: Palos Heights SD 128 | F147: 07016128002 | G147: Palos Heights SD 128
A148: 07016130002 | B148: Cook County SD 130 | F148: 07016130002 | G148: Cook County SD 130
A149: 07016132002 | B149: Calumet Public SD 132 | F149: 07016132002 | G149: Calumet Public SD 132
A150: 07016133002 | B150: Gen George Patton SD 133 | F150: 07016133002 | G150: Gen George Patton SD 133
A151: 07016135002 | B151: Orland SD 135 | F151: 07016135002 | G151: Orland SD 135
A152: 07016140002 | B152: Kirby SD 140 | F152: 07016140002 | G152: Kirby SD 140
A153: 07016142002 | B153: Forest Ridge SD 142 | F153: 07016142002 | G153: Forest Ridge SD 142
A154: 07016143002 | B154: Midlothian SD 143 | F154: 07016143002 | G154: Midlothian SD 143
A155: 07016143502 | B155: Posen-Robbins ESD 143-5 | F155: 07016143502 | G155: Posen-Robbins ESD 143-5
A156: 07016144002 | B156: Prairie-Hills ESD 144 | F156: 07016144002 | G156: Prairie-Hills ESD 144
A157: 07016145002 | B157: Arbor Park SD 145 | F157: 07016145002 | G157: Arbor Park SD 145
A158: 07016146004 | B158: CCSD 146 | F158: 07016146004 | G158: CCSD 146
A159: 07016147002 | B159: W Harvey-Dixmoor PSD 147 | F159: 07016147002 | G159: W Harvey-Dixmoor PSD 147
A160: 07016148002 | B160: Dolton SD 148 | F160: 07016148002 | G160: Dolton SD 148
A161: 07016149002 | B161: Dolton SD 149 | F161: 07016149002 | G161: Dolton SD 149
A162: 07016150002 | B162: South Holland SD 150 | F162: 07016150002 | G162: South Holland SD 150
A163: 07016151002 | B163: South Holland SD 151 | F163: 07016151002 | G163: South Holland SD 151
A164: 07016152002 | B164: Harvey SD 152 | F164: 07016152002 | G164: Harvey SD 152
A165: 07016152502 | B165: Hazel Crest SD 152-5 | F165: 07016152502 | G165: Hazel Crest SD 152-5
A166: 07016153002 | B166: Homewood SD 153 | F166: 07016153002 | G166: Homewood SD 153
A167: 07016154002 | B167: Thornton SD 154 | F167: 07016154002 | G167: Thornton SD 154
A168: 07016154502 | B168: Burnham SD 154-5 | F168: 07016154502 | G168: Burnham SD 154-5
A169: 07016155002 | B169: Calumet City SD 155 | F169: 07016155002 | G169: Calumet City SD 155
A170: 07016156002 | B170: Lincoln ESD 156 | F170: 07016156002 | G170: Lincoln ESD 156
A171: 07016157002 | B171: Hoover-Schrum Memorial SD 157 | F171: 07016157002 | G171: Hoover-Schrum Memorial SD 157
A172: 07016158002 | B172: Lansing SD 158 | F172: 07016158002 | G172: Lansing SD 158
A173: 07016159002 | B173: ESD 159 | F173: 07016159002 | G173: ESD 159
A174: 07016160002 | B174: Country Club Hills SD 160 | F174: 07016160002 | G174: Country Club Hills SD 160
A175: 07016161002 | B175: Flossmoor SD 161 | F175: 07016161002 | G175: Flossmoor SD 161
A176: 07016162002 | B176: Matteson ESD 162 | F176: 07016162002 | G176: Matteson ESD 162
A177: 07016163002 | B177: Park Forest SD 163 | F177: 07016163002 | G177: Park Forest SD 163
A178: 07016167002 | B178: Brookwood SD 167 | F178: 07016167002 | G178: Brookwood SD 167
A179: 07016168004 | B179: CCSD 168 | F179: 07016168004 | G179: CCSD 168
A180: 07016169002 | B180: Ford Heights SD 169 | F180: 07016169002 | G180: Ford Heights SD 169
A181: 07016170002 | B181: Chicago Heights SD 170 | F181: 07016170002 | G181: Chicago Heights SD 170
A182: 07016171002 | B182: Sunnybrook SD 171 | F182: 07016171002 | G182: Sunnybrook SD 171
A183: 07016172002 | B183: Sandridge SD 172 | F183: 07016172002 | G183: Sandridge SD 172
A184: 07016194002 | B184: Steger SD 194 | F184: 07016194002 | G184: Steger SD 194
A185: 07016205017 | B185: Thornton Twp HSD 205 | F185: 07016205017 | G185: Thornton Twp HSD 205
A186: 07016206017 | B186: Bloom Twp HSD 206 | F186: 07016206017 | G186: Bloom Twp HSD 206
A187: 07016210017 | B187: Lemont Twp HSD 210 | F187: 07016210017 | G187: Lemont Twp HSD 210
A188: 07016215017 | B188: Thornton Fractional Twp HSD 215 | F188: 07016215017 | G188: Thornton Fractional Twp HSD 215
A189: 07016217016 | B189: Argo CHSD 217 | F189: 07016217016 | G189: Argo CHSD 217
A190: 07016218016 | B190: CHSD 218 | F190: 07016218016 | G190: CHSD 218
A191: 07016220017 | B191: Reavis Twp HSD 220 | F191: 07016220017 | G191: Reavis Twp HSD 220
A192: 07016227017 | B192: Rich Twp HSD 227 | F192: 07016227017 | G192: Rich Twp HSD 227
A193: 07016228016 | B193: Bremen CHSD 228 | F193: 07016228016 | G193: Bremen CHSD 228
A194: 07016229016 | B194: Oak Lawn CHSD 229 | F194: 07016229016 | G194: Oak Lawn CHSD 229
A195: 07016230013 | B195: Cons HSD 230 | F195: 07016230013 | G195: Cons HSD 230
A196: 07016231016 | B196: Evergreen Park CHSD 231 | F196: 07016231016 | G196: Evergreen Park CHSD 231
A197: 07016233016 | B197: Homewood Flossmoor CHSD 233 | F197: 07016233016 | G197: Homewood Flossmoor CHSD 233
A198: 08008308026 | B198: Eastland CUSD 308 | F198: 08008308026 | G198: Eastland CUSD 308
A199: 08008314026 | B199: West Carroll CUSD 314 | F199: 08008314026 | G199: West Carroll CUSD 314
A200: 08008399026 | B200: Chadwick-Milledgeville CUSD 399 | F200: 08008399026 | G200: Chadwick-Milledgeville CUSD 399
... 652 more rows

Sheet Sheet5 (hidden)
A1: ChrAgreNum | B1: 4052 | C1: 4061 | D1: 4070 | E1: 4075 | I1: Field No | J1: SumOf2018
A2: 01001001026 | B2: 1603274 | C2: 5764461 | D2: 1603274 | E2: 4955576 | I2: 4052 | J2: 6473039169
A3: 01001002026 | B3: 1967629 | C3: 6446888 | D3: 1967629 | E3: 6106252 | I3: 4061 | J3: 2.926932107e+10
A4: 01001003026 | B4: 2921256 | C4: 9242043 | D4: 2921256 | E4: 9021535 | I4: 4070 | J4: 6473039169
A5: 01001004026 | B5: 1922882 | C5: 6948271 | D5: 1922882 | E5: 6236456 | I5: 4075 | J5: 2.803020943e+10
A6: 01001172022 | B6: 19032643 | C6: 71340438 | D6: 19032643 | E6: 68866630
A7: 01005001026 | B7: 2400311 | C7: 8033949 | D7: 2400311 | E7: 8299970
A8: 01009015026 | B8: 4410108 | C8: 18143988 | D8: 4410108 | E8: 15774694
A9: 01009064026 | B9: 1310012 | C9: 3510221 | D9: 1310012 | E9: 3381237
A10: 01009262026 | B10: 1443021 | C10: 5019438 | D10: 1443021 | E10: 4626845
A11: 01069001026 | B11: 1205841 | C11: 4122538 | D11: 1205841 | E11: 4137108
A12: 01069006026 | B12: 184388 | C12: 3896163 | D12: 184388 | E12: 3317503
A13: 01069011026 | B13: 1011307 | C13: 3239822 | D13: 1011307 | E13: 3383688
A14: 01069027026 | B14: 1319875 | C14: 4293083 | D14: 1319875 | E14: 4221719
A15: 01069117022 | B15: 10777166 | C15: 42717118 | D15: 10777166 | E15: 40356297
A16: 01075003026 | B16: 1095783 | C16: 3436528 | D16: 1095783 | E16: 3725145
A17: 01075004026 | B17: 962910 | C17: 4202801 | D17: 962910 | E17: 4132448
A18: 01075010026 | B18: 3754074 | C18: 13659512 | D18: 3754074 | E18: 12754737
A19: 01075012026 | B19: 1546687 | C19: 6108845 | D19: 1546687 | E19: 5848048
A20: 01086001026 | B20: 2140197 | C20: 6791343 | D20: 2140197 | E20: 6553866
A21: 01086002026 | B21: 854952 | C21: 2861765 | D21: 854952 | E21: 2817886
A22: 03003001026 | B22: 709780 | C22: 3900479 | D22: 709780 | E22: 3564849
A23: 03003002026 | B23: 6295670 | C23: 22177585 | D23: 6295670 | E23: 21074987
A24: 03011001026 | B24: 1038391 | C24: 3744969 | D24: 1038391 | E24: 3555858
A25: 03011003026 | B25: 6491465 | C25: 25618993 | D25: 6491465 | E25: 25404861
A26: 03011004026 | B26: 717509 | C26: 3099765 | D26: 717509 | E26: 2726123
A27: 03011008026 | B27: 4304378 | C27: 16041928 | D27: 4304378 | E27: 14734805
A28: 03011014024 | B28: 877841 | C28: 3781173 | D28: 877841 | E28: 3352866
A29: 03025010026 | B29: 1336719 | C29: 6928193 | D29: 1336719 | E29: 6788037
A30: 03025020026 | B30: 1360517 | C30: 4146012 | D30: 1360517 | E30: 3855885
A31: 03025030026 | B31: 1567353 | C31: 5072918 | D31: 1567353 | E31: 4713246
A32: 03025040026 | B32: 4289530 | C32: 23477736 | D32: 4289530 | E32: 22218327
A33: 03025050026 | B33: 1719486 | C33: 8872059 | D33: 1719486 | E33: 8263758
A34: 03026201026 | B34: 1189996 | C34: 5195847 | D34: 1189996 | E34: 4833225
A35: 03026202026 | B35: 1688004 | C35: 5290813 | D35: 1688004 | E35: 5147656
A36: 03026203026 | B36: 5617358 | C36: 18098094 | D36: 5617358 | E36: 17685144
A37: 03026204026 | B37: 1439374 | C37: 4937249 | D37: 1439374 | E37: 4761865
A38: 03068002026 | B38: 1733292 | C38: 6145895 | D38: 1733292 | E38: 5952633
A39: 03068003026 | B39: 5441928 | C39: 19004736 | D39: 5441928 | E39: 18716980
A40: 03068012026 | B40: 4463621 | C40: 15932472 | D40: 4463621 | E40: 15707539
A41: 03068022026 | B41: 1750507 | C41: 6976273 | D41: 1750507 | E41: 6416585
A42: 04004100026 | B42: 31440722 | C42: 110895902 | D42: 31440722 | E42: 104163537
A43: 04004200026 | B43: 5631076 | C43: 20820325 | D43: 5631076 | E43: 19738918
A44: 04101122022 | B44: 30011705 | C44: 96272449 | D44: 30011705 | E44: 96862202
A45: 04101131004 | B45: 982303 | C45: 17469153 | D45: 982303 | E45: 15260302
A46: 04101133004 | B46: 403989 | C46: 6273607 | D46: 403989 | E46: 5916284
A47: 04101134004 | B47: 73589 | C47: 1434180 | D47: 73589 | E47: 1369562
A48: 04101140004 | B48: 781285 | C48: 13419441 | D48: 781285 | E48: 12533026
A49: 04101205025 | B49: 116600332 | C49: 428911600 | D49: 116600332 | E49: 413532751
A50: 04101207016 | B50: 7733780 | C50: 29895789 | D50: 7733780 | E50: 29633277
A51: 04101320026 | B51: 497664 | C51: 9726926 | D51: 497664 | E51: 8815476
A52: 04101321026 | B52: 3242398 | C52: 11405022 | D52: 3242398 | E52: 11948223
A53: 04101322026 | B53: 2590858 | C53: 9806740 | D53: 2590858 | E53: 9461642
A54: 04101323026 | B54: 5155387 | C54: 18280148 | D54: 5155387 | E54: 17868967
A55: 05016015004 | B55: 63898292 | C55: 188480719 | D55: 63898292 | E55: 185682404
A56: 05016021004 | B56: 38938828 | C56: 126854114 | D56: 38938828 | E56: 120476416
A57: 05016023002 | B57: 7662158 | C57: 25762164 | D57: 7662158 | E57: 25423967
A58: 05016025002 | B58: 28217385 | C58: 90249671 | D58: 28217385 | E58: 89403944
A59: 05016026002 | B59: 9249862 | C59: 30342006 | D59: 9249862 | E59: 30423098
A60: 05016027002 | B60: 11623026 | C60: 34335276 | D60: 11623026 | E60: 34667596
A61: 05016028002 | B61: 14073844 | C61: 46170192 | D61: 14073844 | E61: 47350231
A62: 05016029002 | B62: 4294352 | C62: 16367111 | D62: 4294352 | E62: 15209076
A63: 05016030002 | B63: 9812552 | C63: 30335655 | D63: 9812552 | E63: 30623489
A64: 05016031002 | B64: 6967783 | C64: 22493149 | D64: 6967783 | E64: 22064545
A65: 05016034004 | B65: 24518362 | C65: 82739210 | D65: 24518362 | E65: 81462435
A66: 05016035002 | B66: 8748337 | C66: 31688615 | D66: 8748337 | E66: 29035969
A67: 05016036002 | B67: 16554564 | C67: 54449942 | D67: 16554564 | E67: 51870442
A68: 05016037002 | B68: 6296530 | C68: 18613653 | D68: 6296530 | E68: 19773987
A69: 05016038002 | B69: 4656050 | C69: 15356156 | D69: 4656050 | E69: 15617212
A70: 05016039002 | B70: 14117237 | C70: 62475086 | D70: 14117237 | E70: 61139151
A71: 05016054004 | B71: 43627489 | C71: 214747472 | D71: 43627489 | E71: 214578410
A72: 05016057002 | B72: 10398181 | C72: 30144861 | D72: 10398181 | E72: 32114303
A73: 05016059004 | B73: 45106358 | C73: 132108693 | D73: 45106358 | E73: 136091979
A74: 05016062004 | B74: 18551136 | C74: 87962198 | D74: 18551136 | E74: 84648199
A75: 05016063002 | B75: 10273084 | C75: 49781083 | D75: 10273084 | E75: 46781644
A76: 05016064004 | B76: 18054149 | C76: 79480065 | D76: 18054149 | E76: 78049482
A77: 05016065004 | C77: 122756571 | E77: 105190692
A78: 05016067002 | B78: 3582301 | C78: 12070780 | D78: 3582301 | E78: 11166765
A79: 05016068002 | B79: 10882622 | C79: 33968585 | D79: 10882622 | E79: 36261767
A80: 05016069002 | B80: 5811348 | C80: 28078427 | D80: 5811348 | E80: 26970200
A81: 05016070002 | B81: 784461 | C81: 12217222 | D81: 784461 | E81: 11940981
A82: 05016071002 | B82: 3415332 | C82: 11433746 | D82: 3415332 | E82: 11411135
A83: 05016072002 | B83: 4793879 | C83: 15115439 | D83: 4793879 | E83: 15407599
A84: 05016073002 | B84: 3045433 | C84: 10223557 | D84: 3045433 | E84: 10138932
A85: 05016073502 | B85: 6247689 | C85: 20010103 | D85: 6247689 | E85: 21500638
A86: 05016074002 | B86: 9014262 | C86: 29533497 | D86: 9014262 | E86: 28311537
A87: 05016202017 | B87: 24308805 | C87: 91109135 | D87: 24308805 | E87: 89224755
A88: 05016203017 | B88: 21531835 | C88: 114175188 | D88: 21531835 | E88: 110680582
A89: 05016207017 | B89: 45678237 | C89: 155313099 | D89: 45678237 | E89: 149263278
A90: 05016211017 | B90: 79932635 | C90: 279071210 | D90: 79932635 | E90: 270746276
A91: 05016214017 | B91: 80863126 | C91: 283875596 | D91: 80863126 | E91: 273972842
A92: 05016219017 | B92: 35215118 | C92: 152693472 | D92: 35215118 | E92: 130723896
A93: 05016225017 | B93: 39625742 | C93: 150108911 | D93: 39625742 | E93: 142627907
A94: 06016078002 | B94: 1661730 | C94: 6133674 | D94: 1661730 | E94: 5527010
A95: 06016079002 | B95: 979779 | C95: 4905511 | D95: 979779 | E95: 4775619
A96: 06016080002 | B96: 2899045 | C96: 13011391 | D96: 2899045 | E96: 13363746
A97: 06016081002 | B97: 3858202 | C97: 19685974 | D97: 3858202 | E97: 19243889
A98: 06016083002 | B98: 15070779 | C98: 52028867 | D98: 15070779 | E98: 49901412
A99: 06016084002 | B99: 6142091 | C99: 22630726 | D99: 6142091 | E99: 21341529
A100: 06016084502 | B100: 3639260 | C100: 13743893 | D100: 3639260 | E100: 11999011
A101: 06016085502 | B101: 1615978 | C101: 8767457 | D101: 1615978 | E101: 8008504
A102: 06016086002 | B102: 463429 | C102: 6939420 | D102: 463429 | E102: 6716567
A103: 06016087002 | B103: 9071627 | C103: 40609578 | D103: 9071627 | E103: 37800378
A104: 06016088002 | B104: 6180017 | C104: 34374179 | D104: 6180017 | E104: 32590597
A105: 06016089002 | B105: 21060557 | C105: 81197433 | D105: 21060557 | E105: 74745101
A106: 06016090002 | B106: 9656034 | C106: 30438265 | D106: 9656034 | E106: 29692460
A107: 06016091002 | B107: 5465976 | C107: 20412038 | D107: 5465976 | E107: 20421335
A108: 06016092002 | C108: 6515313 | E108: 6118142
A109: 06016092502 | B109: 8793407 | C109: 21594850 | D109: 8793407 | E109: 21252729
A110: 06016093002 | B110: 2741906 | C110: 9651131 | D110: 2741906 | E110: 8921294
A111: 06016094002 | B111: 2367107 | C111: 8617429 | D111: 2367107 | E111: 8461705
A112: 06016095002 | B112: 4478688 | C112: 15308142 | D112: 4478688 | E112: 14777772
A113: 06016096002 | B113: 8860233 | C113: 29741332 | D113: 8860233 | E113: 31014795
A114: 06016097002 | B114: 33096463 | C114: 115305502 | D114: 33096463 | E114: 107702469
A115: 06016098002 | B115: 12212081 | C115: 45739584 | D115: 12212081 | E115: 43256891
A116: 06016099002 | B116: 49273942 | C116: 193623721 | D116: 49273942 | E116: 174815117
A117: 06016100002 | B117: 14469582 | C117: 58771530 | D117: 14469582 | E117: 49569173
A118: 06016101002 | B118: 8176636 | C118: 22387732 | D118: 8176636 | E118: 22773784
A119: 06016102002 | B119: 9369409 | C119: 43564700 | D119: 9369409 | E119: 39721804
A120: 06016103002 | B120: 11624726 | C120: 37486128 | D120: 11624726 | E120: 39600950
A121: 06016105002 | B121: 10743576 | C121: 29818502 | D121: 10743576 | E121: 30367596
A122: 06016106002 | B122: 5149482 | C122: 16049129 | D122: 5149482 | E122: 15700855
A123: 06016107002 | B123: 5878088 | C123: 16374076 | D123: 5878088 | E123: 16631247
A124: 06016200013 | B124: 19376475 | C124: 83323777 | D124: 19376475 | E124: 84277371
A125: 06016201017 | B125: 33159525 | C125: 108887357 | D125: 33159525 | E125: 111406929
A126: 06016204017 | B126: 24713606 | C126: 85602094 | D126: 24713606 | E126: 85409155
A127: 06016208017 | B127: 8592084 | C127: 29847983 | D127: 8592084 | E127: 29308124
A128: 06016209017 | B128: 19098221 | C128: 90447330 | D128: 19098221 | E128: 80894520
A129: 06016212016 | B129: 23047041 | C129: 84832227 | D129: 23047041 | E129: 79859939
A130: 06016234016 | B130: 4790542 | C130: 18605795 | D130: 4790542 | E130: 17524694
A131: 06016401026 | B131: 13617126 | C131: 46956977 | D131: 13617126 | E131: 48015505
A132: 07016104002 | B132: 4855793 | C132: 25531749 | D132: 4855793 | E132: 26149940
A133: 07016108002 | B133: 1695661 | C133: 5968073 | D133: 1695661 | E133: 6873015
A134: 07016109002 | B134: 10614978 | C134: 42567282 | D134: 10614978 | E134: 40375805
A135: 07016110002 | B135: 934790 | C135: 5864321 | D135: 934790 | E135: 5396984
A136: 07016111002 | B136: 5866350 | C136: 44012093 | D136: 5866350 | E136: 41341812
A137: 07016113A02 | B137: 7494897 | C137: 28457943 | D137: 7494897 | E137: 26874982
A138: 07016117002 | B138: 2114246 | C138: 41664318 | D138: 2114246 | E138: 34379169
A139: 07016118004 | B139: 5649201 | C139: 26093675 | D139: 5649201 | E139: 26140399
A140: 07016122002 | B140: 4898173 | C140: 29036061 | D140: 4898173 | E140: 27520243
A141: 07016123002 | B141: 8910103 | C141: 42124318 | D141: 8910103 | E141: 42530287
A142: 07016124002 | B142: 5204641 | C142: 26549204 | D142: 5204641 | E142: 27883161
A143: 07016125002 | B143: 2485386 | C143: 9691435 | D143: 2485386 | E143: 9267400
A144: 07016126002 | B144: 4003455 | C144: 26427887 | D144: 4003455 | E144: 21225724
A145: 07016127002 | B145: 4330512 | C145: 16618936 | D145: 4330512 | E145: 15587530
A146: 07016127502 | B146: 3209318 | C146: 20440200 | D146: 3209318 | E146: 17176794
A147: 07016128002 | B147: 477267 | C147: 8695363 | D147: 477267 | E147: 8223390
A148: 07016130002 | B148: 9175976 | C148: 54023478 | D148: 9175976 | E148: 48622274
A149: 07016132002 | B149: 2957484 | C149: 14860577 | D149: 2957484 | E149: 13852134
A150: 07016133002 | B150: 1455499 | C150: 5668969 | D150: 1455499 | E150: 5342883
A151: 07016135002 | B151: 25937301 | C151: 89059829 | D151: 25937301 | E151: 86870595
A152: 07016140002 | B152: 10834810 | C152: 45885113 | D152: 10834810 | E152: 47955936
A153: 07016142002 | B153: 750042 | C153: 14148856 | D153: 750042 | E153: 13054547
A154: 07016143002 | B154: 7275372 | C154: 24611855 | D154: 7275372 | E154: 23744010
A155: 07016143502 | B155: 5555409 | C155: 22993898 | D155: 5555409 | E155: 22026646
A156: 07016144002 | B156: 9216544 | C156: 38172230 | D156: 9216544 | E156: 34831229
A157: 07016145002 | B157: 4407376 | C157: 16767768 | D157: 4407376 | E157: 15640581
A158: 07016146004 | B158: 7822693 | C158: 36952880 | D158: 7822693 | E158: 38003160
A159: 07016147002 | B159: 4477497 | C159: 19677574 | D159: 4477497 | E159: 18127722
A160: 07016148002 | B160: 1782405 | C160: 32155421 | D160: 1782405 | E160: 31290314
A161: 07016149002 | B161: 7524223 | C161: 40105887 | D161: 7524223 | E161: 36946281
A162: 07016150002 | B162: 4270211 | C162: 14358100 | D162: 4270211 | E162: 13827630
A163: 07016151002 | B163: 6640103 | C163: 26511618 | D163: 6640103 | E163: 24792854
A164: 07016152002 | B164: 4739230 | C164: 29072576 | D164: 4739230 | E164: 27781675
A165: 07016152502 | B165: 3336693 | C165: 14125658 | D165: 3336693 | E165: 14596951
A166: 07016153002 | B166: 8618890 | C166: 27700730 | D166: 8618890 | E166: 27370223
A167: 07016154002 | B167: 1179287 | C167: 3681427 | D167: 1179287 | E167: 3491294
A168: 07016154502 | B168: 402149 | C168: 2751374 | D168: 402149 | E168: 2329973
A169: 07016155002 | B169: 3007932 | C169: 16523691 | D169: 3007932 | E169: 16754262
A170: 07016156002 | B170: 2091618 | C170: 12752622 | D170: 2091618 | E170: 11639365
A171: 07016157002 | B171: 2230524 | C171: 12190218 | D171: 2230524 | E171: 12091138
A172: 07016158002 | B172: 5565435 | C172: 31974155 | D172: 5565435 | E172: 29826335
A173: 07016159002 | B173: 5549853 | C173: 30353441 | D173: 5549853 | E173: 30080915
A174: 07016160002 | B174: 4943880 | C174: 18515117 | D174: 4943880 | E174: 18934657
A175: 07016161002 | B175: 10145725 | C175: 35462169 | D175: 10145725 | E175: 35228640
A176: 07016162002 | B176: 7513550 | C176: 39200241 | D176: 7513550 | E176: 38537013
A177: 07016163002 | B177: 8489957 | C177: 30359826 | D177: 8489957 | E177: 28793974
A178: 07016167002 | B178: 4431397 | C178: 17844783 | D178: 4431397 | E178: 17301458
A179: 07016168004 | B179: 6831041 | C179: 23893346 | D179: 6831041 | E179: 23949303
A180: 07016169002 | B180: 2116798 | C180: 7551886 | D180: 2116798 | E180: 8072536
A181: 07016170002 | B181: 14773706 | C181: 53612877 | D181: 14773706 | E181: 50642098
A182: 07016171002 | B182: 3681154 | C182: 14743183 | D182: 3681154 | E182: 13815699
A183: 07016172002 | B183: 1469295 | C183: 5827521 | D183: 1469295 | E183: 5635855
A184: 07016194002 | B184: 5513493 | C184: 19379901 | D184: 5513493 | E184: 18429288
A185: 07016205017 | B185: 31705093 | C185: 122928812 | D185: 31705093 | E185: 117890851
A186: 07016206017 | B186: 17960736 | C186: 61184893 | D186: 17960736 | E186: 58557413
A187: 07016210017 | B187: 8076289 | C187: 28196081 | D187: 8076289 | E187: 26718775
A188: 07016215017 | B188: 12294161 | C188: 57940330 | D188: 12294161 | E188: 59261568
A189: 07016217016 | B189: 11902867 | C189: 41605712 | D189: 11902867 | E189: 41356334
A190: 07016218016 | B190: 20570112 | C190: 102630753 | D190: 20570112 | E190: 104709793
A191: 07016220017 | B191: 6393731 | C191: 32284505 | D191: 6393731 | E191: 32539081
A192: 07016227017 | B192: 18153578 | C192: 66821612 | D192: 18153578 | E192: 65492641
A193: 07016228016 | B193: 29826590 | C193: 103338584 | D193: 29826590 | E193: 104692498
A194: 07016229016 | B194: 5824806 | C194: 32027841 | D194: 5824806 | E194: 30844230
A195: 07016230013 | B195: 50488672 | C195: 165687682 | D195: 50488672 | E195: 154727200
A196: 07016231016 | B196: 5200868 | C196: 21698297 | D196: 5200868 | E196: 19488477
A197: 07016233016 | B197: 16429486 | C197: 59388942 | D197: 16429486 | E197: 56103335
A198: 08008308026 | B198: 371849 | C198: 6444351 | D198: 371849 | E198: 5652415
A199: 08008314026 | B199: 543623 | C199: 11024629 | D199: 543623 | E199: 10607609
A200: 08008399026 | B200: 291069 | C200: 4088840 | D200: 291069 | E200: 4089007
... 659 more rows

Sheet SDJA Field #'s (hidden)
A1: txtFieldNum | B1: 2018 | J1: ChrAgreNum | K1: txtFieldNum | L1: 2018
A2: 4 | B2: 4449380884 | J2: 32000000047 | K2: 4061 | L2: 262098
A3: 11 | B3: 10987732 | J3: 45079122019 | K3: 4061 | L3: 367506
A4: 12 | B4: 2148438515 | J4: 12000000046 | K4: 4061 | L4: 402404
A5: 15 | B5: 9075481 | J5: 01009700045 | K5: 4061 | L5: 456476
A6: 16 | B6: 1.390591101e+10 | J6: 21100801046 | K6: 4061 | L6: 462618
A7: 25 | B7: 114728242 | J7: 53102721045 | K7: 4061 | L7: 466102
A8: 27 | B8: 4524419427 | J8: 17054404041 | K8: 4061 | L8: 502523
A9: 30 | B9: 6161950946 | J9: 17054404046 | K9: 4061 | L9: 513263
A10: 31 | B10: 7490098560 | J10: 13000000041 | K10: 4061 | L10: 550070
A11: 32 | B11: 1.390591101e+10 | J11: 33048205041 | K11: 4061 | L11: 575963
A12: 36 | B12: 449091290 | J12: 13000000047 | K12: 4061 | L12: 586707
A13: 43 | B13: 98822 | J13: 13041099004 | K13: 4061 | L13: 586716.14
A14: 44 | B14: 349694184 | J14: 08000000046 | K14: 4061 | L14: 589040
A15: 47 | B15: 809521 | J15: 40000000046 | K15: 4061 | L15: 599155
A16: 48 | B16: 2013208786 | J16: 30000000046 | K16: 4061 | L16: 604885
A17: 56 | B17: 382003 | J17: 17053090046 | K17: 4061 | L17: 605798
A18: 58 | B18: 533223051 | J18: 12013035046 | K18: 4061 | L18: 625848
A19: 61 | B19: 648260202 | J19: 13041012004 | K19: 4061 | L19: 645735.83
A20: 62 | B20: 1159053683 | J20: 17053425004 | K20: 4061 | L20: 653995
A21: 63 | B21: 2013208786 | J21: 28006098002 | K21: 4061 | L21: 701403
A22: 65 | B22: 453038975 | J22: 33094729045 | K22: 4061 | L22: 726797
A23: 68 | B23: 192660768 | J23: 28006000000 | K23: 4061 | L23: 736095
A24: 69 | B24: 13754738 | J24: 13000000046 | K24: 4061 | L24: 746371
A25: 70 | B25: 2119237365 | J25: 45000000046 | K25: 4061 | L25: 750898
A26: 73 | B26: 460348617 | J26: 54092740045 | K26: 4061 | L26: 766363
A27: 78 | B27: 469306339 | J27: 21044043003 | K27: 4061 | L27: 802709
A28: 79 | B28: 613024456.9 | J28: 24032074003 | K28: 4061 | L28: 858991
A29: 80 | B29: 2119237365 | J29: 13095011004 | K29: 4061 | L29: 862048
A30: 84 | B30: 159323034 | J30: 01001172041 | K30: 4061 | L30: 864562
A31: 92 | B31: 210381344 | J31: 35050120040 | K31: 4061 | L31: 878691
A32: 95 | B32: 188063 | J32: 17053090041 | K32: 4061 | L32: 881524
A33: 96 | B33: 1214539779 | J33: 13041006004 | K33: 4061 | L33: 883479
A34: 103 | B34: 802396 | J34: 48000000046 | K34: 4061 | L34: 886601
A35: 105 | B35: 299084753 | J35: 26000000046 | K35: 4061 | L35: 887355
A36: 108 | B36: 360433788 | J36: 01001172046 | K36: 4061 | L36: 893163
A37: 109 | B37: 686773915.9 | J37: 24047090004 | K37: 4061 | L37: 911479
A38: 110 | B38: 1214539779 | J38: 41057010041 | K38: 4061 | L38: 915681
A39: 112 | B39: 158410779 | J39: 53090606004 | K39: 4061 | L39: 922138
A40: 116 | B40: 109853870 | J40: 20000000046 | K40: 4061 | L40: 925822
A41: 118 | B41: 22713 | J41: 50082746045 | K41: 4061 | L41: 930746
A42: 119 | B42: 663696740.5 | J42: 08043790040 | K42: 4061 | L42: 941216
A43: 123 | B43: 5439635 | J43: 50082030003 | K43: 4061 | L43: 982305
A44: 124 | B44: 175026030 | J44: 30073005002 | K44: 4061 | L44: 1014564.83
A45: 127 | B45: 195258946 | J45: 53000000046 | K45: 4061 | L45: 1021673
A46: 128 | B46: 322545795.6 | J46: 13014062002 | K46: 4061 | L46: 1028497
A47: 129 | B47: 663696740.6 | J47: 04004000051 | K47: 4061 | L47: 1049626
A48: 138 | B48: 459294954 | J48: 07016790045 | K48: 4061 | L48: 1095703
A49: 141 | B49: 34045 | J49: 30073204004 | K49: 4061 | L49: 1121461
A50: 142 | B50: 2637165410 | J50: 17053426004 | K50: 4061 | L50: 1139797
A51: 145 | B51: 9113 | J51: 08089723045 | K51: 4061 | L51: 1141918
A52: 147 | B52: 17494828 | J52: 20096014004 | K52: 4061 | L52: 1145045
A53: 150 | B53: 187253893 | J53: 47052220002 | K53: 4061 | L53: 1148488
A54: 151 | B54: 1210250162 | J54: 35050720045 | K54: 4061 | L54: 1163712
A55: 152 | B55: 2637165410 | J55: 13014057002 | K55: 4061 | L55: 1181813
A56: 212 | B56: 1328601194 | J56: 05016039061 | K56: 4061 | L56: 1188880
A57: 213 | B57: 3.517537565e+10 | J57: 30002748045 | K57: 4061 | L57: 1252185
A58: 214 | B58: 1990590767 | J58: 13058002003 | K58: 4061 | L58: 1252201
A59: 215 | B59: 3803382597 | J59: 28006505016 | K59: 4061 | L59: 1253413
A60: 218 | B60: 4.336177481e+10 | J60: 28006084004 | K60: 4061 | L60: 1258062
A61: 219 | B61: 4.336033953e+10 | J61: 30091016004 | K61: 4061 | L61: 1282059
A62: 220 | B62: 4.336033953e+10 | J62: 35050082004 | K62: 4061 | L62: 1291720
A63: 221 | B63: 1645399108 | J63: 35050065004 | K63: 4061 | L63: 1293926
A64: 222 | B64: 19929913595 | J64: 44000000046 | K64: 4061 | L64: 1295270
A65: 223 | B65: 21575312703 | J65: 13095015004 | K65: 4061 | L65: 1312312.16
A66: 224 | B66: 21576111783 | J66: 47071269004 | K66: 4061 | L66: 1315666
A67: 226 | B67: 21576111783 | J67: 09010142004 | K67: 4061 | L67: 1320172
A68: 227 | B68: 21576111783 | J68: 24032024C04 | K68: 4061 | L68: 1324512
A69: 259 | B69: 19734469 | J69: 21044064002 | K69: 4061 | L69: 1347365
A70: 260 | B70: 5656749 | J70: 17064087041 | K70: 4061 | L70: 1375186
A71: 262 | B71: 13385462 | J71: 03026741045 | K71: 4061 | L71: 1396336
A72: 263 | B72: 24190 | J72: 09010008046 | K72: 4061 | L72: 1399755
A73: 371 | B73: 4568411 | J73: 20096017004 | K73: 4061 | L73: 1409553
A74: 439 | B74: 116325619 | J74: 04101134004 | K74: 4061 | L74: 1434180
A75: 440 | B75: 220808 | J75: 45079134004 | K75: 4061 | L75: 1443932
A76: 557 | B76: 956982138 | J76: 35050230004 | K76: 4061 | L76: 1445742
A77: 558 | B77: 41601698 | J77: 47071144003 | K77: 4061 | L77: 1456080
A78: 559 | B78: 575570 | J78: 13014063002 | K78: 4061 | L78: 1457803
A79: 590 | B79: 311901711 | J79: 35050210004 | K79: 4061 | L79: 1461831
A80: 591 | B80: 7162087 | J80: 54092061003 | K80: 4061 | L80: 1466540
A81: 644 | B81: 6744713631 | J81: 47071161004 | K81: 4061 | L81: 1511611
A82: 645 | B82: 53496043 | J82: 32000000046 | K82: 4061 | L82: 1512260
A83: 651 | B83: 357591986 | J83: 17064087046 | K83: 4061 | L83: 1541091
A84: 655 | B84: 9563036 | J84: 51084731045 | K84: 4061 | L84: 1551147
A85: 656 | B85: 190344821.8 | J85: 13014186002 | K85: 4061 | L85: 1571943
A86: 657 | B86: 286870819.9 | J86: 04000000046 | K86: 4061 | L86: 1610758
A87: 658 | B87: 52342635 | J87: 21028091004 | K87: 4061 | L87: 1612612
A88: 659 | B88: 1.030234103e+10 | J88: 49081030041 | K88: 4061 | L88: 1634381
A89: 660 | B89: 293179837 | J89: 03026203041 | K89: 4061 | L89: 1641090
A90: 661 | B90: 307192926.8 | J90: 24032072C04 | K90: 4061 | L90: 1648043
A91: 662 | B91: 202069750.2 | J91: 28006017004 | K91: 4061 | L91: 1652725
A92: 663 | B92: 147490838 | J92: 13014141502 | K92: 4061 | L92: 1672285
A93: 664 | B93: 228220846.9 | J93: 13014046002 | K93: 4061 | L93: 1673372
A94: 665 | B94: 73107501 | J94: 24032075002 | K94: 4061 | L94: 1678443
A95: 666 | B95: 1251261700 | J95: 17054088002 | K95: 4061 | L95: 1682227
A96: 667 | B96: 292144165 | J96: 06016212046 | K96: 4061 | L96: 1683487
A97: 668 | B97: 221686661.1 | J97: 20093017024 | K97: 4061 | L97: 1750710
A98: 669 | B98: 15972675 | J98: 09027005061 | K98: 4061 | L98: 1754991
A99: 670 | B99: 529803501.1 | J99: 13014060002 | K99: 4061 | L99: 1760051
A100: 671 | B100: 32267130 | J100: 07016218046 | K100: 4061 | L100: 1761459
A101: 672 | B101: 200887854.7 | J101: 40007042026 | K101: 4061 | L101: 1763752
A102: 673 | B102: 319595879.7 | J102: 17053435004 | K102: 4061 | L102: 1773842
A103: 674 | B103: 886967607.6 | J103: 48072328003 | K103: 4061 | L103: 1801736
A104: 675 | B104: 43553785 | J104: 13058001003 | K104: 4061 | L104: 1837848
A105: 676 | B105: 930521392.6 | J105: 30039130004 | K105: 4061 | L105: 1851719
A106: 677 | B106: 52840391 | J106: 35050425026 | K106: 4061 | L106: 1879605
A107: 678 | B107: 113534193.7 | J107: 20096006004 | K107: 4061 | L107: 1880278
A108: 679 | B108: 93837510.16 | J108: 07016228046 | K108: 4061 | L108: 1890280
A109: 680 | B109: 20446100 | J109: 13041082002 | K109: 4061 | L109: 1901847
A110: 681 | B110: 216449522.1 | J110: 35059005061 | K110: 4061 | L110: 2015650
A111: 682 | B111: 11104192 | J111: 48072316004 | K111: 4061 | L111: 2015957
A112: 684 | B112: 508211909 | J112: 13095001004 | K112: 4061 | L112: 2018790
A113: 685 | B113: 7879371 | J113: 41057745045 | K113: 4061 | L113: 2022597
A114: 686 | B114: 16155839 | J114: 31045302041 | K114: 4061 | L114: 2022795
A115: 687 | B115: 24880652 | J115: 11015735045 | K115: 4061 | L115: 2029490
A116: 688 | B116: 61556675 | J116: 54092225017 | K116: 4061 | L116: 2074086
A117: 690 | B117: 100858878.7 | J117: 17053438004 | K117: 4061 | L117: 2079593.99
A118: 692 | B118: 211331415.7 | J118: 01001172061 | K118: 4061 | L118: 2091714
A119: 693 | B119: 15234464 | J119: 53102002004 | K119: 4061 | L119: 2093089
A120: 694 | B120: 3765960262 | J120: 54092010026 | K120: 4061 | L120: 2093527
A121: 695 | B121: 73337542 | J121: 05016207046 | K121: 4061 | L121: 2105561
A122: 696 | B122: 1.414163883e+10 | J122: 09010130004 | K122: 4061 | L122: 2128502
A123: 702 | B123: 1821018203 | J123: 13041079002 | K123: 4061 | L123: 2132229
A124: 703 | B124: 9978449 | J124: 53090085002 | K124: 4061 | L124: 2134839
A125: 709 | B125: 77603853 | J125: 30039086003 | K125: 4061 | L125: 2140172
A126: 713 | B126: 1115459 | J126: 09010188004 | K126: 4061 | L126: 2155658
A127: 714 | B127: 39259201.59 | J127: 49081030046 | K127: 4061 | L127: 2163973
A128: 715 | B128: 21007270.62 | J128: 39000000046 | K128: 4061 | L128: 2179146
A129: 716 | B129: 2467821.77 | J129: 47098005046 | K129: 4061 | L129: 2224479
A130: 717 | B130: 2612016769 | J130: 16019430040 | K130: 4061 | L130: 2232562
A131: 718 | B131: 59836075 | J131: 16000000046 | K131: 4061 | L131: 2252480
A132: 719 | B132: 63757003.75 | J132: 28006094004 | K132: 4061 | L132: 2259339
A133: 720 | B133: 45912924.22 | J133: 13041005004 | K133: 4061 | L133: 2265639
A134: 721 | B134: 27696557 | J134: 48072069002 | K134: 4061 | L134: 2285123
A135: 722 | B135: 43046659.02 | J135: 26034327004 | K135: 4061 | L135: 2300450
A136: 723 | B136: 13044376 | J136: 32038249026 | K136: 4061 | L136: 2356124
A137: 724 | B137: 253293595 | J137: 31045046046 | K137: 4061 | L137: 2380611
A138: 725 | B138: 63786797.57 | J138: 21028115004 | K138: 4061 | L138: 2410931
A139: 726 | B139: 45101253 | J139: 24047066004 | K139: 4061 | L139: 2413953
A140: 727 | B140: 2515869 | J140: 35050017504 | K140: 4061 | L140: 2448316
A141: 728 | B141: 111403919.6 | J141: 49081029002 | K141: 4061 | L141: 2449881
A142: 729 | B142: 25655500 | J142: 11023003026 | K142: 4061 | L142: 2471328
A143: 730 | B143: 41455054 | J143: 50082188022 | K143: 4061 | L143: 2510525
A144: 731 | B144: 88952075 | J144: 35050079004 | K144: 4061 | L144: 2525514
A145: 732 | B145: 210254988.6 | J145: 13058007004 | K145: 4061 | L145: 2549127
A146: 733 | B146: 10311244 | J146: 21044032003 | K146: 4061 | L146: 2574714
A147: 734 | B147: 220566232.6 | J147: 13058010004 | K147: 4061 | L147: 2592871
A148: 735 | B148: 10811716 | J148: 05016214046 | K148: 4061 | L148: 2608834
A149: 736 | B149: 22176878 | J149: 13041003004 | K149: 4061 | L149: 2629566
A150: 737 | B150: 19662012 | J150: 21028174026 | K150: 4061 | L150: 2690620
A151: 738 | B151: 7385651 | J151: 24047018016 | K151: 4061 | L151: 2697184
A152: 739 | B152: 55643356 | J152: 32046850060 | K152: 4061 | L152: 2714629
A153: 740 | B153: 2292965 | J153: 07016154502 | K153: 4061 | L153: 2751374
A154: 742 | B154: 117972578 | J154: 35050185004 | K154: 4061 | L154: 2762227
A155: 743 | B155: 1679739 | J155: 24047000061 | K155: 4061 | L155: 2766034
A156: 744 | B156: 2922069 | J156: 53090137002 | K156: 4061 | L156: 2776099
A157: 745 | B157: 6133028 | J157: 17054092004 | K157: 4061 | L157: 2798569
A158: 746 | B158: 29573396 | J158: 13058100026 | K158: 4061 | L158: 2813766
A159: 748 | B159: 17613708 | J159: 45079001022 | K159: 4061 | L159: 2826233
A160: 750 | B160: 57921940 | J160: 48072070002 | K160: 4061 | L160: 2838115
A161: 751 | B161: 8051524 | J161: 01086002026 | K161: 4061 | L161: 2861765
A162: 752 | B162: 858161864.2 | J162: 13058722026 | K162: 4061 | L162: 2876221
A163: 753 | B163: 13351918 | J163: 30091066022 | K163: 4061 | L163: 2879376
A164: 754 | B164: 3483530551 | J164: 31000000046 | K164: 4061 | L164: 2882990
A165: 760 | B165: 118525163.6 | J165: 09010197004 | K165: 4061 | L165: 2897701
A166: 761 | B166: 532417 | J166: 47052271026 | K166: 4061 | L166: 2902829
A167: 767 | B167: 3006987 | J167: 41057003026 | K167: 4061 | L167: 2914677
A168: 771 | B168: 1898957 | J168: 48072066002 | K168: 4061 | L168: 2923053
A169: 772 | B169: 10715477 | J169: 26034347004 | K169: 4061 | L169: 2931838
A170: 773 | B170: 45738459.88 | J170: 28088001026 | K170: 4061 | L170: 3004112
A171: 774 | B171: 2278939 | J171: 13041178004 | K171: 4061 | L171: 3030763
A172: 775 | B172: 1021348397 | J172: 56099084002 | K172: 4061 | L172: 3031424
A173: 776 | B173: 13485960 | J173: 47098145004 | K173: 4061 | L173: 3049581
A174: 777 | B174: 13800265 | J174: 13014021002 | K174: 4061 | L174: 3050705
A175: 778 | B175: 44284405 | J175: 13058133002 | K175: 4061 | L175: 3052988
A176: 779 | B176: 8709801 | J176: 03011004026 | K176: 4061 | L176: 3099765
A177: 780 | B177: 30261076 | J177: 24032073017 | K177: 4061 | L177: 3121444
A178: 781 | B178: 14200109 | J178: 24032790040 | K178: 4061 | L178: 3149808
A179: 782 | B179: 124741616 | J179: 53090098002 | K179: 4061 | L179: 3150756
A180: 783 | B180: 109199833.5 | J180: 47052170061 | K180: 4061 | L180: 3152105
A181: 784 | B181: 40265620.62 | J181: 56099090002 | K181: 4061 | L181: 3154248
A182: 785 | B182: 23117655 | J182: 12013010026 | K182: 4061 | L182: 3170760
A183: 786 | B183: 172583109.1 | J183: 17054021026 | K183: 4061 | L183: 3215276
A184: 787 | B184: 113476526.8 | J184: 54092800080 | K184: 4061 | L184: 3221511
A185: 788 | B185: 18785116.88 | J185: 01069011026 | K185: 4061 | L185: 3239822
A186: 789 | B186: 156640559.6 | J186: 21061038026 | K186: 4061 | L186: 3244070
A187: 790 | B187: 22179495.33 | J187: 17054061004 | K187: 4061 | L187: 3262541
A188: 791 | B188: 474795 | J188: 51065200026 | K188: 4061 | L188: 3279526
A189: 792 | B189: 22654290.33 | J189: 11023006026 | K189: 4061 | L189: 3296902
A190: 793 | B190: 6816044 | J190: 11015005026 | K190: 4061 | L190: 3324592
A191: 794 | B191: 32605496.79 | J191: 39074057026 | K191: 4061 | L191: 3360731
A192: 795 | B192: 81048192 | J192: 47098020002 | K192: 4061 | L192: 3386458
A193: 796 | B193: 110441017 | J193: 24032002C02 | K193: 4061 | L193: 3434220
A194: 797 | B194: 204594889.8 | J194: 01075003026 | K194: 4061 | L194: 3436528
A195: 798 | B195: 10462403.63 | J195: 12017003026 | K195: 4061 | L195: 3438729
A196: 800 | B196: 445968043.2 | J196: 12017001026 | K196: 4061 | L196: 3476483
A197: 801 | B197: 2398128 | J197: 11087005A26 | K197: 4061 | L197: 3496983
A198: 802 | B198: 5331482 | J198: 01009064026 | K198: 4061 | L198: 3510221
A199: 803 | B199: 16981880 | J199: 56099203004 | K199: 4061 | L199: 3516558
A200: 804 | B200: 15412692 | J200: 20097001026 | K200: 4061 | L200: 3527566
... 2208 more rows

Sheet worksheet (hidden)
A1: All SD's (- Crete Monee) | C1: East STL | D1: City of Clay | E1: Lake Park | F1: All SD's (-CM & ESTL, & revisions for City of Clay and Lake Park)
A2: txtFieldNum | B2: 2018 | C2: 2018 | D2: 2018 | E2: 2018
A3: 4 | B3: 4449380884 | C3: 1317518 | D3: 0 | E3: 0 | F3: 4448063366
A4: 11 | B4: 10965222 | C4: 0 | D4: 0 | E4: 0 | F4: 10965222
A5: 12 | B5: 2085627941 | C5: 0 | D5: 0 | E5: 0 | F5: 2085627941
A6: 15 | B6: 8487467 | C6: 0 | D6: 0 | E6: 0 | F6: 8487467
A7: 16 | B7: 1.360432326e+10 | C7: 53962316 | D7: 0 | E7: 0 | F7: 1.355036095e+10
A8: 25 | B8: 113203890 | C8: 0 | D8: 0 | E8: 0 | F8: 113203890
A9: 27 | B9: 4516526967 | C9: 2900055 | D9: 0 | E9: 0 | F9: 4513626912
A10: 30 | B10: 6103904165 | C10: 7739318 | D10: 0 | E10: 0 | F10: 6096164847
A11: 31 | B11: 7255290592 | C11: 43452423 | D11: 0 | E11: 0 | F11: 7211838169
A12: 32 | B12: 1.360432326e+10 | C12: 53962316 | D12: 0 | E12: 0 | F12: 1.355036095e+10
A13: 36 | B13: 449091290 | C13: 329379 | D13: 0 | E13: 0 | F13: 448761911
A14: 43 | B14: 98822 | C14: 0 | D14: 0 | E14: 0 | F14: 98822
A15: 44 | B15: 352727831 | C15: 0 | D15: 0 | E15: 0 | F15: 352727831
A16: 47 | B16: 809521 | C16: 0 | D16: 0 | E16: 0 | F16: 809521
A17: 48 | B17: 2004389425 | C17: 1694294 | D17: 0 | E17: 0 | F17: 2002695131
A18: 56 | B18: 109272 | C18: 0 | D18: 0 | E18: 0 | F18: 109272
A19: 58 | B19: 532996778 | C19: 210583 | D19: 0 | E19: 0 | F19: 532786195
A20: 61 | B20: 645406398 | C20: 383022 | D20: 0 | E20: 0 | F20: 645023376
A21: 62 | B21: 1153151308 | C21: 0 | D21: 0 | E21: 0 | F21: 1153151308
A22: 63 | B22: 2004389425 | C22: 1694294 | D22: 0 | E22: 0 | F22: 2002695131
A23: 65 | B23: 453038975 | C23: 1138861 | D23: 0 | E23: 0 | F23: 451900114
A24: 68 | B24: 192660768 | C24: 0 | D24: 0 | E24: 0 | F24: 192660768
A25: 69 | B25: 13754738 | C25: 570310 | D25: 0 | E25: 0 | F25: 13184428
A26: 70 | B26: 2118999902 | C26: 7370322 | D26: 0 | E26: 0 | F26: 2111629580
A27: 73 | B27: 460348617 | C27: 728106 | D27: 0 | E27: 0 | F27: 459620511
A28: 78 | B28: 469306339 | C28: 728106 | D28: 0 | E28: 0 | F28: 468578233
A29: 79 | B29: 612786993.9 | C29: 1757627 | D29: 0 | E29: 0 | F29: 611029366.9
A30: 80 | B30: 2118999902 | C30: 7370322 | D30: 0 | E30: 0 | F30: 2111629580
A31: 84 | B31: 159323034 | C31: 131752 | D31: 0 | E31: 0 | F31: 159191282
A32: 92 | B32: 210291838 | C32: 0 | D32: 0 | E32: 0 | F32: 210291838
A33: 95 | B33: 188063 | C33: 0 | D33: 0 | E33: 0 | F33: 188063
A34: 96 | B34: 1208901307 | C34: 2519922 | D34: 0 | E34: 0 | F34: 1206381385
A35: 103 | B35: 660741 | C35: 0 | D35: 0 | E35: 0 | F35: 660741
A36: 105 | B36: 298210918 | C36: 733927 | D36: 0 | E36: 0 | F36: 297476991
A37: 108 | B37: 357072463 | C37: 858330 | D37: 0 | E37: 0 | F37: 356214133
A38: 109 | B38: 684573002.9 | C38: 0 | D38: 0 | E38: 0 | F38: 684573002.9
A39: 110 | B39: 1208901307 | C39: 2519922 | D39: 0 | E39: 0 | F39: 1206381385
A40: 112 | B40: 158410779 | C40: 1526804 | D40: 0 | E40: 0 | F40: 156883975
A41: 116 | B41: 109853870 | C41: 0 | D41: 0 | E41: 0 | F41: 109853870
A42: 118 | B42: 22713 | C42: 0 | D42: 0 | E42: 0 | F42: 22713
A43: 119 | B43: 661600222.5 | C43: 4937924 | D43: 0 | E43: 0 | F43: 656662298.5
A44: 123 | B44: 5439635 | C44: 0 | D44: 0 | E44: 0 | F44: 5439635
A45: 124 | B45: 175026030 | C45: 976129 | D45: 0 | E45: 0 | F45: 174049901
A46: 127 | B46: 194799093 | C46: 976129 | D46: 0 | E46: 0 | F46: 193822964
A47: 128 | B47: 320909130.6 | C47: 2040364 | D47: 0 | E47: 0 | F47: 318868766.6
A48: 129 | B48: 661600222.6 | C48: 4937924 | D48: 0 | E48: 0 | F48: 656662298.6
A49: 138 | B49: 459294954 | C49: 0 | D49: 0 | E49: 0 | F49: 459294954
A50: 141 | B50: 34045 | C50: 0 | D50: 0 | E50: 0 | F50: 34045
A51: 142 | B51: 2636761886 | C51: 1386767 | D51: 0 | E51: 0 | F51: 2635375119
A52: 145 | B52: 9113 | C52: 0 | D52: 0 | E52: 0 | F52: 9113
A53: 147 | B53: 17494828 | C53: 0 | D53: 0 | E53: 0 | F53: 17494828
A54: 150 | B54: 187253893 | C54: 0 | D54: 0 | E54: 0 | F54: 187253893
A55: 151 | B55: 1209846638 | C55: 0 | D55: 0 | E55: 0 | F55: 1209846638
A56: 152 | B56: 2636761886 | C56: 1386767 | D56: 0 | E56: 0 | F56: 2635375119
A57: 212 | B57: 1322298013 | C57: 815300 | D57: 0 | E57: 0 | F57: 1321482713
A58: 213 | B58: 3.492564703e+10 | C58: 214644813 | D58: 0 | E58: 0 | F58: 3.471100222e+10
A59: 214 | B59: 1971193146 | C59: 4604112 | D59: 0 | E59: 0 | F59: 1966589034
A60: 215 | B60: 3710974507 | C60: 20966469 | D60: 0 | E60: 0 | F60: 3690008038
A61: 218 | B61: 4.299205244e+10 | C61: 241030694 | D61: 0 | E61: 0 | F61: 4.275102175e+10
A62: 219 | B62: 4.299205244e+10 | C62: 241030694 | D62: 0 | E62: 0 | F62: 4.275102175e+10
A63: 220 | B63: 4.299205244e+10 | C63: 241030694 | D63: 0 | E63: 0 | F63: 4.275102175e+10
A64: 221 | B64: 1645160085 | C64: 6642216 | D64: 0 | E64: 0 | F64: 1638517869
A65: 222 | B65: 19912185421 | C65: 23577784 | D65: 0 | E65: 0 | F65: 19888607637
A66: 223 | B66: 21557345506 | C66: 30220000 | D66: 0 | E66: 0 | F66: 21527125506
A67: 224 | B67: 21557256289 | C67: 30220000 | D67: 0 | E67: 0 | F67: 21527036289
A68: 226 | B68: 21557256289 | C68: 30220000 | D68: 0 | E68: 0 | F68: 21527036289
A69: 227 | B69: 21557256289 | C69: 30220000 | D69: 0 | E69: 0 | F69: 21527036289
A70: 259 | B70: 19734469 | C70: 0 | D70: 0 | E70: 0 | F70: 19734469
A71: 260 | B71: 5656749 | C71: 0 | D71: 0 | E71: 0 | F71: 5656749
A72: 262 | B72: 13385462 | C72: 0 | D72: 0 | E72: 0 | F72: 13385462
A73: 263 | B73: 24190 | C73: 0 | D73: 0 | E73: 0 | F73: 24190
A74: 371 | B74: 4568411 | C74: 0 | D74: 0 | E74: 0 | F74: 4568411
A75: 439 | B75: 116325619 | C75: 0 | D75: 0 | E75: 0 | F75: 116325619
A76: 440 | B76: 220808 | C76: 0 | D76: 0 | E76: 0 | F76: 220808
A77: 557 | B77: 956982138 | C77: 0 | D77: 0 | E77: 0 | F77: 956982138
A78: 558 | B78: 41601698 | C78: 0 | D78: 0 | E78: 0 | F78: 41601698
A79: 559 | B79: 575570 | C79: 0 | D79: 0 | E79: 0 | F79: 575570
A80: 590 | B80: 311901711 | C80: 0 | D80: 0 | E80: 0 | F80: 311901711
A81: 591 | B81: 7162087 | C81: 0 | D81: 0 | E81: 0 | F81: 7162087
A82: 644 | B82: 6741171855 | C82: 15183063 | D82: 0 | E82: 0 | F82: 6725988792
A83: 645 | B83: 53496043 | C83: 0 | D83: 0 | E83: 0 | F83: 53496043
A84: 651 | B84: 357544899 | C84: 181439 | D84: 0 | E84: 0 | F84: 357363460
A85: 655 | B85: 8234532 | C85: 0 | D85: 0 | E85: 0 | F85: 8234532
A86: 656 | B86: 169299761.8 | C86: 535228 | D86: 0 | E86: 0 | F86: 168764533.8
A87: 657 | B87: 286601372.9 | C87: 194052 | D87: 0 | E87: 0 | F87: 286407320.9
A88: 658 | B88: 47627036 | C88: 0 | D88: 0 | E88: 0 | F88: 47627036
A89: 659 | B89: 1.005228101e+10 | C89: 26930010 | D89: 0 | E89: 0 | F89: 1.0025351e+10
A90: 660 | B90: 267877815 | C90: 1720517 | D90: 0 | E90: 0 | F90: 266157298
A91: 661 | B91: 305511212.8 | C91: 558433 | D91: 0 | E91: 0 | F91: 304952779.8
A92: 662 | B92: 153858708.2 | C92: 314722 | D92: 0 | E92: 0 | F92: 153543986.2
A93: 663 | B93: 124376076 | C93: 488843 | D93: 0 | E93: 0 | F93: 123887233
A94: 664 | B94: 197865876.9 | C94: 348066 | D94: 0 | E94: 0 | F94: 197517810.9
A95: 665 | B95: 70251496 | C95: 75937 | D95: 0 | E95: 0 | F95: 70175559
A96: 666 | B96: 1119741185 | C96: 3506518 | D96: 0 | E96: 0 | F96: 1116234667
A97: 667 | B97: 279910784 | C97: 2480594 | D97: 0 | E97: 0 | F97: 277430190
A98: 668 | B98: 220632626.1 | C98: 434427 | D98: 0 | E98: 0 | F98: 220198199.1
A99: 669 | B99: 13958619 | C99: 10300 | D99: 0 | E99: 0 | F99: 13948319
A100: 670 | B100: 514502029.1 | C100: 2925321 | D100: 0 | E100: 0 | F100: 511576708.1
A101: 671 | B101: 31051748 | C101: 0 | D101: 0 | E101: 0 | F101: 31051748
A102: 672 | B102: 177937895.7 | C102: 990976 | D102: 0 | E102: 0 | F102: 176946919.7
A103: 673 | B103: 282991242.7 | C103: 1609578 | D103: 0 | E103: 0 | F103: 281381664.7
A104: 674 | B104: 874404091.6 | C104: 2894209 | D104: 0 | E104: 0 | F104: 871509882.6
A105: 675 | B105: 42342730 | C105: 91313 | D105: 0 | E105: 0 | F105: 42251417
A106: 676 | B106: 916746821.6 | C106: 2985522 | D106: 0 | E106: 0 | F106: 913761299.6
A107: 677 | B107: 50098057 | C107: 0 | D107: 0 | E107: 0 | F107: 50098057
A108: 678 | B108: 109019241.7 | C108: 625775 | D108: 0 | E108: 0 | F108: 108393466.7
A109: 679 | B109: 89779274.16 | C109: 2615 | D109: 0 | E109: 0 | F109: 89776659.16
A110: 680 | B110: 19237105 | C110: 27796 | D110: 0 | E110: 0 | F110: 19209309
A111: 681 | B111: 215621257.1 | C111: 77657 | D111: 0 | E111: 0 | F111: 215543600.1
A112: 682 | B112: 10997332 | C112: 231731 | D112: 0 | E112: 0 | F112: 10765601
A113: 684 | B113: 494752267 | C113: 965574 | D113: 0 | E113: 0 | F113: 493786693
A114: 685 | B114: 7546862 | C114: 750447 | D114: 0 | E114: 0 | F114: 6796415
A115: 686 | B115: 15955554 | C115: 369632 | D115: 0 | E115: 0 | F115: 15585922
A116: 687 | B116: 24210062 | C116: 0 | D116: 0 | E116: 0 | F116: 24210062
A117: 688 | B117: 60814347 | C117: 382838 | D117: 0 | E117: 0 | F117: 60431509
A118: 690 | B118: 99617794.68 | C118: 501145 | D118: 0 | E118: 0 | F118: 99116649.68
A119: 692 | B119: 208144619.7 | C119: 2004062 | D119: 0 | E119: 0 | F119: 206140557.7
A120: 693 | B120: 13142507 | C120: 577912 | D120: 0 | E120: 0 | F120: 12564595
A121: 694 | B121: 3550020672 | C121: 14574487 | D121: 0 | E121: 0 | F121: 3535446185
A122: 695 | B122: 71914890 | C122: 183519 | D122: 0 | E122: 0 | F122: 71731371
A123: 696 | B123: 1.367421657e+10 | C123: 41688016 | D123: 0 | E123: 0 | F123: 1.363252855e+10
A124: 702 | B124: 1820198464 | C124: 2345912 | D124: 0 | E124: 0 | F124: 1817852552
A125: 703 | B125: 9978449 | C125: 0 | D125: 0 | E125: 0 | F125: 9978449
A126: 709 | B126: 77589893 | C126: 43022 | D126: 0 | E126: 0 | F126: 77546871
A127: 713 | B127: 757212 | C127: 0 | D127: 0 | E127: 0 | F127: 757212
A128: 714 | B128: 34246764.59 | C128: 102377 | D128: 0 | E128: 0 | F128: 34144387.59
A129: 715 | B129: 20977445.62 | C129: 19566 | D129: 0 | E129: 0 | F129: 20957879.62
A130: 716 | B130: 2033666.77 | C130: 0 | D130: 0 | E130: 0 | F130: 2033666.77
A131: 717 | B131: 2539185409 | C131: 5352930 | D131: 0 | E131: 0 | F131: 2533832479
A132: 718 | B132: 55138428 | C132: 377350 | D132: 0 | E132: 0 | F132: 54761078
A133: 719 | B133: 63325892.75 | C133: 108203 | D133: 0 | E133: 0 | F133: 63217689.75
A134: 720 | B134: 31792513.22 | C134: 90123 | D134: 0 | E134: 0 | F134: 31702390.22
A135: 721 | B135: 23313846 | C135: 102847 | D135: 0 | E135: 0 | F135: 23210999
A136: 722 | B136: 37425100.02 | C136: 67669 | D136: 0 | E136: 0 | F136: 37357431.02
A137: 723 | B137: 12299869 | C137: 10592 | D137: 0 | E137: 0 | F137: 12289277
A138: 724 | B138: 223295649 | C138: 756784 | D138: 0 | E138: 0 | F138: 222538865
A139: 725 | B139: 60661474.57 | C139: 529034 | D139: 0 | E139: 0 | F139: 60132440.57
A140: 726 | B140: 44815372 | C140: 89681 | D140: 0 | E140: 0 | F140: 44725691
A141: 727 | B141: 1940491 | C141: 0 | D141: 0 | E141: 0 | F141: 1940491
A142: 728 | B142: 107417337.6 | C142: 618715 | D142: 0 | E142: 0 | F142: 106798622.6
A143: 729 | B143: 24908300 | C143: 2192 | D143: 0 | E143: 0 | F143: 24906108
A144: 730 | B144: 34813147 | C144: 146992 | D144: 0 | E144: 0 | F144: 34666155
A145: 731 | B145: 78375357 | C145: 268727 | D145: 0 | E145: 0 | F145: 78106630
A146: 732 | B146: 206706118.6 | C146: 481585 | D146: 0 | E146: 0 | F146: 206224533.6
A147: 733 | B147: 10022096 | C147: 12003 | D147: 0 | E147: 0 | F147: 10010093
A148: 734 | B148: 216728214.6 | C148: 493588 | D148: 0 | E148: 0 | F148: 216234626.6
A149: 735 | B149: 10015932 | C149: 0 | D149: 0 | E149: 0 | F149: 10015932
A150: 736 | B150: 20666413 | C150: 78236 | D150: 0 | E150: 0 | F150: 20588177
A151: 737 | B151: 18154691 | C151: 42155 | D151: 0 | E151: 0 | F151: 18112536
A152: 738 | B152: 6861872 | C152: 2401 | D152: 0 | E152: 0 | F152: 6859471
A153: 739 | B153: 55331968 | C153: 0 | D153: 0 | E153: 0 | F153: 55331968
A154: 740 | B154: 2285625 | C154: 36161 | D154: 0 | E154: 0 | F154: 2249464
A155: 742 | B155: 113316501 | C155: 158953 | D155: 0 | E155: 0 | F155: 113157548
A156: 743 | B156: 1527345 | C156: 145202 | D156: 0 | E156: 0 | F156: 1382143
A157: 744 | B157: 2884336 | C157: 66772 | D157: 0 | E157: 0 | F157: 2817564
A158: 745 | B158: 5786704 | C158: 0 | D158: 0 | E158: 0 | F158: 5786704
A159: 746 | B159: 29291752 | C159: 59224 | D159: 0 | E159: 0 | F159: 29232528
A160: 748 | B160: 17161311 | C160: 95182 | D160: 0 | E160: 0 | F160: 17066129
A161: 750 | B161: 56651448 | C161: 366380 | D161: 0 | E161: 0 | F161: 56285068
A162: 751 | B162: 7489563 | C162: 51441 | D162: 0 | E162: 0 | F162: 7438122
A163: 752 | B163: 803274070.2 | C163: 2714588 | D163: 0 | E163: 0 | F163: 800559482.2
A164: 753 | B164: 12852816 | C164: 35840 | D164: 0 | E164: 0 | F164: 12816976
A165: 754 | B165: 3355312295 | C165: 8103358 | D165: 0 | E165: 0 | F165: 3347208937
A166: 760 | B166: 118163391.6 | C166: 708049 | D166: 0 | E166: 0 | F166: 117455342.6
A167: 761 | B167: 532417 | C167: 0 | D167: 0 | E167: 0 | F167: 532417
A168: 767 | B168: 3004843 | C168: 0 | D168: 0 | E168: 0 | F168: 3004843
A169: 771 | B169: 1571457 | C169: 0 | D169: 0 | E169: 0 | F169: 1571457
A170: 772 | B170: 7573657 | C170: 58842 | D170: 0 | E170: 0 | F170: 7514815
A171: 773 | B171: 45674846.88 | C171: 450543 | D171: 0 | E171: 0 | F171: 45224303.88
A172: 774 | B172: 1843734 | C172: 0 | D172: 0 | E172: 0 | F172: 1843734
A173: 775 | B173: 1000923412 | C173: 3303205 | D173: 0 | E173: 0 | F173: 997620207.5
A174: 776 | B174: 12748405 | C174: 35613 | D174: 0 | E174: 0 | F174: 12712792
A175: 777 | B175: 12949838 | C175: 6489 | D175: 0 | E175: 0 | F175: 12943349
A176: 778 | B176: 34796077 | C176: 318234 | D176: 0 | E176: 0 | F176: 34477843
A177: 779 | B177: 7532428 | C177: 5016 | D177: 0 | E177: 0 | F177: 7527412
A178: 780 | B178: 24515469 | C178: 0 | D178: 0 | E178: 0 | F178: 24515469
A179: 781 | B179: 12962938 | C179: 0 | D179: 0 | E179: 0 | F179: 12962938
A180: 782 | B180: 105505155 | C180: 365352 | D180: 0 | E180: 0 | F180: 105139803
A181: 783 | B181: 101648199.5 | C181: 880056 | D181: 0 | E181: 0 | F181: 100768143.5
A182: 784 | B182: 39746237.62 | C182: 134 | D182: 0 | E182: 0 | F182: 39746103.62
A183: 785 | B183: 22858547 | C183: 22633 | D183: 0 | E183: 0 | F183: 22835914
A184: 786 | B184: 164252984.1 | C184: 902823 | D184: 0 | E184: 0 | F184: 163350161.1
A185: 787 | B185: 111071387.8 | C185: 112939 | D185: 0 | E185: 0 | F185: 110958448.8
A186: 788 | B186: 12253329.88 | C186: 251399 | D186: 0 | E186: 0 | F186: 12001930.88
A187: 789 | B187: 144089490.6 | C187: 373094 | D187: 0 | E187: 0 | F187: 143716396.6
A188: 790 | B188: 21803884.33 | C188: 141352 | D188: 0 | E188: 0 | F188: 21662532.33
A189: 791 | B189: 382088 | C189: 0 | D189: 0 | E189: 0 | F189: 382088
A190: 792 | B190: 22185972.33 | C190: 141352 | D190: 0 | E190: 0 | F190: 22044620.33
A191: 793 | B191: 5858787 | C191: 0 | D191: 0 | E191: 0 | F191: 5858787
A192: 794 | B192: 31426012.79 | C192: 85822 | D192: 0 | E192: 0 | F192: 31340190.79
A193: 795 | B193: 72299634 | C193: 159359 | D193: 0 | E193: 0 | F193: 72140275
A194: 796 | B194: 109471562 | C194: 0 | D194: -148798 | E194: 0 | F194: 109620360
A195: 797 | B195: 202610553.8 | C195: 2811494 | D195: 148798 | E195: 0 | F195: 199650261.8
A196: 798 | B196: 9997150.63 | C196: 17436 | D196: 0 | E196: 0 | F196: 9979714.63
A197: 800 | B197: 431663700.2 | C197: 3074111 | D197: 0 | E197: 0 | F197: 428589589.2
A198: 801 | B198: 2264478 | C198: 32634 | D198: 0 | E198: 0 | F198: 2231844
A199: 802 | B199: 5319354 | C199: 331919 | D199: 0 | E199: 0 | F199: 4987435
A200: 803 | B200: 16360688 | C200: 38755 | D200: 0 | E200: 0 | F200: 16321933
... 2206 more rows

Sheet Data pull 5-1-19 (hidden)
A1: txtFieldNum | B1: 2018
A2: 4 | B2: 4449380884
A3: 11 | B3: 10965222
A4: 12 | B4: 2085627941
A5: 15 | B5: 8487467
A6: 16 | B6: 1.360432326e+10
A7: 25 | B7: 113203890
A8: 27 | B8: 4516526967
A9: 30 | B9: 6103904165
A10: 31 | B10: 7255290592
A11: 32 | B11: 1.360432326e+10
A12: 36 | B12: 449091290
A13: 43 | B13: 98822
A14: 44 | B14: 352727831
A15: 47 | B15: 809521
A16: 48 | B16: 2004389425
A17: 56 | B17: 109272
A18: 58 | B18: 532996778
A19: 61 | B19: 645406398
A20: 62 | B20: 1153151308
A21: 63 | B21: 2004389425
A22: 65 | B22: 453038975
A23: 68 | B23: 192660768
A24: 69 | B24: 13754738
A25: 70 | B25: 2118999902
A26: 73 | B26: 460348617
A27: 78 | B27: 469306339
A28: 79 | B28: 612786993.9
A29: 80 | B29: 2118999902
A30: 84 | B30: 159323034
A31: 92 | B31: 210291838
A32: 95 | B32: 188063
A33: 96 | B33: 1208901307
A34: 103 | B34: 660741
A35: 105 | B35: 298210918
A36: 108 | B36: 357072463
A37: 109 | B37: 684573002.9
A38: 110 | B38: 1208901307
A39: 112 | B39: 158410779
A40: 116 | B40: 109853870
A41: 118 | B41: 22713
A42: 119 | B42: 661600222.5
A43: 123 | B43: 5439635
A44: 124 | B44: 175026030
A45: 127 | B45: 194799093
A46: 128 | B46: 320909130.6
A47: 129 | B47: 661600222.6
A48: 138 | B48: 459294954
A49: 141 | B49: 34045
A50: 142 | B50: 2636761886
A51: 145 | B51: 9113
A52: 147 | B52: 17494828
A53: 150 | B53: 187253893
A54: 151 | B54: 1209846638
A55: 152 | B55: 2636761886
A56: 212 | B56: 1322298013
A57: 213 | B57: 3.492564703e+10
A58: 214 | B58: 1971193146
A59: 215 | B59: 3710974507
A60: 218 | B60: 4.299205244e+10
A61: 219 | B61: 4.299205244e+10
A62: 220 | B62: 4.299205244e+10
A63: 221 | B63: 1645160085
A64: 222 | B64: 19912185421
A65: 223 | B65: 21557345506
A66: 224 | B66: 21557256289
A67: 226 | B67: 21557256289
A68: 227 | B68: 21557256289
A69: 259 | B69: 19734469
A70: 260 | B70: 5656749
A71: 262 | B71: 13385462
A72: 263 | B72: 24190
A73: 371 | B73: 4568411
A74: 439 | B74: 116325619
A75: 440 | B75: 220808
A76: 557 | B76: 956982138
A77: 558 | B77: 41601698
A78: 559 | B78: 575570
A79: 590 | B79: 311901711
A80: 591 | B80: 7162087
A81: 644 | B81: 6741171855
A82: 645 | B82: 53496043
A83: 651 | B83: 357544899
A84: 655 | B84: 8234532
A85: 656 | B85: 169299761.8
A86: 657 | B86: 286601372.9
A87: 658 | B87: 47627036
A88: 659 | B88: 1.005228101e+10
A89: 660 | B89: 267877815
A90: 661 | B90: 305511212.8
A91: 662 | B91: 153858708.2
A92: 663 | B92: 124376076
A93: 664 | B93: 197865876.9
A94: 665 | B94: 70251496
A95: 666 | B95: 1119741185
A96: 667 | B96: 279910784
A97: 668 | B97: 220632626.1
A98: 669 | B98: 13958619
A99: 670 | B99: 514502029.1
A100: 671 | B100: 31051748
A101: 672 | B101: 177937895.7
A102: 673 | B102: 282991242.7
A103: 674 | B103: 874404091.6
A104: 675 | B104: 42342730
A105: 676 | B105: 916746821.6
A106: 677 | B106: 50098057
A107: 678 | B107: 109019241.7
A108: 679 | B108: 89779274.16
A109: 680 | B109: 19237105
A110: 681 | B110: 215621257.1
A111: 682 | B111: 10997332
A112: 684 | B112: 494752267
A113: 685 | B113: 7546862
A114: 686 | B114: 15955554
A115: 687 | B115: 24210062
A116: 688 | B116: 60814347
A117: 690 | B117: 99617794.68
A118: 692 | B118: 208144619.7
A119: 693 | B119: 13142507
A120: 694 | B120: 3550020672
A121: 695 | B121: 71914890
A122: 696 | B122: 1.367421657e+10
A123: 702 | B123: 1820198464
A124: 703 | B124: 9978449
A125: 709 | B125: 77589893
A126: 713 | B126: 757212
A127: 714 | B127: 34246764.59
A128: 715 | B128: 20977445.62
A129: 716 | B129: 2033666.77
A130: 717 | B130: 2539185409
A131: 718 | B131: 55138428
A132: 719 | B132: 63325892.75
A133: 720 | B133: 31792513.22
A134: 721 | B134: 23313846
A135: 722 | B135: 37425100.02
A136: 723 | B136: 12299869
A137: 724 | B137: 223295649
A138: 725 | B138: 60661474.57
A139: 726 | B139: 44815372
A140: 727 | B140: 1940491
A141: 728 | B141: 107417337.6
A142: 729 | B142: 24908300
A143: 730 | B143: 34813147
A144: 731 | B144: 78375357
A145: 732 | B145: 206706118.6
A146: 733 | B146: 10022096
A147: 734 | B147: 216728214.6
A148: 735 | B148: 10015932
A149: 736 | B149: 20666413
A150: 737 | B150: 18154691
A151: 738 | B151: 6861872
A152: 739 | B152: 55331968
A153: 740 | B153: 2285625
A154: 742 | B154: 113316501
A155: 743 | B155: 1527345
A156: 744 | B156: 2884336
A157: 745 | B157: 5786704
A158: 746 | B158: 29291752
A159: 748 | B159: 17161311
A160: 750 | B160: 56651448
A161: 751 | B161: 7489563
A162: 752 | B162: 803274070.2
A163: 753 | B163: 12852816
A164: 754 | B164: 3355312295
A165: 760 | B165: 118163391.6
A166: 761 | B166: 532417
A167: 767 | B167: 3004843
A168: 771 | B168: 1571457
A169: 772 | B169: 7573657
A170: 773 | B170: 45674846.88
A171: 774 | B171: 1843734
A172: 775 | B172: 1000923412
A173: 776 | B173: 12748405
A174: 777 | B174: 12949838
A175: 778 | B175: 34796077
A176: 779 | B176: 7532428
A177: 780 | B177: 24515469
A178: 781 | B178: 12962938
A179: 782 | B179: 105505155
A180: 783 | B180: 101648199.5
A181: 784 | B181: 39746237.62
A182: 785 | B182: 22858547
A183: 786 | B183: 164252984.1
A184: 787 | B184: 111071387.8
A185: 788 | B185: 12253329.88
A186: 789 | B186: 144089490.6
A187: 790 | B187: 21803884.33
A188: 791 | B188: 382088
A189: 792 | B189: 22185972.33
A190: 793 | B190: 5858787
A191: 794 | B191: 31426012.79
A192: 795 | B192: 72299634
A193: 796 | B193: 109471562
A194: 797 | B194: 202610553.8
A195: 798 | B195: 9997150.63
A196: 800 | B196: 431663700.2
A197: 801 | B197: 2264478
A198: 802 | B198: 5319354
A199: 803 | B199: 16360688
A200: 804 | B200: 15273675
... 2205 more rows

Sheet 5-7-19 Data Pull (hidden)
A1: All SD's (- Crete Monee) | B1: 5/7 Data Pull
A2: txtFieldNum | B2: 2018
A3: 4 | B3: 4449380884
A4: 11 | B4: 10965222
A5: 12 | B5: 2085627941
A6: 15 | B6: 8487467
A7: 16 | B7: 1.360432326e+10
A8: 25 | B8: 113203890
A9: 27 | B9: 4516526967
A10: 30 | B10: 6103904165
A11: 31 | B11: 7255290592
A12: 32 | B12: 1.360432326e+10
A13: 36 | B13: 449091290
A14: 43 | B14: 98822
A15: 44 | B15: 352727831
A16: 47 | B16: 809521
A17: 48 | B17: 2004389425
A18: 56 | B18: 109272
A19: 58 | B19: 532996778
A20: 61 | B20: 645406398
A21: 62 | B21: 1153151308
A22: 63 | B22: 2004389425
A23: 65 | B23: 453038975
A24: 68 | B24: 192660768
A25: 69 | B25: 13754738
A26: 70 | B26: 2118999902
A27: 73 | B27: 460348617
A28: 78 | B28: 469306339
A29: 79 | B29: 612786993.9
A30: 80 | B30: 2118999902
A31: 84 | B31: 159323034
A32: 92 | B32: 210291838
A33: 95 | B33: 188063
A34: 96 | B34: 1208901307
A35: 103 | B35: 660741
A36: 105 | B36: 298210918
A37: 108 | B37: 357072463
A38: 109 | B38: 684573002.9
A39: 110 | B39: 1208901307
A40: 112 | B40: 158410779
A41: 116 | B41: 109853870
A42: 118 | B42: 22713
A43: 119 | B43: 661600222.5
A44: 123 | B44: 5439635
A45: 124 | B45: 175026030
A46: 127 | B46: 194799093
A47: 128 | B47: 320909130.6
A48: 129 | B48: 661600222.6
A49: 138 | B49: 459294954
A50: 141 | B50: 34045
A51: 142 | B51: 2636761886
A52: 145 | B52: 9113
A53: 147 | B53: 17494828
A54: 150 | B54: 187253893
A55: 151 | B55: 1209846638
A56: 152 | B56: 2636761886
A57: 212 | B57: 1322298013
A58: 213 | B58: 3.492564703e+10
A59: 214 | B59: 1971193146
A60: 215 | B60: 3710974507
A61: 218 | B61: 4.299205244e+10
A62: 219 | B62: 4.299205244e+10
A63: 220 | B63: 4.299205244e+10
A64: 221 | B64: 1645160085
A65: 222 | B65: 19912185421
A66: 223 | B66: 21557345506
A67: 224 | B67: 21557256289
A68: 226 | B68: 21557256289
A69: 227 | B69: 21557256289
A70: 259 | B70: 19734469
A71: 260 | B71: 5656749
A72: 262 | B72: 13385462
A73: 263 | B73: 24190
A74: 371 | B74: 4568411
A75: 439 | B75: 116325619
A76: 440 | B76: 220808
A77: 557 | B77: 956982138
A78: 558 | B78: 41601698
A79: 559 | B79: 575570
A80: 590 | B80: 311901711
A81: 591 | B81: 7162087
A82: 644 | B82: 6741171855
A83: 645 | B83: 53496043
A84: 651 | B84: 357544899
A85: 655 | B85: 8234532
A86: 656 | B86: 169299761.8
A87: 657 | B87: 286601372.9
A88: 658 | B88: 47627036
A89: 659 | B89: 1.005228101e+10
A90: 660 | B90: 267877815
A91: 661 | B91: 305511212.8
A92: 662 | B92: 153858708.2
A93: 663 | B93: 124376076
A94: 664 | B94: 197865876.9
A95: 665 | B95: 70251496
A96: 666 | B96: 1119741185
A97: 667 | B97: 279910784
A98: 668 | B98: 220632626.1
A99: 669 | B99: 13958619
A100: 670 | B100: 514502029.1
A101: 671 | B101: 31051748
A102: 672 | B102: 177937895.7
A103: 673 | B103: 282991242.7
A104: 674 | B104: 874404091.6
A105: 675 | B105: 42342730
A106: 676 | B106: 916746821.6
A107: 677 | B107: 50098057
A108: 678 | B108: 109019241.7
A109: 679 | B109: 89779274.16
A110: 680 | B110: 19237105
A111: 681 | B111: 215621257.1
A112: 682 | B112: 10997332
A113: 684 | B113: 494752267
A114: 685 | B114: 7546862
A115: 686 | B115: 15955554
A116: 687 | B116: 24210062
A117: 688 | B117: 60814347
A118: 690 | B118: 99617794.68
A119: 692 | B119: 208144619.7
A120: 693 | B120: 13142507
A121: 694 | B121: 3550020672
A122: 695 | B122: 71914890
A123: 696 | B123: 1.367421657e+10
A124: 702 | B124: 1820198464
A125: 703 | B125: 9978449
A126: 709 | B126: 77589893
A127: 713 | B127: 757212
A128: 714 | B128: 34246764.59
A129: 715 | B129: 20977445.62
A130: 716 | B130: 2033666.77
A131: 717 | B131: 2539185409
A132: 718 | B132: 55138428
A133: 719 | B133: 63325892.75
A134: 720 | B134: 31792513.22
A135: 721 | B135: 23313846
A136: 722 | B136: 37425100.02
A137: 723 | B137: 12299869
A138: 724 | B138: 223295649
A139: 725 | B139: 60661474.57
A140: 726 | B140: 44815372
A141: 727 | B141: 1940491
A142: 728 | B142: 107417337.6
A143: 729 | B143: 24908300
A144: 730 | B144: 34813147
A145: 731 | B145: 78375357
A146: 732 | B146: 206706118.6
A147: 733 | B147: 10022096
A148: 734 | B148: 216728214.6
A149: 735 | B149: 10015932
A150: 736 | B150: 20666413
A151: 737 | B151: 18154691
A152: 738 | B152: 6861872
A153: 739 | B153: 55331968
A154: 740 | B154: 2285625
A155: 742 | B155: 113316501
A156: 743 | B156: 1527345
A157: 744 | B157: 2884336
A158: 745 | B158: 5786704
A159: 746 | B159: 29291752
A160: 748 | B160: 17161311
A161: 750 | B161: 56651448
A162: 751 | B162: 7489563
A163: 752 | B163: 803274070.2
A164: 753 | B164: 12852816
A165: 754 | B165: 3355312295
A166: 760 | B166: 118163391.6
A167: 761 | B167: 532417
A168: 767 | B168: 3004843
A169: 771 | B169: 1571457
A170: 772 | B170: 7573657
A171: 773 | B171: 45674846.88
A172: 774 | B172: 1843734
A173: 775 | B173: 1000923412
A174: 776 | B174: 12748405
A175: 777 | B175: 12949838
A176: 778 | B176: 34796077
A177: 779 | B177: 7532428
A178: 780 | B178: 24515469
A179: 781 | B179: 12962938
A180: 782 | B180: 105505155
A181: 783 | B181: 101648199.5
A182: 784 | B182: 39746237.62
A183: 785 | B183: 22858547
A184: 786 | B184: 164252984.1
A185: 787 | B185: 111071387.8
A186: 788 | B186: 12253329.88
A187: 789 | B187: 144089490.6
A188: 790 | B188: 21803884.33
A189: 791 | B189: 382088
A190: 792 | B190: 22185972.33
A191: 793 | B191: 5858787
A192: 794 | B192: 31426012.79
A193: 795 | B193: 72299634
A194: 796 | B194: 109471562
A195: 797 | B195: 202610553.8
A196: 798 | B196: 9997150.63
A197: 800 | B197: 431663700.2
A198: 801 | B198: 2264478
A199: 802 | B199: 5319354
A200: 803 | B200: 16360688
... 2208 more rows

Sheet ESTL,CoC,LkPk ttls 5-1-19 (hidden)
A1: txtFieldNum | B1: City of Clay | C1: Lake Park | D1: East STL | E1: adjusted
A2: 4 | C2: 0 | D2: 1317518 | E2: 1317518
A3: 12 | C3: 0 | E3: 0
A4: 16 | C4: 0 | D4: 53962316 | E4: 53962316
A5: 25 | C5: 0 | E5: 0
A6: 27 | C6: 0 | D6: 2900055 | E6: 2900055
A7: 30 | C7: 0 | D7: 7739318 | E7: 7739318
A8: 31 | C8: 0 | D8: 43452423 | E8: 43452423
A9: 32 | C9: 0 | D9: 53962316 | E9: 53962316
A10: 36 | C10: 0 | D10: 329379 | E10: 329379
A11: 44 | C11: 0 | E11: 0
A12: 48 | C12: 0 | D12: 1694294 | E12: 1694294
A13: 56 | C13: 0 | E13: 0
A14: 58 | C14: 0 | D14: 210583 | E14: 210583
A15: 61 | C15: 0 | D15: 383022 | E15: 383022
A16: 62 | C16: 0 | E16: 0
A17: 63 | C17: 0 | D17: 1694294 | E17: 1694294
A18: 65 | C18: 0 | D18: 1138861 | E18: 1138861
A19: 68 | C19: 0 | E19: 0
A20: 69 | C20: 0 | D20: 570310 | E20: 570310
A21: 70 | C21: 0 | D21: 7370322 | E21: 7370322
A22: 73 | C22: 0 | D22: 728106 | E22: 728106
A23: 78 | C23: 0 | D23: 728106 | E23: 728106
A24: 79 | C24: 0 | D24: 1757627 | E24: 1757627
A25: 80 | C25: 0 | D25: 7370322 | E25: 7370322
A26: 84 | C26: 0 | D26: 131752 | E26: 131752
A27: 92 | C27: 0 | E27: 0
A28: 96 | C28: 0 | D28: 2519922 | E28: 2519922
A29: 103 | C29: 0 | E29: 0
A30: 105 | C30: 0 | D30: 733927 | E30: 733927
A31: 108 | C31: 0 | D31: 858330 | E31: 858330
A32: 109 | C32: 0 | E32: 0
A33: 110 | C33: 0 | D33: 2519922 | E33: 2519922
A34: 112 | C34: 0 | D34: 1526804 | E34: 1526804
A35: 116 | C35: 0 | E35: 0
A36: 119 | C36: 0 | D36: 4937924 | E36: 4937924
A37: 123 | C37: 0 | E37: 0
A38: 124 | C38: 0 | D38: 976129 | E38: 976129
A39: 127 | C39: 0 | D39: 976129 | E39: 976129
A40: 128 | C40: 0 | D40: 2040364 | E40: 2040364
A41: 129 | C41: 0 | D41: 4937924 | E41: 4937924
A42: 138 | C42: 0 | E42: 0
A43: 142 | C43: 0 | D43: 1386767 | E43: 1386767
A44: 147 | C44: 0 | E44: 0
A45: 150 | C45: 0 | E45: 0
A46: 151 | C46: 0 | E46: 0
A47: 152 | C47: 0 | D47: 1386767 | E47: 1386767
A48: 212 | C48: 0 | D48: 815300 | E48: 815300
A49: 213 | C49: 0 | D49: 214644813 | E49: 214644813
A50: 214 | C50: 0 | D50: 4604112 | E50: 4604112
A51: 215 | C51: 0 | D51: 20966469 | E51: 20966469
A52: 218 | C52: 0 | D52: 241030694 | E52: 241030694
A53: 219 | C53: 0 | D53: 241030694 | E53: 241030694
A54: 220 | C54: 0 | D54: 241030694 | E54: 241030694
A55: 221 | C55: 0 | D55: 6642216 | E55: 6642216
A56: 222 | C56: 0 | D56: 23577784 | E56: 23577784
A57: 223 | C57: 0 | D57: 30220000 | E57: 30220000
A58: 224 | C58: 0 | D58: 30220000 | E58: 30220000
A59: 226 | C59: 0 | D59: 30220000 | E59: 30220000
A60: 227 | C60: 0 | D60: 30220000 | E60: 30220000
A61: 259 | C61: 0 | E61: 0
A62: 644 | C62: 0 | D62: 15183063 | E62: 15183063
A63: 645 | C63: 0 | E63: 0
A64: 651 | C64: 0 | D64: 181439 | E64: 181439
A65: 656 | C65: 0 | D65: 535228 | E65: 535228
A66: 657 | C66: 0 | D66: 194052 | E66: 194052
A67: 658 | C67: 0 | E67: 0
A68: 659 | C68: 0 | D68: 26930010 | E68: 26930010
A69: 660 | C69: 0 | D69: 1720517 | E69: 1720517
A70: 661 | C70: 0 | D70: 558433 | E70: 558433
A71: 662 | C71: 0 | D71: 314722 | E71: 314722
A72: 663 | C72: 0 | D72: 488843 | E72: 488843
A73: 664 | C73: 0 | D73: 348066 | E73: 348066
A74: 665 | C74: 0 | D74: 75937 | E74: 75937
A75: 666 | C75: 0 | D75: 3506518 | E75: 3506518
A76: 667 | C76: 0 | D76: 2480594 | E76: 2480594
A77: 668 | C77: 0 | D77: 434427 | E77: 434427
A78: 669 | C78: 0 | D78: 10300 | E78: 10300
A79: 670 | C79: 0 | D79: 2925321 | E79: 2925321
A80: 671 | C80: 0 | E80: 0
A81: 672 | C81: 0 | D81: 990976 | E81: 990976
A82: 673 | C82: 0 | D82: 1609578 | E82: 1609578
A83: 674 | C83: 0 | D83: 2894209 | E83: 2894209
A84: 675 | C84: 0 | D84: 91313 | E84: 91313
A85: 676 | C85: 0 | D85: 2985522 | E85: 2985522
A86: 677 | C86: 0 | E86: 0
A87: 678 | C87: 0 | D87: 625775 | E87: 625775
A88: 679 | C88: 0 | D88: 2615 | E88: 2615
A89: 680 | C89: 0 | D89: 27796 | E89: 27796
A90: 681 | C90: 0 | D90: 77657 | E90: 77657
A91: 682 | C91: 0 | D91: 231731 | E91: 231731
A92: 684 | C92: 0 | D92: 965574 | E92: 965574
A93: 685 | C93: 0 | D93: 750447 | E93: 750447
A94: 686 | C94: 0 | D94: 369632 | E94: 369632
A95: 687 | C95: 0 | E95: 0
A96: 688 | C96: 0 | D96: 382838 | E96: 382838
A97: 690 | C97: 0 | D97: 501145 | E97: 501145
A98: 692 | C98: 0 | D98: 2004062 | E98: 2004062
A99: 693 | C99: 0 | D99: 577912 | E99: 577912
A100: 694 | C100: 0 | D100: 14574487 | E100: 14574487
A101: 695 | C101: 0 | D101: 183519 | E101: 183519
A102: 696 | C102: 0 | D102: 41688016 | E102: 41688016
A103: 702 | C103: 0 | D103: 2345912 | E103: 2345912
A104: 703 | C104: 0 | E104: 0
A105: 709 | C105: 0 | D105: 43022 | E105: 43022
A106: 714 | C106: 0 | D106: 102377 | E106: 102377
A107: 715 | C107: 0 | D107: 19566 | E107: 19566
A108: 716 | C108: 0 | E108: 0
A109: 717 | C109: 0 | D109: 5352930 | E109: 5352930
A110: 718 | C110: 0 | D110: 377350 | E110: 377350
A111: 719 | C111: 0 | D111: 108203 | E111: 108203
A112: 720 | C112: 0 | D112: 90123 | E112: 90123
A113: 721 | C113: 0 | D113: 102847 | E113: 102847
A114: 722 | C114: 0 | D114: 67669 | E114: 67669
A115: 723 | C115: 0 | D115: 10592 | E115: 10592
A116: 724 | C116: 0 | D116: 756784 | E116: 756784
A117: 725 | C117: 0 | D117: 529034 | E117: 529034
A118: 726 | C118: 0 | D118: 89681 | E118: 89681
A119: 727 | C119: 0 | E119: 0
A120: 728 | C120: 0 | D120: 618715 | E120: 618715
A121: 729 | C121: 0 | D121: 2192 | E121: 2192
A122: 730 | C122: 0 | D122: 146992 | E122: 146992
A123: 731 | C123: 0 | D123: 268727 | E123: 268727
A124: 732 | C124: 0 | D124: 481585 | E124: 481585
A125: 733 | C125: 0 | D125: 12003 | E125: 12003
A126: 734 | C126: 0 | D126: 493588 | E126: 493588
A127: 735 | C127: 0 | E127: 0
A128: 736 | C128: 0 | D128: 78236 | E128: 78236
A129: 737 | C129: 0 | D129: 42155 | E129: 42155
A130: 738 | C130: 0 | D130: 2401 | E130: 2401
A131: 740 | C131: 0 | D131: 36161 | E131: 36161
A132: 742 | C132: 0 | D132: 158953 | E132: 158953
A133: 743 | C133: 0 | D133: 145202 | E133: 145202
A134: 744 | C134: 0 | D134: 66772 | E134: 66772
A135: 745 | C135: 0 | E135: 0
A136: 746 | C136: 0 | D136: 59224 | E136: 59224
A137: 748 | C137: 0 | D137: 95182 | E137: 95182
A138: 750 | C138: 0 | D138: 366380 | E138: 366380
A139: 751 | C139: 0 | D139: 51441 | E139: 51441
A140: 752 | C140: 0 | D140: 2714588 | E140: 2714588
A141: 753 | C141: 0 | D141: 35840 | E141: 35840
A142: 754 | C142: 0 | D142: 8103358 | E142: 8103358
A143: 760 | C143: 0 | D143: 708049 | E143: 708049
A144: 772 | C144: 0 | D144: 58842 | E144: 58842
A145: 773 | C145: 0 | D145: 450543 | E145: 450543
A146: 775 | C146: 0 | D146: 3303205 | E146: 3303205
A147: 776 | C147: 0 | D147: 35613 | E147: 35613
A148: 777 | C148: 0 | D148: 6489 | E148: 6489
A149: 778 | C149: 0 | D149: 318234 | E149: 318234
A150: 779 | C150: 0 | D150: 5016 | E150: 5016
A151: 780 | C151: 0 | E151: 0
A152: 781 | C152: 0 | E152: 0
A153: 782 | C153: 0 | D153: 365352 | E153: 365352
A154: 783 | C154: 0 | D154: 880056 | E154: 880056
A155: 784 | C155: 0 | D155: 134 | E155: 134
A156: 785 | C156: 0 | D156: 22633 | E156: 22633
A157: 786 | C157: 0 | D157: 902823 | E157: 902823
A158: 787 | C158: 0 | D158: 112939 | E158: 112939
A159: 788 | C159: 0 | D159: 251399 | E159: 251399
A160: 789 | C160: 0 | D160: 373094 | E160: 373094
A161: 790 | C161: 0 | D161: 141352 | E161: 141352
A162: 792 | C162: 0 | D162: 141352 | E162: 141352
A163: 793 | C163: 0 | E163: 0
A164: 794 | C164: 0 | D164: 85822 | E164: 85822
A165: 795 | C165: 0 | D165: 159359 | E165: 159359
A166: 796 | B166: -148798 | C166: 0 | D166: 0 | E166: -148798
A167: 797 | B167: 148798 | C167: 0 | D167: 2811494 | E167: 2960292
A168: 798 | C168: 0 | D168: 17436 | E168: 17436
A169: 800 | C169: 0 | D169: 3074111 | E169: 3074111
A170: 801 | C170: 0 | D170: 32634 | E170: 32634
A171: 802 | C171: 0 | D171: 331919 | E171: 331919
A172: 803 | C172: 0 | D172: 38755 | E172: 38755
A173: 804 | C173: 0 | D173: 157860 | E173: 157860
A174: 806 | C174: 0 | D174: 302801 | E174: 302801
A175: 808 | C175: 0 | D175: 863969 | E175: 863969
A176: 809 | C176: 0 | D176: 9086 | E176: 9086
A177: 810 | C177: 0 | D177: 5729787 | E177: 5729787
A178: 811 | C178: 0 | D178: 429726 | E178: 429726
A179: 812 | C179: 0 | D179: 10059830 | E179: 10059830
A180: 818 | C180: 0 | D180: 446414 | E180: 446414
A181: 819 | C181: 0 | E181: 0
A182: 825 | C182: 0 | D182: 405 | E182: 405
A183: 830 | C183: 0 | D183: 87048 | E183: 87048
A184: 831 | C184: 0 | D184: 271102 | E184: 271102
A185: 832 | C185: 0 | E185: 0
A186: 833 | C186: 0 | D186: 1072898 | E186: 1072898
A187: 834 | C187: 0 | D187: 45536 | E187: 45536
A188: 835 | C188: 0 | E188: 0
A189: 836 | C189: 0 | D189: 1532 | E189: 1532
A190: 837 | C190: 0 | E190: 0
A191: 838 | C191: 0 | E191: 0
A192: 839 | C192: 0 | E192: 0
A193: 840 | C193: 0 | D193: 47068 | E193: 47068
A194: 841 | C194: 0 | D194: 100059 | E194: 100059
A195: 842 | C195: 0 | E195: 0
A196: 843 | C196: 0 | E196: 0
A197: 844 | C197: 0 | D197: 100059 | E197: 100059
A198: 845 | C198: 0 | D198: 3504 | E198: 3504
A199: 846 | C199: 0 | D199: 64582 | E199: 64582
A200: 847 | C200: 0 | D200: 90583 | E200: 90583
... 991 more rows
